Workbook

Sheet ４．少子化関係指標
B4: 市町村別少子化関係指標（合計特殊出生率、未婚率と有配偶出生率、平均初婚年齢、出生順位ごとの母の平均年齢）
C5: （市町村別データ：1718市町村＋23特別区（平成29年1月1日現在の境域））
B7: （概要・留意事項等）
B8: ○ 合計特殊出生率は、厚生労働省「人口動態保健所・市区町村別統計」による平成20～24年の数値（ベイズ推定値）。また、母の年齢階級別内訳は、同統計の母の年齢階級別出生率（ベイズ推定値）に５を乗じて作成。
B9: ○ 出生順位別内訳は、合計特殊出生率を厚生労働省「人口動態統計」（平成25年）の特別集計による出生順位別出生数で按分して作成。
B10: ○ 未婚率は、総務省「国勢調査」（平成27年）による日本人未婚者数の日本人人口（配偶関係不詳除く）に対する割合（性別・年齢５歳階級別）と、国勢調査から作成した国籍不詳及び年齢不詳按分後の日本人人口（性別・年齢５歳階級別）を用いて作成。
B11: ・ 国籍不詳及び年齢不詳按分後日本人人口は、人口20万人以上の市・県庁所在市については、公表されている数値を使用。
B12: ・ その他市町村の人口は、以下の手順で作成。
C13: ①公表データを用いて、都道府県計の性別・年齢階級別日本人人口から、当該都道府県内の人口20万人以上の市及び県庁所在市の性別・年齢階級別日本人人口を引いて、それ以外の市町村計の性別・年齢階級別日本人人口を計算。
C14: ②それ以外の各市町村の、国勢調査における年齢不詳按分前の性別・年齢階級別日本人人口に、当該市町村の国籍不詳按分後の日本人人口を、年齢不詳按分前の性別・年齢階級別日本人人口の計で割った比率を乗じて、国籍不詳及び年齢不詳按分後の性別・年齢階級別日本人人口の粗い推計値を作成。
C15: ③作成した粗い推計値について、それ以外の各市町村の性別・年齢階級別の合計値を計算して、①で作成した、それ以外の市町村計の性別・年齢階級別日本人人口と比較して、補正。
C16: ④最後に補正した各市町村の年齢計の性別日本人人口が、公表値に一致するように全年齢階級一律に補正。
B17: ○ 有配偶出生率は、厚生労働省「人口動態統計」（平成27年）による出生数（母の年齢計）の、総務省「国勢調査」（平成27年）から作成した日本人女性有配偶者数（15～49歳）に対する比率。
B18: ・ 日本人女性有配偶者数は、総務省「国勢調査」（平成27年）による日本人有配偶者数の日本人人口（配偶関係不詳除く）に対する割合（性別・年齢５歳階級別）と、（上記の）国籍不詳及び年齢不詳按分後の日本人人口（性別・年齢５歳階級別）を用いて作成。
B19: ○ 平均初婚年齢は、厚生労働省「人口動態統計」（平成25年）の特別集計による。
B20: ○ 出生順位ごとの母の平均年齢は、厚生労働省「人口動態統計」（平成25年）の特別集計による。
B21: ○ 平成26年4月5日に栃木県栃木市と岩舟町が合併したが、栃木市の欄には合併前の栃木市の数値を記載している。
B22: ○ 合計特殊出生率との相関係数、単純平均、標準偏差は表中のデータを用いて機械的に計算。変動係数は、標準偏差／単純平均で機械的に計算。
B23: ○ 基礎とした統計上表象のないものや、特別集計の集計対象数が概ね５を下回り少ないなど表象に適さないと考えられるものについては、「・・・ 」を表示している。
B24: ○ 順位については、指標ごとに昇順又は降順となっている。また、その下に表示している数値は順位の対象となる数値の数（1718市町村＋23特別区から「・・・ 」を除いたもの）である。 | AX24: ・・・上位200位を網掛け
AX25: ・・・下位200位を網掛け
J26: 合計特殊出生率（H20～24） | AG26: 未婚率と有配偶出生率（H27） | AN26: 平均初婚年齢（H25） | AS26: 出生順位ごとの母の平均年齢（H25）
J27: 合計特殊 | L27: 母の年齢階級別内訳 | Z27: 出生順位別内訳 | AG27: 未婚率（25～39歳） | AK27: 有配偶 | AN27: 男性 | AP27: 女性 | AS27: 総数 | AU27: 第１子 | AW27: 第２子 | AY27: 第３子
J28: 出生率 | L28: 15～19歳 | N28: 20～24歳 | P28: 25～29歳 | R28: 30～34歳 | T28: 35～39歳 | V28: 40～44歳 | X28: 45～49歳 | Z28: 第１子 | AB28: 第２子 | AD28: 第３子以降 | AG28: 男性 | AI28: 女性 | AK28: 出生率
K29: （順位） | M29: （順位） | O29: （順位） | Q29: （順位） | S29: （順位） | U29: （順位） | W29: （順位） | Y29: （順位） | AA29: （順位） | AC29: （順位） | AE29: （順位） | AH29: （順位） | AJ29: （順位） | AK29: （15～49歳） | AL29: （順位） | AO29: （順位） | AQ29: （順位） | AT29: （順位） | AV29: （順位） | AX29: （順位） | AZ29: （順位）
B30: 一連番号 | C30: 都道府県 | E30: 市区町村等 | K30: （降順） | M30: （降順） | O30: （降順） | Q30: （降順） | S30: （降順） | U30: （降順） | W30: （降順） | Y30: （降順） | AA30: （降順） | AC30: （降順） | AE30: （降順） | AH30: （昇順） | AJ30: （昇順） | AK30: （H27） | AL30: （降順） | AO30: （昇順） | AQ30: （昇順） | AT30: （昇順） | AV30: （昇順） | AX30: （昇順） | AZ30: （昇順）
C31: 番号 | D31: 名称 | E31: 番号 | F31: 名称 | K31: 1741 | M31: 1741 | O31: 1741 | Q31: 1741 | S31: 1741 | U31: 1741 | W31: 1741 | Y31: 1741 | AA31: 1708 | AC31: 1708 | AE31: 1708 | AG31: （％） | AH31: 1735 | AI31: （％） | AJ31: 1734 | AK31: （対1000人） | AL31: 1732 | AN31: （歳） | AO31: 1654 | AP31: （歳） | AQ31: 1650 | AS31: （歳） | AT31: 1708 | AU31: （歳） | AV31: 1633 | AW31: （歳） | AX31: 1627 | AY31: （歳） | AZ31: 1501
D32: （合計特殊出生率との相関係数） | J32: =CORREL('４．少子化関係指標'!$J$37:$J$1777,'４．少子化関係指標'!J$37:J$1777) -> 1 | L32: =CORREL('４．少子化関係指標'!$J$37:$J$1777,'４．少子化関係指標'!L$37:L$1777) -> 0.4731490587 | N32: =CORREL('４．少子化関係指標'!$J$37:$J$1777,'４．少子化関係指標'!N$37:N$1777) -> 0.7827088926 | P32: =CORREL('４．少子化関係指標'!$J$37:$J$1777,'４．少子化関係指標'!P$37:P$1777) -> 0.9066597485 | R32: =CORREL('４．少子化関係指標'!$J$37:$J$1777,'４．少子化関係指標'!R$37:R$1777) -> 0.6642478966 | T32: =CORREL('４．少子化関係指標'!$J$37:$J$1777,'４．少子化関係指標'!T$37:T$1777) -> 0.4203763026 | V32: =CORREL('４．少子化関係指標'!$J$37:$J$1777,'４．少子化関係指標'!V$37:V$1777) -> 0.2158790219 | X32: =CORREL('４．少子化関係指標'!$J$37:$J$1777,'４．少子化関係指標'!X$37:X$1777) -> 0.0327342485 | Z32: =CORREL('４．少子化関係指標'!$J$37:$J$1777,'４．少子化関係指標'!Z$37:Z$1777) -> 0.4481713983 | AB32: =CORREL('４．少子化関係指標'!$J$37:$J$1777,'４．少子化関係指標'!AB$37:AB$1777) -> 0.5520522981 | AD32: =CORREL('４．少子化関係指標'!$J$37:$J$1777,'４．少子化関係指標'!AD$37:AD$1777) -> 0.616345438 | AG32: =CORREL('４．少子化関係指標'!$J$37:$J$1777,'４．少子化関係指標'!AG$37:AG$1777) -> -0.5213155614 | AI32: =CORREL('４．少子化関係指標'!$J$37:$J$1777,'４．少子化関係指標'!AI$37:AI$1777) -> -0.6498557624 | AK32: =CORREL('４．少子化関係指標'!$J$37:$J$1777,'４．少子化関係指標'!AK$37:AK$1777) -> 0.495456209 | AN32: =CORREL('４．少子化関係指標'!$J$37:$J$1777,'４．少子化関係指標'!AN$37:AN$1777) -> -0.183870947 | AP32: =CORREL('４．少子化関係指標'!$J$37:$J$1777,'４．少子化関係指標'!AP$37:AP$1777) -> -0.2164792678 | AS32: =CORREL('４．少子化関係指標'!$J$37:$J$1777,'４．少子化関係指標'!AS$37:AS$1777) -> -0.3111653966 | AU32: =CORREL('４．少子化関係指標'!$J$37:$J$1777,'４．少子化関係指標'!AU$37:AU$1777) -> -0.3137308272 | AW32: =CORREL('４．少子化関係指標'!$J$37:$J$1777,'４．少子化関係指標'!AW$37:AW$1777) -> -0.337805678 | AY32: =CORREL('４．少子化関係指標'!$J$37:$J$1777,'４．少子化関係指標'!AY$37:AY$1777) -> -0.2975313377
D33: （単純平均） | J33: =AVERAGE(J37:J1777) -> 1.487438254 | L33: =AVERAGE(L37:L1777) -> 0.02464991384 | N33: =AVERAGE(N37:N1777) -> 0.2440109133 | P33: =AVERAGE(P37:P1777) -> 0.4897159678 | R33: =AVERAGE(R37:R1777) -> 0.4751602527 | T33: =AVERAGE(T37:T1777) -> 0.2155898909 | V33: =AVERAGE(V37:V1777) -> 0.03752728317 | X33: =AVERAGE(X37:X1777) -> 0.0008762205629 | Z33: =AVERAGE(Z37:Z1777) -> 0.616408031 | AB33: =AVERAGE(AB37:AB1777) -> 0.5487519797 | AD33: =AVERAGE(AD37:AD1777) -> 0.3237392867 | AG33: =AVERAGE(AG37:AG1777) -> 0.5116885225 | AI33: =AVERAGE(AI37:AI1777) -> 0.3657244194 | AK33: =AVERAGE(AK37:AK1777) -> 78.64685432 | AN33: =AVERAGE(AN37:AN1777) -> 30.5719468 | AP33: =AVERAGE(AP37:AP1777) -> 28.87121212 | AS33: =AVERAGE(AS37:AS1777) -> 31.14660422 | AU33: =AVERAGE(AU37:AU1777) -> 29.63270055 | AW33: =AVERAGE(AW37:AW1777) -> 31.58223725 | AY33: =AVERAGE(AY37:AY1777) -> 33.01085943
D34: （標準偏差） | J34: =STDEVP(J37:J1777) -> 0.2026662805 | L34: =STDEVP(L37:L1777) -> 0.009644108548 | N34: =STDEVP(N37:N1777) -> 0.09092560849 | P34: =STDEVP(P37:P1777) -> 0.08459542802 | R34: =STDEVP(R37:R1777) -> 0.05381640023 | T34: =STDEVP(T37:T1777) -> 0.02991140164 | V34: =STDEVP(V37:V1777) -> 0.008387117595 | X34: =STDEVP(X37:X1777) -> 0.000530557092 | Z34: =STDEVP(Z37:Z1777) -> 0.1242894671 | AB34: =STDEVP(AB37:AB1777) -> 0.111655117 | AD34: =STDEVP(AD37:AD1777) -> 0.1395117943 | AG34: =STDEVP(AG37:AG1777) -> 0.06328551871 | AI34: =STDEVP(AI37:AI1777) -> 0.06095033481 | AK34: =STDEVP(AK37:AK1777) -> 17.60450477 | AN34: =STDEVP(AN37:AN1777) -> 1.394313536 | AP34: =STDEVP(AP37:AP1777) -> 1.217310143 | AS34: =STDEVP(AS37:AS1777) -> 0.9417801373 | AU34: =STDEVP(AU37:AU1777) -> 1.262932801 | AW34: =STDEVP(AW37:AW1777) -> 1.192085315 | AY34: =STDEVP(AY37:AY1777) -> 1.169599655
D35: （変動係数） | J35: =J34/J33 -> 0.1362518948 | L35: =L34/L33 -> 0.3912430936 | N35: =N34/N33 -> 0.37262927 | P35: =P34/P33 -> 0.1727438629 | R35: =R34/R33 -> 0.1132594739 | T35: =T34/T33 -> 0.1387421345 | V35: =V34/V33 -> 0.223493866 | X35: =X34/X33 -> 0.6055063239 | Z35: =Z34/Z33 -> 0.2016350548 | AB35: =AB34/AB33 -> 0.2034710054 | AD35: =AD34/AD33 -> 0.4309387213 | AG35: =AG34/AG33 -> 0.1236797699 | AI35: =AI34/AI33 -> 0.1666564538 | AK35: =AK34/AK33 -> 0.2238424527 | AN35: =AN34/AN33 -> 0.04560761358 | AP35: =AP34/AP33 -> 0.04216345813 | AS35: =AS34/AS33 -> 0.03023700853 | AU35: =AU34/AU33 -> 0.04261956478 | AW35: =AW34/AW33 -> 0.037745436 | AY35: =AY34/AY33 -> 0.03543075445
D36: 全国 | J36: 1.38 | L36: 0.024 | N36: 0.18 | P36: 0.435 | R36: 0.4755 | T36: 0.226 | V36: 0.0405 | X36: 0.001 | Z36: 0.6451218859 | AB36: 0.5085015964 | AD36: 0.2263765177 | AG36: 0.5011563952 | AI36: 0.3854173128 | AK36: 78.54485907 | AN36: 30.9 | AP36: 29.3 | AS36: 31.6 | AU36: 30.4 | AW36: 32.3 | AY36: 33.4
B37: 1 | C37: 1 | D37: 北海道 | E37: 1100 | F37: 札幌市 | J37: 1.08 | K37: 1711 | L37: 0.0195 | M37: 1182 | N37: 0.132 | O37: 1604 | P37: 0.3265 | Q37: 1681 | R37: 0.3815 | S37: 1684 | T37: 0.1905 | U37: 1423 | V37: 0.033 | W37: 1197 | X37: 0.0005 | Y37: 884 | Z37: 0.5596518402 | AA37: 1222 | AB37: 0.3766047564 | AC37: 1617 | AD37: 0.1437434035 | AE37: 1632 | AG37: 0.5110970158 | AH37: 917 | AI37: 0.44921433 | AJ37: 1612 | AK37: 73.20499643 | AL37: 1089 | AN37: 31 | AO37: 1103 | AP37: 29.6 | AQ37: 1297 | AS37: 31.8 | AT37: 1351 | AU37: 30.7 | AV37: 1344 | AW37: 32.7 | AX37: 1380 | AY37: 33.6 | AZ37: 1051
B38: 2 | C38: 1 | D38: 北海道 | E38: 1202 | F38: 函館市 | J38: 1.22 | K38: 1608 | L38: 0.0245 | M38: 726 | N38: 0.2075 | O38: 1105 | P38: 0.4 | Q38: 1528 | R38: 0.382 | S38: 1682 | T38: 0.1745 | U38: 1674 | V38: 0.029 | W38: 1616 | X38: 0.001 | Y38: 270 | Z38: 0.6047140381 | AA38: 959 | AB38: 0.4299248989 | AC38: 1514 | AD38: 0.185361063 | AE38: 1551 | AG38: 0.4979811202 | AH38: 776 | AI38: 0.4084766193 | AJ38: 1411 | AK38: 73.86254833 | AL38: 1055 | AN38: 30.2 | AO38: 604 | AP38: 29 | AQ38: 925 | AS38: 30.9 | AT38: 613 | AU38: 29.7 | AV38: 824 | AW38: 31.4 | AX38: 651 | AY38: 33 | AZ38: 671
B39: 3 | C39: 1 | D39: 北海道 | E39: 1203 | F39: 小樽市 | J39: 1.14 | K39: 1683 | L39: 0.026 | M39: 588 | N39: 0.171 | O39: 1392 | P39: 0.3635 | Q39: 1624 | R39: 0.3695 | S39: 1710 | T39: 0.176 | U39: 1667 | V39: 0.03 | W39: 1533 | X39: 0.001 | Y39: 270 | Z39: 0.4944149766 | AA39: 1463 | AB39: 0.3983775351 | AC39: 1575 | AD39: 0.2472074883 | AE39: 1195 | AG39: 0.5446630138 | AH39: 1263 | AI39: 0.4339245024 | AJ39: 1562 | AK39: 70.49034835 | AL39: 1249 | AN39: 29.8 | AO39: 395 | AP39: 29.1 | AQ39: 999 | AS39: 31.3 | AT39: 969 | AU39: 29.6 | AV39: 751 | AW39: 31.7 | AX39: 854 | AY39: 33.8 | AZ39: 1158
B40: 4 | C40: 1 | D40: 北海道 | E40: 1204 | F40: 旭川市 | J40: 1.31 | K40: 1427 | L40: 0.023 | M40: 868 | N40: 0.2125 | O40: 1060 | P40: 0.45 | Q40: 1233 | R40: 0.4115 | S40: 1538 | T40: 0.183 | U40: 1574 | V40: 0.027 | W40: 1691 | X40: 0.0005 | Y40: 884 | Z40: 0.6041210139 | AA40: 963 | AB40: 0.4868315617 | AC40: 1295 | AD40: 0.2190474244 | AE40: 1389 | AG40: 0.4599767071 | AH40: 312 | AI40: 0.3840094648 | AJ40: 1137 | AK40: 77.09422435 | AL40: 882 | AN40: 30 | AO40: 490 | AP40: 29 | AQ40: 925 | AS40: 31.1 | AT40: 783 | AU40: 29.7 | AV40: 824 | AW40: 31.8 | AX40: 931 | AY40: 33.1 | AZ40: 735
B41: 5 | C41: 1 | D41: 北海道 | E41: 1205 | F41: 室蘭市 | J41: 1.45 | K41: 967 | L41: 0.037 | M41: 152 | N41: 0.277 | O41: 540 | P41: 0.4935 | Q41: 859 | R41: 0.445 | S41: 1199 | T41: 0.1745 | U41: 1674 | V41: 0.0235 | W41: 1731 | X41: 0.0005 | Y41: 884 | Z41: 0.6390265487 | AA41: 741 | AB41: 0.572300885 | AC41: 692 | AD41: 0.2386725664 | AE41: 1255 | AG41: 0.4912670893 | AH41: 681 | AI41: 0.3291297276 | AJ41: 424 | AK41: 78.61817325 | AL41: 786 | AN41: 30 | AO41: 490 | AP41: 28.7 | AQ41: 694 | AS41: 30.6 | AT41: 377 | AU41: 29.3 | AV41: 568 | AW41: 30.9 | AX41: 379 | AY41: 32.8 | AZ41: 567
B42: 6 | C42: 1 | D42: 北海道 | E42: 1206 | F42: 釧路市 | J42: 1.35 | K42: 1299 | L42: 0.0255 | M42: 641 | N42: 0.2575 | O42: 680 | P42: 0.4635 | Q42: 1129 | R42: 0.3985 | S42: 1624 | T42: 0.1775 | U42: 1645 | V42: 0.0295 | W42: 1578 | X42: 0.0005 | Y42: 884 | Z42: 0.619921875 | AA42: 865 | AB42: 0.4921875 | AC42: 1258 | AD42: 0.237890625 | AE42: 1262 | AG42: 0.470742705 | AH42: 423 | AI42: 0.3548204215 | AJ42: 785 | AK42: 72.545428 | AL42: 1121 | AN42: 29.9 | AO42: 440 | AP42: 28.6 | AQ42: 620 | AS42: 30.5 | AT42: 318 | AU42: 28.7 | AV42: 279 | AW42: 31.6 | AX42: 782 | AY42: 32.8 | AZ42: 567
B43: 7 | C43: 1 | D43: 北海道 | E43: 1207 | F43: 帯広市 | J43: 1.38 | K43: 1211 | L43: 0.0245 | M43: 726 | N43: 0.241 | O43: 816 | P43: 0.47 | Q43: 1069 | R43: 0.425 | S43: 1420 | T43: 0.1935 | U43: 1361 | V43: 0.029 | W43: 1616 | X43: 0.0005 | Y43: 884 | Z43: 0.6890057637 | AA43: 431 | AB43: 0.479221902 | AC43: 1338 | AD43: 0.2117723343 | AE43: 1439 | AG43: 0.4891702239 | AH43: 650 | AI43: 0.3667848786 | AJ43: 935 | AK43: 81.74075864 | AL43: 604 | AN43: 30.2 | AO43: 604 | AP43: 28.9 | AQ43: 837 | AS43: 30.6 | AT43: 377 | AU43: 29.6 | AV43: 751 | AW43: 31.1 | AX43: 476 | AY43: 32.5 | AZ43: 421
B44: 8 | C44: 1 | D44: 北海道 | E44: 1208 | F44: 北見市 | J44: 1.36 | K44: 1270 | L44: 0.025 | M44: 691 | N44: 0.266 | O44: 625 | P44: 0.444 | Q44: 1268 | R44: 0.4145 | S44: 1512 | T44: 0.182 | U44: 1582 | V44: 0.0285 | W44: 1640 | X44: 0.0005 | Y44: 884 | Z44: 0.6208361582 | AA44: 857 | AB44: 0.5117288136 | AC44: 1138 | AD44: 0.2274350282 | AE44: 1329 | AG44: 0.4590545762 | AH44: 301 | AI44: 0.3395383425 | AJ44: 566 | AK44: 72.96666456 | AL44: 1101 | AN44: 30.4 | AO44: 715 | AP44: 28.9 | AQ44: 837 | AS44: 31 | AT44: 692 | AU44: 29.5 | AV44: 699 | AW44: 31.6 | AX44: 782 | AY44: 33 | AZ44: 671
B45: 9 | C45: 1 | D45: 北海道 | E45: 1209 | F45: 夕張市 | J45: 1.32 | K45: 1396 | L45: 0.0255 | M45: 641 | N45: 0.284 | O45: 488 | P45: 0.378 | Q45: 1587 | R45: 0.401 | S45: 1609 | T45: 0.2005 | U45: 1132 | V45: 0.0295 | W45: 1578 | X45: 0.0005 | Y45: 884 | Z45: 0.4637837838 | AA45: 1547 | AB45: 0.6064864865 | AC45: 439 | AD45: 0.2497297297 | AE45: 1185 | AG45: 0.5943146834 | AH45: 1580 | AI45: 0.3922056774 | AJ45: 1231 | AK45: 45.48267785 | AL45: 1703 | AN45: 30.4 | AO45: 715 | AP45: 29.9 | AQ45: 1415 | AS45: 31.6 | AT45: 1233 | AU45: 29.4 | AV45: 635 | AW45: 32.6 | AX45: 1355 | AY45: … | AZ45: …
B46: 10 | C46: 1 | D46: 北海道 | E46: 1210 | F46: 岩見沢市 | J46: 1.27 | K46: 1520 | L46: 0.022 | M46: 952 | N46: 0.198 | O46: 1179 | P46: 0.44 | Q46: 1293 | R46: 0.3965 | S46: 1640 | T46: 0.177 | U46: 1654 | V46: 0.0315 | W46: 1380 | X46: 0.0005 | Y46: 884 | Z46: 0.5459813084 | AA46: 1279 | AB46: 0.4700186916 | AC46: 1379 | AD46: 0.254 | AE46: 1151 | AG46: 0.495089029 | AH46: 737 | AI46: 0.3792068193 | AJ46: 1084 | AK46: 70.58644673 | AL46: 1243 | AN46: 31 | AO46: 1103 | AP46: 28.9 | AQ46: 837 | AS46: 30.9 | AT46: 613 | AU46: 29.4 | AV46: 635 | AW46: 31.2 | AX46: 534 | AY46: 33.6 | AZ46: 1051
B47: 11 | C47: 1 | D47: 北海道 | E47: 1211 | F47: 網走市 | J47: 1.51 | K47: 721 | L47: 0.0305 | M47: 313 | N47: 0.2395 | O47: 829 | P47: 0.54 | Q47: 454 | R47: 0.4595 | S47: 1025 | T47: 0.2075 | U47: 949 | V47: 0.0295 | W47: 1578 | X47: 0.0005 | Y47: 884 | Z47: 0.6626959248 | AA47: 580 | AB47: 0.5254231975 | AC47: 1030 | AD47: 0.3218808777 | AE47: 698 | AG47: 0.4882538545 | AH47: 638 | AI47: 0.3196539151 | AJ47: 332 | AK47: 80.67740868 | AL47: 653 | AN47: 30.4 | AO47: 715 | AP47: 28.5 | AQ47: 551 | AS47: 30.7 | AT47: 444 | AU47: 29 | AV47: 416 | AW47: 30.8 | AX47: 341 | AY47: 33.5 | AZ47: 1001
B48: 12 | C48: 1 | D48: 北海道 | E48: 1212 | F48: 留萌市 | J48: 1.6 | K48: 429 | L48: 0.017 | M48: 1394 | N48: 0.359 | O48: 171 | P48: 0.522 | Q48: 608 | R48: 0.469 | S48: 929 | T48: 0.1995 | U48: 1157 | V48: 0.0295 | W48: 1578 | X48: 0.0015 | Y48: 88 | Z48: 0.7460122699 | AA48: 183 | AB48: 0.5496932515 | AC48: 864 | AD48: 0.3042944785 | AE48: 804 | AG48: 0.4815163045 | AH48: 553 | AI48: 0.3221979014 | AJ48: 351 | AK48: 77.46485427 | AL48: 854 | AN48: 31.4 | AO48: 1281 | AP48: 28.9 | AQ48: 837 | AS48: 31 | AT48: 692 | AU48: 29.2 | AV48: 521 | AW48: 32.2 | AX48: 1178 | AY48: 33.3 | AZ48: 862
B49: 13 | C49: 1 | D49: 北海道 | E49: 1213 | F49: 苫小牧市 | J49: 1.51 | K49: 721 | L49: 0.05 | M49: 48 | N49: 0.31 | O49: 347 | P49: 0.499 | Q49: 805 | R49: 0.4295 | S49: 1370 | T49: 0.1855 | U49: 1523 | V49: 0.034 | W49: 1079 | X49: 0.001 | Y49: 270 | Z49: 0.7151036789 | AA49: 302 | AB49: 0.5201672241 | AC49: 1075 | AD49: 0.274729097 | AE49: 999 | AG49: 0.4593029619 | AH49: 304 | AI49: 0.3235699319 | AJ49: 372 | AK49: 80.30422189 | AL49: 682 | AN49: 29.5 | AO49: 280 | AP49: 28.1 | AQ49: 323 | AS49: 30.4 | AT49: 264 | AU49: 28.8 | AV49: 319 | AW49: 31.2 | AX49: 534 | AY49: 32.5 | AZ49: 421
B50: 14 | C50: 1 | D50: 北海道 | E50: 1214 | F50: 稚内市 | J50: 1.45 | K50: 967 | L50: 0.0225 | M50: 907 | N50: 0.2785 | O50: 526 | P50: 0.498 | Q50: 815 | R50: 0.429 | S50: 1374 | T50: 0.196 | U50: 1283 | V50: 0.0305 | W50: 1491 | X50: 0.0005 | Y50: 884 | Z50: 0.5934163701 | AA50: 1037 | AB50: 0.5314946619 | AC50: 983 | AD50: 0.325088968 | AE50: 677 | AG50: 0.4850242328 | AH50: 593 | AI50: 0.2984756255 | AJ50: 174 | AK50: 75.92558749 | AL50: 948 | AN50: 30.4 | AO50: 715 | AP50: 28.4 | AQ50: 481 | AS50: 30.5 | AT50: 318 | AU50: 28.9 | AV50: 363 | AW50: 30.7 | AX50: 294 | AY50: 33.1 | AZ50: 735
B51: 15 | C51: 1 | D51: 北海道 | E51: 1215 | F51: 美唄市 | J51: 1.19 | K51: 1646 | L51: 0.0155 | M51: 1515 | N51: 0.2115 | O51: 1073 | P51: 0.404 | Q51: 1507 | R51: 0.365 | S51: 1717 | T51: 0.1615 | U51: 1729 | V51: 0.032 | W51: 1327 | X51: 0.001 | Y51: 270 | Z51: 0.5437068966 | AA51: 1288 | AB51: 0.4411206897 | AC51: 1482 | AD51: 0.2051724138 | AE51: 1471 | AG51: 0.5812581406 | AH51: 1527 | AI51: 0.4033427969 | AJ51: 1351 | AK51: 52.45984672 | AL51: 1665 | AN51: 30.3 | AO51: 662 | AP51: 28.1 | AQ51: 323 | AS51: 30.1 | AT51: 151 | AU51: 28.7 | AV51: 279 | AW51: 30.7 | AX51: 294 | AY51: 32.5 | AZ51: 421
B52: 16 | C52: 1 | D52: 北海道 | E52: 1216 | F52: 芦別市 | J52: 1.21 | K52: 1617 | L52: 0.0265 | M52: 550 | N52: 0.209 | O52: 1093 | P52: 0.3955 | Q52: 1543 | R52: 0.392 | S52: 1653 | T52: 0.1605 | U52: 1731 | V52: 0.024 | W52: 1728 | X52: 0.0005 | Y52: 884 | Z52: 0.6132876712 | AA52: 901 | AB52: 0.4806849315 | AC52: 1333 | AD52: 0.1160273973 | AE52: 1664 | AG52: 0.550032295 | AH52: 1316 | AI52: 0.3978275998 | AJ52: 1295 | AK52: 62.67583871 | AL52: 1523 | AN52: 30.8 | AO52: 992 | AP52: 29.4 | AQ52: 1205 | AS52: 30.6 | AT52: 377 | AU52: 29.5 | AV52: 699 | AW52: 31.2 | AX52: 534 | AY52: 34.6 | AZ52: 1388
B53: 17 | C53: 1 | D53: 北海道 | E53: 1217 | F53: 江別市 | J53: 1.06 | K53: 1716 | L53: 0.015 | M53: 1547 | N53: 0.1 | O53: 1680 | P53: 0.347 | Q53: 1655 | R53: 0.386 | S53: 1666 | T53: 0.1865 | U53: 1506 | V53: 0.0285 | W53: 1640 | X53: 0.0005 | Y53: 884 | Z53: 0.4660344828 | AA53: 1543 | AB53: 0.388362069 | AC53: 1589 | AD53: 0.2056034483 | AE53: 1469 | AG53: 0.5106745919 | AH53: 913 | AI53: 0.4128192122 | AJ53: 1438 | AK53: 56.71722885 | AL53: 1617 | AN53: 30.6 | AO53: 850 | AP53: 29 | AQ53: 925 | AS53: 31.6 | AT53: 1233 | AU53: 30.4 | AV53: 1230 | AW53: 32 | AX53: 1064 | AY53: 33.6 | AZ53: 1051
B54: 18 | C54: 1 | D54: 北海道 | E54: 1218 | F54: 赤平市 | J54: 1.22 | K54: 1608 | L54: 0.021 | M54: 1055 | N54: 0.2125 | O54: 1060 | P54: 0.447 | Q54: 1254 | R54: 0.353 | S54: 1730 | T54: 0.162 | U54: 1727 | V54: 0.027 | W54: 1691 | X54: 0.0005 | Y54: 884 | Z54: 0.3913207547 | AA54: 1641 | AB54: 0.3452830189 | AC54: 1647 | AD54: 0.4833962264 | AE54: 195 | AG54: 0.5502243404 | AH54: 1320 | AI54: 0.405450289 | AJ54: 1376 | AK54: 55.72950324 | AL54: 1633 | AN54: 31.6 | AO54: 1358 | AP54: 30 | AQ54: 1431 | AS54: 31 | AT54: 692 | AU54: 29 | AV54: 416 | AW54: 31.2 | AX54: 534 | AY54: 31.6 | AZ54: 134
B55: 19 | C55: 1 | D55: 北海道 | E55: 1219 | F55: 紋別市 | J55: 1.48 | K55: 836 | L55: 0.0355 | M55: 175 | N55: 0.3295 | O55: 266 | P55: 0.514 | Q55: 678 | R55: 0.4005 | S55: 1613 | T55: 0.1745 | U55: 1674 | V55: 0.03 | W55: 1533 | X55: 0.0005 | Y55: 884 | Z55: 0.5671856287 | AA55: 1183 | AB55: 0.6558083832 | AC55: 217 | AD55: 0.257005988 | AE55: 1126 | AG55: 0.4873142707 | AH55: 620 | AI55: 0.2995586018 | AJ55: 185 | AK55: 70.83017354 | AL55: 1228 | AN55: 29 | AO55: 150 | AP55: 28.1 | AQ55: 323 | AS55: 30.2 | AT55: 177 | AU55: 28.9 | AV55: 363 | AW55: 30.1 | AX55: 137 | AY55: 33.4 | AZ55: 937
B56: 20 | C56: 1 | D56: 北海道 | E56: 1220 | F56: 士別市 | J56: 1.36 | K56: 1270 | L56: 0.0205 | M56: 1093 | N56: 0.2285 | O56: 920 | P56: 0.479 | Q56: 992 | R56: 0.4295 | S56: 1370 | T56: 0.1725 | U56: 1698 | V56: 0.0315 | W56: 1380 | X56: 0.0005 | Y56: 884 | Z56: 0.6126126126 | AA56: 905 | AB56: 0.4043243243 | AC56: 1561 | AD56: 0.3430630631 | AE56: 585 | AG56: 0.4713331443 | AH56: 427 | AI56: 0.3305347861 | AJ56: 440 | AK56: 63.87174846 | AL56: 1501 | AN56: 29.1 | AO56: 168 | AP56: 29.7 | AQ56: 1347 | AS56: 31.2 | AT56: 881 | AU56: 29.9 | AV56: 944 | AW56: 31.7 | AX56: 854 | AY56: 32.9 | AZ56: 622
B57: 21 | C57: 1 | D57: 北海道 | E57: 1221 | F57: 名寄市 | J57: 1.52 | K57: 683 | L57: 0.0085 | M57: 1725 | N57: 0.2175 | O57: 1015 | P57: 0.577 | Q57: 233 | R57: 0.482 | S57: 786 | T57: 0.208 | U57: 935 | V57: 0.0265 | W57: 1701 | X57: 0.0005 | Y57: 884 | Z57: 0.6909090909 | AA57: 416 | AB57: 0.5112727273 | AC57: 1140 | AD57: 0.3178181818 | AE57: 724 | AG57: 0.459279663 | AH57: 303 | AI57: 0.2884528678 | AJ57: 140 | AK57: 83.41314929 | AL57: 520 | AN57: 29.8 | AO57: 395 | AP57: 29.2 | AQ57: 1071 | AS57: 30.7 | AT57: 444 | AU57: 28.9 | AV57: 363 | AW57: 31.7 | AX57: 854 | AY57: 33 | AZ57: 671
B58: 22 | C58: 1 | D58: 北海道 | E58: 1222 | F58: 三笠市 | J58: 1.18 | K58: 1659 | L58: 0.0265 | M58: 550 | N58: 0.203 | O58: 1137 | P58: 0.339 | Q58: 1669 | R58: 0.389 | S58: 1658 | T58: 0.1875 | U58: 1488 | V58: 0.033 | W58: 1197 | X58: 0.0005 | Y58: 884 | Z58: 0.6118518519 | AA58: 914 | AB58: 0.4807407407 | AC58: 1331 | AD58: 0.08740740741 | AE58: 1688 | AG58: 0.5434800311 | AH58: 1250 | AI58: 0.3655299953 | AJ58: 920 | AK58: 80.26308808 | AL58: 684 | AN58: 29.1 | AO58: 168 | AP58: 28.8 | AQ58: 761 | AS58: 32.1 | AT58: 1479 | AU58: 30 | AV58: 1016 | AW58: 33.5 | AX58: 1539 | AY58: … | AZ58: …
B59: 23 | C59: 1 | D59: 北海道 | E59: 1223 | F59: 根室市 | J59: 1.53 | K59: 649 | L59: 0.0365 | M59: 164 | N59: 0.4 | O59: 90 | P59: 0.484 | Q59: 949 | R59: 0.413 | S59: 1525 | T59: 0.168 | U59: 1714 | V59: 0.032 | W59: 1327 | X59: 0.0005 | Y59: 884 | Z59: 0.5663942308 | AA59: 1184 | AB59: 0.5222596154 | AC59: 1058 | AD59: 0.4413461538 | AE59: 263 | AG59: 0.4898262923 | AH59: 660 | AI59: 0.2840190841 | AJ59: 110 | AK59: 80.55374118 | AL59: 661 | AN59: 29.3 | AO59: 213 | AP59: 27.9 | AQ59: 247 | AS59: 30 | AT59: 117 | AU59: 28.8 | AV59: 319 | AW59: 29.7 | AX59: 85 | AY59: 31.7 | AZ59: 153
B60: 24 | C60: 1 | D60: 北海道 | E60: 1224 | F60: 千歳市 | J60: 1.5 | K60: 762 | L60: 0.032 | M60: 252 | N60: 0.2685 | O60: 604 | P60: 0.512 | Q60: 697 | R60: 0.453 | S60: 1114 | T60: 0.2065 | U60: 969 | V60: 0.032 | W60: 1327 | X60: 0.001 | Y60: 270 | Z60: 0.7219251337 | AA60: 271 | AB60: 0.5342245989 | AC60: 959 | AD60: 0.2438502674 | AE60: 1215 | AG60: 0.4846151446 | AH60: 587 | AI60: 0.3244320543 | AJ60: 377 | AK60: 81.2790642 | AL60: 622 | AN60: 29.4 | AO60: 244 | AP60: 28 | AQ60: 279 | AS60: 30.7 | AT60: 444 | AU60: 29.6 | AV60: 751 | AW60: 31.5 | AX60: 716 | AY60: 32 | AZ60: 223
B61: 25 | C61: 1 | D61: 北海道 | E61: 1225 | F61: 滝川市 | J61: 1.43 | K61: 1043 | L61: 0.023 | M61: 868 | N61: 0.293 | O61: 440 | P61: 0.4755 | Q61: 1021 | R61: 0.426 | S61: 1411 | T61: 0.1835 | U61: 1566 | V61: 0.0315 | W61: 1380 | X61: 0.0005 | Y61: 884 | Z61: 0.6344366197 | AA61: 770 | AB61: 0.5538732394 | AC61: 833 | AD61: 0.2416901408 | AE61: 1231 | AG61: 0.4470345748 | AH61: 208 | AI61: 0.338636734 | AJ61: 553 | AK61: 75.60523176 | AL61: 964 | AN61: 29.3 | AO61: 213 | AP61: 28.5 | AQ61: 551 | AS61: 30.7 | AT61: 444 | AU61: 29.1 | AV61: 474 | AW61: 31.7 | AX61: 854 | AY61: 32.2 | AZ61: 277
B62: 26 | C62: 1 | D62: 北海道 | E62: 1226 | F62: 砂川市 | J62: 1.3 | K62: 1451 | L62: 0.0305 | M62: 313 | N62: 0.2555 | O62: 699 | P62: 0.4125 | Q62: 1448 | R62: 0.406 | S62: 1575 | T62: 0.161 | U62: 1730 | V62: 0.0305 | W62: 1491 | X62: 0.0005 | Y62: 884 | Z62: 0.675 | AA62: 496 | AB62: 0.375 | AC62: 1619 | AD62: 0.25 | AE62: 1183 | AG62: 0.473269879 | AH62: 452 | AI62: 0.3660957483 | AJ62: 929 | AK62: 64.32114066 | AL62: 1482 | AN62: 28.9 | AO62: 128 | AP62: 29.8 | AQ62: 1384 | AS62: 30.7 | AT62: 444 | AU62: 29.5 | AV62: 699 | AW62: 31.6 | AX62: 782 | AY62: 32.6 | AZ62: 475
B63: 27 | C63: 1 | D63: 北海道 | E63: 1227 | F63: 歌志内市 | J63: 1.24 | K63: 1589 | L63: 0.0245 | M63: 726 | N63: 0.287 | O63: 472 | P63: 0.362 | Q63: 1630 | R63: 0.347 | S63: 1733 | T63: 0.184 | U63: 1554 | V63: 0.03 | W63: 1533 | X63: 0.0005 | Y63: 884 | Z63: 0.5636363636 | AA63: 1198 | AB63: 0.5636363636 | AC63: 766 | AD63: 0.1127272727 | AE63: 1668 | AG63: 0.6393880714 | AH63: 1687 | AI63: 0.4013019856 | AJ63: 1331 | AK63: 71.90016528 | AL63: 1162 | AN63: 30.5 | AO63: 779 | AP63: 27 | AQ63: 72 | AS63: 29.5 | AT63: 52 | AU63: 30 | AV63: 1016 | AW63: 28.2 | AX63: 13 | AY63: … | AZ63: …
B64: 28 | C64: 1 | D64: 北海道 | E64: 1228 | F64: 深川市 | J64: 1.28 | K64: 1498 | L64: 0.0185 | M64: 1270 | N64: 0.221 | O64: 987 | P64: 0.4205 | Q64: 1415 | R64: 0.4055 | S64: 1580 | T64: 0.183 | U64: 1574 | V64: 0.029 | W64: 1616 | X64: 0.0005 | Y64: 884 | Z64: 0.6660162602 | AA64: 556 | AB64: 0.4266666667 | AC64: 1524 | AD64: 0.1873170732 | AE64: 1541 | AG64: 0.4900820851 | AH64: 666 | AI64: 0.362586593 | AJ64: 882 | AK64: 74.84406643 | AL64: 1002 | AN64: 29.8 | AO64: 395 | AP64: 28.9 | AQ64: 837 | AS64: 31.4 | AT64: 1070 | AU64: 30.4 | AV64: 1230 | AW64: 31.9 | AX64: 995 | AY64: 34 | AZ64: 1248
B65: 29 | C65: 1 | D65: 北海道 | E65: 1229 | F65: 富良野市 | J65: 1.44 | K65: 999 | L65: 0.0185 | M65: 1270 | N65: 0.234 | O65: 878 | P65: 0.508 | Q65: 730 | R65: 0.4525 | S65: 1120 | T65: 0.195 | U65: 1315 | V65: 0.031 | W65: 1443 | X65: 0.001 | Y65: 270 | Z65: 0.5944186047 | AA65: 1031 | AB65: 0.5944186047 | AC65: 520 | AD65: 0.2511627907 | AE65: 1173 | AG65: 0.4565149549 | AH65: 282 | AI65: 0.3572574445 | AJ65: 819 | AK65: 73.42984051 | AL65: 1080 | AN65: 30.8 | AO65: 992 | AP65: 28.4 | AQ65: 481 | AS65: 31.1 | AT65: 783 | AU65: 30.7 | AV65: 1344 | AW65: 30.8 | AX65: 341 | AY65: 31.9 | AZ65: 202
B66: 30 | C66: 1 | D66: 北海道 | E66: 1230 | F66: 登別市 | J66: 1.36 | K66: 1270 | L66: 0.024 | M66: 773 | N66: 0.2415 | O66: 810 | P66: 0.4935 | Q66: 859 | R66: 0.41 | S66: 1551 | T66: 0.163 | U66: 1726 | V66: 0.0295 | W66: 1578 | X66: 0.0005 | Y66: 884 | Z66: 0.5870807453 | AA66: 1066 | AB66: 0.5110559006 | AC66: 1145 | AD66: 0.261863354 | AE66: 1080 | AG66: 0.4679554624 | AH66: 393 | AI66: 0.322286135 | AJ66: 354 | AK66: 72.06716808 | AL66: 1152 | AN66: 30.9 | AO66: 1049 | AP66: 29.1 | AQ66: 999 | AS66: 30.6 | AT66: 377 | AU66: 28.8 | AV66: 319 | AW66: 31.2 | AX66: 534 | AY66: 33.1 | AZ66: 735
B67: 31 | C67: 1 | D67: 北海道 | E67: 1231 | F67: 恵庭市 | J67: 1.29 | K67: 1473 | L67: 0.0225 | M67: 907 | N67: 0.1615 | O67: 1458 | P67: 0.447 | Q67: 1254 | R67: 0.4375 | S67: 1295 | T67: 0.1835 | U67: 1566 | V67: 0.0355 | W67: 880 | X67: 0.0005 | Y67: 884 | Z67: 0.5659683794 | AA67: 1187 | AB67: 0.4716403162 | AC67: 1368 | AD67: 0.2523913043 | AE67: 1162 | AG67: 0.4736482227 | AH67: 460 | AI67: 0.3493087731 | AJ67: 709 | AK67: 67.2866502 | AL67: 1387 | AN67: 30.4 | AO67: 715 | AP67: 28.5 | AQ67: 551 | AS67: 31.3 | AT67: 969 | AU67: 30.1 | AV67: 1070 | AW67: 32.1 | AX67: 1115 | AY67: 32.2 | AZ67: 277
B68: 32 | C68: 1 | D68: 北海道 | E68: 1233 | F68: 伊達市 | J68: 1.4 | K68: 1147 | L68: 0.0265 | M68: 550 | N68: 0.262 | O68: 647 | P68: 0.431 | Q68: 1356 | R68: 0.457 | S68: 1064 | T68: 0.1925 | U68: 1386 | V68: 0.03 | W68: 1533 | X68: 0.001 | Y68: 270 | Z68: 0.6596153846 | AA68: 607 | AB68: 0.4846153846 | AC68: 1311 | AD68: 0.2557692308 | AE68: 1134 | AG68: 0.4708646084 | AH68: 424 | AI68: 0.3526196186 | AJ68: 756 | AK68: 76.6703679 | AL68: 909 | AN68: 30 | AO68: 490 | AP68: 28.3 | AQ68: 420 | AS68: 31.3 | AT68: 969 | AU68: 29 | AV68: 416 | AW68: 32.9 | AX68: 1431 | AY68: 32.7 | AZ68: 517
B69: 33 | C69: 1 | D69: 北海道 | E69: 1234 | F69: 北広島市 | J69: 1.09 | K69: 1706 | L69: 0.016 | M69: 1478 | N69: 0.123 | O69: 1636 | P69: 0.33 | Q69: 1679 | R69: 0.3975 | S69: 1630 | T69: 0.193 | U69: 1377 | V69: 0.0315 | W69: 1380 | X69: 0.0005 | Y69: 884 | Z69: 0.4748514851 | AA69: 1525 | AB69: 0.3849174917 | AC69: 1601 | AD69: 0.2302310231 | AE69: 1306 | AG69: 0.5079117352 | AH69: 876 | AI69: 0.3859928379 | AJ69: 1159 | AK69: 54.58438616 | AL69: 1644 | AN69: 30.3 | AO69: 662 | AP69: 28.8 | AQ69: 761 | AS69: 32.1 | AT69: 1479 | AU69: 31 | AV69: 1431 | AW69: 32.2 | AX69: 1178 | AY69: 33.7 | AZ69: 1111
B70: 34 | C70: 1 | D70: 北海道 | E70: 1235 | F70: 石狩市 | J70: 1.21 | K70: 1617 | L70: 0.026 | M70: 588 | N70: 0.183 | O70: 1307 | P70: 0.39 | Q70: 1552 | R70: 0.3835 | S70: 1677 | T70: 0.19 | U70: 1436 | V70: 0.036 | W70: 828 | X70: 0.0005 | Y70: 884 | Z70: 0.3914705882 | AA70: 1640 | AB70: 0.4804411765 | AC70: 1335 | AD70: 0.3380882353 | AE70: 605 | AG70: 0.4990274306 | AH70: 783 | AI70: 0.3601703469 | AJ70: 848 | AK70: 65.84641127 | AL70: 1438 | AN70: 31.9 | AO70: 1449 | AP70: 29.1 | AQ70: 999 | AS70: 31.7 | AT70: 1297 | AU70: 29.9 | AV70: 944 | AW70: 31.8 | AX70: 931 | AY70: 33.4 | AZ70: 937
B71: 35 | C71: 1 | D71: 北海道 | E71: 1236 | F71: 北斗市 | J71: 1.45 | K71: 967 | L71: 0.0285 | M71: 423 | N71: 0.305 | O71: 366 | P71: 0.4825 | Q71: 965 | R71: 0.4235 | S71: 1432 | T71: 0.1835 | U71: 1566 | V71: 0.03 | W71: 1533 | X71: 0.001 | Y71: 270 | Z71: 0.6721574344 | AA71: 518 | AB71: 0.4988338192 | AC71: 1221 | AD71: 0.2790087464 | AE71: 965 | AG71: 0.4552016729 | AH71: 270 | AI71: 0.3223742492 | AJ71: 356 | AK71: 70.74553228 | AL71: 1234 | AN71: 29.5 | AO71: 280 | AP71: 27.9 | AQ71: 247 | AS71: 30.5 | AT71: 318 | AU71: 29 | AV71: 416 | AW71: 31.2 | AX71: 534 | AY71: 31.3 | AZ71: 97
B72: 36 | C72: 1 | D72: 北海道 | E72: 1303 | F72: 当別町 | J72: 1.01 | K72: 1726 | L72: 0.015 | M72: 1547 | N72: 0.076 | O72: 1716 | P72: 0.2915 | Q72: 1709 | R72: 0.4175 | S72: 1489 | T72: 0.182 | U72: 1582 | V72: 0.032 | W72: 1327 | X72: 0.001 | Y72: 270 | Z72: 0.3811320755 | AA72: 1652 | AB72: 0.3049056604 | AC72: 1674 | AD72: 0.3239622642 | AE72: 686 | AG72: 0.6205135767 | AH72: 1664 | AI72: 0.4705708622 | AJ72: 1654 | AK72: 46.55354373 | AL72: 1698 | AN72: 28.5 | AO72: 70 | AP72: 27.8 | AQ72: 206 | AS72: 32.7 | AT72: 1618 | AU72: 30.8 | AV72: 1384 | AW72: 31.7 | AX72: 854 | AY72: 35.6 | AZ72: 1475
B73: 37 | C73: 1 | D73: 北海道 | E73: 1304 | F73: 新篠津村 | J73: 1.3 | K73: 1451 | L73: 0.0155 | M73: 1515 | N73: 0.257 | O73: 689 | P73: 0.401 | Q73: 1526 | R73: 0.4105 | S73: 1549 | T73: 0.1855 | U73: 1523 | V73: 0.0335 | W73: 1132 | X73: 0.0005 | Y73: 884 | Z73: 0.5416666667 | AA73: 1294 | AB73: 0.5958333333 | AC73: 503 | AD73: 0.1625 | AE73: 1607 | AG73: 0.5186278089 | AH73: 1011 | AI73: 0.446261843 | AJ73: 1605 | AK73: 91.7216469 | AL73: 267 | AN73: 30.8 | AO73: 992 | AP73: 30.8 | AQ73: 1561 | AS73: 31.6 | AT73: 1233 | AU73: 29.7 | AV73: 824 | AW73: 32.5 | AX73: 1307 | AY73: … | AZ73: …
B74: 38 | C74: 1 | D74: 北海道 | E74: 1331 | F74: 松前町 | J74: 1.3 | K74: 1451 | L74: 0.0205 | M74: 1093 | N74: 0.27 | O74: 591 | P74: 0.4595 | Q74: 1152 | R74: 0.3555 | S74: 1728 | T74: 0.162 | U74: 1727 | V74: 0.0305 | W74: 1491 | X74: 0.0005 | Y74: 884 | Z74: 0.65 | AA74: 672 | AB74: 0.3791666667 | AC74: 1616 | AD74: 0.2708333333 | AE74: 1033 | AG74: 0.5015568455 | AH74: 815 | AI74: 0.372524455 | AJ74: 1000 | AK74: 52.66183346 | AL74: 1663 | AN74: 29.3 | AO74: 213 | AP74: 28.2 | AQ74: 369 | AS74: 31.5 | AT74: 1157 | AU74: 29.7 | AV74: 824 | AW74: 31.6 | AX74: 782 | AY74: … | AZ74: …
B75: 39 | C75: 1 | D75: 北海道 | E75: 1332 | F75: 福島町 | J75: 1.19 | K75: 1646 | L75: 0.0195 | M75: 1182 | N75: 0.2705 | O75: 587 | P75: 0.32 | Q75: 1686 | R75: 0.3765 | S75: 1695 | T75: 0.177 | U75: 1654 | V75: 0.028 | W75: 1665 | X75: 0.0005 | Y75: 884 | Z75: 0.3966666667 | AA75: 1637 | AB75: 0.3966666667 | AC75: 1578 | AD75: 0.3966666667 | AE75: 385 | AG75: 0.5818174753 | AH75: 1528 | AI75: 0.4031214079 | AJ75: 1348 | AK75: 77.62528415 | AL75: 841 | AN75: 31.2 | AO75: 1203 | AP75: 29.8 | AQ75: 1384 | AS75: 28.8 | AT75: 23 | AU75: 26.4 | AV75: 26 | AW75: 29.5 | AX75: 65 | AY75: 30.6 | AZ75: 47
B76: 40 | C76: 1 | D76: 北海道 | E76: 1333 | F76: 知内町 | J76: 1.53 | K76: 649 | L76: 0.0205 | M76: 1093 | N76: 0.353 | O76: 187 | P76: 0.5405 | Q76: 451 | R76: 0.3755 | S76: 1699 | T76: 0.206 | U76: 985 | V76: 0.032 | W76: 1327 | X76: 0.0005 | Y76: 884 | Z76: 0.8568 | AA76: 45 | AB76: 0.306 | AC76: 1673 | AD76: 0.3672 | AE76: 470 | AG76: 0.5205691428 | AH76: 1027 | AI76: 0.314319776 | AJ76: 288 | AK76: 78.02765777 | AL76: 820 | AN76: 27.8 | AO76: 39 | AP76: 27.7 | AQ76: 177 | AS76: 30 | AT76: 117 | AU76: 29.3 | AV76: 568 | AW76: 28.5 | AX76: 16 | AY76: … | AZ76: …
B77: 41 | C77: 1 | D77: 北海道 | E77: 1334 | F77: 木古内町 | J77: 1.25 | K77: 1569 | L77: 0.0225 | M77: 907 | N77: 0.151 | O77: 1507 | P77: 0.4725 | Q77: 1046 | R77: 0.3835 | S77: 1677 | T77: 0.1895 | U77: 1446 | V77: 0.029 | W77: 1616 | X77: 0.0005 | Y77: 884 | Z77: 0.7142857143 | AA77: 309 | AB77: 0.3571428571 | AC77: 1644 | AD77: 0.1785714286 | AE77: 1572 | AG77: 0.612661452 | AH77: 1648 | AI77: 0.408415897 | AJ77: 1410 | AK77: 55.35050568 | AL77: 1636 | AN77: 27.2 | AO77: 16 | AP77: … | AQ77: … | AS77: 30.8 | AT77: 533 | AU77: 29.8 | AV77: 887 | AW77: 31.1 | AX77: 476 | AY77: … | AZ77: …
B78: 42 | C78: 1 | D78: 北海道 | E78: 1337 | F78: 七飯町 | J78: 1.38 | K78: 1211 | L78: 0.024 | M78: 773 | N78: 0.245 | O78: 784 | P78: 0.4325 | Q78: 1343 | R78: 0.4625 | S78: 993 | T78: 0.182 | U78: 1582 | V78: 0.031 | W78: 1443 | X78: 0.0005 | Y78: 884 | Z78: 0.5625477707 | AA78: 1204 | AB78: 0.5185987261 | AC78: 1090 | AD78: 0.2988535032 | AE78: 834 | AG78: 0.4557222539 | AH78: 277 | AI78: 0.3283685999 | AJ78: 416 | AK78: 65.13412871 | AL78: 1463 | AN78: 30.9 | AO78: 1049 | AP78: 28.5 | AQ78: 551 | AS78: 31.4 | AT78: 1070 | AU78: 29.9 | AV78: 944 | AW78: 32 | AX78: 1064 | AY78: 32.7 | AZ78: 517
B79: 43 | C79: 1 | D79: 北海道 | E79: 1343 | F79: 鹿部町 | J79: 1.61 | K79: 408 | L79: 0.0295 | M79: 366 | N79: 0.4835 | O79: 26 | P79: 0.4645 | Q79: 1115 | R79: 0.426 | S79: 1411 | T79: 0.1775 | U79: 1645 | V79: 0.0275 | W79: 1683 | X79: 0.0005 | Y79: 884 | Z79: 0.6586363636 | AA79: 612 | AB79: 0.5854545455 | AC79: 602 | AD79: 0.3659090909 | AE79: 476 | AG79: 0.4553248011 | AH79: 272 | AI79: 0.347864048 | AJ79: 685 | AK79: 68.13764506 | AL79: 1351 | AN79: 28.8 | AO79: 103 | AP79: 26.3 | AQ79: 31 | AS79: 28.3 | AT79: 14 | AU79: 26.8 | AV79: 40 | AW79: 28.7 | AX79: 23 | AY79: … | AZ79: …
B80: 44 | C80: 1 | D80: 北海道 | E80: 1345 | F80: 森町 | J80: 1.46 | K80: 930 | L80: 0.035 | M80: 187 | N80: 0.4215 | O80: 61 | P80: 0.458 | Q80: 1168 | R80: 0.3475 | S80: 1732 | T80: 0.17 | U80: 1706 | V80: 0.0265 | W80: 1701 | X80: 0.0005 | Y80: 884 | Z80: 0.6813333333 | AA80: 462 | AB80: 0.4623333333 | AC80: 1422 | AD80: 0.3163333333 | AE80: 733 | AG80: 0.4935516405 | AH80: 714 | AI80: 0.3291662714 | AJ80: 426 | AK80: 77.15309258 | AL80: 879 | AN80: 30.1 | AO80: 553 | AP80: 29.5 | AQ80: 1253 | AS80: 31 | AT80: 692 | AU80: 29.2 | AV80: 521 | AW80: 31.7 | AX80: 854 | AY80: 32.9 | AZ80: 622
B81: 45 | C81: 1 | D81: 北海道 | E81: 1346 | F81: 八雲町 | J81: 1.59 | K81: 451 | L81: 0.0315 | M81: 269 | N81: 0.3355 | O81: 246 | P81: 0.5625 | Q81: 301 | R81: 0.427 | S81: 1399 | T81: 0.1995 | U81: 1157 | V81: 0.032 | W81: 1327 | X81: 0.0005 | Y81: 884 | Z81: 0.6520143885 | AA81: 657 | AB81: 0.5948201439 | AC81: 516 | AD81: 0.3431654676 | AE81: 584 | AG81: 0.4976011045 | AH81: 771 | AI81: 0.3438358299 | AJ81: 621 | AK81: 80.43310325 | AL81: 671 | AN81: 29.7 | AO81: 348 | AP81: 26.8 | AQ81: 57 | AS81: 30.6 | AT81: 377 | AU81: 28.2 | AV81: 161 | AW81: 32.5 | AX81: 1307 | AY81: 32.3 | AZ81: 320
B82: 46 | C82: 1 | D82: 北海道 | E82: 1347 | F82: 長万部町 | J82: 1.47 | K82: 885 | L82: 0.021 | M82: 1055 | N82: 0.282 | O82: 501 | P82: 0.4955 | Q82: 837 | R82: 0.4385 | S82: 1277 | T82: 0.201 | U82: 1113 | V82: 0.03 | W82: 1533 | X82: 0.0015 | Y82: 88 | Z82: 0.6030769231 | AA82: 977 | AB82: 0.7161538462 | AC82: 93 | AD82: 0.1507692308 | AE82: 1625 | AG82: 0.5231099267 | AH82: 1062 | AI82: 0.3311579449 | AJ82: 453 | AK82: 63.91894082 | AL82: 1496 | AN82: 31.7 | AO82: 1402 | AP82: 27.8 | AQ82: 206 | AS82: 31.3 | AT82: 969 | AU82: 30.1 | AV82: 1070 | AW82: 32.6 | AX82: 1355 | AY82: … | AZ82: …
B83: 47 | C83: 1 | D83: 北海道 | E83: 1361 | F83: 江差町 | J83: 1.31 | K83: 1427 | L83: 0.0265 | M83: 550 | N83: 0.2445 | O83: 788 | P83: 0.4105 | Q83: 1459 | R83: 0.4055 | S83: 1580 | T83: 0.193 | U83: 1377 | V83: 0.033 | W83: 1197 | X83: 0.0005 | Y83: 884 | Z83: 0.6968085106 | AA83: 388 | AB83: 0.4180851064 | AC83: 1540 | AD83: 0.195106383 | AE83: 1516 | AG83: 0.5736516423 | AH83: 1486 | AI83: 0.3811902928 | AJ83: 1108 | AK83: 58.40852603 | AL83: 1605 | AN83: 32 | AO83: 1470 | AP83: 29.2 | AQ83: 1071 | AS83: 31.4 | AT83: 1070 | AU83: 31.1 | AV83: 1456 | AW83: 30.1 | AX83: 137 | AY83: 33.9 | AZ83: 1212
B84: 48 | C84: 1 | D84: 北海道 | E84: 1362 | F84: 上ノ国町 | J84: 1.52 | K84: 683 | L84: 0.019 | M84: 1229 | N84: 0.377 | O84: 135 | P84: 0.5505 | Q84: 385 | R84: 0.3715 | S84: 1707 | T84: 0.177 | U84: 1654 | V84: 0.0285 | W84: 1640 | X84: 0.0005 | Y84: 884 | Z84: 0.579047619 | AA84: 1121 | AB84: 0.6514285714 | AC84: 232 | AD84: 0.2895238095 | AE84: 899 | AG84: 0.4732025094 | AH84: 449 | AI84: 0.3021342505 | AJ84: 201 | AK84: 49.74843336 | AL84: 1683 | AN84: 29.5 | AO84: 280 | AP84: 28.6 | AQ84: 620 | AS84: 29.6 | AT84: 62 | AU84: 26.4 | AV84: 26 | AW84: 30.9 | AX84: 379 | AY84: … | AZ84: …
B85: 49 | C85: 1 | D85: 北海道 | E85: 1363 | F85: 厚沢部町 | J85: 1.63 | K85: 357 | L85: 0.0245 | M85: 726 | N85: 0.419 | O85: 64 | P85: 0.548 | Q85: 402 | R85: 0.428 | S85: 1383 | T85: 0.1795 | U85: 1623 | V85: 0.034 | W85: 1079 | X85: 0.0005 | Y85: 884 | Z85: 0.6403571429 | AA85: 734 | AB85: 0.815 | AC85: 20 | AD85: 0.1746428571 | AE85: 1582 | AG85: 0.4485347498 | AH85: 220 | AI85: 0.2379103479 | AJ85: 26 | AK85: 74.70837706 | AL85: 1006 | AN85: 28 | AO85: 48 | AP85: 29.1 | AQ85: 999 | AS85: 30.4 | AT85: 264 | AU85: 30.4 | AV85: 1230 | AW85: 29.8 | AX85: 92 | AY85: … | AZ85: …
B86: 50 | C86: 1 | D86: 北海道 | E86: 1364 | F86: 乙部町 | J86: 1.32 | K86: 1396 | L86: 0.0175 | M86: 1354 | N86: 0.228 | O86: 925 | P86: 0.4645 | Q86: 1115 | R86: 0.391 | S86: 1655 | T86: 0.187 | U86: 1495 | V86: 0.0295 | W86: 1578 | X86: 0.0005 | Y86: 884 | Z86: 0.6285714286 | AA86: 811 | AB86: 0.44 | AC86: 1485 | AD86: 0.2514285714 | AE86: 1170 | AG86: 0.4978250289 | AH86: 773 | AI86: 0.3269840643 | AJ86: 397 | AK86: 45.95943063 | AL86: 1700 | AN86: 29.5 | AO86: 280 | AP86: 30.9 | AQ86: 1568 | AS86: 31.3 | AT86: 969 | AU86: 30.8 | AV86: 1384 | AW86: 31.4 | AX86: 651 | AY86: … | AZ86: …
B87: 51 | C87: 1 | D87: 北海道 | E87: 1367 | F87: 奥尻町 | J87: 1.58 | K87: 481 | L87: 0.027 | M87: 521 | N87: 0.432 | O87: 54 | P87: 0.504 | Q87: 769 | R87: 0.395 | S87: 1645 | T87: 0.1905 | U87: 1423 | V87: 0.0305 | W87: 1491 | X87: 0.0015 | Y87: 88 | Z87: 0.7584 | AA87: 150 | AB87: 0.5056 | AC87: 1179 | AD87: 0.316 | AE87: 737 | AG87: 0.561081373 | AH87: 1405 | AI87: 0.2197249046 | AJ87: 12 | AK87: 117.2554544 | AL87: 52 | AN87: 29.8 | AO87: 395 | AP87: 25.2 | AQ87: 9 | AS87: 29.7 | AT87: 71 | AU87: 28.2 | AV87: 161 | AW87: 29.8 | AX87: 92 | AY87: 33 | AZ87: 671
B88: 52 | C88: 1 | D88: 北海道 | E88: 1370 | F88: 今金町 | J88: 1.39 | K88: 1187 | L88: 0.022 | M88: 952 | N88: 0.2375 | O88: 849 | P88: 0.5225 | Q88: 603 | R88: 0.3855 | S88: 1667 | T88: 0.1915 | U88: 1403 | V88: 0.0305 | W88: 1491 | X88: 0.0005 | Y88: 884 | Z88: 0.4883783784 | AA88: 1485 | AB88: 0.6010810811 | AC88: 470 | AD88: 0.3005405405 | AE88: 826 | AG88: 0.5222205412 | AH88: 1053 | AI88: 0.3465311676 | AJ88: 658 | AK88: 76.29955852 | AL88: 932 | AN88: 27.3 | AO88: 17 | AP88: 27.8 | AQ88: 206 | AS88: 30.7 | AT88: 444 | AU88: 28.4 | AV88: 203 | AW88: 31.2 | AX88: 534 | AY88: 33.6 | AZ88: 1051
B89: 53 | C89: 1 | D89: 北海道 | E89: 1371 | F89: せたな町 | J89: 1.44 | K89: 999 | L89: 0.0255 | M89: 641 | N89: 0.233 | O89: 882 | P89: 0.572 | Q89: 254 | R89: 0.4085 | S89: 1558 | T89: 0.1745 | U89: 1674 | V89: 0.03 | W89: 1533 | X89: 0.0005 | Y89: 884 | Z89: 0.4430769231 | AA89: 1584 | AB89: 0.8123076923 | AC89: 22 | AD89: 0.1846153846 | AE89: 1554 | AG89: 0.546300519 | AH89: 1281 | AI89: 0.3522897731 | AJ89: 750 | AK89: 57.61993671 | AL89: 1611 | AN89: 31.1 | AO89: 1151 | AP89: 27.6 | AQ89: 148 | AS89: 32.9 | AT89: 1642 | AU89: 31.3 | AV89: 1497 | AW89: 33 | AX89: 1451 | AY89: … | AZ89: …
B90: 54 | C90: 1 | D90: 北海道 | E90: 1391 | F90: 島牧村 | J90: 1.36 | K90: 1270 | L90: 0.021 | M90: 1055 | N90: 0.288 | O90: 466 | P90: 0.4425 | Q90: 1276 | R90: 0.402 | S90: 1600 | T90: 0.1795 | U90: 1623 | V90: 0.0295 | W90: 1578 | X90: 0.0005 | Y90: 884 | Z90: … | AA90: … | AB90: … | AC90: … | AD90: … | AE90: … | AG90: 0.560897789 | AH90: 1403 | AI90: 0.3718535797 | AJ90: 992 | AK90: 69.34929767 | AL90: 1301 | AN90: 34.2 | AO90: 1619 | AP90: 33.8 | AQ90: 1641 | AS90: … | AT90: … | AU90: … | AV90: … | AW90: … | AX90: … | AY90: … | AZ90: …
B91: 55 | C91: 1 | D91: 北海道 | E91: 1392 | F91: 寿都町 | J91: 1.29 | K91: 1473 | L91: 0.019 | M91: 1229 | N91: 0.1475 | O91: 1532 | P91: 0.424 | Q91: 1383 | R91: 0.4575 | S91: 1055 | T91: 0.205 | U91: 1012 | V91: 0.031 | W91: 1443 | X91: 0.0005 | Y91: 884 | Z91: 0.7291304348 | AA91: 235 | AB91: 0.4486956522 | AC91: 1465 | AD91: 0.112173913 | AE91: 1669 | AG91: 0.5382313127 | AH91: 1193 | AI91: 0.3636745078 | AJ91: 893 | AK91: 83.7560301 | AL91: 505 | AN91: 28.4 | AO91: 62 | AP91: 32.1 | AQ91: 1626 | AS91: 29.8 | AT91: 83 | AU91: 28.6 | AV91: 247 | AW91: 30.7 | AX91: 294 | AY91: … | AZ91: …
B92: 56 | C92: 1 | D92: 北海道 | E92: 1393 | F92: 黒松内町 | J92: 1.4 | K92: 1147 | L92: 0.0225 | M92: 907 | N92: 0.191 | O92: 1237 | P92: 0.513 | Q92: 686 | R92: 0.435 | S92: 1325 | T92: 0.2055 | U92: 998 | V92: 0.0295 | W92: 1578 | X92: 0.0005 | Y92: 884 | Z92: 0.8235294118 | AA92: 80 | AB92: 0.2470588235 | AC92: 1692 | AD92: 0.3294117647 | AE92: 649 | AG92: 0.5263301988 | AH92: 1092 | AI92: 0.3911268883 | AJ92: 1216 | AK92: 55.32236451 | AL92: 1637 | AN92: 29.7 | AO92: 348 | AP92: 27 | AQ92: 72 | AS92: 31.1 | AT92: 783 | AU92: 29 | AV92: 416 | AW92: … | AX92: … | AY92: … | AZ92: …
B93: 57 | C93: 1 | D93: 北海道 | E93: 1394 | F93: 蘭越町 | J93: 1.29 | K93: 1473 | L93: 0.0165 | M93: 1438 | N93: 0.248 | O93: 763 | P93: 0.39 | Q93: 1552 | R93: 0.4075 | S93: 1564 | T93: 0.2005 | U93: 1132 | V93: 0.0305 | W93: 1491 | X93: 0.0005 | Y93: 884 | Z93: 0.5409677419 | AA93: 1300 | AB93: 0.5409677419 | AC93: 915 | AD93: 0.2080645161 | AE93: 1457 | AG93: 0.5132481968 | AH93: 939 | AI93: 0.348364411 | AJ93: 691 | AK93: 64.66509333 | AL93: 1473 | AN93: 29.4 | AO93: 244 | AP93: 30.7 | AQ93: 1552 | AS93: 31.8 | AT93: 1351 | AU93: 29.9 | AV93: 944 | AW93: 33.3 | AX93: 1506 | AY93: … | AZ93: …
B94: 58 | C94: 1 | D94: 北海道 | E94: 1395 | F94: ニセコ町 | J94: 1.45 | K94: 967 | L94: 0.0165 | M94: 1438 | N94: 0.15 | O94: 1519 | P94: 0.554 | Q94: 357 | R94: 0.468 | S94: 943 | T94: 0.2235 | U94: 590 | V94: 0.038 | W94: 619 | X94: 0.0005 | Y94: 884 | Z94: 0.6478723404 | AA94: 691 | AB94: 0.4627659574 | AC94: 1421 | AD94: 0.3393617021 | AE94: 602 | AG94: 0.4858527351 | AH94: 601 | AI94: 0.327643769 | AJ94: 408 | AK94: 71.81581608 | AL94: 1167 | AN94: 33.5 | AO94: 1601 | AP94: 28.6 | AQ94: 620 | AS94: 33.4 | AT94: 1671 | AU94: 31.3 | AV94: 1497 | AW94: 35 | AX94: 1617 | AY94: 36.9 | AZ94: 1497
B95: 59 | C95: 1 | D95: 北海道 | E95: 1396 | F95: 真狩村 | J95: 1.31 | K95: 1427 | L95: 0.0195 | M95: 1182 | N95: 0.134 | O95: 1599 | P95: 0.5105 | Q95: 713 | R95: 0.439 | S95: 1269 | T95: 0.181 | U95: 1604 | V95: 0.0295 | W95: 1578 | X95: 0.0005 | Y95: 884 | Z95: 0.5822222222 | AA95: 1098 | AB95: 0.655 | AC95: 221 | AD95: 0.07277777778 | AE95: 1696 | AG95: 0.490337482 | AH95: 671 | AI95: 0.3103951582 | AJ95: 260 | AK95: 73.89174884 | AL95: 1054 | AN95: 30.8 | AO95: 992 | AP95: 30 | AQ95: 1431 | AS95: 31.6 | AT95: 1233 | AU95: 30.3 | AV95: 1195 | AW95: 32.6 | AX95: 1355 | AY95: … | AZ95: …
B96: 60 | C96: 1 | D96: 北海道 | E96: 1397 | F96: 留寿都村 | J96: 1.41 | K96: 1116 | L96: 0.0305 | M96: 313 | N96: 0.2715 | O96: 575 | P96: 0.454 | Q96: 1207 | R96: 0.4255 | S96: 1416 | T96: 0.1985 | U96: 1200 | V96: 0.0305 | W96: 1491 | X96: 0.0005 | Y96: 884 | Z96: 0.6042857143 | AA96: 961 | AB96: 0.6042857143 | AC96: 451 | AD96: 0.2014285714 | AE96: 1491 | AG96: 0.4942752634 | AH96: 728 | AI96: 0.3373677021 | AJ96: 534 | AK96: 84.76846258 | AL96: 475 | AN96: 31.1 | AO96: 1151 | AP96: 28.9 | AQ96: 837 | AS96: 30.9 | AT96: 613 | AU96: 27.6 | AV96: 80 | AW96: 33.1 | AX96: 1472 | AY96: … | AZ96: …
B97: 61 | C97: 1 | D97: 北海道 | E97: 1398 | F97: 喜茂別町 | J97: 1.19 | K97: 1646 | L97: 0.021 | M97: 1055 | N97: 0.15 | O97: 1519 | P97: 0.3835 | Q97: 1578 | R97: 0.4095 | S97: 1552 | T97: 0.196 | U97: 1283 | V97: 0.0325 | W97: 1260 | X97: 0.0005 | Y97: 884 | Z97: 0.51 | AA97: 1421 | AB97: 0.34 | AC97: 1649 | AD97: 0.34 | AE97: 599 | AG97: 0.6087884767 | AH97: 1636 | AI97: 0.3965797318 | AJ97: 1278 | AK97: 43.07980246 | AL97: 1707 | AN97: 29 | AO97: 150 | AP97: 29 | AQ97: 925 | AS97: 30.9 | AT97: 613 | AU97: 28.7 | AV97: 279 | AW97: … | AX97: … | AY97: … | AZ97: …
B98: 62 | C98: 1 | D98: 北海道 | E98: 1399 | F98: 京極町 | J98: 1.56 | K98: 537 | L98: 0.02 | M98: 1141 | N98: 0.3595 | O98: 169 | P98: 0.4795 | Q98: 989 | R98: 0.462 | S98: 1002 | T98: 0.203 | U98: 1056 | V98: 0.035 | W98: 949 | X98: 0.0005 | Y98: 884 | Z98: 0.4333333333 | AA98: 1604 | AB98: 0.78 | AC98: 34 | AD98: 0.3466666667 | AE98: 567 | AG98: 0.480332477 | AH98: 533 | AI98: 0.2629295282 | AJ98: 61 | AK98: 50.6307779 | AL98: 1679 | AN98: 27.7 | AO98: 34 | AP98: 25.4 | AQ98: 11 | AS98: 31.7 | AT98: 1297 | AU98: 27.5 | AV98: 68 | AW98: 32.2 | AX98: 1178 | AY98: … | AZ98: …
B99: 63 | C99: 1 | D99: 北海道 | E99: 1400 | F99: 倶知安町 | J99: 1.62 | K99: 383 | L99: 0.0245 | M99: 726 | N99: 0.284 | O99: 488 | P99: 0.539 | Q99: 464 | R99: 0.489 | S99: 705 | T99: 0.2315 | U99: 427 | V99: 0.0475 | W99: 132 | X99: 0.0005 | Y99: 884 | Z99: 0.6724528302 | AA99: 516 | AB99: 0.6724528302 | AC99: 172 | AD99: 0.2750943396 | AE99: 998 | AG99: 0.4233466269 | AH99: 110 | AI99: 0.3044859535 | AJ99: 214 | AK99: 89.99114344 | AL99: 304 | AN99: 31.3 | AO99: 1251 | AP99: 30.1 | AQ99: 1457 | AS99: 31.4 | AT99: 1070 | AU99: 30.1 | AV99: 1070 | AW99: 32.1 | AX99: 1115 | AY99: 32.3 | AZ99: 320
B100: 64 | C100: 1 | D100: 北海道 | E100: 1401 | F100: 共和町 | J100: 1.81 | K100: 105 | L100: 0.0245 | M100: 726 | N100: 0.3515 | O100: 191 | P100: 0.7055 | Q100: 11 | R100: 0.493 | S100: 661 | T100: 0.205 | U100: 1012 | V100: 0.0315 | W100: 1380 | X100: 0.0005 | Y100: 884 | Z100: 0.8701923077 | AA100: 40 | AB100: 0.5221153846 | AC100: 1060 | AD100: 0.4176923077 | AE100: 330 | AG100: 0.4921692836 | AH100: 695 | AI100: 0.2200772825 | AJ100: 13 | AK100: 81.99385212 | AL100: 586 | AN100: 29.1 | AO100: 168 | AP100: 29 | AQ100: 925 | AS100: 31.3 | AT100: 969 | AU100: 29.1 | AV100: 474 | AW100: 32.9 | AX100: 1431 | AY100: 32.6 | AZ100: 475
B101: 65 | C101: 1 | D101: 北海道 | E101: 1402 | F101: 岩内町 | J101: 1.59 | K101: 451 | L101: 0.042 | M101: 96 | N101: 0.364 | O101: 158 | P101: 0.557 | Q101: 339 | R101: 0.4305 | S101: 1358 | T101: 0.176 | U101: 1667 | V101: 0.022 | W101: 1741 | X101: 0.002 | Y101: 33 | Z101: 0.7407954545 | AA101: 198 | AB101: 0.5239772727 | AC101: 1048 | AD101: 0.3252272727 | AE101: 674 | AG101: 0.5075846475 | AH101: 871 | AI101: 0.3273913958 | AJ101: 400 | AK101: 73.56324723 | AL101: 1075 | AN101: 30.2 | AO101: 604 | AP101: 30.9 | AQ101: 1568 | AS101: 30.3 | AT101: 226 | AU101: 28.1 | AV101: 136 | AW101: 31 | AX101: 426 | AY101: 35 | AZ101: 1438
B102: 66 | C102: 1 | D102: 北海道 | E102: 1403 | F102: 泊村 | J102: 1.58 | K102: 481 | L102: 0.024 | M102: 773 | N102: 0.2955 | O102: 427 | P102: 0.622 | Q102: 89 | R102: 0.428 | S102: 1383 | T102: 0.183 | U102: 1574 | V102: 0.031 | W102: 1443 | X102: 0.0005 | Y102: 884 | Z102: 0.5266666667 | AA102: 1367 | AB102: 0.5266666667 | AC102: 1020 | AD102: 0.5266666667 | AE102: 135 | AG102: 0.4437311538 | AH102: 197 | AI102: 0.3100435358 | AJ102: 257 | AK102: 36.78028064 | AL102: 1721 | AN102: … | AO102: … | AP102: … | AQ102: … | AS102: 33.9 | AT102: 1691 | AU102: … | AV102: … | AW102: … | AX102: … | AY102: … | AZ102: …
B103: 67 | C103: 1 | D103: 北海道 | E103: 1404 | F103: 神恵内村 | J103: 1.38 | K103: 1211 | L103: 0.0225 | M103: 907 | N103: 0.2805 | O103: 512 | P103: 0.4605 | Q103: 1144 | R103: 0.402 | S103: 1600 | T103: 0.1845 | U103: 1542 | V103: 0.033 | W103: 1197 | X103: 0.0005 | Y103: 884 | Z103: … | AA103: … | AB103: … | AC103: … | AD103: … | AE103: … | AG103: 0.5668238222 | AH103: 1442 | AI103: 0.2857594536 | AJ103: 121 | AK103: 66.70129097 | AL103: 1410 | AN103: … | AO103: … | AP103: … | AQ103: … | AS103: … | AT103: … | AU103: … | AV103: … | AW103: … | AX103: … | AY103: … | AZ103: …
B104: 68 | C104: 1 | D104: 北海道 | E104: 1405 | F104: 積丹町 | J104: 1.52 | K104: 683 | L104: 0.024 | M104: 773 | N104: 0.329 | O104: 269 | P104: 0.538 | Q104: 473 | R104: 0.4175 | S104: 1489 | T104: 0.1845 | U104: 1542 | V104: 0.03 | W104: 1533 | X104: 0.0005 | Y104: 884 | Z104: 0.608 | AA104: 939 | AB104: 0.76 | AC104: 54 | AD104: 0.152 | AE104: 1623 | AG104: 0.5413034562 | AH104: 1225 | AI104: 0.3111568013 | AJ104: 267 | AK104: 84.99658752 | AL104: 461 | AN104: 30.5 | AO104: 779 | AP104: 26.6 | AQ104: 44 | AS104: 30.9 | AT104: 613 | AU104: … | AV104: … | AW104: 32.5 | AX104: 1307 | AY104: … | AZ104: …
B105: 69 | C105: 1 | D105: 北海道 | E105: 1406 | F105: 古平町 | J105: 1.41 | K105: 1116 | L105: 0.0355 | M105: 175 | N105: 0.24 | O105: 823 | P105: 0.5395 | Q105: 461 | R105: 0.394 | S105: 1649 | T105: 0.173 | U105: 1692 | V105: 0.0285 | W105: 1640 | X105: 0.0005 | Y105: 884 | Z105: 0.6042857143 | AA105: 961 | AB105: 0.4028571429 | AC105: 1562 | AD105: 0.4028571429 | AE105: 367 | AG105: 0.5935179337 | AH105: 1574 | AI105: 0.3424915691 | AJ105: 606 | AK105: 68.66086036 | AL105: 1331 | AN105: … | AO105: … | AP105: … | AQ105: … | AS105: 27.7 | AT105: 4 | AU105: 26.4 | AV105: 26 | AW105: … | AX105: … | AY105: … | AZ105: …
B106: 70 | C106: 1 | D106: 北海道 | E106: 1407 | F106: 仁木町 | J106: 1.42 | K106: 1073 | L106: 0.024 | M106: 773 | N106: 0.1935 | O106: 1219 | P106: 0.589 | Q106: 180 | R106: 0.4015 | S106: 1607 | T106: 0.182 | U106: 1582 | V106: 0.0305 | W106: 1491 | X106: 0.0005 | Y106: 884 | Z106: 0.4544 | AA106: 1566 | AB106: 0.5112 | AC106: 1142 | AD106: 0.4544 | AE106: 240 | AG106: 0.5145016255 | AH106: 961 | AI106: 0.4066283371 | AJ106: 1389 | AK106: 64.05309365 | AL106: 1492 | AN106: 29.8 | AO106: 395 | AP106: 29.2 | AQ106: 1071 | AS106: 31.5 | AT106: 1157 | AU106: 30.4 | AV106: 1230 | AW106: 30.9 | AX106: 379 | AY106: 30.2 | AZ106: 30
B107: 71 | C107: 1 | D107: 北海道 | E107: 1408 | F107: 余市町 | J107: 1.33 | K107: 1371 | L107: 0.0205 | M107: 1093 | N107: 0.266 | O107: 625 | P107: 0.4125 | Q107: 1448 | R107: 0.4 | S107: 1620 | T107: 0.188 | U107: 1479 | V107: 0.0435 | W107: 253 | X107: 0.0005 | Y107: 884 | Z107: 0.5016666667 | AA107: 1448 | AB107: 0.49 | AC107: 1276 | AD107: 0.3383333333 | AE107: 604 | AG107: 0.5095912951 | AH107: 895 | AI107: 0.3458989099 | AJ107: 642 | AK107: 56.68931805 | AL107: 1619 | AN107: 31.3 | AO107: 1251 | AP107: 29.1 | AQ107: 999 | AS107: 30.2 | AT107: 177 | AU107: 28.6 | AV107: 247 | AW107: 30.5 | AX107: 223 | AY107: 31.6 | AZ107: 134
B108: 72 | C108: 1 | D108: 北海道 | E108: 1409 | F108: 赤井川村 | J108: 1.39 | K108: 1187 | L108: 0.0215 | M108: 1000 | N108: 0.252 | O108: 723 | P108: 0.4675 | Q108: 1096 | R108: 0.423 | S108: 1438 | T108: 0.1925 | U108: 1386 | V108: 0.0335 | W108: 1132 | X108: 0.0005 | Y108: 884 | Z108: 0.556 | AA108: 1231 | AB108: 0.417 | AC108: 1544 | AD108: 0.417 | AE108: 331 | AG108: 0.5976228431 | AH108: 1597 | AI108: 0.3731503593 | AJ108: 1010 | AK108: 62.52270627 | AL108: 1525 | AN108: … | AO108: … | AP108: … | AQ108: … | AS108: 31.6 | AT108: 1233 | AU108: … | AV108: … | AW108: … | AX108: … | AY108: … | AZ108: …
B109: 73 | C109: 1 | D109: 北海道 | E109: 1423 | F109: 南幌町 | J109: 1.15 | K109: 1679 | L109: 0.017 | M109: 1394 | N109: 0.111 | O109: 1661 | P109: 0.366 | Q109: 1619 | R109: 0.4415 | S109: 1245 | T109: 0.1855 | U109: 1523 | V109: 0.03 | W109: 1533 | X109: 0.0005 | Y109: 884 | Z109: 0.464893617 | AA109: 1544 | AB109: 0.4893617021 | AC109: 1284 | AD109: 0.1957446809 | AE109: 1513 | AG109: 0.5631800096 | AH109: 1421 | AI109: 0.436358281 | AJ109: 1570 | AK109: 64.18997216 | AL109: 1485 | AN109: 28.4 | AO109: 62 | AP109: 28.1 | AQ109: 323 | AS109: 30.5 | AT109: 318 | AU109: 28.3 | AV109: 173 | AW109: 30.9 | AX109: 379 | AY109: 30.2 | AZ109: 30
B110: 74 | C110: 1 | D110: 北海道 | E110: 1424 | F110: 奈井江町 | J110: 1.15 | K110: 1679 | L110: 0.0265 | M110: 550 | N110: 0.206 | O110: 1116 | P110: 0.314 | Q110: 1691 | R110: 0.3915 | S110: 1654 | T110: 0.1775 | U110: 1645 | V110: 0.0295 | W110: 1578 | X110: 0.0005 | Y110: 884 | Z110: 0.2981481481 | AA110: 1688 | AB110: 0.6388888889 | AC110: 280 | AD110: 0.212962963 | AE110: 1428 | AG110: 0.5357114805 | AH110: 1169 | AI110: 0.3900353076 | AJ110: 1199 | AK110: 54.85589849 | AL110: 1641 | AN110: 29.5 | AO110: 280 | AP110: 28.4 | AQ110: 481 | AS110: 30.8 | AT110: 533 | AU110: 28.1 | AV110: 136 | AW110: 31 | AX110: 426 | AY110: 34 | AZ110: 1248
B111: 75 | C111: 1 | D111: 北海道 | E111: 1425 | F111: 上砂川町 | J111: 1.38 | K111: 1211 | L111: 0.0295 | M111: 366 | N111: 0.3805 | O111: 126 | P111: 0.3765 | Q111: 1591 | R111: 0.382 | S111: 1682 | T111: 0.185 | U111: 1533 | V111: 0.0285 | W111: 1640 | X111: 0.0005 | Y111: 884 | Z111: 0.46 | AA111: 1553 | AB111: 0.3066666667 | AC111: 1671 | AD111: 0.6133333333 | AE111: 73 | AG111: 0.5886704998 | AH111: 1553 | AI111: 0.4076848757 | AJ111: 1401 | AK111: 71.04411752 | AL111: 1219 | AN111: 26 | AO111: 4 | AP111: 24.4 | AQ111: 3 | AS111: 31.6 | AT111: 1233 | AU111: … | AV111: … | AW111: … | AX111: … | AY111: … | AZ111: …
B112: 76 | C112: 1 | D112: 北海道 | E112: 1427 | F112: 由仁町 | J112: 1.41 | K112: 1116 | L112: 0.0205 | M112: 1093 | N112: 0.2485 | O112: 759 | P112: 0.521 | Q112: 614 | R112: 0.411 | S112: 1544 | T112: 0.1805 | U112: 1615 | V112: 0.029 | W112: 1616 | X112: 0.0005 | Y112: 884 | Z112: 0.4375862069 | AA112: 1597 | AB112: 0.7293103448 | AC112: 81 | AD112: 0.2431034483 | AE112: 1219 | AG112: 0.5319128569 | AH112: 1142 | AI112: 0.3779486983 | AJ112: 1069 | AK112: 76.15030503 | AL112: 940 | AN112: 29.9 | AO112: 440 | AP112: 29.3 | AQ112: 1148 | AS112: 29.6 | AT112: 62 | AU112: 27.2 | AV112: 54 | AW112: 30 | AX112: 126 | AY112: … | AZ112: …
B113: 77 | C113: 1 | D113: 北海道 | E113: 1428 | F113: 長沼町 | J113: 1.43 | K113: 1043 | L113: 0.019 | M113: 1229 | N113: 0.2475 | O113: 767 | P113: 0.435 | Q113: 1327 | R113: 0.475 | S113: 868 | T113: 0.2205 | U113: 662 | V113: 0.0345 | W113: 1027 | X113: 0.0005 | Y113: 884 | Z113: 0.5231707317 | AA113: 1379 | AB113: 0.5580487805 | AC113: 808 | AD113: 0.3487804878 | AE113: 550 | AG113: 0.5502889833 | AH113: 1321 | AI113: 0.3624517313 | AJ113: 879 | AK113: 49.31827689 | AL113: 1689 | AN113: 30.7 | AO113: 921 | AP113: 29.2 | AQ113: 1071 | AS113: 30.8 | AT113: 533 | AU113: 29.6 | AV113: 751 | AW113: 31.5 | AX113: 716 | AY113: 30.4 | AZ113: 38
B114: 78 | C114: 1 | D114: 北海道 | E114: 1429 | F114: 栗山町 | J114: 1.33 | K114: 1371 | L114: 0.02 | M114: 1141 | N114: 0.2085 | O114: 1099 | P114: 0.4555 | Q114: 1196 | R114: 0.4125 | S114: 1530 | T114: 0.1975 | U114: 1239 | V114: 0.034 | W114: 1079 | X114: 0.0005 | Y114: 884 | Z114: 0.627 | AA114: 819 | AB114: 0.475 | AC114: 1359 | AD114: 0.228 | AE114: 1324 | AG114: 0.4916817724 | AH114: 688 | AI114: 0.3727204423 | AJ114: 1004 | AK114: 65.06493982 | AL114: 1464 | AN114: 30.4 | AO114: 715 | AP114: 28.1 | AQ114: 323 | AS114: 31.6 | AT114: 1233 | AU114: 30.5 | AV114: 1281 | AW114: 31.9 | AX114: 995 | AY114: 34.2 | AZ114: 1300
B115: 79 | C115: 1 | D115: 北海道 | E115: 1430 | F115: 月形町 | J115: 1.27 | K115: 1520 | L115: 0.024 | M115: 773 | N115: 0.1505 | O115: 1513 | P115: 0.4465 | Q115: 1258 | R115: 0.4375 | S115: 1295 | T115: 0.184 | U115: 1554 | V115: 0.03 | W115: 1533 | X115: 0.0005 | Y115: 884 | Z115: 0.508 | AA115: 1427 | AB115: 0.6096 | AC115: 420 | AD115: 0.1524 | AE115: 1621 | AG115: 0.5832597919 | AH115: 1533 | AI115: 0.3838299765 | AJ115: 1135 | AK115: 52.40557211 | AL115: 1667 | AN115: 29.6 | AO115: 309 | AP115: 30.1 | AQ115: 1457 | AS115: 29.9 | AT115: 95 | AU115: 28.9 | AV115: 363 | AW115: 29.3 | AX115: 50 | AY115: … | AZ115: …
B116: 80 | C116: 1 | D116: 北海道 | E116: 1431 | F116: 浦臼町 | J116: 1.31 | K116: 1427 | L116: 0.02 | M116: 1141 | N116: 0.2235 | O116: 963 | P116: 0.4125 | Q116: 1448 | R116: 0.4305 | S116: 1358 | T116: 0.194 | U116: 1348 | V116: 0.0315 | W116: 1380 | X116: 0.0005 | Y116: 884 | Z116: 0 | AA116: 1706 | AB116: 1.048 | AC116: 5 | AD116: 0.262 | AE116: 1079 | AG116: 0.623366769 | AH116: 1665 | AI116: 0.3636678015 | AJ116: 892 | AK116: 58.85188346 | AL116: 1589 | AN116: … | AO116: … | AP116: … | AQ116: … | AS116: 35.4 | AT116: 1708 | AU116: … | AV116: … | AW116: … | AX116: … | AY116: … | AZ116: …
B117: 81 | C117: 1 | D117: 北海道 | E117: 1432 | F117: 新十津川町 | J117: 1.38 | K117: 1211 | L117: 0.028 | M117: 461 | N117: 0.3105 | O117: 343 | P117: 0.457 | Q117: 1179 | R117: 0.3605 | S117: 1722 | T117: 0.189 | U117: 1455 | V117: 0.0345 | W117: 1027 | X117: 0.0005 | Y117: 884 | Z117: 0.4721052632 | AA117: 1529 | AB117: 0.6536842105 | AC117: 223 | AD117: 0.2542105263 | AE117: 1149 | AG117: 0.4198553575 | AH117: 99 | AI117: 0.335583579 | AJ117: 507 | AK117: 77.32820488 | AL117: 864 | AN117: 30.6 | AO117: 850 | AP117: 30.8 | AQ117: 1561 | AS117: 31.8 | AT117: 1351 | AU117: 29.8 | AV117: 887 | AW117: 31.7 | AX117: 854 | AY117: 34.9 | AZ117: 1426
B118: 82 | C118: 1 | D118: 北海道 | E118: 1433 | F118: 妹背牛町 | J118: 1.34 | K118: 1341 | L118: 0.019 | M118: 1229 | N118: 0.2895 | O118: 459 | P118: 0.3895 | Q118: 1556 | R118: 0.411 | S118: 1544 | T118: 0.194 | U118: 1348 | V118: 0.0355 | W118: 880 | X118: 0.0005 | Y118: 884 | Z118: 0.4872727273 | AA118: 1492 | AB118: 0.6090909091 | AC118: 425 | AD118: 0.2436363636 | AE118: 1217 | AG118: 0.5424674007 | AH118: 1239 | AI118: 0.3381864523 | AJ118: 549 | AK118: 72.43693215 | AL118: 1128 | AN118: 31.4 | AO118: 1281 | AP118: 32.5 | AQ118: 1631 | AS118: 32.6 | AT118: 1595 | AU118: … | AV118: … | AW118: 38.2 | AX118: 1627 | AY118: … | AZ118: …
B119: 83 | C119: 1 | D119: 北海道 | E119: 1434 | F119: 秩父別町 | J119: 1.35 | K119: 1299 | L119: 0.022 | M119: 952 | N119: 0.2235 | O119: 963 | P119: 0.4575 | Q119: 1172 | R119: 0.4185 | S119: 1479 | T119: 0.198 | U119: 1216 | V119: 0.0335 | W119: 1132 | X119: 0.0005 | Y119: 884 | Z119: 0.8775 | AA119: 34 | AB119: 0.3375 | AC119: 1652 | AD119: 0.135 | AE119: 1642 | AG119: 0.4569988511 | AH119: 286 | AI119: 0.3179318415 | AJ119: 321 | AK119: 93.79412299 | AL119: 223 | AN119: 30 | AO119: 490 | AP119: 31.5 | AQ119: 1605 | AS119: 31.6 | AT119: 1233 | AU119: 30.1 | AV119: 1070 | AW119: 35.6 | AX119: 1626 | AY119: … | AZ119: …
B120: 84 | C120: 1 | D120: 北海道 | E120: 1436 | F120: 雨竜町 | J120: 1.35 | K120: 1299 | L120: 0.0185 | M120: 1270 | N120: 0.2155 | O120: 1028 | P120: 0.469 | Q120: 1078 | R120: 0.4295 | S120: 1370 | T120: 0.1815 | U120: 1593 | V120: 0.0325 | W120: 1260 | X120: 0.0005 | Y120: 884 | Z120: 0.5558823529 | AA120: 1232 | AB120: 0.5558823529 | AC120: 818 | AD120: 0.2382352941 | AE120: 1258 | AG120: 0.4813680283 | AH120: 548 | AI120: 0.3356632512 | AJ120: 509 | AK120: 41.90402098 | AL120: 1713 | AN120: 33 | AO120: 1579 | AP120: 28.9 | AQ120: 837 | AS120: 30.1 | AT120: 151 | AU120: 27.4 | AV120: 64 | AW120: 30.7 | AX120: 294 | AY120: … | AZ120: …
B121: 85 | C121: 1 | D121: 北海道 | E121: 1437 | F121: 北竜町 | J121: 1.24 | K121: 1589 | L121: 0.0195 | M121: 1182 | N121: 0.1115 | O121: 1657 | P121: 0.4845 | Q121: 946 | R121: 0.4035 | S121: 1593 | T121: 0.189 | U121: 1455 | V121: 0.0325 | W121: 1260 | X121: 0.0005 | Y121: 884 | Z121: 0.62 | AA121: 863 | AB121: 0.31 | AC121: 1667 | AD121: 0.31 | AE121: 767 | AG121: 0.591435903 | AH121: 1562 | AI121: 0.3269702898 | AJ121: 396 | AK121: 62.96606735 | AL121: 1518 | AN121: … | AO121: … | AP121: … | AQ121: … | AS121: 32.6 | AT121: 1595 | AU121: … | AV121: … | AW121: … | AX121: … | AY121: … | AZ121: …
B122: 86 | C122: 1 | D122: 北海道 | E122: 1438 | F122: 沼田町 | J122: 1.32 | K122: 1396 | L122: 0.0215 | M122: 1000 | N122: 0.2455 | O122: 781 | P122: 0.452 | Q122: 1220 | R122: 0.385 | S122: 1669 | T122: 0.1865 | U122: 1506 | V122: 0.034 | W122: 1079 | X122: 0.0005 | Y122: 884 | Z122: 0.44 | AA122: 1591 | AB122: 0.3666666667 | AC122: 1632 | AD122: 0.5133333333 | AE122: 152 | AG122: 0.5413470367 | AH122: 1226 | AI122: 0.3935148597 | AJ122: 1245 | AK122: 81.67076939 | AL122: 607 | AN122: 29.9 | AO122: 440 | AP122: 29.5 | AQ122: 1253 | AS122: 30.6 | AT122: 377 | AU122: 29.9 | AV122: 944 | AW122: 27.9 | AX122: 11 | AY122: 31.6 | AZ122: 134
B123: 87 | C123: 1 | D123: 北海道 | E123: 1452 | F123: 鷹栖町 | J123: 1.19 | K123: 1646 | L123: 0.014 | M123: 1603 | N123: 0.143 | O123: 1559 | P123: 0.428 | Q123: 1366 | R123: 0.379 | S123: 1690 | T123: 0.192 | U123: 1397 | V123: 0.0285 | W123: 1640 | X123: 0.0005 | Y123: 884 | Z123: 0.3636111111 | AA123: 1664 | AB123: 0.4958333333 | AC123: 1241 | AD123: 0.3305555556 | AE123: 644 | AG123: 0.3860083359 | AH123: 30 | AI123: 0.3086282268 | AJ123: 248 | AK123: 60.22167038 | AL123: 1563 | AN123: 29.5 | AO123: 280 | AP123: 28.1 | AQ123: 323 | AS123: 32.8 | AT123: 1630 | AU123: 32.4 | AV123: 1595 | AW123: 31.7 | AX123: 854 | AY123: 34.3 | AZ123: 1331
B124: 88 | C124: 1 | D124: 北海道 | E124: 1453 | F124: 東神楽町 | J124: 1.32 | K124: 1396 | L124: 0.014 | M124: 1603 | N124: 0.2145 | O124: 1040 | P124: 0.434 | Q124: 1336 | R124: 0.4505 | S124: 1135 | T124: 0.1765 | U124: 1662 | V124: 0.031 | W124: 1443 | X124: 0.0005 | Y124: 884 | Z124: 0.598125 | AA124: 1001 | AB124: 0.53625 | AC124: 940 | AD124: 0.185625 | AE124: 1550 | AG124: 0.3454061437 | AH124: 8 | AI124: 0.2547517339 | AJ124: 42 | AK124: 57.84220948 | AL124: 1608 | AN124: 31.7 | AO124: 1402 | AP124: 29.5 | AQ124: 1253 | AS124: 31.1 | AT124: 783 | AU124: 29.4 | AV124: 635 | AW124: 32.1 | AX124: 1115 | AY124: 33.6 | AZ124: 1051
B125: 89 | C125: 1 | D125: 北海道 | E125: 1454 | F125: 当麻町 | J125: 1.42 | K125: 1073 | L125: 0.0205 | M125: 1093 | N125: 0.32 | O125: 301 | P125: 0.4525 | Q125: 1216 | R125: 0.414 | S125: 1517 | T125: 0.1765 | U125: 1662 | V125: 0.0335 | W125: 1132 | X125: 0.0005 | Y125: 884 | Z125: 0.3651428571 | AA125: 1662 | AB125: 0.6897142857 | AC125: 127 | AD125: 0.3651428571 | AE125: 479 | AG125: 0.4688648983 | AH125: 403 | AI125: 0.3378116212 | AJ125: 540 | AK125: 70.71773132 | AL125: 1236 | AN125: 29.8 | AO125: 395 | AP125: 27.6 | AQ125: 148 | AS125: 31.3 | AT125: 969 | AU125: 27.8 | AV125: 99 | AW125: 31.6 | AX125: 782 | AY125: 34.4 | AZ125: 1354
B126: 90 | C126: 1 | D126: 北海道 | E126: 1455 | F126: 比布町 | J126: 1.2 | K126: 1630 | L126: 0.0185 | M126: 1270 | N126: 0.151 | O126: 1507 | P126: 0.39 | Q126: 1552 | R126: 0.4225 | S126: 1444 | T126: 0.1865 | U126: 1506 | V126: 0.032 | W126: 1327 | X126: 0.0005 | Y126: 884 | Z126: 0.8 | AA126: 99 | AB126: 0.4 | AC126: 1570 | AD126: 5.551115123e-17 | AE126: 1704 | AG126: 0.5382735912 | AH126: 1195 | AI126: 0.3510234966 | AJ126: 734 | AK126: 59.67886662 | AL126: 1574 | AN126: 29.6 | AO126: 309 | AP126: 30.7 | AQ126: 1552 | AS126: 32.2 | AT126: 1506 | AU126: 32.7 | AV126: 1613 | AW126: … | AX126: … | AY126: … | AZ126: …
B127: 91 | C127: 1 | D127: 北海道 | E127: 1456 | F127: 愛別町 | J127: 1.3 | K127: 1451 | L127: 0.019 | M127: 1229 | N127: 0.157 | O127: 1482 | P127: 0.5145 | Q127: 671 | R127: 0.3985 | S127: 1624 | T127: 0.1815 | U127: 1593 | V127: 0.028 | W127: 1665 | X127: 0.0005 | Y127: 884 | Z127: 0.3 | AA127: 1687 | AB127: 0.6 | AC127: 475 | AD127: 0.4 | AE127: 378 | AG127: 0.4806440687 | AH127: 538 | AI127: 0.3750675077 | AJ127: 1038 | AK127: 100.5551862 | AL127: 144 | AN127: 29.6 | AO127: 309 | AP127: 35.5 | AQ127: 1649 | AS127: 32.2 | AT127: 1506 | AU127: … | AV127: … | AW127: 30.7 | AX127: 294 | AY127: … | AZ127: …
B128: 92 | C128: 1 | D128: 北海道 | E128: 1457 | F128: 上川町 | J128: 1.33 | K128: 1371 | L128: 0.018 | M128: 1320 | N128: 0.261 | O128: 658 | P128: 0.4585 | Q128: 1162 | R128: 0.371 | S128: 1709 | T128: 0.1885 | U128: 1465 | V128: 0.0295 | W128: 1578 | X128: 0.0005 | Y128: 884 | Z128: 0.4433333333 | AA128: 1582 | AB128: 0.6333333333 | AC128: 312 | AD128: 0.2533333333 | AE128: 1157 | AG128: 0.5699369247 | AH128: 1460 | AI128: 0.3456633264 | AJ128: 641 | AK128: 71.18258242 | AL128: 1211 | AN128: 28.4 | AO128: 62 | AP128: 27.2 | AQ128: 91 | AS128: 30.4 | AT128: 264 | AU128: 28 | AV128: 119 | AW128: 31.4 | AX128: 651 | AY128: … | AZ128: …
B129: 93 | C129: 1 | D129: 北海道 | E129: 1458 | F129: 東川町 | J129: 1.43 | K129: 1043 | L129: 0.023 | M129: 868 | N129: 0.2575 | O129: 680 | P129: 0.466 | Q129: 1106 | R129: 0.4745 | S129: 876 | T129: 0.1815 | U129: 1593 | V129: 0.029 | W129: 1616 | X129: 0.0005 | Y129: 884 | Z129: 0.6729411765 | AA129: 511 | AB129: 0.532745098 | AC129: 972 | AD129: 0.2243137255 | AE129: 1350 | AG129: 0.3990577407 | AH129: 50 | AI129: 0.3109545114 | AJ129: 265 | AK129: 59.28218541 | AL129: 1581 | AN129: 34.6 | AO129: 1625 | AP129: 34.5 | AQ129: 1643 | AS129: 31.8 | AT129: 1351 | AU129: 29.7 | AV129: 824 | AW129: 32.8 | AX129: 1411 | AY129: 35.8 | AZ129: 1486
B130: 94 | C130: 1 | D130: 北海道 | E130: 1459 | F130: 美瑛町 | J130: 1.28 | K130: 1498 | L130: 0.0215 | M130: 1000 | N130: 0.168 | O130: 1418 | P130: 0.435 | Q130: 1327 | R130: 0.4215 | S130: 1448 | T130: 0.1995 | U130: 1157 | V130: 0.0305 | W130: 1491 | X130: 0.0015 | Y130: 88 | Z130: 0.48 | AA130: 1512 | AB130: 0.4622222222 | AC130: 1424 | AD130: 0.3377777778 | AE130: 606 | AG130: 0.4705750662 | AH130: 420 | AI130: 0.3443744781 | AJ130: 625 | AK130: 72.68217609 | AL130: 1111 | AN130: 30.4 | AO130: 715 | AP130: 31.1 | AQ130: 1585 | AS130: 32.1 | AT130: 1479 | AU130: 31.8 | AV130: 1559 | AW130: 32.2 | AX130: 1178 | AY130: 32.5 | AZ130: 421
B131: 95 | C131: 1 | D131: 北海道 | E131: 1460 | F131: 上富良野町 | J131: 1.66 | K131: 291 | L131: 0.0275 | M131: 486 | N131: 0.3205 | O131: 298 | P131: 0.5585 | Q131: 324 | R131: 0.5295 | S131: 258 | T131: 0.1955 | U131: 1299 | V131: 0.0305 | W131: 1491 | X131: 0.0005 | Y131: 884 | Z131: 0.7791836735 | AA131: 123 | AB131: 0.5081632653 | AC131: 1165 | AD131: 0.3726530612 | AE131: 446 | AG131: 0.4755468838 | AH131: 475 | AI131: 0.2562908742 | AJ131: 45 | AK131: 81.7635468 | AL131: 601 | AN131: 30 | AO131: 490 | AP131: 28.5 | AQ131: 551 | AS131: 31.1 | AT131: 783 | AU131: 29.9 | AV131: 944 | AW131: 30.8 | AX131: 341 | AY131: 33.9 | AZ131: 1212
B132: 96 | C132: 1 | D132: 北海道 | E132: 1461 | F132: 中富良野町 | J132: 1.52 | K132: 683 | L132: 0.0205 | M132: 1093 | N132: 0.2805 | O132: 512 | P132: 0.539 | Q132: 464 | R132: 0.4385 | S132: 1277 | T132: 0.2095 | U132: 903 | V132: 0.033 | W132: 1197 | X132: 0.0005 | Y132: 884 | Z132: 0.4819512195 | AA132: 1504 | AB132: 0.6673170732 | AC132: 186 | AD132: 0.3707317073 | AE132: 452 | AG132: 0.3859131844 | AH132: 29 | AI132: 0.2809094308 | AJ132: 101 | AK132: 58.97541484 | AL132: 1586 | AN132: 30.3 | AO132: 662 | AP132: 26.9 | AQ132: 62 | AS132: 32 | AT132: 1445 | AU132: 30.2 | AV132: 1134 | AW132: 31.8 | AX132: 931 | AY132: 33.6 | AZ132: 1051
B133: 97 | C133: 1 | D133: 北海道 | E133: 1462 | F133: 南富良野町 | J133: 1.35 | K133: 1299 | L133: 0.029 | M133: 394 | N133: 0.272 | O133: 571 | P133: 0.4065 | Q133: 1485 | R133: 0.4205 | S133: 1463 | T133: 0.1855 | U133: 1523 | V133: 0.0325 | W133: 1260 | X133: 0.0005 | Y133: 884 | Z133: 0.63 | AA133: 801 | AB133: 0.54 | AC133: 921 | AD133: 0.18 | AE133: 1568 | AG133: 0.6026539339 | AH133: 1620 | AI133: 0.3676107391 | AJ133: 948 | AK133: 82.99938201 | AL133: 539 | AN133: 28.8 | AO133: 103 | AP133: 27.9 | AQ133: 247 | AS133: 29 | AT133: 27 | AU133: 26.6 | AV133: 31 | AW133: 30.9 | AX133: 379 | AY133: … | AZ133: …
B134: 98 | C134: 1 | D134: 北海道 | E134: 1463 | F134: 占冠村 | J134: 1.21 | K134: 1617 | L134: 0.0215 | M134: 1000 | N134: 0.2325 | O134: 885 | P134: 0.3365 | Q134: 1673 | R134: 0.397 | S134: 1636 | T134: 0.181 | U134: 1604 | V134: 0.0365 | W134: 777 | X134: 0.0005 | Y134: 884 | Z134: 0.99 | AA134: 11 | AB134: 0.22 | AC134: 1695 | AD134: 0 | AE134: 1705 | AG134: 0.5001044817 | AH134: 792 | AI134: 0.4388238297 | AJ134: 1576 | AK134: 85.34997257 | AL134: 445 | AN134: 31.6 | AO134: 1358 | AP134: 26.6 | AQ134: 44 | AS134: 30.5 | AT134: 318 | AU134: 30.2 | AV134: 1134 | AW134: … | AX134: … | AY134: … | AZ134: …
B135: 99 | C135: 1 | D135: 北海道 | E135: 1464 | F135: 和寒町 | J135: 1.54 | K135: 606 | L135: 0.0255 | M135: 641 | N135: 0.316 | O135: 316 | P135: 0.526 | Q135: 571 | R135: 0.445 | S135: 1199 | T135: 0.191 | U135: 1411 | V135: 0.0315 | W135: 1380 | X135: 0.0005 | Y135: 884 | Z135: 0.22 | AA135: 1697 | AB135: 0.5866666667 | AC135: 587 | AD135: 0.7333333333 | AE135: 33 | AG135: 0.4485255502 | AH135: 219 | AI135: 0.297482575 | AJ135: 172 | AK135: 59.28650462 | AL135: 1580 | AN135: … | AO135: … | AP135: 34.5 | AQ135: 1643 | AS135: 32.3 | AT135: 1528 | AU135: … | AV135: … | AW135: 33.6 | AX135: 1548 | AY135: 31.7 | AZ135: 153
B136: 100 | C136: 1 | D136: 北海道 | E136: 1465 | F136: 剣淵町 | J136: 1.18 | K136: 1659 | L136: 0.0175 | M136: 1354 | N136: 0.118 | O136: 1648 | P136: 0.415 | Q136: 1438 | R136: 0.4085 | S136: 1558 | T136: 0.1865 | U136: 1506 | V136: 0.033 | W136: 1197 | X136: 0.0005 | Y136: 884 | Z136: 0.2145454545 | AA136: 1698 | AB136: 0.5363636364 | AC136: 938 | AD136: 0.4290909091 | AE136: 300 | AG136: 0.5095402894 | AH136: 894 | AI136: 0.4205633681 | AJ136: 1486 | AK136: 46.82968904 | AL136: 1697 | AN136: … | AO136: … | AP136: … | AQ136: … | AS136: 32.9 | AT136: 1642 | AU136: … | AV136: … | AW136: 34.2 | AX136: 1590 | AY136: … | AZ136: …
B137: 101 | C137: 1 | D137: 北海道 | E137: 1468 | F137: 下川町 | J137: 1.27 | K137: 1520 | L137: 0.0185 | M137: 1270 | N137: 0.216 | O137: 1024 | P137: 0.4135 | Q137: 1444 | R137: 0.4025 | S137: 1596 | T137: 0.1865 | U137: 1506 | V137: 0.0315 | W137: 1380 | X137: 0.0005 | Y137: 884 | Z137: 0.5442857143 | AA137: 1286 | AB137: 0.3628571429 | AC137: 1640 | AD137: 0.3628571429 | AE137: 489 | AG137: 0.4736124241 | AH137: 459 | AI137: 0.2775630051 | AJ137: 94 | AK137: 45.82305311 | AL137: 1701 | AN137: 30.2 | AO137: 604 | AP137: 33 | AQ137: 1633 | AS137: 30.9 | AT137: 613 | AU137: 30.5 | AV137: 1281 | AW137: 29.5 | AX137: 65 | AY137: 33.1 | AZ137: 735
B138: 102 | C138: 1 | D138: 北海道 | E138: 1469 | F138: 美深町 | J138: 1.36 | K138: 1270 | L138: 0.018 | M138: 1320 | N138: 0.2425 | O138: 801 | P138: 0.495 | Q138: 846 | R138: 0.3885 | S138: 1660 | T138: 0.1885 | U138: 1465 | V138: 0.029 | W138: 1616 | X138: 0.0005 | Y138: 884 | Z138: 0.532173913 | AA138: 1341 | AB138: 0.5913043478 | AC138: 551 | AD138: 0.2365217391 | AE138: 1272 | AG138: 0.5646403096 | AH138: 1427 | AI138: 0.3927698461 | AJ138: 1234 | AK138: 63.69846242 | AL138: 1505 | AN138: 32.4 | AO138: 1539 | AP138: 31.9 | AQ138: 1618 | AS138: 30.8 | AT138: 533 | AU138: 29.5 | AV138: 699 | AW138: 32.2 | AX138: 1178 | AY138: … | AZ138: …
B139: 103 | C139: 1 | D139: 北海道 | E139: 1470 | F139: 音威子府村 | J139: 1.26 | K139: 1544 | L139: 0.0185 | M139: 1270 | N139: 0.1855 | O139: 1284 | P139: 0.398 | Q139: 1535 | R139: 0.4315 | S139: 1352 | T139: 0.195 | U139: 1315 | V139: 0.032 | W139: 1327 | X139: 0.0005 | Y139: 884 | Z139: 0.42 | AA139: 1619 | AB139: 0.42 | AC139: 1538 | AD139: 0.42 | AE139: 324 | AG139: 0.5097793728 | AH139: 898 | AI139: 0.2581123476 | AJ139: 53 | AK139: 116.3201186 | AL139: 55 | AN139: … | AO139: … | AP139: … | AQ139: … | AS139: 29.7 | AT139: 71 | AU139: … | AV139: … | AW139: … | AX139: … | AY139: … | AZ139: …
B140: 104 | C140: 1 | D140: 北海道 | E140: 1471 | F140: 中川町 | J140: 1.58 | K140: 481 | L140: 0.021 | M140: 1055 | N140: 0.3785 | O140: 131 | P140: 0.505 | Q140: 759 | R140: 0.449 | S140: 1153 | T140: 0.195 | U140: 1315 | V140: 0.033 | W140: 1197 | X140: 0.0005 | Y140: 884 | Z140: 0.79 | AA140: 108 | AB140: 0.3385714286 | AC140: 1650 | AD140: 0.4514285714 | AE140: 246 | AG140: 0.4258040509 | AH140: 124 | AI140: 0.2843469217 | AJ140: 113 | AK140: 91.59113074 | AL140: 270 | AN140: 31.8 | AO140: 1427 | AP140: 30.4 | AQ140: 1519 | AS140: 30.5 | AT140: 318 | AU140: 30.1 | AV140: 1070 | AW140: … | AX140: … | AY140: … | AZ140: …
B141: 105 | C141: 1 | D141: 北海道 | E141: 1472 | F141: 幌加内町 | J141: 1.35 | K141: 1299 | L141: 0.021 | M141: 1055 | N141: 0.275 | O141: 553 | P141: 0.4095 | Q141: 1464 | R141: 0.417 | S141: 1495 | T141: 0.189 | U141: 1455 | V141: 0.035 | W141: 949 | X141: 0.0005 | Y141: 884 | Z141: 0.3375 | AA141: 1678 | AB141: 0.16875 | AC141: 1704 | AD141: 0.84375 | AE141: 13 | AG141: 0.4900819436 | AH141: 665 | AI141: 0.5000512607 | AJ141: 1689 | AK141: 49.52912307 | AL141: 1687 | AN141: … | AO141: … | AP141: … | AQ141: … | AS141: 32.6 | AT141: 1595 | AU141: … | AV141: … | AW141: … | AX141: … | AY141: … | AZ141: …
B142: 106 | C142: 1 | D142: 北海道 | E142: 1481 | F142: 増毛町 | J142: 1.49 | K142: 800 | L142: 0.0205 | M142: 1093 | N142: 0.335 | O142: 249 | P142: 0.507 | Q142: 739 | R142: 0.424 | S142: 1429 | T142: 0.1695 | U142: 1709 | V142: 0.032 | W142: 1327 | X142: 0.0015 | Y142: 88 | Z142: 0.5215 | AA142: 1384 | AB142: 0.596 | AC142: 501 | AD142: 0.3725 | AE142: 447 | AG142: 0.5020990231 | AH142: 825 | AI142: 0.3029200642 | AJ142: 205 | AK142: 39.23521672 | AL142: 1719 | AN142: 31.9 | AO142: 1449 | AP142: 23.7 | AQ142: 2 | AS142: 29.1 | AT142: 33 | AU142: 27.7 | AV142: 90 | AW142: 28.5 | AX142: 16 | AY142: … | AZ142: …
B143: 107 | C143: 1 | D143: 北海道 | E143: 1482 | F143: 小平町 | J143: 1.39 | K143: 1187 | L143: 0.024 | M143: 773 | N143: 0.2585 | O143: 674 | P143: 0.486 | Q143: 923 | R143: 0.415 | S143: 1509 | T143: 0.1805 | U143: 1615 | V143: 0.03 | W143: 1533 | X143: 0.0005 | Y143: 884 | Z143: 0.7645 | AA143: 143 | AB143: 0.417 | AC143: 1544 | AD143: 0.2085 | AE143: 1455 | AG143: 0.4670918573 | AH143: 382 | AI143: 0.4132968137 | AJ143: 1442 | AK143: 54.49913983 | AL143: 1645 | AN143: 28 | AO143: 48 | AP143: 28.3 | AQ143: 420 | AS143: 31.1 | AT143: 783 | AU143: 30.4 | AV143: 1230 | AW143: 30.7 | AX143: 294 | AY143: … | AZ143: …
B144: 108 | C144: 1 | D144: 北海道 | E144: 1483 | F144: 苫前町 | J144: 1.34 | K144: 1341 | L144: 0.023 | M144: 868 | N144: 0.169 | O144: 1408 | P144: 0.4985 | Q144: 811 | R144: 0.4275 | S144: 1393 | T144: 0.189 | U144: 1455 | V144: 0.033 | W144: 1197 | X144: 0.0005 | Y144: 884 | Z144: 0.5642105263 | AA144: 1191 | AB144: 0.4936842105 | AC144: 1247 | AD144: 0.2821052632 | AE144: 947 | AG144: 0.4195036868 | AH144: 97 | AI144: 0.2881819732 | AJ144: 138 | AK144: 53.2565875 | AL144: 1656 | AN144: … | AO144: … | AP144: … | AQ144: … | AS144: 30.9 | AT144: 613 | AU144: 31.2 | AV144: 1477 | AW144: 27.8 | AX144: 9 | AY144: … | AZ144: …
B145: 109 | C145: 1 | D145: 北海道 | E145: 1484 | F145: 羽幌町 | J145: 1.66 | K145: 291 | L145: 0.027 | M145: 521 | N145: 0.355 | O145: 183 | P145: 0.59 | Q145: 176 | R145: 0.4545 | S145: 1091 | T145: 0.196 | U145: 1283 | V145: 0.0325 | W145: 1260 | X145: 0.0005 | Y145: 884 | Z145: 0.6719047619 | AA145: 521 | AB145: 0.7114285714 | AC145: 98 | AD145: 0.2766666667 | AE145: 987 | AG145: 0.4838622956 | AH145: 573 | AI145: 0.2671840478 | AJ145: 71 | AK145: 80.27360339 | AL145: 683 | AN145: 33.1 | AO145: 1585 | AP145: 29.1 | AQ145: 999 | AS145: 30.6 | AT145: 377 | AU145: 31.1 | AV145: 1456 | AW145: 30.4 | AX145: 192 | AY145: 29.7 | AZ145: 15
B146: 110 | C146: 1 | D146: 北海道 | E146: 1485 | F146: 初山別村 | J146: 1.21 | K146: 1617 | L146: 0.022 | M146: 952 | N146: 0.137 | O146: 1584 | P146: 0.4015 | Q146: 1524 | R146: 0.431 | S146: 1353 | T146: 0.189 | U146: 1455 | V146: 0.031 | W146: 1443 | X146: 0.0005 | Y146: 884 | Z146: 0.726 | AA146: 249 | AB146: 0.242 | AC146: 1693 | AD146: 0.242 | AE146: 1229 | AG146: 0.5866595087 | AH146: 1542 | AI146: 0.4576696967 | AJ146: 1633 | AK146: 86.05646991 | AL146: 421 | AN146: … | AO146: … | AP146: … | AQ146: … | AS146: 33.9 | AT146: 1691 | AU146: 33.4 | AV146: 1623 | AW146: … | AX146: … | AY146: … | AZ146: …
B147: 111 | C147: 1 | D147: 北海道 | E147: 1486 | F147: 遠別町 | J147: 1.55 | K147: 571 | L147: 0.019 | M147: 1229 | N147: 0.293 | O147: 440 | P147: 0.5445 | Q147: 425 | R147: 0.462 | S147: 1002 | T147: 0.1935 | U147: 1361 | V147: 0.0335 | W147: 1132 | X147: 0.0015 | Y147: 88 | Z147: 0.19375 | AA147: 1702 | AB147: 1.065625 | AC147: 3 | AD147: 0.290625 | AE147: 887 | AG147: 0.4731504891 | AH147: 448 | AI147: 0.2857669733 | AJ147: 123 | AK147: 55.83874703 | AL147: 1632 | AN147: 28 | AO147: 48 | AP147: 27.7 | AQ147: 177 | AS147: 31.5 | AT147: 1157 | AU147: … | AV147: … | AW147: 31.5 | AX147: 716 | AY147: … | AZ147: …
B148: 112 | C148: 1 | D148: 北海道 | E148: 1487 | F148: 天塩町 | J148: 1.51 | K148: 721 | L148: 0.024 | M148: 773 | N148: 0.306 | O148: 363 | P148: 0.5335 | Q148: 510 | R148: 0.4145 | S148: 1512 | T148: 0.199 | U148: 1178 | V148: 0.0305 | W148: 1491 | X148: 0.0005 | Y148: 884 | Z148: 0.6644 | AA148: 569 | AB148: 0.3624 | AC148: 1641 | AD148: 0.4832 | AE148: 196 | AG148: 0.5429802891 | AH148: 1245 | AI148: 0.2735997207 | AJ148: 82 | AK148: 56.20119589 | AL148: 1629 | AN148: 29.3 | AO148: 213 | AP148: 26.3 | AQ148: 31 | AS148: 31.2 | AT148: 881 | AU148: 28.6 | AV148: 247 | AW148: 30.9 | AX148: 379 | AY148: 34.8 | AZ148: 1410
B149: 113 | C149: 1 | D149: 北海道 | E149: 1511 | F149: 猿払村 | J149: 1.75 | K149: 166 | L149: 0.025 | M149: 691 | N149: 0.3395 | O149: 235 | P149: 0.6945 | Q149: 15 | R149: 0.4445 | S149: 1203 | T149: 0.216 | U149: 764 | V149: 0.0315 | W149: 1380 | X149: 0.0005 | Y149: 884 | Z149: 0.9296875 | AA149: 19 | AB149: 0.4921875 | AC149: 1258 | AD149: 0.328125 | AE149: 658 | AG149: 0.4550295001 | AH149: 267 | AI149: 0.2559656334 | AJ149: 43 | AK149: 92.42405693 | AL149: 260 | AN149: 27.4 | AO149: 21 | AP149: 27 | AQ149: 72 | AS149: 29.6 | AT149: 62 | AU149: 28.3 | AV149: 173 | AW149: 30.7 | AX149: 294 | AY149: … | AZ149: …
B150: 114 | C150: 1 | D150: 北海道 | E150: 1512 | F150: 浜頓別町 | J150: 1.44 | K150: 999 | L150: 0.0215 | M150: 1000 | N150: 0.3115 | O150: 338 | P150: 0.4945 | Q150: 851 | R150: 0.401 | S150: 1609 | T150: 0.176 | U150: 1667 | V150: 0.033 | W150: 1197 | X150: 0.0005 | Y150: 884 | Z150: 0.6685714286 | AA150: 543 | AB150: 0.5657142857 | AC150: 739 | AD150: 0.2057142857 | AE150: 1468 | AG150: 0.4936677818 | AH150: 717 | AI150: 0.2653431322 | AJ150: 69 | AK150: 71.23211062 | AL150: 1206 | AN150: 28.3 | AO150: 57 | AP150: 26.7 | AQ150: 50 | AS150: 30.2 | AT150: 177 | AU150: 28.7 | AV150: 279 | AW150: 31 | AX150: 426 | AY150: … | AZ150: …
B151: 115 | C151: 1 | D151: 北海道 | E151: 1513 | F151: 中頓別町 | J151: 1.23 | K151: 1599 | L151: 0.021 | M151: 1055 | N151: 0.2015 | O151: 1153 | P151: 0.347 | Q151: 1655 | R151: 0.429 | S151: 1374 | T151: 0.199 | U151: 1178 | V151: 0.0295 | W151: 1578 | X151: 0.0005 | Y151: 884 | Z151: … | AA151: … | AB151: … | AC151: … | AD151: … | AE151: … | AG151: 0.5473592675 | AH151: 1286 | AI151: 0.2937878609 | AJ151: 161 | AK151: 71.75278034 | AL151: 1171 | AN151: … | AO151: … | AP151: … | AQ151: … | AS151: … | AT151: … | AU151: … | AV151: … | AW151: … | AX151: … | AY151: … | AZ151: …
B152: 116 | C152: 1 | D152: 北海道 | E152: 1514 | F152: 枝幸町 | J152: 1.51 | K152: 721 | L152: 0.026 | M152: 588 | N152: 0.3295 | O152: 266 | P152: 0.5295 | Q152: 542 | R152: 0.4075 | S152: 1564 | T152: 0.1845 | U152: 1542 | V152: 0.0305 | W152: 1491 | X152: 0.0005 | Y152: 884 | Z152: 0.7078125 | AA152: 340 | AB152: 0.54265625 | AC152: 906 | AD152: 0.25953125 | AE152: 1104 | AG152: 0.4613918253 | AH152: 326 | AI152: 0.2567756881 | AJ152: 48 | AK152: 54.67435369 | AL152: 1642 | AN152: 29.1 | AO152: 168 | AP152: 28.5 | AQ152: 551 | AS152: 29.7 | AT152: 71 | AU152: 27.5 | AV152: 68 | AW152: 29.8 | AX152: 92 | AY152: 35.5 | AZ152: 1470
B153: 117 | C153: 1 | D153: 北海道 | E153: 1516 | F153: 豊富町 | J153: 1.63 | K153: 357 | L153: 0.022 | M153: 952 | N153: 0.4045 | O153: 77 | P153: 0.568 | Q153: 272 | R153: 0.405 | S153: 1584 | T153: 0.193 | U153: 1377 | V153: 0.034 | W153: 1079 | X153: 0.0005 | Y153: 884 | Z153: 0.6896153846 | AA153: 425 | AB153: 0.6269230769 | AC153: 337 | AD153: 0.3134615385 | AE153: 747 | AG153: 0.4903333426 | AH153: 670 | AI153: 0.2968469252 | AJ153: 169 | AK153: 71.41740999 | AL153: 1194 | AN153: 28.5 | AO153: 70 | AP153: 26.2 | AQ153: 28 | AS153: 30.3 | AT153: 226 | AU153: 28.8 | AV153: 319 | AW153: 31.3 | AX153: 600 | AY153: … | AZ153: …
B154: 118 | C154: 1 | D154: 北海道 | E154: 1517 | F154: 礼文町 | J154: 1.53 | K154: 649 | L154: 0.0235 | M154: 824 | N154: 0.3845 | O154: 118 | P154: 0.4885 | Q154: 899 | R154: 0.406 | S154: 1575 | T154: 0.195 | U154: 1315 | V154: 0.031 | W154: 1443 | X154: 0.0005 | Y154: 884 | Z154: 0.51 | AA154: 1421 | AB154: 1.02 | AC154: 6 | AD154: 0 | AE154: 1705 | AG154: 0.532343818 | AH154: 1146 | AI154: 0.32003489 | AJ154: 335 | AK154: 87.8427569 | AL154: 381 | AN154: 27.9 | AO154: 43 | AP154: 25.8 | AQ154: 17 | AS154: 30.2 | AT154: 177 | AU154: 30.5 | AV154: 1281 | AW154: 30.1 | AX154: 137 | AY154: … | AZ154: …
B155: 119 | C155: 1 | D155: 北海道 | E155: 1518 | F155: 利尻町 | J155: 1.38 | K155: 1211 | L155: 0.0235 | M155: 824 | N155: 0.31 | O155: 347 | P155: 0.424 | Q155: 1383 | R155: 0.402 | S155: 1600 | T155: 0.1855 | U155: 1523 | V155: 0.0305 | W155: 1491 | X155: 0.0015 | Y155: 88 | Z155: 0.3184615385 | AA155: 1683 | AB155: 0.8492307692 | AC155: 16 | AD155: 0.2123076923 | AE155: 1433 | AG155: 0.4947367719 | AH155: 732 | AI155: 0.3451292699 | AJ155: 635 | AK155: 89.92669051 | AL155: 306 | AN155: 30.8 | AO155: 992 | AP155: 29.5 | AQ155: 1253 | AS155: 32.2 | AT155: 1506 | AU155: … | AV155: … | AW155: 32.6 | AX155: 1355 | AY155: … | AZ155: …
B156: 120 | C156: 1 | D156: 北海道 | E156: 1519 | F156: 利尻富士町 | J156: 1.42 | K156: 1073 | L156: 0.019 | M156: 1229 | N156: 0.2895 | O156: 459 | P156: 0.4805 | Q156: 983 | R156: 0.396 | S156: 1641 | T156: 0.206 | U156: 985 | V156: 0.033 | W156: 1197 | X156: 0.0005 | Y156: 884 | Z156: 0.3736842105 | AA156: 1656 | AB156: 0.6726315789 | AC156: 170 | AD156: 0.3736842105 | AE156: 444 | AG156: 0.3907548932 | AH156: 33 | AI156: 0.2564636357 | AJ156: 46 | AK156: 64.87432927 | AL156: 1469 | AN156: … | AO156: … | AP156: 30.7 | AQ156: 1552 | AS156: 31 | AT156: 692 | AU156: 28.7 | AV156: 279 | AW156: 30.6 | AX156: 253 | AY156: … | AZ156: …
B157: 121 | C157: 1 | D157: 北海道 | E157: 1520 | F157: 幌延町 | J157: 1.68 | K157: 260 | L157: 0.0235 | M157: 824 | N157: 0.4575 | O157: 37 | P157: 0.539 | Q157: 464 | R157: 0.436 | S157: 1311 | T157: 0.196 | U157: 1283 | V157: 0.03 | W157: 1533 | X157: 0.0005 | Y157: 884 | Z157: 0.8129032258 | AA157: 87 | AB157: 0.6503225806 | AC157: 239 | AD157: 0.2167741935 | AE157: 1408 | AG157: 0.4852218479 | AH157: 594 | AI157: 0.2537698965 | AJ157: 41 | AK157: 120.727095 | AL157: 37 | AN157: 30.2 | AO157: 604 | AP157: 29.6 | AQ157: 1297 | AS157: 30 | AT157: 117 | AU157: 27.6 | AV157: 80 | AW157: 32.2 | AX157: 1178 | AY157: … | AZ157: …
B158: 122 | C158: 1 | D158: 北海道 | E158: 1543 | F158: 美幌町 | J158: 1.64 | K158: 326 | L158: 0.0165 | M158: 1438 | N158: 0.3665 | O158: 152 | P158: 0.6065 | Q158: 126 | R158: 0.438 | S158: 1284 | T158: 0.1815 | U158: 1593 | V158: 0.0335 | W158: 1132 | X158: 0.001 | Y158: 270 | Z158: 0.6517948718 | AA158: 660 | AB158: 0.6202564103 | AC158: 363 | AD158: 0.3679487179 | AE158: 464 | AG158: 0.4912791971 | AH158: 682 | AI158: 0.308808891 | AJ158: 250 | AK158: 65.7548525 | AL158: 1441 | AN158: 29.4 | AO158: 244 | AP158: 28 | AQ158: 279 | AS158: 30.8 | AT158: 533 | AU158: 29.3 | AV158: 568 | AW158: 31.4 | AX158: 651 | AY158: 32.9 | AZ158: 622
B159: 123 | C159: 1 | D159: 北海道 | E159: 1544 | F159: 津別町 | J159: 1.51 | K159: 721 | L159: 0.019 | M159: 1229 | N159: 0.3525 | O159: 190 | P159: 0.4665 | Q159: 1102 | R159: 0.465 | S159: 975 | T159: 0.179 | U159: 1628 | V159: 0.032 | W159: 1327 | X159: 0.0005 | Y159: 884 | Z159: 0.6248275862 | AA159: 837 | AB159: 0.6248275862 | AC159: 341 | AD159: 0.2603448276 | AE159: 1097 | AG159: 0.5809445884 | AH159: 1524 | AI159: 0.3000441238 | AJ159: 188 | AK159: 73.78421716 | AL159: 1058 | AN159: … | AO159: … | AP159: 29.3 | AQ159: 1148 | AS159: 32.6 | AT159: 1595 | AU159: 31.8 | AV159: 1559 | AW159: 32.5 | AX159: 1307 | AY159: … | AZ159: …
B160: 124 | C160: 1 | D160: 北海道 | E160: 1545 | F160: 斜里町 | J160: 1.64 | K160: 326 | L160: 0.0305 | M160: 313 | N160: 0.406 | O160: 74 | P160: 0.534 | Q160: 507 | R160: 0.4365 | S160: 1306 | T160: 0.2 | U160: 1143 | V160: 0.035 | W160: 949 | X160: 0.0005 | Y160: 884 | Z160: 0.56375 | AA160: 1197 | AB160: 0.7516666667 | AC160: 61 | AD160: 0.3245833333 | AE160: 681 | AG160: 0.5173309735 | AH160: 1002 | AI160: 0.3081634252 | AJ160: 244 | AK160: 78.53205097 | AL160: 788 | AN160: 29.5 | AO160: 280 | AP160: 28.6 | AQ160: 620 | AS160: 30.2 | AT160: 177 | AU160: 28.2 | AV160: 161 | AW160: 30.8 | AX160: 341 | AY160: 31.5 | AZ160: 120
B161: 125 | C161: 1 | D161: 北海道 | E161: 1546 | F161: 清里町 | J161: 1.58 | K161: 481 | L161: 0.0235 | M161: 824 | N161: 0.2795 | O161: 517 | P161: 0.592 | Q161: 171 | R161: 0.4675 | S161: 954 | T161: 0.1845 | U161: 1542 | V161: 0.031 | W161: 1443 | X161: 0.0005 | Y161: 884 | Z161: 0.6703030303 | AA161: 526 | AB161: 0.7660606061 | AC161: 50 | AD161: 0.1436363636 | AE161: 1633 | AG161: 0.4488823024 | AH161: 222 | AI161: 0.292629436 | AJ161: 156 | AK161: 83.14339198 | AL161: 535 | AN161: 29 | AO161: 150 | AP161: 28 | AQ161: 279 | AS161: 30.6 | AT161: 377 | AU161: 29.9 | AV161: 944 | AW161: 30.4 | AX161: 192 | AY161: … | AZ161: …
B162: 126 | C162: 1 | D162: 北海道 | E162: 1547 | F162: 小清水町 | J162: 1.54 | K162: 606 | L162: 0.0175 | M162: 1354 | N162: 0.2605 | O162: 661 | P162: 0.5895 | Q162: 178 | R162: 0.4545 | S162: 1091 | T162: 0.1845 | U162: 1542 | V162: 0.033 | W162: 1197 | X162: 0.0005 | Y162: 884 | Z162: 0.6844444444 | AA162: 454 | AB162: 0.7272222222 | AC162: 82 | AD162: 0.1283333333 | AE162: 1650 | AG162: 0.4596905361 | AH162: 309 | AI162: 0.2582968762 | AJ162: 55 | AK162: 94.68703147 | AL162: 211 | AN162: 32.2 | AO162: 1513 | AP162: 29.2 | AQ162: 1071 | AS162: 30 | AT162: 117 | AU162: 29 | AV162: 416 | AW162: 30.8 | AX162: 341 | AY162: … | AZ162: …
B163: 127 | C163: 1 | D163: 北海道 | E163: 1549 | F163: 訓子府町 | J163: 1.54 | K163: 606 | L163: 0.0165 | M163: 1438 | N163: 0.2485 | O163: 759 | P163: 0.5855 | Q163: 195 | R163: 0.4525 | S163: 1120 | T163: 0.206 | U163: 985 | V163: 0.032 | W163: 1327 | X163: 0.0005 | Y163: 884 | Z163: 0.5866666667 | AA163: 1073 | AB163: 0.5866666667 | AC163: 587 | AD163: 0.3666666667 | AE163: 472 | AG163: 0.5015531399 | AH163: 814 | AI163: 0.2993827532 | AJ163: 182 | AK163: 56.39458821 | AL163: 1625 | AN163: 33.3 | AO163: 1595 | AP163: 29.7 | AQ163: 1347 | AS163: 30.4 | AT163: 264 | AU163: 28.6 | AV163: 247 | AW163: 29.8 | AX163: 92 | AY163: 34.1 | AZ163: 1276
B164: 128 | C164: 1 | D164: 北海道 | E164: 1550 | F164: 置戸町 | J164: 1.37 | K164: 1240 | L164: 0.0195 | M164: 1182 | N164: 0.2755 | O164: 549 | P164: 0.456 | Q164: 1190 | R164: 0.404 | S164: 1589 | T164: 0.18 | U164: 1619 | V164: 0.0295 | W164: 1578 | X164: 0.0015 | Y164: 88 | Z164: 0.3044444444 | AA164: 1685 | AB164: 0.4566666667 | AC164: 1436 | AD164: 0.6088888889 | AE164: 76 | AG164: 0.479318189 | AH164: 520 | AI164: 0.4074564458 | AJ164: 1397 | AK164: 112.1605196 | AL164: 73 | AN164: 31.4 | AO164: 1281 | AP164: 31 | AQ164: 1578 | AS164: 31.3 | AT164: 969 | AU164: … | AV164: … | AW164: … | AX164: … | AY164: … | AZ164: …
B165: 129 | C165: 1 | D165: 北海道 | E165: 1552 | F165: 佐呂間町 | J165: 1.74 | K165: 176 | L165: 0.027 | M165: 521 | N165: 0.4545 | O165: 39 | P165: 0.608 | Q165: 122 | R165: 0.4185 | S165: 1479 | T165: 0.195 | U165: 1315 | V165: 0.032 | W165: 1327 | X165: 0.0005 | Y165: 884 | Z165: 0.4121052632 | AA165: 1628 | AB165: 0.7326315789 | AC165: 79 | AD165: 0.5952631579 | AE165: 83 | AG165: 0.4539349186 | AH165: 256 | AI165: 0.2321796763 | AJ165: 20 | AK165: 53.14737676 | AL165: 1658 | AN165: 32.3 | AO165: 1524 | AP165: 28.8 | AQ165: 761 | AS165: 29.4 | AT165: 44 | AU165: 30 | AV165: 1016 | AW165: 29.8 | AX165: 92 | AY165: 28.5 | AZ165: 4
B166: 130 | C166: 1 | D166: 北海道 | E166: 1555 | F166: 遠軽町 | J166: 1.65 | K166: 305 | L166: 0.036 | M166: 170 | N166: 0.327 | O166: 274 | P166: 0.605 | Q166: 130 | R166: 0.469 | S166: 929 | T166: 0.181 | U166: 1604 | V166: 0.0315 | W166: 1380 | X166: 0.0005 | Y166: 884 | Z166: 0.7173913043 | AA166: 289 | AB166: 0.5636645963 | AC166: 764 | AD166: 0.3689440994 | AE166: 460 | AG166: 0.4421249056 | AH166: 190 | AI166: 0.2871711836 | AJ166: 131 | AK166: 77.78137323 | AL166: 836 | AN166: 29.2 | AO166: 194 | AP166: 27.5 | AQ166: 129 | AS166: 30.6 | AT166: 377 | AU166: 29.8 | AV166: 887 | AW166: 30.6 | AX166: 253 | AY166: 31.8 | AZ166: 175
B167: 131 | C167: 1 | D167: 北海道 | E167: 1559 | F167: 湧別町 | J167: 1.5 | K167: 762 | L167: 0.0235 | M167: 824 | N167: 0.3665 | O167: 152 | P167: 0.479 | Q167: 992 | R167: 0.4425 | S167: 1234 | T167: 0.157 | U167: 1734 | V167: 0.0295 | W167: 1578 | X167: 0.0005 | Y167: 884 | Z167: 0.775862069 | AA167: 129 | AB167: 0.5948275862 | AC167: 515 | AD167: 0.1293103448 | AE167: 1648 | AG167: 0.4632799204 | AH167: 342 | AI167: 0.2897543804 | AJ167: 144 | AK167: 68.94904471 | AL167: 1321 | AN167: 29.7 | AO167: 348 | AP167: 28.8 | AQ167: 761 | AS167: 30.2 | AT167: 177 | AU167: 30.2 | AV167: 1134 | AW167: 29.9 | AX167: 111 | AY167: … | AZ167: …
B168: 132 | C168: 1 | D168: 北海道 | E168: 1560 | F168: 滝上町 | J168: 1.4 | K168: 1147 | L168: 0.023 | M168: 868 | N168: 0.2715 | O168: 575 | P168: 0.432 | Q168: 1347 | R168: 0.4535 | S168: 1109 | T168: 0.186 | U168: 1517 | V168: 0.0315 | W168: 1380 | X168: 0.0005 | Y168: 884 | Z168: 0.5090909091 | AA168: 1425 | AB168: 0.6363636364 | AC168: 296 | AD168: 0.2545454545 | AE168: 1144 | AG168: 0.509462841 | AH168: 892 | AI168: 0.3942137948 | AJ168: 1253 | AK168: 97.18848504 | AL168: 174 | AN168: 29.6 | AO168: 309 | AP168: … | AQ168: … | AS168: 33.8 | AT168: 1687 | AU168: … | AV168: … | AW168: 34.1 | AX168: 1582 | AY168: … | AZ168: …
B169: 133 | C169: 1 | D169: 北海道 | E169: 1561 | F169: 興部町 | J169: 1.61 | K169: 408 | L169: 0.0245 | M169: 726 | N169: 0.3385 | O169: 238 | P169: 0.61 | Q169: 118 | R169: 0.4185 | S169: 1479 | T169: 0.194 | U169: 1348 | V169: 0.028 | W169: 1665 | X169: 0.0005 | Y169: 884 | Z169: 0.805 | AA169: 91 | AB169: 0.4025 | AC169: 1563 | AD169: 0.4025 | AE169: 371 | AG169: 0.437584908 | AH169: 166 | AI169: 0.3145406295 | AJ169: 290 | AK169: 64.08943951 | AL169: 1490 | AN169: 33.6 | AO169: 1602 | AP169: 31.4 | AQ169: 1602 | AS169: 30.7 | AT169: 444 | AU169: 29.4 | AV169: 635 | AW169: 30.5 | AX169: 223 | AY169: … | AZ169: …
B170: 134 | C170: 1 | D170: 北海道 | E170: 1562 | F170: 西興部村 | J170: 1.33 | K170: 1371 | L170: 0.022 | M170: 952 | N170: 0.267 | O170: 615 | P170: 0.4065 | Q170: 1485 | R170: 0.4115 | S170: 1538 | T170: 0.1925 | U170: 1386 | V170: 0.0315 | W170: 1380 | X170: 0.0005 | Y170: 884 | Z170: 0 | AA170: 1706 | AB170: 0.665 | AC170: 194 | AD170: 0.665 | AE170: 51 | AG170: 0.6198904129 | AH170: 1663 | AI170: 0.4130716265 | AJ170: 1441 | AK170: 58.84298371 | AL170: 1591 | AN170: … | AO170: … | AP170: … | AQ170: … | AS170: 33.3 | AT170: 1667 | AU170: … | AV170: … | AW170: … | AX170: … | AY170: … | AZ170: …
B171: 135 | C171: 1 | D171: 北海道 | E171: 1563 | F171: 雄武町 | J171: 1.48 | K171: 836 | L171: 0.018 | M171: 1320 | N171: 0.2535 | O171: 714 | P171: 0.5205 | Q171: 625 | R171: 0.4555 | S171: 1083 | T171: 0.201 | U171: 1113 | V171: 0.031 | W171: 1443 | X171: 0.0005 | Y171: 884 | Z171: 0.69375 | AA171: 407 | AB171: 0.41625 | AC171: 1547 | AD171: 0.37 | AE171: 456 | AG171: 0.5122718681 | AH171: 933 | AI171: 0.2951758714 | AJ171: 164 | AK171: 81.45523188 | AL171: 617 | AN171: 29.1 | AO171: 168 | AP171: 25.8 | AQ171: 17 | AS171: 30.2 | AT171: 177 | AU171: 27.7 | AV171: 90 | AW171: 32 | AX171: 1064 | AY171: 31.8 | AZ171: 175
B172: 136 | C172: 1 | D172: 北海道 | E172: 1564 | F172: 大空町 | J172: 1.71 | K172: 208 | L172: 0.026 | M172: 588 | N172: 0.3235 | O172: 287 | P172: 0.6525 | Q172: 46 | R172: 0.4585 | S172: 1041 | T172: 0.213 | U172: 823 | V172: 0.0315 | W172: 1380 | X172: 0.0005 | Y172: 884 | Z172: 0.5364705882 | AA172: 1318 | AB172: 0.6705882353 | AC172: 177 | AD172: 0.5029411765 | AE172: 170 | AG172: 0.4529003249 | AH172: 248 | AI172: 0.2503890654 | AJ172: 35 | AK172: 64.77120311 | AL172: 1471 | AN172: 29.1 | AO172: 168 | AP172: 25.9 | AQ172: 21 | AS172: 31 | AT172: 692 | AU172: 30.7 | AV172: 1344 | AW172: 30.6 | AX172: 253 | AY172: 30.2 | AZ172: 30
B173: 137 | C173: 1 | D173: 北海道 | E173: 1571 | F173: 豊浦町 | J173: 1.28 | K173: 1498 | L173: 0.0275 | M173: 486 | N173: 0.1785 | O173: 1344 | P173: 0.455 | Q173: 1200 | R173: 0.4115 | S173: 1538 | T173: 0.178 | U173: 1636 | V173: 0.029 | W173: 1616 | X173: 0.0005 | Y173: 884 | Z173: 0.5042424242 | AA173: 1438 | AB173: 0.3878787879 | AC173: 1591 | AD173: 0.3878787879 | AE173: 405 | AG173: 0.5808647859 | AH173: 1522 | AI173: 0.3840698911 | AJ173: 1138 | AK173: 89.58222942 | AL173: 317 | AN173: 27.3 | AO173: 17 | AP173: 26.4 | AQ173: 36 | AS173: 30.9 | AT173: 613 | AU173: 26.7 | AV173: 35 | AW173: 33.7 | AX173: 1559 | AY173: 32.8 | AZ173: 567
B174: 138 | C174: 1 | D174: 北海道 | E174: 1575 | F174: 壮瞥町 | J174: 1.29 | K174: 1473 | L174: 0.0195 | M174: 1182 | N174: 0.206 | O174: 1116 | P174: 0.405 | Q174: 1501 | R174: 0.425 | S174: 1420 | T174: 0.1975 | U174: 1239 | V174: 0.032 | W174: 1327 | X174: 0.0005 | Y174: 884 | Z174: 0.3225 | AA174: 1682 | AB174: 0.564375 | AC174: 755 | AD174: 0.403125 | AE174: 366 | AG174: 0.571559737 | AH174: 1471 | AI174: 0.4532335534 | AJ174: 1620 | AK174: 54.92556761 | AL174: 1640 | AN174: … | AO174: … | AP174: … | AQ174: … | AS174: 33.6 | AT174: 1684 | AU174: … | AV174: … | AW174: 35 | AX174: 1617 | AY174: … | AZ174: …
B175: 139 | C175: 1 | D175: 北海道 | E175: 1578 | F175: 白老町 | J175: 1.27 | K175: 1520 | L175: 0.032 | M175: 252 | N175: 0.255 | O175: 706 | P175: 0.398 | Q175: 1535 | R175: 0.379 | S175: 1690 | T175: 0.173 | U175: 1692 | V175: 0.0295 | W175: 1578 | X175: 0.0005 | Y175: 884 | Z175: 0.4963218391 | AA175: 1458 | AB175: 0.4087356322 | AC175: 1555 | AD175: 0.3649425287 | AE175: 482 | AG175: 0.6110461557 | AH175: 1645 | AI175: 0.4213578447 | AJ175: 1492 | AK175: 55.35078239 | AL175: 1635 | AN175: 29.3 | AO175: 213 | AP175: 28.4 | AQ175: 481 | AS175: 31 | AT175: 692 | AU175: 28.7 | AV175: 279 | AW175: 31.4 | AX175: 651 | AY175: 33.2 | AZ175: 791
B176: 140 | C176: 1 | D176: 北海道 | E176: 1581 | F176: 厚真町 | J176: 1.36 | K176: 1270 | L176: 0.0225 | M176: 907 | N176: 0.1505 | O176: 1513 | P176: 0.53 | Q176: 536 | R176: 0.421 | S176: 1457 | T176: 0.198 | U176: 1216 | V176: 0.035 | W176: 949 | X176: 0.0005 | Y176: 884 | Z176: 0.44 | AA176: 1591 | AB176: 0.52 | AC176: 1076 | AD176: 0.4 | AE176: 376 | AG176: 0.4942794949 | AH176: 729 | AI176: 0.3017525571 | AJ176: 197 | AK176: 67.41263016 | AL176: 1383 | AN176: 27.1 | AO176: 13 | AP176: 25.7 | AQ176: 14 | AS176: 30.6 | AT176: 377 | AU176: 26.7 | AV176: 35 | AW176: 33 | AX176: 1451 | AY176: 31.2 | AZ176: 84
B177: 141 | C177: 1 | D177: 北海道 | E177: 1584 | F177: 洞爺湖町 | J177: 1.25 | K177: 1569 | L177: 0.0225 | M177: 907 | N177: 0.2465 | O177: 779 | P177: 0.3795 | Q177: 1583 | R177: 0.3755 | S177: 1699 | T177: 0.199 | U177: 1178 | V177: 0.03 | W177: 1533 | X177: 0.0015 | Y177: 88 | Z177: 0.4891304348 | AA177: 1480 | AB177: 0.4891304348 | AC177: 1285 | AD177: 0.2717391304 | AE177: 1025 | AG177: 0.5636120341 | AH177: 1423 | AI177: 0.4121805045 | AJ177: 1435 | AK177: 60.77259989 | AL177: 1558 | AN177: 31.4 | AO177: 1281 | AP177: 27.5 | AQ177: 129 | AS177: 31.1 | AT177: 783 | AU177: 29.7 | AV177: 824 | AW177: 30.7 | AX177: 294 | AY177: 35 | AZ177: 1438
B178: 142 | C178: 1 | D178: 北海道 | E178: 1585 | F178: 安平町 | J178: 1.32 | K178: 1396 | L178: 0.023 | M178: 868 | N178: 0.1875 | O178: 1267 | P178: 0.4065 | Q178: 1485 | R178: 0.448 | S178: 1170 | T178: 0.226 | U178: 534 | V178: 0.0295 | W178: 1578 | X178: 0.0005 | Y178: 884 | Z178: 0.5926530612 | AA178: 1040 | AB178: 0.4310204082 | AC178: 1512 | AD178: 0.2963265306 | AE178: 849 | AG178: 0.5260765179 | AH178: 1090 | AI178: 0.3538888511 | AJ178: 771 | AK178: 74.64513538 | AL178: 1009 | AN178: 31.8 | AO178: 1427 | AP178: 28.8 | AQ178: 761 | AS178: 31.6 | AT178: 1233 | AU178: 32.6 | AV178: 1603 | AW178: 29.3 | AX178: 50 | AY178: 32.5 | AZ178: 421
B179: 143 | C179: 1 | D179: 北海道 | E179: 1586 | F179: むかわ町 | J179: 1.55 | K179: 571 | L179: 0.029 | M179: 394 | N179: 0.3435 | O179: 221 | P179: 0.5415 | Q179: 443 | R179: 0.4095 | S179: 1552 | T179: 0.1995 | U179: 1157 | V179: 0.0305 | W179: 1491 | X179: 0.0015 | Y179: 88 | Z179: 0.6065217391 | AA179: 951 | AB179: 0.5054347826 | AC179: 1181 | AD179: 0.4380434783 | AE179: 274 | AG179: 0.5361122471 | AH179: 1174 | AI179: 0.3091803884 | AJ179: 253 | AK179: 53.68253431 | AL179: 1649 | AN179: 32 | AO179: 1470 | AP179: 28.1 | AQ179: 323 | AS179: 30.4 | AT179: 264 | AU179: 27.3 | AV179: 58 | AW179: 31.8 | AX179: 931 | AY179: 31.2 | AZ179: 84
B180: 144 | C180: 1 | D180: 北海道 | E180: 1601 | F180: 日高町 | J180: 1.8 | K180: 111 | L180: 0.031 | M180: 288 | N180: 0.4075 | O180: 70 | P180: 0.667 | Q180: 28 | R180: 0.459 | S180: 1032 | T180: 0.1965 | U180: 1269 | V180: 0.0335 | W180: 1132 | X180: 0.0005 | Y180: 884 | Z180: 0.68 | AA180: 470 | AB180: 0.68 | AC180: 153 | AD180: 0.44 | AE180: 269 | AG180: 0.5194032485 | AH180: 1016 | AI180: 0.2857588695 | AJ180: 120 | AK180: 81.08516581 | AL180: 630 | AN180: 31.6 | AO180: 1358 | AP180: 29.8 | AQ180: 1384 | AS180: 30.3 | AT180: 226 | AU180: 29.1 | AV180: 474 | AW180: 31.1 | AX180: 476 | AY180: 30.2 | AZ180: 30
B181: 145 | C181: 1 | D181: 北海道 | E181: 1602 | F181: 平取町 | J181: 1.53 | K181: 649 | L181: 0.0195 | M181: 1182 | N181: 0.2395 | O181: 829 | P181: 0.5875 | Q181: 185 | R181: 0.4625 | S181: 993 | T181: 0.1905 | U181: 1423 | V181: 0.031 | W181: 1443 | X181: 0.0005 | Y181: 884 | Z181: 0.5525 | AA181: 1248 | AB181: 0.595 | AC181: 511 | AD181: 0.3825 | AE181: 420 | AG181: 0.4888549926 | AH181: 645 | AI181: 0.3275772675 | AJ181: 406 | AK181: 71.101714 | AL181: 1216 | AN181: 29.8 | AO181: 395 | AP181: 31.1 | AQ181: 1585 | AS181: 33 | AT181: 1649 | AU181: 32.1 | AV181: 1582 | AW181: 34.1 | AX181: 1582 | AY181: 33.2 | AZ181: 791
B182: 146 | C182: 1 | D182: 北海道 | E182: 1604 | F182: 新冠町 | J182: 1.46 | K182: 930 | L182: 0.0265 | M182: 550 | N182: 0.317 | O182: 311 | P182: 0.48 | Q182: 988 | R182: 0.4095 | S182: 1552 | T182: 0.1945 | U182: 1333 | V182: 0.035 | W182: 949 | X182: 0.0005 | Y182: 884 | Z182: 0.543255814 | AA182: 1289 | AB182: 0.5772093023 | AC182: 659 | AD182: 0.3395348837 | AE182: 601 | AG182: 0.5327639933 | AH182: 1148 | AI182: 0.3069416319 | AJ182: 229 | AK182: 70.32392717 | AL182: 1257 | AN182: 31.1 | AO182: 1151 | AP182: 28.5 | AQ182: 551 | AS182: 31.3 | AT182: 969 | AU182: 28.9 | AV182: 363 | AW182: 31.5 | AX182: 716 | AY182: 33.9 | AZ182: 1212
B183: 147 | C183: 1 | D183: 北海道 | E183: 1607 | F183: 浦河町 | J183: 1.33 | K183: 1371 | L183: 0.0165 | M183: 1438 | N183: 0.1775 | O183: 1353 | P183: 0.459 | Q183: 1157 | R183: 0.4585 | S183: 1041 | T183: 0.1925 | U183: 1386 | V183: 0.0295 | W183: 1578 | X183: 0.0005 | Y183: 884 | Z183: 0.6890361446 | AA183: 430 | AB183: 0.4807228916 | AC183: 1332 | AD183: 0.1602409639 | AE183: 1614 | AG183: 0.5084604264 | AH183: 885 | AI183: 0.3394675675 | AJ183: 563 | AK183: 67.64184337 | AL183: 1379 | AN183: 31.6 | AO183: 1358 | AP183: 28.6 | AQ183: 620 | AS183: 30.6 | AT183: 377 | AU183: 29.3 | AV183: 568 | AW183: 31.3 | AX183: 600 | AY183: 34.5 | AZ183: 1377
B184: 148 | C184: 1 | D184: 北海道 | E184: 1608 | F184: 様似町 | J184: 1.47 | K184: 885 | L184: 0.02 | M184: 1141 | N184: 0.313 | O184: 330 | P184: 0.495 | Q184: 846 | R184: 0.4245 | S184: 1427 | T184: 0.184 | U184: 1554 | V184: 0.028 | W184: 1665 | X184: 0.0005 | Y184: 884 | Z184: 0.67375 | AA184: 506 | AB184: 0.42875 | AC184: 1518 | AD184: 0.3675 | AE184: 468 | AG184: 0.5538463989 | AH184: 1351 | AI184: 0.3244930439 | AJ184: 378 | AK184: 81.63626288 | AL184: 609 | AN184: 31.2 | AO184: 1203 | AP184: 28.9 | AQ184: 837 | AS184: 30.7 | AT184: 444 | AU184: 27.5 | AV184: 68 | AW184: 34.1 | AX184: 1582 | AY184: … | AZ184: …
B185: 149 | C185: 1 | D185: 北海道 | E185: 1609 | F185: えりも町 | J185: 1.9 | K185: 52 | L185: 0.0245 | M185: 726 | N185: 0.502 | O185: 19 | P185: 0.6945 | Q185: 15 | R185: 0.455 | S185: 1086 | T185: 0.1915 | U185: 1403 | V185: 0.034 | W185: 1079 | X185: 0.0005 | Y185: 884 | Z185: 0.8444444444 | AA185: 56 | AB185: 0.5911111111 | AC185: 557 | AD185: 0.4644444444 | AE185: 225 | AG185: 0.4641560199 | AH185: 350 | AI185: 0.2507385904 | AJ185: 36 | AK185: 71.75083161 | AL185: 1172 | AN185: 30.5 | AO185: 779 | AP185: 26.5 | AQ185: 40 | AS185: 29.5 | AT185: 52 | AU185: 28.1 | AV185: 136 | AW185: 28.9 | AX185: 26 | AY185: 32.4 | AZ185: 366
B186: 150 | C186: 1 | D186: 北海道 | E186: 1610 | F186: 新ひだか町 | J186: 1.62 | K186: 383 | L186: 0.036 | M186: 170 | N186: 0.372 | O186: 142 | P186: 0.5225 | Q186: 603 | R186: 0.458 | S186: 1049 | T186: 0.198 | U186: 1216 | V186: 0.03 | W186: 1533 | X186: 0.001 | Y186: 270 | Z186: 0.612 | AA186: 909 | AB186: 0.693 | AC186: 125 | AD186: 0.315 | AE186: 742 | AG186: 0.4816831309 | AH186: 556 | AI186: 0.3174377609 | AJ186: 314 | AK186: 99.9227757 | AL186: 148 | AN186: 30.3 | AO186: 662 | AP186: 28.1 | AQ186: 323 | AS186: 30.9 | AT186: 613 | AU186: 30 | AV186: 1016 | AW186: 31 | AX186: 426 | AY186: 32.3 | AZ186: 320
B187: 151 | C187: 1 | D187: 北海道 | E187: 1631 | F187: 音更町 | J187: 1.52 | K187: 683 | L187: 0.0205 | M187: 1093 | N187: 0.2705 | O187: 587 | P187: 0.5345 | Q187: 500 | R187: 0.47 | S187: 917 | T187: 0.1935 | U187: 1361 | V187: 0.033 | W187: 1197 | X187: 0.0015 | Y187: 88 | Z187: 0.6185106383 | AA187: 871 | AB187: 0.6104255319 | AC187: 417 | AD187: 0.2910638298 | AE187: 884 | AG187: 0.3804289145 | AH187: 26 | AI187: 0.3076571551 | AJ187: 239 | AK187: 70.58606155 | AL187: 1244 | AN187: 30.3 | AO187: 662 | AP187: 28.6 | AQ187: 620 | AS187: 31.7 | AT187: 1297 | AU187: 30.1 | AV187: 1070 | AW187: 32.4 | AX187: 1272 | AY187: 33.8 | AZ187: 1158
B188: 152 | C188: 1 | D188: 北海道 | E188: 1632 | F188: 士幌町 | J188: 1.61 | K188: 408 | L188: 0.023 | M188: 868 | N188: 0.2775 | O188: 537 | P188: 0.5735 | Q188: 248 | R188: 0.4925 | S188: 672 | T188: 0.2085 | U188: 923 | V188: 0.03 | W188: 1533 | X188: 0.0005 | Y188: 884 | Z188: 0.6559259259 | AA188: 636 | AB188: 0.5068518519 | AC188: 1170 | AD188: 0.4472222222 | AE188: 252 | AG188: 0.4638825779 | AH188: 349 | AI188: 0.3319294954 | AJ188: 462 | AK188: 88.05560575 | AL188: 375 | AN188: 29.1 | AO188: 168 | AP188: 27.4 | AQ188: 116 | AS188: 31.2 | AT188: 881 | AU188: 31.1 | AV188: 1456 | AW188: 29.9 | AX188: 111 | AY188: 33 | AZ188: 671
B189: 153 | C189: 1 | D189: 北海道 | E189: 1633 | F189: 上士幌町 | J189: 1.61 | K189: 408 | L189: 0.025 | M189: 691 | N189: 0.3465 | O189: 211 | P189: 0.5935 | Q189: 167 | R189: 0.4085 | S189: 1558 | T189: 0.2015 | U189: 1101 | V189: 0.03 | W189: 1533 | X189: 0.0005 | Y189: 884 | Z189: 0.7397297297 | AA189: 201 | AB189: 0.4351351351 | AC189: 1502 | AD189: 0.4351351351 | AE189: 281 | AG189: 0.4524448675 | AH189: 245 | AI189: 0.3228338409 | AJ189: 364 | AK189: 66.49689609 | AL189: 1413 | AN189: 28.5 | AO189: 70 | AP189: 27.7 | AQ189: 177 | AS189: 29.3 | AT189: 41 | AU189: 29 | AV189: 416 | AW189: 29.3 | AX189: 50 | AY189: 29.2 | AZ189: 5
B190: 154 | C190: 1 | D190: 北海道 | E190: 1634 | F190: 鹿追町 | J190: 1.58 | K190: 481 | L190: 0.019 | M190: 1229 | N190: 0.308 | O190: 354 | P190: 0.583 | Q190: 206 | R190: 0.4385 | S190: 1277 | T190: 0.2 | U190: 1143 | V190: 0.0345 | W190: 1027 | X190: 0.0005 | Y190: 884 | Z190: 0.5144186047 | AA190: 1411 | AB190: 0.771627907 | AC190: 45 | AD190: 0.2939534884 | AE190: 863 | AG190: 0.4397770943 | AH190: 177 | AI190: 0.3222221681 | AJ190: 352 | AK190: 102.6992618 | AL190: 122 | AN190: 28.8 | AO190: 103 | AP190: 28.9 | AQ190: 837 | AS190: 30.4 | AT190: 264 | AU190: 29.4 | AV190: 635 | AW190: 29.7 | AX190: 85 | AY190: 33 | AZ190: 671
B191: 155 | C191: 1 | D191: 北海道 | E191: 1635 | F191: 新得町 | J191: 1.56 | K191: 537 | L191: 0.0215 | M191: 1000 | N191: 0.3135 | O191: 324 | P191: 0.5655 | Q191: 281 | R191: 0.442 | S191: 1238 | T191: 0.1855 | U191: 1523 | V191: 0.0355 | W191: 880 | X191: 0.0005 | Y191: 884 | Z191: 0.5348571429 | AA191: 1327 | AB191: 0.4457142857 | AC191: 1473 | AD191: 0.5794285714 | AE191: 94 | AG191: 0.4937319128 | AH191: 721 | AI191: 0.3986317956 | AJ191: 1306 | AK191: 85.69287799 | AL191: 431 | AN191: 25.9 | AO191: 3 | AP191: 27.8 | AQ191: 206 | AS191: 31.3 | AT191: 969 | AU191: 28.7 | AV191: 279 | AW191: 31.8 | AX191: 931 | AY191: 32.8 | AZ191: 567
B192: 156 | C192: 1 | D192: 北海道 | E192: 1636 | F192: 清水町 | J192: 1.53 | K192: 649 | L192: 0.0245 | M192: 726 | N192: 0.298 | O192: 406 | P192: 0.5315 | Q192: 529 | R192: 0.46 | S192: 1017 | T192: 0.1885 | U192: 1465 | V192: 0.031 | W192: 1443 | X192: 0.0005 | Y192: 884 | Z192: 0.4868181818 | AA192: 1494 | AB192: 0.4636363636 | AC192: 1417 | AD192: 0.5795454545 | AE192: 93 | AG192: 0.5023906137 | AH192: 828 | AI192: 0.3471426753 | AJ192: 663 | AK192: 79.9536429 | AL192: 696 | AN192: 31.2 | AO192: 1203 | AP192: 28.6 | AQ192: 620 | AS192: 31.6 | AT192: 1233 | AU192: 30.7 | AV192: 1344 | AW192: 31.2 | AX192: 534 | AY192: 32.7 | AZ192: 517
B193: 157 | C193: 1 | D193: 北海道 | E193: 1637 | F193: 芽室町 | J193: 1.63 | K193: 357 | L193: 0.0245 | M193: 726 | N193: 0.3495 | O193: 203 | P193: 0.5545 | Q193: 353 | R193: 0.473 | S193: 887 | T193: 0.2015 | U193: 1101 | V193: 0.03 | W193: 1533 | X193: 0.0005 | Y193: 884 | Z193: 0.6985714286 | AA193: 379 | AB193: 0.5765986395 | AC193: 661 | AD193: 0.354829932 | AE193: 521 | AG193: 0.3874525428 | AH193: 32 | AI193: 0.2566242983 | AJ193: 47 | AK193: 71.16121119 | AL193: 1213 | AN193: 28.9 | AO193: 128 | AP193: 29.2 | AQ193: 1071 | AS193: 31 | AT193: 692 | AU193: 29.3 | AV193: 568 | AW193: 31.6 | AX193: 782 | AY193: 32.3 | AZ193: 320
B194: 158 | C194: 1 | D194: 北海道 | E194: 1638 | F194: 中札内村 | J194: 1.45 | K194: 967 | L194: 0.0155 | M194: 1515 | N194: 0.178 | O194: 1346 | P194: 0.5475 | Q194: 407 | R194: 0.455 | S194: 1086 | T194: 0.224 | U194: 580 | V194: 0.0295 | W194: 1578 | X194: 0.0015 | Y194: 88 | Z194: 0.4691176471 | AA194: 1537 | AB194: 0.6397058824 | AC194: 276 | AD194: 0.3411764706 | AE194: 593 | AG194: 0.5240940868 | AH194: 1071 | AI194: 0.3699148448 | AJ194: 968 | AK194: 70.51763158 | AL194: 1246 | AN194: 30.4 | AO194: 715 | AP194: 31.3 | AQ194: 1596 | AS194: 30.7 | AT194: 444 | AU194: 31.2 | AV194: 1477 | AW194: 28.6 | AX194: 19 | AY194: 35 | AZ194: 1438
B195: 159 | C195: 1 | D195: 北海道 | E195: 1639 | F195: 更別村 | J195: 1.6 | K195: 429 | L195: 0.021 | M195: 1055 | N195: 0.413 | O195: 68 | P195: 0.489 | Q195: 895 | R195: 0.4475 | S195: 1178 | T195: 0.1965 | U195: 1269 | V195: 0.035 | W195: 949 | X195: 0.0005 | Y195: 884 | Z195: 0.6 | AA195: 993 | AB195: 0.5333333333 | AC195: 965 | AD195: 0.4666666667 | AE195: 217 | AG195: 0.458956001 | AH195: 300 | AI195: 0.2489580225 | AJ195: 33 | AK195: 86.8469473 | AL195: 406 | AN195: 31.1 | AO195: 1151 | AP195: 28.7 | AQ195: 694 | AS195: 31.8 | AT195: 1351 | AU195: 30.1 | AV195: 1070 | AW195: 31.6 | AX195: 782 | AY195: 34.2 | AZ195: 1300
B196: 160 | C196: 1 | D196: 北海道 | E196: 1641 | F196: 大樹町 | J196: 1.59 | K196: 451 | L196: 0.022 | M196: 952 | N196: 0.385 | O196: 116 | P196: 0.4905 | Q196: 885 | R196: 0.454 | S196: 1101 | T196: 0.206 | U196: 985 | V196: 0.034 | W196: 1079 | X196: 0.0005 | Y196: 884 | Z196: 0.636 | AA196: 764 | AB196: 0.5781818182 | AC196: 653 | AD196: 0.3758181818 | AE196: 433 | AG196: 0.4972462098 | AH196: 766 | AI196: 0.3128432881 | AJ196: 278 | AK196: 87.64721673 | AL196: 389 | AN196: 28.4 | AO196: 62 | AP196: 26.9 | AQ196: 62 | AS196: 31.4 | AT196: 1070 | AU196: 30.4 | AV196: 1230 | AW196: 31.2 | AX196: 534 | AY196: 32.8 | AZ196: 567
B197: 161 | C197: 1 | D197: 北海道 | E197: 1642 | F197: 広尾町 | J197: 1.44 | K197: 999 | L197: 0.0285 | M197: 423 | N197: 0.35 | O197: 201 | P197: 0.3925 | Q197: 1546 | R197: 0.447 | S197: 1182 | T197: 0.192 | U197: 1397 | V197: 0.032 | W197: 1327 | X197: 0.0005 | Y197: 884 | Z197: 0.4695652174 | AA197: 1535 | AB197: 0.6573913043 | AC197: 213 | AD197: 0.3130434783 | AE197: 748 | AG197: 0.4762581208 | AH197: 482 | AI197: 0.3053910705 | AJ197: 219 | AK197: 59.86060062 | AL197: 1571 | AN197: 30.6 | AO197: 850 | AP197: 27.8 | AQ197: 206 | AS197: 30.6 | AT197: 377 | AU197: 27.6 | AV197: 80 | AW197: 31.1 | AX197: 476 | AY197: 31.9 | AZ197: 202
B198: 162 | C198: 1 | D198: 北海道 | E198: 1643 | F198: 幕別町 | J198: 1.46 | K198: 930 | L198: 0.022 | M198: 952 | N198: 0.326 | O198: 279 | P198: 0.468 | Q198: 1087 | R198: 0.4215 | S198: 1448 | T198: 0.189 | U198: 1455 | V198: 0.0315 | W198: 1380 | X198: 0.0005 | Y198: 884 | Z198: 0.5175661376 | AA198: 1403 | AB198: 0.6334391534 | AC198: 311 | AD198: 0.308994709 | AE198: 771 | AG198: 0.41412702 | AH198: 85 | AI198: 0.2966352011 | AJ198: 167 | AK198: 64.77735415 | AL198: 1470 | AN198: 30.2 | AO198: 604 | AP198: 30.2 | AQ198: 1483 | AS198: 31.9 | AT198: 1408 | AU198: 30.8 | AV198: 1384 | AW198: 31.9 | AX198: 995 | AY198: 33.9 | AZ198: 1212
B199: 163 | C199: 1 | D199: 北海道 | E199: 1644 | F199: 池田町 | J199: 1.26 | K199: 1544 | L199: 0.022 | M199: 952 | N199: 0.2125 | O199: 1060 | P199: 0.4235 | Q199: 1388 | R199: 0.39 | S199: 1656 | T199: 0.1775 | U199: 1645 | V199: 0.0335 | W199: 1132 | X199: 0.0005 | Y199: 884 | Z199: 0.55125 | AA199: 1253 | AB199: 0.39375 | AC199: 1585 | AD199: 0.315 | AE199: 741 | AG199: 0.5425156252 | AH199: 1240 | AI199: 0.3823394581 | AJ199: 1125 | AK199: 77.15331398 | AL199: 878 | AN199: 26.9 | AO199: 10 | AP199: 26.1 | AQ199: 25 | AS199: 32.8 | AT199: 1630 | AU199: 30.1 | AV199: 1070 | AW199: 33.8 | AX199: 1564 | AY199: 36.9 | AZ199: 1497
B200: 164 | C200: 1 | D200: 北海道 | E200: 1645 | F200: 豊頃町 | J200: 1.3 | K200: 1451 | L200: 0.0225 | M200: 907 | N200: 0.201 | O200: 1156 | P200: 0.4815 | Q200: 975 | R200: 0.3825 | S200: 1680 | T200: 0.1795 | U200: 1623 | V200: 0.0305 | W200: 1491 | X200: 0.0005 | Y200: 884 | Z200: 0.6 | AA200: 992 | AB200: 0.4 | AC200: 1567 | AD200: 0.3 | AE200: 828 | AG200: 0.5293238395 | AH200: 1118 | AI200: 0.3913500377 | AJ200: 1218 | AK200: 84.78493899 | AL200: 474 | AN200: 32.7 | AO200: 1562 | AP200: 32.1 | AQ200: 1626 | AS200: 30 | AT200: 117 | AU200: 27.8 | AV200: 99 | AW200: … | AX200: … | AY200: … | AZ200: …
B201: 165 | C201: 1 | D201: 北海道 | E201: 1646 | F201: 本別町 | J201: 1.68 | K201: 260 | L201: 0.018 | M201: 1320 | N201: 0.343 | O201: 225 | P201: 0.627 | Q201: 77 | R201: 0.444 | S201: 1210 | T201: 0.2105 | U201: 878 | V201: 0.034 | W201: 1079 | X201: 0.0015 | Y201: 88 | Z201: 0.7863829787 | AA201: 113 | AB201: 0.5719148936 | AC201: 697 | AD201: 0.3217021277 | AE201: 700 | AG201: 0.5169849472 | AH201: 995 | AI201: 0.3059455722 | AJ201: 224 | AK201: 49.65456098 | AL201: 1685 | AN201: 29.3 | AO201: 213 | AP201: 27 | AQ201: 72 | AS201: 31.4 | AT201: 1070 | AU201: 30.4 | AV201: 1230 | AW201: 32 | AX201: 1064 | AY201: 32.2 | AZ201: 277
B202: 166 | C202: 1 | D202: 北海道 | E202: 1647 | F202: 足寄町 | J202: 1.59 | K202: 451 | L202: 0.0215 | M202: 1000 | N202: 0.304 | O202: 370 | P202: 0.553 | Q202: 362 | R202: 0.4775 | S202: 831 | T202: 0.198 | U202: 1216 | V202: 0.0355 | W202: 880 | X202: 0.0015 | Y202: 88 | Z202: 0.5840816327 | AA202: 1087 | AB202: 0.7787755102 | AC202: 37 | AD202: 0.2271428571 | AE202: 1333 | AG202: 0.4732418333 | AH202: 451 | AI202: 0.2697740984 | AJ202: 75 | AK202: 94.90861688 | AL202: 203 | AN202: 30.3 | AO202: 662 | AP202: 28.9 | AQ202: 837 | AS202: 30.6 | AT202: 377 | AU202: 28 | AV202: 119 | AW202: 31.4 | AX202: 651 | AY202: 36.2 | AZ202: 1492
B203: 167 | C203: 1 | D203: 北海道 | E203: 1648 | F203: 陸別町 | J203: 1.49 | K203: 800 | L203: 0.0205 | M203: 1093 | N203: 0.342 | O203: 227 | P203: 0.448 | Q203: 1250 | R203: 0.458 | S203: 1049 | T203: 0.1935 | U203: 1361 | V203: 0.0285 | W203: 1640 | X203: 0.0005 | Y203: 884 | Z203: 0.4966666667 | AA203: 1456 | AB203: 0.4966666667 | AC203: 1231 | AD203: 0.4966666667 | AE203: 173 | AG203: 0.5889473431 | AH203: 1555 | AI203: 0.3472661361 | AJ203: 667 | AK203: 60.79885087 | AL203: 1557 | AN203: 29.9 | AO203: 440 | AP203: 28.6 | AQ203: 620 | AS203: 30.7 | AT203: 444 | AU203: … | AV203: … | AW203: … | AX203: … | AY203: … | AZ203: …
B204: 168 | C204: 1 | D204: 北海道 | E204: 1649 | F204: 浦幌町 | J204: 1.69 | K204: 242 | L204: 0.027 | M204: 521 | N204: 0.4015 | O204: 84 | P204: 0.603 | Q204: 138 | R204: 0.431 | S204: 1353 | T204: 0.2035 | U204: 1048 | V204: 0.0285 | W204: 1640 | X204: 0.0005 | Y204: 884 | Z204: 0.4225 | AA204: 1616 | AB204: 0.5633333333 | AC204: 769 | AD204: 0.7041666667 | AE204: 38 | AG204: 0.5111205014 | AH204: 918 | AI204: 0.3381150721 | AJ204: 548 | AK204: 74.89983655 | AL204: 1000 | AN204: 31.1 | AO204: 1151 | AP204: 28.1 | AQ204: 323 | AS204: 31.8 | AT204: 1351 | AU204: 30.3 | AV204: 1195 | AW204: 31.2 | AX204: 534 | AY204: 33.8 | AZ204: 1158
... 1573 more rows

Sheet ５．働き方関係等指標ーその１ー
B5: 働き方関係等指標（働き方関係、仕事と育児の両立関係、経済関係、世帯関係）
C6: （東京都区部及び政令市）
B8: （概要・留意事項等）
B9: ○ 合計特殊出生率は、厚生労働省「人口動態統計(確定数)」（平成27年）。
B10: ○ 週60時間以上働く雇用者の割合、女性の有業率と育児をしている女性の有業率の差（25～44歳）、パート・アルバイト割合（25～39歳、男性）は、総務省「就業構造基本調査」（平成24年）。
B11: ○ ０～５歳人口に対する保育所等定員数の比は、厚生労働省「福祉行政報告例」（平成27年10月）、総務省「国勢調査」（平成27年）。０～５歳人口は年齢・国籍不詳按分後の０～５歳の各歳人口を足し上げ。保育所等定員は幼保連携型認定こども園の定員を含む。
B12: ○ 三世代同居率は、総務省「国勢調査」（平成27年）。一般世帯の世帯数に対する三世代同居世帯の世帯数の比率。
B13: ○ 順位については、指標ごとに昇順又は降順となっている。
B14: ○ 合計特殊出生率との相関係数、単純平均、標準偏差は表示されているデータから機械的に計算。変動係数は、標準偏差／単純平均で機械的に計算。
M16: 【実数値】 | U16: ・・・上位10位を網掛け
U17: ・・・下位10位を網掛け
J18: 合計特殊出生率 | M18: 働き方関係 | O18: 仕事と育児の両立関係 | S18: 経済関係 | U18: 世帯関係
M19: 週60時間以上 | O19: 女性の有業率と | Q19: 0～5歳人口に | S19: パート・アルバイト | U19: 三世代同居率
J20: （H27） | M20: 働く雇用者の割合 | O20: 育児をしている | Q20: 対する保育所等 | S20: 割合（25～39歳、 | U20: （H27）
M21: （H24） | O21: 女性の有業率 | Q21: 定員数の比 | S21: 男性、H24）
B22: 一連番号 | C22: 都道府県 | E22: 市区町村等 | K22: （順位） | N22: （順位） | O22: の差（25～44歳、H24） | P22: （順位） | Q22: （H27） | R22: （順位） | T22: （順位） | V22: （順位）
C23: 番号 | D23: 名称 | E23: 番号 | F23: 名称 | K23: （降順） | M23: （％） | N23: （昇順） | O23: （％ポイント） | P23: （降順） | Q23: （％） | R23: （降順） | S23: （％） | T23: （昇順） | U23: （％） | V23: （降順）
B24: （合計特殊出生率との相関係数） | J24: =CORREL('５．働き方関係等指標ーその１ー'!$J$29:$J$49,'５．働き方関係等指標ーその１ー'!J$29:J$49) -> 1 | M24: =CORREL('５．働き方関係等指標ーその１ー'!$J$29:$J$49,'５．働き方関係等指標ーその１ー'!M$29:M$49) -> -0.6348343262 | O24: =CORREL('５．働き方関係等指標ーその１ー'!$J$29:$J$49,'５．働き方関係等指標ーその１ー'!O$29:O$49) -> 0.4150808063 | Q24: =CORREL('５．働き方関係等指標ーその１ー'!$J$29:$J$49,'５．働き方関係等指標ーその１ー'!Q$29:Q$49) -> 0.01562203153 | S24: =CORREL('５．働き方関係等指標ーその１ー'!$J$29:$J$49,'５．働き方関係等指標ーその１ー'!S$29:S$49) -> -0.4659074946 | U24: =CORREL('５．働き方関係等指標ーその１ー'!$J$29:$J$49,'５．働き方関係等指標ーその１ー'!U$29:U$49) -> 0.4146432522
B25: （単純平均） | J25: =AVERAGE(J29:J49) -> 1.397619048 | M25: =AVERAGE(M29:M49) -> 0.1061629122 | O25: =AVERAGE(O29:O49) -> -0.2039818488 | Q25: =AVERAGE(Q29:Q49) -> 0.3501964216 | S25: =AVERAGE(S29:S49) -> 0.07095126235 | U25: =AVERAGE(U29:U49) -> 0.03812071799
B26: （標準偏差） | J26: =STDEVP(J29:J49) -> 0.120115213 | M26: =STDEVP(M29:M49) -> 0.01061668772 | O26: =STDEVP(O29:O49) -> 0.03597345999 | Q26: =STDEVP(Q29:Q49) -> 0.07301058077 | S26: =STDEVP(S29:S49) -> 0.02227505781 | U26: =STDEVP(U29:U49) -> 0.0220529736
B27: （変動係数） | J27: =J26/J25 -> 0.08594274185 | M27: =M26/M25 -> 0.1000037348 | O27: =O26/O25 -> -0.1763561817 | Q27: =Q26/Q25 -> 0.2084846568 | S27: =S26/S25 -> 0.3139487174 | U27: =U26/U25 -> 0.5785036266
B28: 全 国 | J28: 1.45 | M28: 0.096 | O28: -0.1764864672 | Q28: 0.4059121242 | S28: 0.06749708358 | U28: 0.05668333283
B29: 1 | C29: 1 | D29: 北海道 | E29: 1100 | F29: 札幌市 | J29: 1.18 | K29: 21 | M29: 0.1252587992 | N29: 20 | O29: -0.2488075908 | P29: 20 | Q29: 0.2918403184 | R29: 15 | S29: 0.06309148265 | T29: 10 | U29: 0.02186405046 | V29: 17
B30: 2 | C30: 4 | D30: 宮城県 | E30: 4100 | F30: 仙台市 | J30: 1.3 | K30: 17 | M30: 0.1075203252 | N30: 12 | O30: -0.2051172102 | P30: 11 | Q30: 0.2792084524 | R30: 18 | S30: 0.0710553814 | T30: 15 | U30: 0.04165721706 | V30: 6
B31: 3 | C31: 11 | D31: 埼玉県 | E31: 11100 | F31: さいたま市 | J31: 1.42 | K31: 9 | M31: 0.1106411775 | N31: 15 | O31: -0.218949077 | P31: 15 | Q31: 0.2296805943 | R31: 20 | S31: 0.0992970123 | T31: 18 | U31: 0.03348783575 | V31: 10
B32: 4 | C32: 12 | D32: 千葉県 | E32: 12100 | F32: 千葉市 | J32: 1.37 | K32: 12 | M32: 0.1133244799 | N32: 17 | O32: -0.1969238645 | P32: 9 | Q32: 0.2871641791 | R32: 16 | S32: 0.05790108565 | T32: 7 | U32: 0.02893526571 | V32: 13
B33: 5 | C33: 13 | D33: 東京都 | E33: 13100 | F33: 東京都区部 | J33: 1.21 | K33: 20 | M33: 0.1208893912 | N33: 19 | O33: -0.2150253866 | P33: 14 | R33: … | S33: 0.1035827187 | T33: 19 | U33: 0.01594231802 | V33: 21
B34: 6 | C34: 14 | D34: 神奈川県 | E34: 14100 | F34: 横浜市 | J34: 1.38 | K34: 11 | M34: 0.108512889 | N34: 14 | O34: -0.2418683129 | P34: 19 | Q34: 0.3011857273 | R34: 14 | S34: 0.07030129125 | T34: 11 | U34: 0.02345083919 | V34: 16
B35: 7 | C35: 14 | D35: 神奈川県 | E35: 14130 | F35: 川崎市 | J35: 1.43 | K35: 7 | M35: 0.1082359488 | N35: 13 | O35: -0.2830725687 | P35: 21 | Q35: 0.2845270972 | R35: 17 | S35: 0.07079646018 | T35: 13 | U35: 0.02104260704 | V35: 18
B36: 8 | C36: 14 | D36: 神奈川県 | E36: 14150 | F36: 相模原市 | J36: 1.33 | K36: 15 | M36: 0.1004086398 | N36: 7 | O36: -0.2352914785 | P36: 18 | Q36: 0.311241907 | R36: 13 | S36: 0.04233576642 | T36: 2 | U36: 0.03433676604 | V36: 8
B37: 9 | C37: 15 | D37: 新潟県 | E37: 15100 | F37: 新潟市 | J37: 1.37 | K37: 12 | M37: 0.08738938053 | N37: 1 | O37: -0.1298349574 | P37: 2 | Q37: 0.556860123 | R37: 1 | S37: 0.05172413793 | T37: 5 | U37: 0.09541223818 | V37: 1
B38: 10 | C38: 22 | D38: 静岡県 | E38: 22100 | F38: 静岡市 | J38: 1.43 | K38: 7 | M38: 0.09216441875 | N38: 3 | O38: -0.1952976089 | P38: 8 | Q38: 0.3816974722 | R38: 6 | S38: 0.06072106262 | T38: 8 | U38: 0.07710782632 | V38: 3
B39: 11 | C39: 22 | D39: 静岡県 | E39: 22130 | F39: 浜松市 | J39: 1.61 | K39: 1 | M39: 0.09343775317 | N39: 4 | O39: -0.1899121372 | P39: 7 | Q39: 0.2667286018 | R39: 19 | S39: 0.04196816208 | T39: 1 | U39: 0.08960860201 | V39: 2
B40: 12 | C40: 23 | D40: 愛知県 | E40: 23100 | F40: 名古屋市 | J40: 1.42 | K40: 9 | M40: 0.09641398094 | N40: 5 | O40: -0.2075800551 | P40: 13 | Q40: 0.3621644391 | R40: 10 | S40: 0.06078147612 | T40: 9 | U40: 0.03461538098 | V40: 7
B41: 13 | C41: 26 | D41: 京都府 | E41: 26100 | F41: 京都市 | J41: 1.24 | K41: 19 | M41: 0.1179298189 | N41: 18 | O41: -0.1882282256 | P41: 6 | Q41: 0.43320273 | R41: 3 | S41: 0.1237928007 | T41: 21 | U41: 0.03015137377 | V41: 12
B42: 14 | C42: 27 | D42: 大阪府 | E42: 27100 | F42: 大阪市 | J42: 1.26 | K42: 18 | M42: 0.112616002 | N42: 16 | O42: -0.2059358424 | P42: 12 | Q42: 0.396329834 | R42: 4 | S42: 0.09358752166 | T42: 17 | U42: 0.01922785421 | V42: 20
B43: 15 | C43: 27 | D43: 大阪府 | E43: 27140 | F43: 堺市 | J43: 1.54 | K43: 4 | M43: 0.1008993817 | N43: 8 | O43: -0.1881747825 | P43: 5 | Q43: 0.3636944333 | R43: 9 | S43: 0.05111821086 | T43: 4 | U43: 0.03334590915 | V43: 11
B44: 16 | C44: 28 | D44: 兵庫県 | E44: 28100 | F44: 神戸市 | J44: 1.37 | K44: 12 | M44: 0.09820744599 | N44: 6 | O44: -0.2269013169 | P44: 16 | Q44: 0.3263264117 | R44: 12 | S44: 0.05248868778 | T44: 6 | U44: 0.0236239473 | V44: 15
B45: 17 | C45: 33 | D45: 岡山県 | E45: 33100 | F45: 岡山市 | J45: 1.49 | K45: 6 | M45: 0.1048951049 | N45: 9 | O45: -0.1970513996 | P45: 10 | Q45: 0.3688218961 | R45: 8 | S45: 0.07082630691 | T45: 14 | U45: 0.0495357942 | V45: 4
B46: 18 | C46: 34 | D46: 広島県 | E46: 34100 | F46: 広島市 | J46: 1.52 | K46: 5 | M46: 0.1064030132 | N46: 11 | O46: -0.1863204584 | P46: 4 | Q46: 0.3942476592 | R46: 5 | S46: 0.04870466321 | T46: 3 | U46: 0.02678228376 | V46: 14
B47: 19 | C47: 40 | D47: 福岡県 | E47: 40100 | F47: 北九州市 | J47: 1.59 | K47: 2 | M47: 0.09214763438 | N47: 2 | O47: -0.1743009092 | P47: 3 | Q47: 0.357290107 | R47: 11 | S47: 0.07057057057 | T47: 12 | U47: 0.03352649785 | V47: 9
B48: 20 | C48: 40 | D48: 福岡県 | E48: 40130 | F48: 福岡市 | J48: 1.33 | K48: 15 | M48: 0.1260321599 | N48: 21 | O48: -0.2306796955 | P48: 17 | Q48: 0.3717976657 | R48: 7 | S48: 0.1100628931 | T48: 20 | U48: 0.01975585999 | V48: 19
B49: 21 | C49: 43 | D49: 熊本県 | E49: 43100 | F49: 熊本市 | J49: 1.56 | K49: 3 | M49: 0.1060934117 | N49: 10 | O49: -0.1183459467 | P49: 1 | Q49: 0.4399187827 | R49: 2 | S49: 0.0752688172 | T49: 16 | U49: 0.04712461079 | V49: 5
AX54: ・・・下位200位を網掛け

Sheet ５．働き方関係等指標ーその１ー（通勤等時間）
B2: 働き方関係等指標（働き方関係）
C4: （10大都市圏）
B6: （概要・留意事項等）
B7: ○ 総務省「社会生活基本調査」（平成23年）から作成。
B8: ○ 10大都市圏の定義は総務省「国勢調査」（平成17年）による。
B9: ○ 順位については、指標ごとに昇順又は降順となっている。また、その下に表示している数値は順位の対象となる大都市圏の数（10）である。
B10: ○ 単純平均、標準偏差は、表示されている数値から機械的に計算。変動係数は、標準偏差／単純平均で機械的に計算。
L13: ・・・上位5位を網掛け
L14: ・・・下位5位を網掛け
J15: 働き方関係
J16: 一日当たりの 通勤・通学時間 （H23）
K19: （順位）
B20: 一連番号 | K20: （昇順）
J21: （分） | K21: 10
D22: （合計特殊出生率との相関係数） | J22: …
D23: （単純平均） | J23: =AVERAGE(J27:J1767) -> 70.9
D24: （標準偏差） | J24: =STDEVP(J27:J1767) -> 11.282287
D25: （変動係数） | J25: =J24/J23 -> 0.1591295769
D26: 全国 | J26: 75
B27: 1 | D27: 札幌大都市圏 | J27: 67 | K27: 3
B28: 2 | D28: 仙台大都市圏 | J28: 71 | K28: 7
B29: 3 | D29: 関東大都市圏 | J29: 97 | K29: 10
B30: 4 | D30: 新潟大都市圏 | J30: 54 | K30: 1
B31: 5 | D31: 静岡・浜松大都市圏 | J31: 58 | K31: 2
B32: 6 | D32: 中京大都市圏 | J32: 74 | K32: 8
B33: 7 | D33: 近畿大都市圏 | J33: 81 | K33: 9
B34: 8 | D34: 岡山大都市圏 | J34: 69 | K34: 5
B35: 9 | D35: 広島大都市圏 | J35: 70 | K35: 6
B36: 10 | D36: 北九州・福岡大都市圏 | J36: 68 | K36: 4

Sheet ６．性比、移動
B6: 性比（女性人口100人当たりの男性人口） 、 1995年の10～14歳人口を１としたときの2015年の30～34歳人口
C8: （市町村別データ：1718市町村＋23特別区（平成29年1月1日現在の境域））
B10: （概要・留意事項等）
B11: ○ 総務省「国勢調査」（平成7年および平成27年）より作成。
B12: ただし、「国勢調査」（平成7年）については既知の男女別・国籍別・年齢別人口の分布に応じて年齢・国籍不詳人口を按分し、
B13: 「国勢調査」（平成27年）については、総務省統計局による、年齢・国籍不詳を按分した人口を用いた。
B14: ○ 順位については、指標ごとに昇順又は降順となっている。また、その下に表示している数値は順位の対象となる市町村の数（1718市町村＋23特別区から指標値のない「・・・ 」を除いたもの）である。
B15: ○ 合計特殊出生率との相関係数、単純平均、標準偏差は、表示されている数値から機械的に計算。変動係数は、標準偏差／単純平均で機械的に計算。 | AX15: ・・・下位200位を網掛け
B16: ○ 1995年の甲府市及び富士河口湖町の人口には、旧・上九一色村の人口は含まない。
T17: ・・・上位200位を網掛け
T18: ・・・下位200位を網掛け
J19: 女性人口100人当たりの男性人口（平成27年） | U19: 1995年の10～14歳人口を１としたときの
J20: 25～29歳 | L20: 30～34歳 | N20: 35～39歳 | P20: 40～44歳 | R20: 45～49歳 | U20: 2015年の30～34歳人口
U21: 男性 | W21: 女性
K22: （順位） | M22: （順位） | O22: （順位） | Q22: （順位） | S22: （順位） | V22: （順位） | X22: （順位）
B23: 一連番号 | C23: 都道府県 | E23: 市区町村等 | K23: （降順） | M23: （降順） | O23: （降順） | Q23: （降順） | S23: （降順） | V23: （降順） | X23: （降順）
C24: 番号 | D24: 名称 | E24: 番号 | F24: 名称 | K24: 1734 | M24: 1734 | O24: 1735 | Q24: 1735 | S24: 1735 | V24: 1741 | X24: 1741
D25: （合計特殊出生率との相関係数） | J25: =CORREL('４．少子化関係指標'!$J$37:$J$1777,'６．性比、移動'!J$30:J$1770) -> 0.06934403036 | L25: =CORREL('４．少子化関係指標'!$J$37:$J$1777,'６．性比、移動'!L$30:L$1770) -> -0.01368956495 | N25: =CORREL('４．少子化関係指標'!$J$37:$J$1777,'６．性比、移動'!N$30:N$1770) -> -0.00644826472 | P25: =CORREL('４．少子化関係指標'!$J$37:$J$1777,'６．性比、移動'!P$30:P$1770) -> 0.008118693938 | R25: =CORREL('４．少子化関係指標'!$J$37:$J$1777,'６．性比、移動'!R$30:R$1770) -> 0.01050609832 | U25: =CORREL('４．少子化関係指標'!$J$37:$J$1777,'６．性比、移動'!U$30:U$1770) -> -0.1524651197 | W25: =CORREL('４．少子化関係指標'!$J$37:$J$1777,'６．性比、移動'!W$30:W$1770) -> -0.1467210888
D26: （単純平均） | J26: =AVERAGE(J30:J1770) -> 111.4897807 | L26: =AVERAGE(L30:L1770) -> 108.0213813 | N26: =AVERAGE(N30:N1770) -> 108.6764283 | P26: =AVERAGE(P30:P1770) -> 109.1903246 | R26: =AVERAGE(R30:R1770) -> 105.0038848 | U26: =AVERAGE(U30:U1770) -> 0.7449294608 | W26: =AVERAGE(W30:W1770) -> 0.7366874536
D27: （標準偏差） | J27: =STDEVP(J30:J1770) -> 24.9623317 | L27: =STDEVP(L30:L1770) -> 18.62125937 | N27: =STDEVP(N30:N1770) -> 56.76871491 | P27: =STDEVP(P30:P1770) -> 106.3539732 | R27: =STDEVP(R30:R1770) -> 67.0597502 | U27: =STDEVP(U30:U1770) -> 0.3657031985 | W27: =STDEVP(W30:W1770) -> 0.3730244219
D28: （変動係数） | J28: =J27/J26 -> 0.2238979353 | L28: =L27/L26 -> 0.1723849403 | N28: =N27/N26 -> 0.5223645625 | P28: =P27/P26 -> 0.9740237843 | R28: =R27/R26 -> 0.6386406591 | U28: =U27/U26 -> 0.4909232588 | W28: =W27/W26 -> 0.5063537054
D29: 全国 | J29: 104.1918775 | L29: 102.9116856 | N29: 102.8811824 | P29: 102.6497858 | R29: 101.8038427 | U29: 0.9789001933 | W29: 0.997798873
B30: 1 | C30: 1 | D30: 北海道 | E30: 1100 | F30: 札幌市 | J30: 90.90360162 | K30: =IF(J30="… ","… ",RANK(J30,J$30:J$1770,0)) -> 1599 | L30: 91.59561894 | M30: =IF(L30="… ","… ",RANK(L30,L$30:L$1770,0)) -> 1607 | N30: 93.30771513 | O30: =IF(N30="… ","… ",RANK(N30,N$30:N$1770,0)) -> 1588 | P30: 93.04474768 | Q30: =IF(P30="… ","… ",RANK(P30,P$30:P$1770,0)) -> 1584 | R30: 89.87142662 | S30: =IF(R30="… ","… ",RANK(R30,R$30:R$1770,0)) -> 1559 | U30: 1.10236984 | V30: =IF(U30="… ","… ",RANK(U30,U$30:U$1770,0)) -> 181 | W30: 1.25868901 | X30: =IF(W30="… ","… ",RANK(W30,W$30:W$1770,0)) -> 116
B31: 2 | C31: 1 | D31: 北海道 | E31: 1202 | F31: 函館市 | J31: 96.55662052 | K31: 1413 | L31: 94.57730388 | M31: =IF(L31="… ","… ",RANK(L31,L$30:L$1770,0)) -> 1496 | N31: 93.11336083 | O31: =IF(N31="… ","… ",RANK(N31,N$30:N$1770,0)) -> 1597 | P31: 92.06464312 | Q31: =IF(P31="… ","… ",RANK(P31,P$30:P$1770,0)) -> 1614 | R31: 87.57155438 | S31: =IF(R31="… ","… ",RANK(R31,R$30:R$1770,0)) -> 1634 | U31: 0.6297573648 | V31: =IF(U31="… ","… ",RANK(U31,U$30:U$1770,0)) -> 984 | W31: 0.729894011 | X31: =IF(W31="… ","… ",RANK(W31,W$30:W$1770,0)) -> 705
B32: 3 | C32: 1 | D32: 北海道 | E32: 1203 | F32: 小樽市 | J32: 97.02409069 | K32: 1392 | L32: 97.89169078 | M32: =IF(L32="… ","… ",RANK(L32,L$30:L$1770,0)) -> 1344 | N32: 94.88958991 | O32: =IF(N32="… ","… ",RANK(N32,N$30:N$1770,0)) -> 1529 | P32: 92.74611399 | Q32: =IF(P32="… ","… ",RANK(P32,P$30:P$1770,0)) -> 1595 | R32: 88.88605659 | S32: =IF(R32="… ","… ",RANK(R32,R$30:R$1770,0)) -> 1593 | U32: 0.552110049 | V32: =IF(U32="… ","… ",RANK(U32,U$30:U$1770,0)) -> 1243 | W32: 0.5956660921 | X32: =IF(W32="… ","… ",RANK(W32,W$30:W$1770,0)) -> 1054
B33: 4 | C33: 1 | D33: 北海道 | E33: 1204 | F33: 旭川市 | J33: 93.2110594 | K33: 1541 | L33: 93.84131265 | M33: =IF(L33="… ","… ",RANK(L33,L$30:L$1770,0)) -> 1526 | N33: 95.45497318 | O33: =IF(N33="… ","… ",RANK(N33,N$30:N$1770,0)) -> 1512 | P33: 92.55069888 | Q33: =IF(P33="… ","… ",RANK(P33,P$30:P$1770,0)) -> 1607 | R33: 87.31146966 | S33: =IF(R33="… ","… ",RANK(R33,R$30:R$1770,0)) -> 1636 | U33: 0.745489169 | V33: =IF(U33="… ","… ",RANK(U33,U$30:U$1770,0)) -> 669 | W33: 0.8457328954 | X33: =IF(W33="… ","… ",RANK(W33,W$30:W$1770,0)) -> 485
B34: 5 | C34: 1 | D34: 北海道 | E34: 1205 | F34: 室蘭市 | J34: 125.6642512 | K34: 256 | L34: 109.1560102 | M34: =IF(L34="… ","… ",RANK(L34,L$30:L$1770,0)) -> 625 | N34: 103.8007864 | O34: =IF(N34="… ","… ",RANK(N34,N$30:N$1770,0)) -> 981 | P34: 108.9965398 | Q34: =IF(P34="… ","… ",RANK(P34,P$30:P$1770,0)) -> 509 | R34: 97.07916987 | S34: =IF(R34="… ","… ",RANK(R34,R$30:R$1770,0)) -> 1144 | U34: 0.6931270677 | V34: =IF(U34="… ","… ",RANK(U34,U$30:U$1770,0)) -> 778 | W34: 0.6778849372 | X34: =IF(W34="… ","… ",RANK(W34,W$30:W$1770,0)) -> 820
B35: 6 | C35: 1 | D35: 北海道 | E35: 1206 | F35: 釧路市 | J35: 97.16752091 | K35: 1385 | L35: 95.10379061 | M35: =IF(L35="… ","… ",RANK(L35,L$30:L$1770,0)) -> 1475 | N35: 99.41154138 | O35: =IF(N35="… ","… ",RANK(N35,N$30:N$1770,0)) -> 1302 | P35: 98.73579773 | Q35: =IF(P35="… ","… ",RANK(P35,P$30:P$1770,0)) -> 1288 | R35: 95.85830102 | S35: =IF(R35="… ","… ",RANK(R35,R$30:R$1770,0)) -> 1225 | U35: 0.6352613533 | V35: =IF(U35="… ","… ",RANK(U35,U$30:U$1770,0)) -> 968 | W35: 0.6910900603 | X35: =IF(W35="… ","… ",RANK(W35,W$30:W$1770,0)) -> 792
B36: 7 | C36: 1 | D36: 北海道 | E36: 1207 | F36: 帯広市 | J36: 102.4926354 | K36: 1126 | L36: 102.9760666 | M36: =IF(L36="… ","… ",RANK(L36,L$30:L$1770,0)) -> 1048 | N36: 98.42491498 | O36: =IF(N36="… ","… ",RANK(N36,N$30:N$1770,0)) -> 1363 | P36: 101.4215764 | Q36: =IF(P36="… ","… ",RANK(P36,P$30:P$1770,0)) -> 1085 | R36: 95.61297035 | S36: =IF(R36="… ","… ",RANK(R36,R$30:R$1770,0)) -> 1246 | U36: 0.9122475655 | V36: =IF(U36="… ","… ",RANK(U36,U$30:U$1770,0)) -> 364 | W36: 0.9126258408 | X36: =IF(W36="… ","… ",RANK(W36,W$30:W$1770,0)) -> 382
B37: 8 | C37: 1 | D37: 北海道 | E37: 1208 | F37: 北見市 | J37: 105.6786146 | K37: 938 | L37: 96.89722043 | M37: =IF(L37="… ","… ",RANK(L37,L$30:L$1770,0)) -> 1397 | N37: 102.2310757 | O37: =IF(N37="… ","… ",RANK(N37,N$30:N$1770,0)) -> 1106 | P37: 101.9025522 | Q37: =IF(P37="… ","… ",RANK(P37,P$30:P$1770,0)) -> 1049 | R37: 97.35602094 | S37: =IF(R37="… ","… ",RANK(R37,R$30:R$1770,0)) -> 1126 | U37: 0.7549309911 | V37: =IF(U37="… ","… ",RANK(U37,U$30:U$1770,0)) -> 649 | W37: 0.7680143152 | X37: =IF(W37="… ","… ",RANK(W37,W$30:W$1770,0)) -> 616
B38: 9 | C38: 1 | D38: 北海道 | E38: 1209 | F38: 夕張市 | J38: 100.8547009 | K38: 1215 | L38: 105.4263566 | M38: =IF(L38="… ","… ",RANK(L38,L$30:L$1770,0)) -> 857 | N38: 115.1162791 | O38: =IF(N38="… ","… ",RANK(N38,N$30:N$1770,0)) -> 266 | P38: 101.4150943 | Q38: =IF(P38="… ","… ",RANK(P38,P$30:P$1770,0)) -> 1086 | R38: 126.0204082 | S38: =IF(R38="… ","… ",RANK(R38,R$30:R$1770,0)) -> 77 | U38: 0.3408521303 | V38: =IF(U38="… ","… ",RANK(U38,U$30:U$1770,0)) -> 1692 | W38: 0.3449197861 | X38: =IF(W38="… ","… ",RANK(W38,W$30:W$1770,0)) -> 1657
B39: 10 | C39: 1 | D39: 北海道 | E39: 1210 | F39: 岩見沢市 | J39: 98.91566265 | K39: 1322 | L39: 97.67932489 | M39: =IF(L39="… ","… ",RANK(L39,L$30:L$1770,0)) -> 1351 | N39: 100.7079646 | O39: =IF(N39="… ","… ",RANK(N39,N$30:N$1770,0)) -> 1222 | P39: 94.08384043 | Q39: =IF(P39="… ","… ",RANK(P39,P$30:P$1770,0)) -> 1545 | R39: 89.50757576 | S39: =IF(R39="… ","… ",RANK(R39,R$30:R$1770,0)) -> 1575 | U39: 0.6320819113 | V39: =IF(U39="… ","… ",RANK(U39,U$30:U$1770,0)) -> 980 | W39: 0.6747330961 | X39: =IF(W39="… ","… ",RANK(W39,W$30:W$1770,0)) -> 831
B40: 11 | C40: 1 | D40: 北海道 | E40: 1211 | F40: 網走市 | J40: 117.4479167 | K40: 435 | L40: 112.1121121 | M40: =IF(L40="… ","… ",RANK(L40,L$30:L$1770,0)) -> 464 | N40: 122.5776965 | O40: =IF(N40="… ","… ",RANK(N40,N$30:N$1770,0)) -> 139 | P40: 125.0788644 | Q40: =IF(P40="… ","… ",RANK(P40,P$30:P$1770,0)) -> 94 | R40: 125.2534562 | S40: =IF(R40="… ","… ",RANK(R40,R$30:R$1770,0)) -> 81 | U40: 0.7865168539 | V40: =IF(U40="… ","… ",RANK(U40,U$30:U$1770,0)) -> 591 | W40: 0.7573919636 | X40: =IF(W40="… ","… ",RANK(W40,W$30:W$1770,0)) -> 634
B41: 12 | C41: 1 | D41: 北海道 | E41: 1212 | F41: 留萌市 | J41: 109.382716 | K41: 749 | L41: 109.962406 | M41: =IF(L41="… ","… ",RANK(L41,L$30:L$1770,0)) -> 583 | N41: 98.60681115 | O41: =IF(N41="… ","… ",RANK(N41,N$30:N$1770,0)) -> 1346 | P41: 114.9059334 | Q41: =IF(P41="… ","… ",RANK(P41,P$30:P$1770,0)) -> 236 | R41: 108.4425036 | S41: =IF(R41="… ","… ",RANK(R41,R$30:R$1770,0)) -> 414 | U41: 0.6106471816 | V41: =IF(U41="… ","… ",RANK(U41,U$30:U$1770,0)) -> 1046 | W41: 0.5490196078 | X41: =IF(W41="… ","… ",RANK(W41,W$30:W$1770,0)) -> 1209
B42: 13 | C42: 1 | D42: 北海道 | E42: 1213 | F42: 苫小牧市 | J42: 112.7738125 | K42: 593 | L42: 110.1888359 | M42: =IF(L42="… ","… ",RANK(L42,L$30:L$1770,0)) -> 567 | N42: 101.1127972 | O42: =IF(N42="… ","… ",RANK(N42,N$30:N$1770,0)) -> 1186 | P42: 109.5669533 | Q42: =IF(P42="… ","… ",RANK(P42,P$30:P$1770,0)) -> 467 | R42: 99.78217462 | S42: =IF(R42="… ","… ",RANK(R42,R$30:R$1770,0)) -> 955 | U42: 0.9177125672 | V42: =IF(U42="… ","… ",RANK(U42,U$30:U$1770,0)) -> 356 | W42: 0.8505005962 | X42: =IF(W42="… ","… ",RANK(W42,W$30:W$1770,0)) -> 477
B43: 14 | C43: 1 | D43: 北海道 | E43: 1214 | F43: 稚内市 | J43: 108.6075949 | K43: 787 | L43: 117.1821306 | M43: =IF(L43="… ","… ",RANK(L43,L$30:L$1770,0)) -> 282 | N43: 105.3308824 | O43: =IF(N43="… ","… ",RANK(N43,N$30:N$1770,0)) -> 856 | P43: 121.7073171 | Q43: =IF(P43="… ","… ",RANK(P43,P$30:P$1770,0)) -> 126 | R43: 107.2773973 | S43: =IF(R43="… ","… ",RANK(R43,R$30:R$1770,0)) -> 487 | U43: 0.6861167002 | V43: =IF(U43="… ","… ",RANK(U43,U$30:U$1770,0)) -> 799 | W43: 0.6372262774 | X43: =IF(W43="… ","… ",RANK(W43,W$30:W$1770,0)) -> 933
B44: 15 | C44: 1 | D44: 北海道 | E44: 1215 | F44: 美唄市 | J44: 130 | K44: 198 | L44: 104.954955 | M44: =IF(L44="… ","… ",RANK(L44,L$30:L$1770,0)) -> 892 | N44: 101.8083183 | O44: =IF(N44="… ","… ",RANK(N44,N$30:N$1770,0)) -> 1134 | P44: 108.030303 | Q44: =IF(P44="… ","… ",RANK(P44,P$30:P$1770,0)) -> 574 | R44: 95.34206696 | S44: =IF(R44="… ","… ",RANK(R44,R$30:R$1770,0)) -> 1258 | U44: 0.5120879121 | V44: =IF(U44="… ","… ",RANK(U44,U$30:U$1770,0)) -> 1376 | W44: 0.5217391304 | X44: =IF(W44="… ","… ",RANK(W44,W$30:W$1770,0)) -> 1293
B45: 16 | C45: 1 | D45: 北海道 | E45: 1216 | F45: 芦別市 | J45: 98.02955665 | K45: 1356 | L45: 106.1674009 | M45: =IF(L45="… ","… ",RANK(L45,L$30:L$1770,0)) -> 797 | N45: 103.257329 | O45: =IF(N45="… ","… ",RANK(N45,N$30:N$1770,0)) -> 1027 | P45: 95.42168675 | Q45: =IF(P45="… ","… ",RANK(P45,P$30:P$1770,0)) -> 1484 | R45: 85.64593301 | S45: =IF(R45="… ","… ",RANK(R45,R$30:R$1770,0)) -> 1671 | U45: 0.3957307061 | V45: =IF(U45="… ","… ",RANK(U45,U$30:U$1770,0)) -> 1634 | W45: 0.4235074627 | X45: =IF(W45="… ","… ",RANK(W45,W$30:W$1770,0)) -> 1527
B46: 17 | C46: 1 | D46: 北海道 | E46: 1217 | F46: 江別市 | J46: 99.45833333 | K46: 1292 | L46: 99.58847737 | M46: =IF(L46="… ","… ",RANK(L46,L$30:L$1770,0)) -> 1269 | N46: 93.49253731 | O46: =IF(N46="… ","… ",RANK(N46,N$30:N$1770,0)) -> 1579 | P46: 95.2517299 | Q46: =IF(P46="… ","… ",RANK(P46,P$30:P$1770,0)) -> 1492 | R46: 87.0099197 | S46: =IF(R46="… ","… ",RANK(R46,R$30:R$1770,0)) -> 1641 | U46: 0.7018191405 | V46: =IF(U46="… ","… ",RANK(U46,U$30:U$1770,0)) -> 758 | W46: 0.7404432133 | X46: =IF(W46="… ","… ",RANK(W46,W$30:W$1770,0)) -> 675
B47: 18 | C47: 1 | D47: 北海道 | E47: 1218 | F47: 赤平市 | J47: 119.53125 | K47: 375 | L47: 103.2786885 | M47: =IF(L47="… ","… ",RANK(L47,L$30:L$1770,0)) -> 1023 | N47: 83.26848249 | O47: =IF(N47="… ","… ",RANK(N47,N$30:N$1770,0)) -> 1714 | P47: 96.49122807 | Q47: =IF(P47="… ","… ",RANK(P47,P$30:P$1770,0)) -> 1436 | R47: 88.65979381 | S47: =IF(R47="… ","… ",RANK(R47,R$30:R$1770,0)) -> 1601 | U47: 0.4587378641 | V47: =IF(U47="… ","… ",RANK(U47,U$30:U$1770,0)) -> 1523 | W47: 0.4336492891 | X47: =IF(W47="… ","… ",RANK(W47,W$30:W$1770,0)) -> 1505
B48: 19 | C48: 1 | D48: 北海道 | E48: 1219 | F48: 紋別市 | J48: 101.417004 | K48: 1189 | L48: 104.8128342 | M48: =IF(L48="… ","… ",RANK(L48,L$30:L$1770,0)) -> 901 | N48: 103.3690658 | O48: =IF(N48="… ","… ",RANK(N48,N$30:N$1770,0)) -> 1019 | P48: 108.8023088 | Q48: =IF(P48="… ","… ",RANK(P48,P$30:P$1770,0)) -> 522 | R48: 100.4267425 | S48: =IF(R48="… ","… ",RANK(R48,R$30:R$1770,0)) -> 908 | U48: 0.6454445664 | V48: =IF(U48="… ","… ",RANK(U48,U$30:U$1770,0)) -> 943 | W48: 0.6891891892 | X48: =IF(W48="… ","… ",RANK(W48,W$30:W$1770,0)) -> 796
B49: 20 | C49: 1 | D49: 北海道 | E49: 1220 | F49: 士別市 | J49: 122.2972973 | K49: 313 | L49: 108.0487805 | M49: =IF(L49="… ","… ",RANK(L49,L$30:L$1770,0)) -> 686 | N49: 108.1300813 | O49: =IF(N49="… ","… ",RANK(N49,N$30:N$1770,0)) -> 640 | P49: 96.1722488 | Q49: =IF(P49="… ","… ",RANK(P49,P$30:P$1770,0)) -> 1449 | R49: 92.26973684 | S49: =IF(R49="… ","… ",RANK(R49,R$30:R$1770,0)) -> 1444 | U49: 0.5409035409 | V49: =IF(U49="… ","… ",RANK(U49,U$30:U$1770,0)) -> 1280 | W49: 0.5510752688 | X49: =IF(W49="… ","… ",RANK(W49,W$30:W$1770,0)) -> 1202
B50: 21 | C50: 1 | D50: 北海道 | E50: 1221 | F50: 名寄市 | J50: 129.7342193 | K50: 202 | L50: 115.3266332 | M50: =IF(L50="… ","… ",RANK(L50,L$30:L$1770,0)) -> 328 | N50: 114.6788991 | O50: =IF(N50="… ","… ",RANK(N50,N$30:N$1770,0)) -> 285 | P50: 107.300885 | Q50: =IF(P50="… ","… ",RANK(P50,P$30:P$1770,0)) -> 629 | R50: 107.376058 | S50: =IF(R50="… ","… ",RANK(R50,R$30:R$1770,0)) -> 480 | U50: 0.9290892223 | V50: =IF(U50="… ","… ",RANK(U50,U$30:U$1770,0)) -> 327 | W50: 0.7999082328 | X50: =IF(W50="… ","… ",RANK(W50,W$30:W$1770,0)) -> 560
B51: 22 | C51: 1 | D51: 北海道 | E51: 1222 | F51: 三笠市 | J51: 115.4411765 | K51: 488 | L51: 117.2932331 | M51: =IF(L51="… ","… ",RANK(L51,L$30:L$1770,0)) -> 279 | N51: 120.2247191 | O51: =IF(N51="… ","… ",RANK(N51,N$30:N$1770,0)) -> 164 | P51: 113.0044843 | Q51: =IF(P51="… ","… ",RANK(P51,P$30:P$1770,0)) -> 301 | R51: 99.08256881 | S51: =IF(R51="… ","… ",RANK(R51,R$30:R$1770,0)) -> 1005 | U51: 0.4984025559 | V51: =IF(U51="… ","… ",RANK(U51,U$30:U$1770,0)) -> 1423 | W51: 0.3993993994 | X51: =IF(W51="… ","… ",RANK(W51,W$30:W$1770,0)) -> 1580
B52: 23 | C52: 1 | D52: 北海道 | E52: 1223 | F52: 根室市 | J52: 124.8648649 | K52: 269 | L52: 107.1082391 | M52: =IF(L52="… ","… ",RANK(L52,L$30:L$1770,0)) -> 734 | N52: 108.5164835 | O52: =IF(N52="… ","… ",RANK(N52,N$30:N$1770,0)) -> 608 | P52: 109.0592334 | Q52: =IF(P52="… ","… ",RANK(P52,P$30:P$1770,0)) -> 506 | R52: 102.2988506 | S52: =IF(R52="… ","… ",RANK(R52,R$30:R$1770,0)) -> 786 | U52: 0.5994575045 | V52: =IF(U52="… ","… ",RANK(U52,U$30:U$1770,0)) -> 1085 | W52: 0.546337158 | X52: =IF(W52="… ","… ",RANK(W52,W$30:W$1770,0)) -> 1217
B53: 24 | C53: 1 | D53: 北海道 | E53: 1224 | F53: 千歳市 | J53: 118.2989691 | K53: 405 | L53: 113.2616487 | M53: =IF(L53="… ","… ",RANK(L53,L$30:L$1770,0)) -> 406 | N53: 103.8848921 | O53: =IF(N53="… ","… ",RANK(N53,N$30:N$1770,0)) -> 972 | P53: 109.7574124 | Q53: =IF(P53="… ","… ",RANK(P53,P$30:P$1770,0)) -> 456 | R53: 112.6630608 | S53: =IF(R53="… ","… ",RANK(R53,R$30:R$1770,0)) -> 229 | U53: 1.289132698 | V53: =IF(U53="… ","… ",RANK(U53,U$30:U$1770,0)) -> 103 | W53: 1.201147337 | X53: =IF(W53="… ","… ",RANK(W53,W$30:W$1770,0)) -> 134
B54: 25 | C54: 1 | D54: 北海道 | E54: 1225 | F54: 滝川市 | J54: 98.64698647 | K54: 1333 | L54: 101.6649324 | M54: =IF(L54="… ","… ",RANK(L54,L$30:L$1770,0)) -> 1119 | N54: 98.32073887 | O54: =IF(N54="… ","… ",RANK(N54,N$30:N$1770,0)) -> 1368 | P54: 95.3038674 | Q54: =IF(P54="… ","… ",RANK(P54,P$30:P$1770,0)) -> 1490 | R54: 104.4988161 | S54: =IF(R54="… ","… ",RANK(R54,R$30:R$1770,0)) -> 641 | U54: 0.6798886569 | V54: =IF(U54="… ","… ",RANK(U54,U$30:U$1770,0)) -> 821 | W54: 0.7182361734 | X54: =IF(W54="… ","… ",RANK(W54,W$30:W$1770,0)) -> 726
B55: 26 | C55: 1 | D55: 北海道 | E55: 1226 | F55: 砂川市 | J55: 100.5952381 | K55: 1237 | L55: 109.6866097 | M55: =IF(L55="… ","… ",RANK(L55,L$30:L$1770,0)) -> 598 | N55: 97.19222462 | O55: =IF(N55="… ","… ",RANK(N55,N$30:N$1770,0)) -> 1432 | P55: 98.54809437 | Q55: =IF(P55="… ","… ",RANK(P55,P$30:P$1770,0)) -> 1299 | R55: 85.47486034 | S55: =IF(R55="… ","… ",RANK(R55,R$30:R$1770,0)) -> 1677 | U55: 0.6129315837 | V55: =IF(U55="… ","… ",RANK(U55,U$30:U$1770,0)) -> 1039 | W55: 0.5695413462 | X55: =IF(W55="… ","… ",RANK(W55,W$30:W$1770,0)) -> 1129
B56: 27 | C56: 1 | D56: 北海道 | E56: 1227 | F56: 歌志内市 | J56: 110.3448276 | K56: 687 | L56: 115 | M56: =IF(L56="… ","… ",RANK(L56,L$30:L$1770,0)) -> 343 | N56: 122.0588235 | O56: =IF(N56="… ","… ",RANK(N56,N$30:N$1770,0)) -> 144 | P56: 121.5189873 | Q56: =IF(P56="… ","… ",RANK(P56,P$30:P$1770,0)) -> 128 | R56: 95.23809524 | S56: =IF(R56="… ","… ",RANK(R56,R$30:R$1770,0)) -> 1261 | U56: 0.3791208791 | V56: =IF(U56="… ","… ",RANK(U56,U$30:U$1770,0)) -> 1650 | W56: 0.3 | X56: =IF(W56="… ","… ",RANK(W56,W$30:W$1770,0)) -> 1695
B57: 28 | C57: 1 | D57: 北海道 | E57: 1228 | F57: 深川市 | J57: 109.6573209 | K57: 731 | L57: 100.6993007 | M57: =IF(L57="… ","… ",RANK(L57,L$30:L$1770,0)) -> 1187 | N57: 100.7407407 | O57: =IF(N57="… ","… ",RANK(N57,N$30:N$1770,0)) -> 1219 | P57: 92.01877934 | Q57: =IF(P57="… ","… ",RANK(P57,P$30:P$1770,0)) -> 1617 | R57: 85.73466476 | S57: =IF(R57="… ","… ",RANK(R57,R$30:R$1770,0)) -> 1669 | U57: 0.5901639344 | V57: =IF(U57="… ","… ",RANK(U57,U$30:U$1770,0)) -> 1107 | W57: 0.5667107001 | X57: =IF(W57="… ","… ",RANK(W57,W$30:W$1770,0)) -> 1143
B58: 29 | C58: 1 | D58: 北海道 | E58: 1229 | F58: 富良野市 | J58: 100.2053388 | K58: 1248 | L58: 94.47322971 | M58: =IF(L58="… ","… ",RANK(L58,L$30:L$1770,0)) -> 1503 | N58: 95.52669553 | O58: =IF(N58="… ","… ",RANK(N58,N$30:N$1770,0)) -> 1508 | P58: 105.2496799 | Q58: =IF(P58="… ","… ",RANK(P58,P$30:P$1770,0)) -> 784 | R58: 98.96907216 | S58: =IF(R58="… ","… ",RANK(R58,R$30:R$1770,0)) -> 1016 | U58: 0.676980198 | V58: =IF(U58="… ","… ",RANK(U58,U$30:U$1770,0)) -> 836 | W58: 0.7679045093 | X58: =IF(W58="… ","… ",RANK(W58,W$30:W$1770,0)) -> 617
B59: 30 | C59: 1 | D59: 北海道 | E59: 1230 | F59: 登別市 | J59: 107.127193 | K59: 855 | L59: 100.8189263 | M59: =IF(L59="… ","… ",RANK(L59,L$30:L$1770,0)) -> 1173 | N59: 105.8571429 | O59: =IF(N59="… ","… ",RANK(N59,N$30:N$1770,0)) -> 812 | P59: 100.4091175 | Q59: =IF(P59="… ","… ",RANK(P59,P$30:P$1770,0)) -> 1169 | R59: 91.40419948 | S59: =IF(R59="… ","… ",RANK(R59,R$30:R$1770,0)) -> 1481 | U59: 0.6916354557 | V59: =IF(U59="… ","… ",RANK(U59,U$30:U$1770,0)) -> 782 | W59: 0.680495356 | X59: =IF(W59="… ","… ",RANK(W59,W$30:W$1770,0)) -> 815
B60: 31 | C60: 1 | D60: 北海道 | E60: 1231 | F60: 恵庭市 | J60: 106.8571429 | K60: 870 | L60: 95.83983359 | M60: =IF(L60="… ","… ",RANK(L60,L$30:L$1770,0)) -> 1450 | N60: 101.3608428 | O60: =IF(N60="… ","… ",RANK(N60,N$30:N$1770,0)) -> 1169 | P60: 98.45976126 | Q60: =IF(P60="… ","… ",RANK(P60,P$30:P$1770,0)) -> 1306 | R60: 98.80901744 | S60: =IF(R60="… ","… ",RANK(R60,R$30:R$1770,0)) -> 1027 | U60: 0.8663474218 | V60: =IF(U60="… ","… ",RANK(U60,U$30:U$1770,0)) -> 432 | W60: 0.9543154011 | X60: =IF(W60="… ","… ",RANK(W60,W$30:W$1770,0)) -> 329
B61: 32 | C61: 1 | D61: 北海道 | E61: 1233 | F61: 伊達市 | J61: 100.8347245 | K61: 1219 | L61: 90.36295369 | M61: =IF(L61="… ","… ",RANK(L61,L$30:L$1770,0)) -> 1632 | N61: 94.18040737 | O61: =IF(N61="… ","… ",RANK(N61,N$30:N$1770,0)) -> 1563 | P61: 97.45830024 | Q61: =IF(P61="… ","… ",RANK(P61,P$30:P$1770,0)) -> 1377 | R61: 89.90990991 | S61: =IF(R61="… ","… ",RANK(R61,R$30:R$1770,0)) -> 1557 | U61: 0.6289198606 | V61: =IF(U61="… ","… ",RANK(U61,U$30:U$1770,0)) -> 988 | W61: 0.7243880326 | X61: =IF(W61="… ","… ",RANK(W61,W$30:W$1770,0)) -> 714
B62: 33 | C62: 1 | D62: 北海道 | E62: 1234 | F62: 北広島市 | J62: 99.1008991 | K62: 1314 | L62: 93.33838002 | M62: =IF(L62="… ","… ",RANK(L62,L$30:L$1770,0)) -> 1540 | N62: 96.58263305 | O62: =IF(N62="… ","… ",RANK(N62,N$30:N$1770,0)) -> 1458 | P62: 95.84426947 | Q62: =IF(P62="… ","… ",RANK(P62,P$30:P$1770,0)) -> 1461 | R62: 96.34387352 | S62: =IF(R62="… ","… ",RANK(R62,R$30:R$1770,0)) -> 1190 | U62: 0.600019713 | V62: =IF(U62="… ","… ",RANK(U62,U$30:U$1770,0)) -> 1078 | W62: 0.6575134389 | X62: =IF(W62="… ","… ",RANK(W62,W$30:W$1770,0)) -> 874
B63: 34 | C63: 1 | D63: 北海道 | E63: 1235 | F63: 石狩市 | J63: 98.80358923 | K63: 1328 | L63: 98.75821768 | M63: =IF(L63="… ","… ",RANK(L63,L$30:L$1770,0)) -> 1309 | N63: 96.65121072 | O63: =IF(N63="… ","… ",RANK(N63,N$30:N$1770,0)) -> 1452 | P63: 100.3294118 | Q63: =IF(P63="… ","… ",RANK(P63,P$30:P$1770,0)) -> 1174 | R63: 105.3364269 | S63: =IF(R63="… ","… ",RANK(R63,R$30:R$1770,0)) -> 592 | U63: 0.6021926139 | V63: =IF(U63="… ","… ",RANK(U63,U$30:U$1770,0)) -> 1069 | W63: 0.6355617456 | X63: =IF(W63="… ","… ",RANK(W63,W$30:W$1770,0)) -> 938
B64: 35 | C64: 1 | D64: 北海道 | E64: 1236 | F64: 北斗市 | J64: 92.22689076 | K64: 1567 | L64: 99.05579399 | M64: =IF(L64="… ","… ",RANK(L64,L$30:L$1770,0)) -> 1297 | N64: 96.97368421 | O64: =IF(N64="… ","… ",RANK(N64,N$30:N$1770,0)) -> 1438 | P64: 94.40993789 | Q64: =IF(P64="… ","… ",RANK(P64,P$30:P$1770,0)) -> 1532 | R64: 89.73623853 | S64: =IF(R64="… ","… ",RANK(R64,R$30:R$1770,0)) -> 1563 | U64: 0.7855684139 | V64: =IF(U64="… ","… ",RANK(U64,U$30:U$1770,0)) -> 595 | W64: 0.8852583587 | X64: =IF(W64="… ","… ",RANK(W64,W$30:W$1770,0)) -> 415
B65: 36 | C65: 1 | D65: 北海道 | E65: 1303 | F65: 当別町 | J65: 114.7157191 | K65: 518 | L65: 107.4324324 | M65: =IF(L65="… ","… ",RANK(L65,L$30:L$1770,0)) -> 715 | N65: 109.5930233 | O65: =IF(N65="… ","… ",RANK(N65,N$30:N$1770,0)) -> 538 | P65: 97.91271347 | Q65: =IF(P65="… ","… ",RANK(P65,P$30:P$1770,0)) -> 1349 | R65: 87.17948718 | S65: =IF(R65="… ","… ",RANK(R65,R$30:R$1770,0)) -> 1637 | U65: 0.5196078431 | V65: =IF(U65="… ","… ",RANK(U65,U$30:U$1770,0)) -> 1349 | W65: 0.5202108963 | X65: =IF(W65="… ","… ",RANK(W65,W$30:W$1770,0)) -> 1299
B66: 37 | C66: 1 | D66: 北海道 | E66: 1304 | F66: 新篠津村 | J66: 90.14084507 | K66: 1615 | L66: 100 | M66: =IF(L66="… ","… ",RANK(L66,L$30:L$1770,0)) -> 1230 | N66: 90.42553191 | O66: =IF(N66="… ","… ",RANK(N66,N$30:N$1770,0)) -> 1660 | P66: 111.7021277 | Q66: =IF(P66="… ","… ",RANK(P66,P$30:P$1770,0)) -> 357 | R66: 119.7530864 | S66: =IF(R66="… ","… ",RANK(R66,R$30:R$1770,0)) -> 129 | U66: 0.5377358491 | V66: =IF(U66="… ","… ",RANK(U66,U$30:U$1770,0)) -> 1289 | W66: 0.4596774194 | X66: =IF(W66="… ","… ",RANK(W66,W$30:W$1770,0)) -> 1447
B67: 38 | C67: 1 | D67: 北海道 | E67: 1331 | F67: 松前町 | J67: 97.6744186 | K67: 1368 | L67: 87.93103448 | M67: =IF(L67="… ","… ",RANK(L67,L$30:L$1770,0)) -> 1668 | N67: 94.61077844 | O67: =IF(N67="… ","… ",RANK(N67,N$30:N$1770,0)) -> 1543 | P67: 106.7010309 | Q67: =IF(P67="… ","… ",RANK(P67,P$30:P$1770,0)) -> 679 | R67: 105.8201058 | S67: =IF(R67="… ","… ",RANK(R67,R$30:R$1770,0)) -> 559 | U67: 0.2487804878 | V67: =IF(U67="… ","… ",RANK(U67,U$30:U$1770,0)) -> 1726 | W67: 0.2822384428 | X67: =IF(W67="… ","… ",RANK(W67,W$30:W$1770,0)) -> 1708
B68: 39 | C68: 1 | D68: 北海道 | E68: 1332 | F68: 福島町 | J68: 100 | K68: 1253 | L68: 122.0588235 | M68: =IF(L68="… ","… ",RANK(L68,L$30:L$1770,0)) -> 188 | N68: 128.3950617 | O68: =IF(N68="… ","… ",RANK(N68,N$30:N$1770,0)) -> 100 | P68: 103.6697248 | Q68: =IF(P68="… ","… ",RANK(P68,P$30:P$1770,0)) -> 903 | R68: 107.9646018 | S68: =IF(R68="… ","… ",RANK(R68,R$30:R$1770,0)) -> 439 | U68: 0.3254901961 | V68: =IF(U68="… ","… ",RANK(U68,U$30:U$1770,0)) -> 1706 | W68: 0.2798353909 | X68: =IF(W68="… ","… ",RANK(W68,W$30:W$1770,0)) -> 1712
B69: 40 | C69: 1 | D69: 北海道 | E69: 1333 | F69: 知内町 | J69: 183.3333333 | K69: 28 | L69: 131.9148936 | M69: =IF(L69="… ","… ",RANK(L69,L$30:L$1770,0)) -> 100 | N69: 101.6666667 | O69: =IF(N69="… ","… ",RANK(N69,N$30:N$1770,0)) -> 1147 | P69: 97.77777778 | Q69: =IF(P69="… ","… ",RANK(P69,P$30:P$1770,0)) -> 1356 | R69: 85.10638298 | S69: =IF(R69="… ","… ",RANK(R69,R$30:R$1770,0)) -> 1686 | U69: 0.5610859729 | V69: =IF(U69="… ","… ",RANK(U69,U$30:U$1770,0)) -> 1206 | W69: 0.3821138211 | X69: =IF(W69="… ","… ",RANK(W69,W$30:W$1770,0)) -> 1612
B70: 41 | C70: 1 | D70: 北海道 | E70: 1334 | F70: 木古内町 | J70: 178.5714286 | K70: 31 | L70: 112.5 | M70: =IF(L70="… ","… ",RANK(L70,L$30:L$1770,0)) -> 444 | N70: 94 | O70: =IF(N70="… ","… ",RANK(N70,N$30:N$1770,0)) -> 1566 | P70: 125.6637168 | Q70: =IF(P70="… ","… ",RANK(P70,P$30:P$1770,0)) -> 90 | R70: 113.3333333 | S70: =IF(R70="… ","… ",RANK(R70,R$30:R$1770,0)) -> 215 | U70: 0.338028169 | V70: =IF(U70="… ","… ",RANK(U70,U$30:U$1770,0)) -> 1696 | W70: 0.347826087 | X70: =IF(W70="… ","… ",RANK(W70,W$30:W$1770,0)) -> 1653
B71: 42 | C71: 1 | D71: 北海道 | E71: 1337 | F71: 七飯町 | J71: 90.58823529 | K71: 1608 | L71: 96.11801242 | M71: =IF(L71="… ","… ",RANK(L71,L$30:L$1770,0)) -> 1428 | N71: 91.05199516 | O71: =IF(N71="… ","… ",RANK(N71,N$30:N$1770,0)) -> 1646 | P71: 86.89275894 | Q71: =IF(P71="… ","… ",RANK(P71,P$30:P$1770,0)) -> 1704 | R71: 85.62367865 | S71: =IF(R71="… ","… ",RANK(R71,R$30:R$1770,0)) -> 1672 | U71: 0.6214859438 | V71: =IF(U71="… ","… ",RANK(U71,U$30:U$1770,0)) -> 1009 | W71: 0.7293318233 | X71: =IF(W71="… ","… ",RANK(W71,W$30:W$1770,0)) -> 706
B72: 43 | C72: 1 | D72: 北海道 | E72: 1343 | F72: 鹿部町 | J72: 63.71681416 | K72: 1731 | L72: 111.1111111 | M72: =IF(L72="… ","… ",RANK(L72,L$30:L$1770,0)) -> 510 | N72: 105.4347826 | O72: =IF(N72="… ","… ",RANK(N72,N$30:N$1770,0)) -> 847 | P72: 100.8849558 | Q72: =IF(P72="… ","… ",RANK(P72,P$30:P$1770,0)) -> 1135 | R72: 95.3125 | S72: =IF(R72="… ","… ",RANK(R72,R$30:R$1770,0)) -> 1260 | U72: 0.5102040816 | V72: =IF(U72="… ","… ",RANK(U72,U$30:U$1770,0)) -> 1382 | W72: 0.612244898 | X72: =IF(W72="… ","… ",RANK(W72,W$30:W$1770,0)) -> 1014
B73: 44 | C73: 1 | D73: 北海道 | E73: 1345 | F73: 森町 | J73: 96.78456592 | K73: 1400 | L73: 87.74509804 | M73: =IF(L73="… ","… ",RANK(L73,L$30:L$1770,0)) -> 1673 | N73: 94.10430839 | O73: =IF(N73="… ","… ",RANK(N73,N$30:N$1770,0)) -> 1564 | P73: 107.6923077 | Q73: =IF(P73="… ","… ",RANK(P73,P$30:P$1770,0)) -> 599 | R73: 94.23459245 | S73: =IF(R73="… ","… ",RANK(R73,R$30:R$1770,0)) -> 1330 | U73: 0.5399698341 | V73: =IF(U73="… ","… ",RANK(U73,U$30:U$1770,0)) -> 1282 | W73: 0.5930232558 | X73: =IF(W73="… ","… ",RANK(W73,W$30:W$1770,0)) -> 1065
B74: 45 | C74: 1 | D74: 北海道 | E74: 1346 | F74: 八雲町 | J74: 126.5486726 | K74: 238 | L74: 113.0536131 | M74: =IF(L74="… ","… ",RANK(L74,L$30:L$1770,0)) -> 420 | N74: 112.5984252 | O74: =IF(N74="… ","… ",RANK(N74,N$30:N$1770,0)) -> 369 | P74: 109.7426471 | Q74: =IF(P74="… ","… ",RANK(P74,P$30:P$1770,0)) -> 457 | R74: 107.9681275 | S74: =IF(R74="… ","… ",RANK(R74,R$30:R$1770,0)) -> 438 | U74: 0.6241956242 | V74: =IF(U74="… ","… ",RANK(U74,U$30:U$1770,0)) -> 1004 | W74: 0.5674603175 | X74: =IF(W74="… ","… ",RANK(W74,W$30:W$1770,0)) -> 1140
B75: 46 | C75: 1 | D75: 北海道 | E75: 1347 | F75: 長万部町 | J75: 104.1237113 | K75: 1027 | L75: 93.10344828 | M75: =IF(L75="… ","… ",RANK(L75,L$30:L$1770,0)) -> 1550 | N75: 121.6666667 | O75: =IF(N75="… ","… ",RANK(N75,N$30:N$1770,0)) -> 151 | P75: 119.8529412 | Q75: =IF(P75="… ","… ",RANK(P75,P$30:P$1770,0)) -> 145 | R75: 111.6666667 | S75: =IF(R75="… ","… ",RANK(R75,R$30:R$1770,0)) -> 258 | U75: 0.4137931034 | V75: =IF(U75="… ","… ",RANK(U75,U$30:U$1770,0)) -> 1608 | W75: 0.5 | X75: =IF(W75="… ","… ",RANK(W75,W$30:W$1770,0)) -> 1349
B76: 47 | C76: 1 | D76: 北海道 | E76: 1361 | F76: 江差町 | J76: 107.2847682 | K76: 842 | L76: 128.2051282 | M76: =IF(L76="… ","… ",RANK(L76,L$30:L$1770,0)) -> 122 | N76: 111.9469027 | O76: =IF(N76="… ","… ",RANK(N76,N$30:N$1770,0)) -> 392 | P76: 107.2916667 | Q76: =IF(P76="… ","… ",RANK(P76,P$30:P$1770,0)) -> 630 | R76: 104.048583 | S76: =IF(R76="… ","… ",RANK(R76,R$30:R$1770,0)) -> 674 | U76: 0.5934718101 | V76: =IF(U76="… ","… ",RANK(U76,U$30:U$1770,0)) -> 1099 | W76: 0.4444444444 | X76: =IF(W76="… ","… ",RANK(W76,W$30:W$1770,0)) -> 1482
B77: 48 | C77: 1 | D77: 北海道 | E77: 1362 | F77: 上ノ国町 | J77: 101.5384615 | K77: 1181 | L77: 86.66666667 | M77: =IF(L77="… ","… ",RANK(L77,L$30:L$1770,0)) -> 1687 | N77: 85.40145985 | O77: =IF(N77="… ","… ",RANK(N77,N$30:N$1770,0)) -> 1706 | P77: 89.7260274 | Q77: =IF(P77="… ","… ",RANK(P77,P$30:P$1770,0)) -> 1668 | R77: 97.84172662 | S77: =IF(R77="… ","… ",RANK(R77,R$30:R$1770,0)) -> 1093 | U77: 0.3451327434 | V77: =IF(U77="… ","… ",RANK(U77,U$30:U$1770,0)) -> 1686 | W77: 0.3964757709 | X77: =IF(W77="… ","… ",RANK(W77,W$30:W$1770,0)) -> 1585
B78: 49 | C78: 1 | D78: 北海道 | E78: 1363 | F78: 厚沢部町 | J78: 120 | K78: 362 | L78: 95.40229885 | M78: =IF(L78="… ","… ",RANK(L78,L$30:L$1770,0)) -> 1462 | N78: 134.8837209 | O78: =IF(N78="… ","… ",RANK(N78,N$30:N$1770,0)) -> 70 | P78: 74.10071942 | Q78: =IF(P78="… ","… ",RANK(P78,P$30:P$1770,0)) -> 1729 | R78: 116.3043478 | S78: =IF(R78="… ","… ",RANK(R78,R$30:R$1770,0)) -> 153 | U78: 0.5 | V78: =IF(U78="… ","… ",RANK(U78,U$30:U$1770,0)) -> 1415 | W78: 0.5918367347 | X78: =IF(W78="… ","… ",RANK(W78,W$30:W$1770,0)) -> 1069
B79: 50 | C79: 1 | D79: 北海道 | E79: 1364 | F79: 乙部町 | J79: 94.33962264 | K79: 1500 | L79: 105.8823529 | M79: =IF(L79="… ","… ",RANK(L79,L$30:L$1770,0)) -> 818 | N79: 111.4942529 | O79: =IF(N79="… ","… ",RANK(N79,N$30:N$1770,0)) -> 424 | P79: 99.15254237 | Q79: =IF(P79="… ","… ",RANK(P79,P$30:P$1770,0)) -> 1265 | R79: 93.63636364 | S79: =IF(R79="… ","… ",RANK(R79,R$30:R$1770,0)) -> 1367 | U79: 0.4444444444 | V79: =IF(U79="… ","… ",RANK(U79,U$30:U$1770,0)) -> 1556 | W79: 0.345177665 | X79: =IF(W79="… ","… ",RANK(W79,W$30:W$1770,0)) -> 1656
B80: 51 | C80: 1 | D80: 北海道 | E80: 1367 | F80: 奥尻町 | J80: 403.5714286 | K80: 2 | L80: 153.8461538 | M80: =IF(L80="… ","… ",RANK(L80,L$30:L$1770,0)) -> 41 | N80: 113.0434783 | O80: =IF(N80="… ","… ",RANK(N80,N$30:N$1770,0)) -> 344 | P80: 166 | Q80: =IF(P80="… ","… ",RANK(P80,P$30:P$1770,0)) -> 22 | R80: 160.7142857 | S80: =IF(R80="… ","… ",RANK(R80,R$30:R$1770,0)) -> 26 | U80: 0.5797101449 | V80: =IF(U80="… ","… ",RANK(U80,U$30:U$1770,0)) -> 1139 | W80: 0.3851851852 | X80: =IF(W80="… ","… ",RANK(W80,W$30:W$1770,0)) -> 1607
B81: 52 | C81: 1 | D81: 北海道 | E81: 1370 | F81: 今金町 | J81: 117.5824176 | K81: 433 | L81: 112.5 | M81: =IF(L81="… ","… ",RANK(L81,L$30:L$1770,0)) -> 444 | N81: 111.6438356 | O81: =IF(N81="… ","… ",RANK(N81,N$30:N$1770,0)) -> 414 | P81: 116.1490683 | Q81: =IF(P81="… ","… ",RANK(P81,P$30:P$1770,0)) -> 204 | R81: 101.4492754 | S81: =IF(R81="… ","… ",RANK(R81,R$30:R$1770,0)) -> 832 | U81: 0.5142857143 | V81: =IF(U81="… ","… ",RANK(U81,U$30:U$1770,0)) -> 1370 | W81: 0.4132841328 | X81: =IF(W81="… ","… ",RANK(W81,W$30:W$1770,0)) -> 1549
B82: 53 | C82: 1 | D82: 北海道 | E82: 1371 | F82: せたな町 | J82: 126.5306122 | K82: 239 | L82: 103.6585366 | M82: =IF(L82="… ","… ",RANK(L82,L$30:L$1770,0)) -> 992 | N82: 106.557377 | O82: =IF(N82="… ","… ",RANK(N82,N$30:N$1770,0)) -> 763 | P82: 100.8298755 | Q82: =IF(P82="… ","… ",RANK(P82,P$30:P$1770,0)) -> 1138 | R82: 99.53488372 | S82: =IF(R82="… ","… ",RANK(R82,R$30:R$1770,0)) -> 976 | U82: 0.4228855721 | V82: =IF(U82="… ","… ",RANK(U82,U$30:U$1770,0)) -> 1591 | W82: 0.4350132626 | X82: =IF(W82="… ","… ",RANK(W82,W$30:W$1770,0)) -> 1502
B83: 54 | C83: 1 | D83: 北海道 | E83: 1391 | F83: 島牧村 | J83: 154.5454545 | K83: 63 | L83: 133.3333333 | M83: =IF(L83="… ","… ",RANK(L83,L$30:L$1770,0)) -> 86 | N83: 124.2424242 | O83: =IF(N83="… ","… ",RANK(N83,N$30:N$1770,0)) -> 123 | P83: 100 | Q83: =IF(P83="… ","… ",RANK(P83,P$30:P$1770,0)) -> 1194 | R83: 110 | S83: =IF(R83="… ","… ",RANK(R83,R$30:R$1770,0)) -> 322 | U83: 0.4848484848 | V83: =IF(U83="… ","… ",RANK(U83,U$30:U$1770,0)) -> 1455 | W83: 0.380952381 | X83: =IF(W83="… ","… ",RANK(W83,W$30:W$1770,0)) -> 1615
B84: 55 | C84: 1 | D84: 北海道 | E84: 1392 | F84: 寿都町 | J84: 81.25 | K84: 1707 | L84: 126.9230769 | M84: =IF(L84="… ","… ",RANK(L84,L$30:L$1770,0)) -> 128 | N84: 130.2631579 | O84: =IF(N84="… ","… ",RANK(N84,N$30:N$1770,0)) -> 89 | P84: 171.0144928 | Q84: =IF(P84="… ","… ",RANK(P84,P$30:P$1770,0)) -> 19 | R84: 114.7058824 | S84: =IF(R84="… ","… ",RANK(R84,R$30:R$1770,0)) -> 184 | U84: 0.6036585366 | V84: =IF(U84="… ","… ",RANK(U84,U$30:U$1770,0)) -> 1066 | W84: 0.6446280992 | X84: =IF(W84="… ","… ",RANK(W84,W$30:W$1770,0)) -> 910
B85: 56 | C85: 1 | D85: 北海道 | E85: 1393 | F85: 黒松内町 | J85: 114.8148148 | K85: 512 | L85: 126.3157895 | M85: =IF(L85="… ","… ",RANK(L85,L$30:L$1770,0)) -> 130 | N85: 113.0434783 | O85: =IF(N85="… ","… ",RANK(N85,N$30:N$1770,0)) -> 344 | P85: 109.0909091 | Q85: =IF(P85="… ","… ",RANK(P85,P$30:P$1770,0)) -> 496 | R85: 105.1282051 | S85: =IF(R85="… ","… ",RANK(R85,R$30:R$1770,0)) -> 604 | U85: 0.5581395349 | V85: =IF(U85="… ","… ",RANK(U85,U$30:U$1770,0)) -> 1219 | W85: 0.57 | X85: =IF(W85="… ","… ",RANK(W85,W$30:W$1770,0)) -> 1127
B86: 57 | C86: 1 | D86: 北海道 | E86: 1394 | F86: 蘭越町 | J86: 110.7692308 | K86: 670 | L86: 118.0851064 | M86: =IF(L86="… ","… ",RANK(L86,L$30:L$1770,0)) -> 254 | N86: 109.2592593 | O86: =IF(N86="… ","… ",RANK(N86,N$30:N$1770,0)) -> 565 | P86: 89.79591837 | Q86: =IF(P86="… ","… ",RANK(P86,P$30:P$1770,0)) -> 1666 | R86: 115.1079137 | S86: =IF(R86="… ","… ",RANK(R86,R$30:R$1770,0)) -> 179 | U86: 0.4933333333 | V86: =IF(U86="… ","… ",RANK(U86,U$30:U$1770,0)) -> 1434 | W86: 0.4034334764 | X86: =IF(W86="… ","… ",RANK(W86,W$30:W$1770,0)) -> 1573
B87: 58 | C87: 1 | D87: 北海道 | E87: 1395 | F87: ニセコ町 | J87: 104.2105263 | K87: 1019 | L87: 124.3697479 | M87: =IF(L87="… ","… ",RANK(L87,L$30:L$1770,0)) -> 153 | N87: 91.53439153 | O87: =IF(N87="… ","… ",RANK(N87,N$30:N$1770,0)) -> 1638 | P87: 117.7570093 | Q87: =IF(P87="… ","… ",RANK(P87,P$30:P$1770,0)) -> 178 | R87: 98.23529412 | S87: =IF(R87="… ","… ",RANK(R87,R$30:R$1770,0)) -> 1064 | U87: 0.9192546584 | V87: =IF(U87="… ","… ",RANK(U87,U$30:U$1770,0)) -> 350 | W87: 0.8686131387 | X87: =IF(W87="… ","… ",RANK(W87,W$30:W$1770,0)) -> 450
B88: 59 | C88: 1 | D88: 北海道 | E88: 1396 | F88: 真狩村 | J88: 138.7096774 | K88: 134 | L88: 131.8181818 | M88: =IF(L88="… ","… ",RANK(L88,L$30:L$1770,0)) -> 101 | N88: 98.66666667 | O88: =IF(N88="… ","… ",RANK(N88,N$30:N$1770,0)) -> 1343 | P88: 108.3333333 | Q88: =IF(P88="… ","… ",RANK(P88,P$30:P$1770,0)) -> 554 | R88: 108.6956522 | S88: =IF(R88="… ","… ",RANK(R88,R$30:R$1770,0)) -> 391 | U88: 0.6904761905 | V88: =IF(U88="… ","… ",RANK(U88,U$30:U$1770,0)) -> 788 | W88: 0.5789473684 | X88: =IF(W88="… ","… ",RANK(W88,W$30:W$1770,0)) -> 1103
B89: 60 | C89: 1 | D89: 北海道 | E89: 1397 | F89: 留寿都村 | J89: 124.4444444 | K89: 279 | L89: 79.41176471 | M89: =IF(L89="… ","… ",RANK(L89,L$30:L$1770,0)) -> 1720 | N89: 102.8985507 | O89: =IF(N89="… ","… ",RANK(N89,N$30:N$1770,0)) -> 1064 | P89: 110.7142857 | Q89: =IF(P89="… ","… ",RANK(P89,P$30:P$1770,0)) -> 412 | R89: 144.4444444 | S89: =IF(R89="… ","… ",RANK(R89,R$30:R$1770,0)) -> 44 | U89: 0.7105263158 | V89: =IF(U89="… ","… ",RANK(U89,U$30:U$1770,0)) -> 742 | W89: 0.8192771084 | X89: =IF(W89="… ","… ",RANK(W89,W$30:W$1770,0)) -> 529
B90: 61 | C90: 1 | D90: 北海道 | E90: 1398 | F90: 喜茂別町 | J90: 104.2553191 | K90: 1013 | L90: 138.1818182 | M90: =IF(L90="… ","… ",RANK(L90,L$30:L$1770,0)) -> 70 | N90: 148 | O90: =IF(N90="… ","… ",RANK(N90,N$30:N$1770,0)) -> 37 | P90: 133.3333333 | Q90: =IF(P90="… ","… ",RANK(P90,P$30:P$1770,0)) -> 53 | R90: 141.0714286 | S90: =IF(R90="… ","… ",RANK(R90,R$30:R$1770,0)) -> 47 | U90: 0.95 | V90: =IF(U90="… ","… ",RANK(U90,U$30:U$1770,0)) -> 296 | W90: 0.873015873 | X90: =IF(W90="… ","… ",RANK(W90,W$30:W$1770,0)) -> 440
B91: 62 | C91: 1 | D91: 北海道 | E91: 1399 | F91: 京極町 | J91: 174.2857143 | K91: 34 | L91: 101.6393443 | M91: =IF(L91="… ","… ",RANK(L91,L$30:L$1770,0)) -> 1123 | N91: 106 | O91: =IF(N91="… ","… ",RANK(N91,N$30:N$1770,0)) -> 801 | P91: 90.90909091 | Q91: =IF(P91="… ","… ",RANK(P91,P$30:P$1770,0)) -> 1644 | R91: 112.0879121 | S91: =IF(R91="… ","… ",RANK(R91,R$30:R$1770,0)) -> 244 | U91: 0.6458333333 | V91: =IF(U91="… ","… ",RANK(U91,U$30:U$1770,0)) -> 938 | W91: 0.61 | X91: =IF(W91="… ","… ",RANK(W91,W$30:W$1770,0)) -> 1024
B92: 63 | C92: 1 | D92: 北海道 | E92: 1400 | F92: 倶知安町 | J92: 113.9817629 | K92: 553 | L92: 108.4536082 | M92: =IF(L92="… ","… ",RANK(L92,L$30:L$1770,0)) -> 672 | N92: 116.0747664 | O92: =IF(N92="… ","… ",RANK(N92,N$30:N$1770,0)) -> 236 | P92: 122.5085911 | Q92: =IF(P92="… ","… ",RANK(P92,P$30:P$1770,0)) -> 117 | R92: 129.1576674 | S92: =IF(R92="… ","… ",RANK(R92,R$30:R$1770,0)) -> 69 | U92: 0.9443447038 | V92: =IF(U92="… ","… ",RANK(U92,U$30:U$1770,0)) -> 303 | W92: 0.9150943396 | X92: =IF(W92="… ","… ",RANK(W92,W$30:W$1770,0)) -> 376
B93: 64 | C93: 1 | D93: 北海道 | E93: 1401 | F93: 共和町 | J93: 212.5 | K93: 15 | L93: 142.962963 | M93: =IF(L93="… ","… ",RANK(L93,L$30:L$1770,0)) -> 58 | N93: 117.1779141 | O93: =IF(N93="… ","… ",RANK(N93,N$30:N$1770,0)) -> 210 | P93: 132.3076923 | Q93: =IF(P93="… ","… ",RANK(P93,P$30:P$1770,0)) -> 64 | R93: 134.0782123 | S93: =IF(R93="… ","… ",RANK(R93,R$30:R$1770,0)) -> 56 | U93: 0.9698492462 | V93: =IF(U93="… ","… ",RANK(U93,U$30:U$1770,0)) -> 280 | W93: 0.5793991416 | X93: =IF(W93="… ","… ",RANK(W93,W$30:W$1770,0)) -> 1101
B94: 65 | C94: 1 | D94: 北海道 | E94: 1402 | F94: 岩内町 | J94: 126.2672811 | K94: =IF(J94="… ","… ",RANK(J94,J$30:J$1770,0)) -> 243 | L94: 104.5138889 | M94: =IF(L94="… ","… ",RANK(L94,L$30:L$1770,0)) -> 923 | N94: 111.9873817 | O94: =IF(N94="… ","… ",RANK(N94,N$30:N$1770,0)) -> 391 | P94: 111.8881119 | Q94: =IF(P94="… ","… ",RANK(P94,P$30:P$1770,0)) -> 350 | R94: 97.6744186 | S94: =IF(R94="… ","… ",RANK(R94,R$30:R$1770,0)) -> 1102 | U94: 0.5563770795 | V94: =IF(U94="… ","… ",RANK(U94,U$30:U$1770,0)) -> 1224 | W94: 0.5433962264 | X94: =IF(W94="… ","… ",RANK(W94,W$30:W$1770,0)) -> 1230
B95: 66 | C95: 1 | D95: 北海道 | E95: 1403 | F95: 泊村 | J95: 104.1666667 | K95: 1021 | L95: 131.25 | M95: =IF(L95="… ","… ",RANK(L95,L$30:L$1770,0)) -> 106 | N95: 152.2727273 | O95: =IF(N95="… ","… ",RANK(N95,N$30:N$1770,0)) -> 30 | P95: 184.3137255 | Q95: =IF(P95="… ","… ",RANK(P95,P$30:P$1770,0)) -> 16 | R95: 173.6842105 | S95: =IF(R95="… ","… ",RANK(R95,R$30:R$1770,0)) -> 21 | U95: 0.8571428571 | V95: =IF(U95="… ","… ",RANK(U95,U$30:U$1770,0)) -> 446 | W95: 0.6153846154 | X95: =IF(W95="… ","… ",RANK(W95,W$30:W$1770,0)) -> 1004
B96: 67 | C96: 1 | D96: 北海道 | E96: 1404 | F96: 神恵内村 | J96: 200 | K96: 18 | L96: 230 | M96: =IF(L96="… ","… ",RANK(L96,L$30:L$1770,0)) -> 8 | N96: 82.60869565 | O96: =IF(N96="… ","… ",RANK(N96,N$30:N$1770,0)) -> 1717 | P96: 108.3333333 | Q96: =IF(P96="… ","… ",RANK(P96,P$30:P$1770,0)) -> 554 | R96: 115.3846154 | S96: =IF(R96="… ","… ",RANK(R96,R$30:R$1770,0)) -> 164 | U96: 0.5897435897 | V96: =IF(U96="… ","… ",RANK(U96,U$30:U$1770,0)) -> 1109 | W96: 0.243902439 | X96: =IF(W96="… ","… ",RANK(W96,W$30:W$1770,0)) -> 1721
B97: 68 | C97: 1 | D97: 北海道 | E97: 1405 | F97: 積丹町 | J97: 132 | K97: 182 | L97: 117.8571429 | M97: =IF(L97="… ","… ",RANK(L97,L$30:L$1770,0)) -> 257 | N97: 116.2162162 | O97: =IF(N97="… ","… ",RANK(N97,N$30:N$1770,0)) -> 232 | P97: 87.09677419 | Q97: =IF(P97="… ","… ",RANK(P97,P$30:P$1770,0)) -> 1702 | R97: 127.1186441 | S97: =IF(R97="… ","… ",RANK(R97,R$30:R$1770,0)) -> 74 | U97: 0.3707865169 | V97: =IF(U97="… ","… ",RANK(U97,U$30:U$1770,0)) -> 1659 | W97: 0.3294117647 | X97: =IF(W97="… ","… ",RANK(W97,W$30:W$1770,0)) -> 1672
B98: 69 | C98: 1 | D98: 北海道 | E98: 1406 | F98: 古平町 | J98: 126.8292683 | K98: 234 | L98: 106.25 | M98: =IF(L98="… ","… ",RANK(L98,L$30:L$1770,0)) -> 787 | N98: 175.9259259 | O98: =IF(N98="… ","… ",RANK(N98,N$30:N$1770,0)) -> 15 | P98: 79.81651376 | Q98: =IF(P98="… ","… ",RANK(P98,P$30:P$1770,0)) -> 1720 | R98: 111 | S98: =IF(R98="… ","… ",RANK(R98,R$30:R$1770,0)) -> 281 | U98: 0.4689655172 | V98: =IF(U98="… ","… ",RANK(U98,U$30:U$1770,0)) -> 1501 | W98: 0.512 | X98: =IF(W98="… ","… ",RANK(W98,W$30:W$1770,0)) -> 1321
B99: 70 | C99: 1 | D99: 北海道 | E99: 1407 | F99: 仁木町 | J99: 67.03296703 | K99: 1730 | L99: 48.14814815 | M99: =IF(L99="… ","… ",RANK(L99,L$30:L$1770,0)) -> 1734 | N99: 84.07079646 | O99: =IF(N99="… ","… ",RANK(N99,N$30:N$1770,0)) -> 1710 | P99: 93.5483871 | Q99: =IF(P99="… ","… ",RANK(P99,P$30:P$1770,0)) -> 1571 | R99: 109.4736842 | S99: =IF(R99="… ","… ",RANK(R99,R$30:R$1770,0)) -> 348 | U99: 0.40625 | V99: =IF(U99="… ","… ",RANK(U99,U$30:U$1770,0)) -> 1618 | W99: 0.8852459016 | X99: =IF(W99="… ","… ",RANK(W99,W$30:W$1770,0)) -> 416
B100: 71 | C100: 1 | D100: 北海道 | E100: 1408 | F100: 余市町 | J100: 99.42528736 | K100: 1294 | L100: 107.1246819 | M100: =IF(L100="… ","… ",RANK(L100,L$30:L$1770,0)) -> 732 | N100: 95.55984556 | O100: =IF(N100="… ","… ",RANK(N100,N$30:N$1770,0)) -> 1506 | P100: 104.0540541 | Q100: =IF(P100="… ","… ",RANK(P100,P$30:P$1770,0)) -> 869 | R100: 92.68707483 | S100: =IF(R100="… ","… ",RANK(R100,R$30:R$1770,0)) -> 1418 | U100: 0.5453367876 | V100: =IF(U100="… ","… ",RANK(U100,U$30:U$1770,0)) -> 1265 | W100: 0.5435684647 | X100: =IF(W100="… ","… ",RANK(W100,W$30:W$1770,0)) -> 1229
B101: 72 | C101: 1 | D101: 北海道 | E101: 1409 | F101: 赤井川村 | J101: 111.1111111 | K101: 654 | L101: 120.8333333 | M101: =IF(L101="… ","… ",RANK(L101,L$30:L$1770,0)) -> 205 | N101: 137.9310345 | O101: =IF(N101="… ","… ",RANK(N101,N$30:N$1770,0)) -> 58 | P101: 125 | Q101: =IF(P101="… ","… ",RANK(P101,P$30:P$1770,0)) -> 95 | R101: 111.7647059 | S101: =IF(R101="… ","… ",RANK(R101,R$30:R$1770,0)) -> 255 | U101: 0.7631578947 | V101: =IF(U101="… ","… ",RANK(U101,U$30:U$1770,0)) -> 633 | W101: 0.5217391304 | X101: =IF(W101="… ","… ",RANK(W101,W$30:W$1770,0)) -> 1293
B102: 73 | C102: 1 | D102: 北海道 | E102: 1423 | F102: 南幌町 | J102: 90.11627907 | K102: 1616 | L102: 90 | M102: =IF(L102="… ","… ",RANK(L102,L$30:L$1770,0)) -> 1638 | N102: 122.1428571 | O102: =IF(N102="… ","… ",RANK(N102,N$30:N$1770,0)) -> 142 | P102: 99.54751131 | Q102: =IF(P102="… ","… ",RANK(P102,P$30:P$1770,0)) -> 1233 | R102: 77.28706625 | S102: =IF(R102="… ","… ",RANK(R102,R$30:R$1770,0)) -> 1723 | U102: 0.3933161954 | V102: =IF(U102="… ","… ",RANK(U102,U$30:U$1770,0)) -> 1636 | W102: 0.5362776025 | X102: =IF(W102="… ","… ",RANK(W102,W$30:W$1770,0)) -> 1248
B103: 74 | C103: 1 | D103: 北海道 | E103: 1424 | F103: 奈井江町 | J103: 123.75 | K103: 289 | L103: 103.5294118 | M103: =IF(L103="… ","… ",RANK(L103,L$30:L$1770,0)) -> 1002 | N103: 101.4814815 | O103: =IF(N103="… ","… ",RANK(N103,N$30:N$1770,0)) -> 1161 | P103: 105.5865922 | Q103: =IF(P103="… ","… ",RANK(P103,P$30:P$1770,0)) -> 754 | R103: 91.07142857 | S103: =IF(R103="… ","… ",RANK(R103,R$30:R$1770,0)) -> 1497 | U103: 0.384279476 | V103: =IF(U103="… ","… ",RANK(U103,U$30:U$1770,0)) -> 1644 | W103: 0.4009433962 | X103: =IF(W103="… ","… ",RANK(W103,W$30:W$1770,0)) -> 1578
B104: 75 | C104: 1 | D104: 北海道 | E104: 1425 | F104: 上砂川町 | J104: 127.027027 | K104: 232 | L104: 88.23529412 | M104: =IF(L104="… ","… ",RANK(L104,L$30:L$1770,0)) -> 1665 | N104: 113.5135135 | O104: =IF(N104="… ","… ",RANK(N104,N$30:N$1770,0)) -> 322 | P104: 92.63157895 | Q104: =IF(P104="… ","… ",RANK(P104,P$30:P$1770,0)) -> 1604 | R104: 122.3880597 | S104: =IF(R104="… ","… ",RANK(R104,R$30:R$1770,0)) -> 100 | U104: 0.3781512605 | V104: =IF(U104="… ","… ",RANK(U104,U$30:U$1770,0)) -> 1651 | W104: 0.4015748031 | X104: =IF(W104="… ","… ",RANK(W104,W$30:W$1770,0)) -> 1575
B105: 76 | C105: 1 | D105: 北海道 | E105: 1427 | F105: 由仁町 | J105: 121.25 | K105: 338 | L105: 131.7073171 | M105: =IF(L105="… ","… ",RANK(L105,L$30:L$1770,0)) -> 105 | N105: 111.5107914 | O105: =IF(N105="… ","… ",RANK(N105,N$30:N$1770,0)) -> 421 | P105: 103.5211268 | Q105: =IF(P105="… ","… ",RANK(P105,P$30:P$1770,0)) -> 913 | R105: 83.23353293 | S105: =IF(R105="… ","… ",RANK(R105,R$30:R$1770,0)) -> 1705 | U105: 0.4843049327 | V105: =IF(U105="… ","… ",RANK(U105,U$30:U$1770,0)) -> 1459 | W105: 0.3778801843 | X105: =IF(W105="… ","… ",RANK(W105,W$30:W$1770,0)) -> 1622
B106: 77 | C106: 1 | D106: 北海道 | E106: 1428 | F106: 長沼町 | J106: 126.5306122 | K106: 239 | L106: 105.8091286 | M106: =IF(L106="… ","… ",RANK(L106,L$30:L$1770,0)) -> 825 | N106: 108.1712062 | O106: =IF(N106="… ","… ",RANK(N106,N$30:N$1770,0)) -> 639 | P106: 102.6011561 | Q106: =IF(P106="… ","… ",RANK(P106,P$30:P$1770,0)) -> 989 | R106: 97.20496894 | S106: =IF(R106="… ","… ",RANK(R106,R$30:R$1770,0)) -> 1135 | U106: 0.6710526316 | V106: =IF(U106="… ","… ",RANK(U106,U$30:U$1770,0)) -> 858 | W106: 0.635883905 | X106: =IF(W106="… ","… ",RANK(W106,W$30:W$1770,0)) -> 937
B107: 78 | C107: 1 | D107: 北海道 | E107: 1429 | F107: 栗山町 | J107: 90.54054054 | K107: 1610 | L107: 105.7613169 | M107: =IF(L107="… ","… ",RANK(L107,L$30:L$1770,0)) -> 830 | N107: 102.173913 | O107: =IF(N107="… ","… ",RANK(N107,N$30:N$1770,0)) -> 1110 | P107: 96.54320988 | Q107: =IF(P107="… ","… ",RANK(P107,P$30:P$1770,0)) -> 1433 | R107: 101.6901408 | S107: =IF(R107="… ","… ",RANK(R107,R$30:R$1770,0)) -> 819 | U107: 0.5538793103 | V107: =IF(U107="… ","… ",RANK(U107,U$30:U$1770,0)) -> 1233 | W107: 0.6105527638 | X107: =IF(W107="… ","… ",RANK(W107,W$30:W$1770,0)) -> 1020
B108: 79 | C108: 1 | D108: 北海道 | E108: 1430 | F108: 月形町 | J108: 276 | K108: 6 | L108: 300 | M108: =IF(L108="… ","… ",RANK(L108,L$30:L$1770,0)) -> 2 | N108: 344.2857143 | O108: =IF(N108="… ","… ",RANK(N108,N$30:N$1770,0)) -> 4 | P108: 385.7142857 | Q108: =IF(P108="… ","… ",RANK(P108,P$30:P$1770,0)) -> 4 | R108: 296.7391304 | S108: =IF(R108="… ","… ",RANK(R108,R$30:R$1770,0)) -> 2 | U108: 1.710526316 | V108: =IF(U108="… ","… ",RANK(U108,U$30:U$1770,0)) -> 39 | W108: 0.4577464789 | X108: =IF(W108="… ","… ",RANK(W108,W$30:W$1770,0)) -> 1453
B109: 80 | C109: 1 | D109: 北海道 | E109: 1431 | F109: 浦臼町 | J109: 225 | K109: 10 | L109: 216 | M109: =IF(L109="… ","… ",RANK(L109,L$30:L$1770,0)) -> 10 | N109: 82.75862069 | O109: =IF(N109="… ","… ",RANK(N109,N$30:N$1770,0)) -> 1716 | P109: 129.6296296 | Q109: =IF(P109="… ","… ",RANK(P109,P$30:P$1770,0)) -> 74 | R109: 78.43137255 | S109: =IF(R109="… ","… ",RANK(R109,R$30:R$1770,0)) -> 1720 | U109: 0.5142857143 | V109: =IF(U109="… ","… ",RANK(U109,U$30:U$1770,0)) -> 1370 | W109: 0.3333333333 | X109: =IF(W109="… ","… ",RANK(W109,W$30:W$1770,0)) -> 1668
B110: 81 | C110: 1 | D110: 北海道 | E110: 1432 | F110: 新十津川町 | J110: 89.18918919 | K110: 1634 | L110: 84.92063492 | M110: =IF(L110="… ","… ",RANK(L110,L$30:L$1770,0)) -> 1702 | N110: 94.33962264 | O110: =IF(N110="… ","… ",RANK(N110,N$30:N$1770,0)) -> 1556 | P110: 79.31034483 | Q110: =IF(P110="… ","… ",RANK(P110,P$30:P$1770,0)) -> 1722 | R110: 102.3148148 | S110: =IF(R110="… ","… ",RANK(R110,R$30:R$1770,0)) -> 784 | U110: 0.3862815884 | V110: =IF(U110="… ","… ",RANK(U110,U$30:U$1770,0)) -> 1643 | W110: 0.5019920319 | X110: =IF(W110="… ","… ",RANK(W110,W$30:W$1770,0)) -> 1347
B111: 82 | C111: 1 | D111: 北海道 | E111: 1433 | F111: 妹背牛町 | J111: 111.4285714 | K111: 643 | L111: 131.1111111 | M111: =IF(L111="… ","… ",RANK(L111,L$30:L$1770,0)) -> 107 | N111: 135.5932203 | O111: =IF(N111="… ","… ",RANK(N111,N$30:N$1770,0)) -> 69 | P111: 92.59259259 | Q111: =IF(P111="… ","… ",RANK(P111,P$30:P$1770,0)) -> 1605 | R111: 67.67676768 | S111: =IF(R111="… ","… ",RANK(R111,R$30:R$1770,0)) -> 1734 | U111: 0.4876033058 | V111: =IF(U111="… ","… ",RANK(U111,U$30:U$1770,0)) -> 1451 | W111: 0.36 | X111: =IF(W111="… ","… ",RANK(W111,W$30:W$1770,0)) -> 1642
B112: 83 | C112: 1 | D112: 北海道 | E112: 1434 | F112: 秩父別町 | J112: 96 | K112: 1435 | L112: 106.6666667 | M112: =IF(L112="… ","… ",RANK(L112,L$30:L$1770,0)) -> 757 | N112: 98.21428571 | O112: =IF(N112="… ","… ",RANK(N112,N$30:N$1770,0)) -> 1376 | P112: 108.7719298 | Q112: =IF(P112="… ","… ",RANK(P112,P$30:P$1770,0)) -> 524 | R112: 97.22222222 | S112: =IF(R112="… ","… ",RANK(R112,R$30:R$1770,0)) -> 1134 | U112: 0.4848484848 | V112: =IF(U112="… ","… ",RANK(U112,U$30:U$1770,0)) -> 1455 | W112: 0.5172413793 | X112: =IF(W112="… ","… ",RANK(W112,W$30:W$1770,0)) -> 1310
B113: 84 | C113: 1 | D113: 北海道 | E113: 1436 | F113: 雨竜町 | J113: 123.3333333 | K113: 295 | L113: 92.59259259 | M113: =IF(L113="… ","… ",RANK(L113,L$30:L$1770,0)) -> 1570 | N113: 115.625 | O113: =IF(N113="… ","… ",RANK(N113,N$30:N$1770,0)) -> 251 | P113: 110.2941176 | Q113: =IF(P113="… ","… ",RANK(P113,P$30:P$1770,0)) -> 434 | R113: 120.3389831 | S113: =IF(R113="… ","… ",RANK(R113,R$30:R$1770,0)) -> 123 | U113: 0.5154639175 | V113: =IF(U113="… ","… ",RANK(U113,U$30:U$1770,0)) -> 1366 | W113: 0.5567010309 | X113: =IF(W113="… ","… ",RANK(W113,W$30:W$1770,0)) -> 1181
B114: 85 | C114: 1 | D114: 北海道 | E114: 1437 | F114: 北竜町 | J114: 154.5454545 | K114: 63 | L114: 94.73684211 | M114: =IF(L114="… ","… ",RANK(L114,L$30:L$1770,0)) -> 1488 | N114: 100 | O114: =IF(N114="… ","… ",RANK(N114,N$30:N$1770,0)) -> 1253 | P114: 97.87234043 | Q114: =IF(P114="… ","… ",RANK(P114,P$30:P$1770,0)) -> 1350 | R114: 100 | S114: =IF(R114="… ","… ",RANK(R114,R$30:R$1770,0)) -> 926 | U114: 0.4675324675 | V114: =IF(U114="… ","… ",RANK(U114,U$30:U$1770,0)) -> 1508 | W114: 0.5277777778 | X114: =IF(W114="… ","… ",RANK(W114,W$30:W$1770,0)) -> 1278
B115: 86 | C115: 1 | D115: 北海道 | E115: 1438 | F115: 沼田町 | J115: 155.8139535 | K115: 60 | L115: 125 | M115: =IF(L115="… ","… ",RANK(L115,L$30:L$1770,0)) -> 140 | N115: 85.8974359 | O115: =IF(N115="… ","… ",RANK(N115,N$30:N$1770,0)) -> 1701 | P115: 110.2564103 | Q115: =IF(P115="… ","… ",RANK(P115,P$30:P$1770,0)) -> 435 | R115: 100 | S115: =IF(R115="… ","… ",RANK(R115,R$30:R$1770,0)) -> 926 | U115: 0.5217391304 | V115: =IF(U115="… ","… ",RANK(U115,U$30:U$1770,0)) -> 1344 | W115: 0.4403669725 | X115: =IF(W115="… ","… ",RANK(W115,W$30:W$1770,0)) -> 1494
B116: 87 | C116: 1 | D116: 北海道 | E116: 1452 | F116: 鷹栖町 | J116: 81.05263158 | K116: 1708 | L116: 100.78125 | M116: =IF(L116="… ","… ",RANK(L116,L$30:L$1770,0)) -> 1177 | N116: 80.8988764 | O116: =IF(N116="… ","… ",RANK(N116,N$30:N$1770,0)) -> 1719 | P116: 103.4749035 | Q116: =IF(P116="… ","… ",RANK(P116,P$30:P$1770,0)) -> 916 | R116: 93.67088608 | S116: =IF(R116="… ","… ",RANK(R116,R$30:R$1770,0)) -> 1365 | U116: 0.608490566 | V116: =IF(U116="… ","… ",RANK(U116,U$30:U$1770,0)) -> 1053 | W116: 0.5844748858 | X116: =IF(W116="… ","… ",RANK(W116,W$30:W$1770,0)) -> 1086
B117: 88 | C117: 1 | D117: 北海道 | E117: 1453 | F117: 東神楽町 | J117: 83.07692308 | K117: 1700 | L117: 95.32374101 | M117: =IF(L117="… ","… ",RANK(L117,L$30:L$1770,0)) -> 1467 | N117: 98.77300613 | O117: =IF(N117="… ","… ",RANK(N117,N$30:N$1770,0)) -> 1338 | P117: 88.05620609 | Q117: =IF(P117="… ","… ",RANK(P117,P$30:P$1770,0)) -> 1694 | R117: 80.14354067 | S117: =IF(R117="… ","… ",RANK(R117,R$30:R$1770,0)) -> 1719 | U117: 1.007357832 | V117: =IF(U117="… ","… ",RANK(U117,U$30:U$1770,0)) -> 240 | W117: 1.077281066 | X117: =IF(W117="… ","… ",RANK(W117,W$30:W$1770,0)) -> 193
B118: 89 | C118: 1 | D118: 北海道 | E118: 1454 | F118: 当麻町 | J118: 97.91666667 | K118: 1360 | L118: 99.19354839 | M118: =IF(L118="… ","… ",RANK(L118,L$30:L$1770,0)) -> 1291 | N118: 107.6433121 | O118: =IF(N118="… ","… ",RANK(N118,N$30:N$1770,0)) -> 683 | P118: 102.7777778 | Q118: =IF(P118="… ","… ",RANK(P118,P$30:P$1770,0)) -> 977 | R118: 82.75862069 | S118: =IF(R118="… ","… ",RANK(R118,R$30:R$1770,0)) -> 1707 | U118: 0.5668202765 | V118: =IF(U118="… ","… ",RANK(U118,U$30:U$1770,0)) -> 1181 | W118: 0.5688073394 | X118: =IF(W118="… ","… ",RANK(W118,W$30:W$1770,0)) -> 1133
B119: 90 | C119: 1 | D119: 北海道 | E119: 1455 | F119: 比布町 | J119: 135.2941176 | K119: 156 | L119: 101.4925373 | M119: =IF(L119="… ","… ",RANK(L119,L$30:L$1770,0)) -> 1132 | N119: 94.50549451 | O119: =IF(N119="… ","… ",RANK(N119,N$30:N$1770,0)) -> 1549 | P119: 116.0714286 | Q119: =IF(P119="… ","… ",RANK(P119,P$30:P$1770,0)) -> 207 | R119: 86.48648649 | S119: =IF(R119="… ","… ",RANK(R119,R$30:R$1770,0)) -> 1654 | U119: 0.4892086331 | V119: =IF(U119="… ","… ",RANK(U119,U$30:U$1770,0)) -> 1445 | W119: 0.519379845 | X119: =IF(W119="… ","… ",RANK(W119,W$30:W$1770,0)) -> 1306
B120: 91 | C120: 1 | D120: 北海道 | E120: 1456 | F120: 愛別町 | J120: 68.42105263 | K120: 1728 | L120: 82.45614035 | M120: =IF(L120="… ","… ",RANK(L120,L$30:L$1770,0)) -> 1715 | N120: 98.55072464 | O120: =IF(N120="… ","… ",RANK(N120,N$30:N$1770,0)) -> 1353 | P120: 103.75 | Q120: =IF(P120="… ","… ",RANK(P120,P$30:P$1770,0)) -> 895 | R120: 103.7974684 | S120: =IF(R120="… ","… ",RANK(R120,R$30:R$1770,0)) -> 689 | U120: 0.3916666667 | V120: =IF(U120="… ","… ",RANK(U120,U$30:U$1770,0)) -> 1639 | W120: 0.4913793103 | X120: =IF(W120="… ","… ",RANK(W120,W$30:W$1770,0)) -> 1370
B121: 92 | C121: 1 | D121: 北海道 | E121: 1457 | F121: 上川町 | J121: 149.1803279 | K121: 80 | L121: 110.5263158 | M121: =IF(L121="… ","… ",RANK(L121,L$30:L$1770,0)) -> 536 | N121: 112.3595506 | O121: =IF(N121="… ","… ",RANK(N121,N$30:N$1770,0)) -> 378 | P121: 108.7378641 | Q121: =IF(P121="… ","… ",RANK(P121,P$30:P$1770,0)) -> 526 | R121: 116.3043478 | S121: =IF(R121="… ","… ",RANK(R121,R$30:R$1770,0)) -> 153 | U121: 0.5833333333 | V121: =IF(U121="… ","… ",RANK(U121,U$30:U$1770,0)) -> 1128 | W121: 0.5467625899 | X121: =IF(W121="… ","… ",RANK(W121,W$30:W$1770,0)) -> 1214
B122: 93 | C122: 1 | D122: 北海道 | E122: 1458 | F122: 東川町 | J122: 68.33333333 | K122: 1729 | L122: 68.84422111 | M122: =IF(L122="… ","… ",RANK(L122,L$30:L$1770,0)) -> 1731 | N122: 100 | O122: =IF(N122="… ","… ",RANK(N122,N$30:N$1770,0)) -> 1253 | P122: 94.24920128 | Q122: =IF(P122="… ","… ",RANK(P122,P$30:P$1770,0)) -> 1539 | R122: 94.79553903 | S122: =IF(R122="… ","… ",RANK(R122,R$30:R$1770,0)) -> 1295 | U122: 0.7172774869 | V122: =IF(U122="… ","… ",RANK(U122,U$30:U$1770,0)) -> 726 | W122: 1.081521739 | X122: =IF(W122="… ","… ",RANK(W122,W$30:W$1770,0)) -> 192
B123: 94 | C123: 1 | D123: 北海道 | E123: 1459 | F123: 美瑛町 | J123: 107.1428571 | K123: 850 | L123: 91.84549356 | M123: =IF(L123="… ","… ",RANK(L123,L$30:L$1770,0)) -> 1598 | N123: 94.42379182 | O123: =IF(N123="… ","… ",RANK(N123,N$30:N$1770,0)) -> 1553 | P123: 105.1987768 | Q123: =IF(P123="… ","… ",RANK(P123,P$30:P$1770,0)) -> 787 | R123: 97.54601227 | S123: =IF(R123="… ","… ",RANK(R123,R$30:R$1770,0)) -> 1114 | U123: 0.5977653631 | V123: =IF(U123="… ","… ",RANK(U123,U$30:U$1770,0)) -> 1087 | W123: 0.6619318182 | X123: =IF(W123="… ","… ",RANK(W123,W$30:W$1770,0)) -> 863
B124: 95 | C124: 1 | D124: 北海道 | E124: 1460 | F124: 上富良野町 | J124: 154.3147208 | K124: 67 | L124: 113.7809187 | M124: =IF(L124="… ","… ",RANK(L124,L$30:L$1770,0)) -> 387 | N124: 129.1262136 | O124: =IF(N124="… ","… ",RANK(N124,N$30:N$1770,0)) -> 95 | P124: 102.5568182 | Q124: =IF(P124="… ","… ",RANK(P124,P$30:P$1770,0)) -> 992 | R124: 109.7264438 | S124: =IF(R124="… ","… ",RANK(R124,R$30:R$1770,0)) -> 338 | U124: 0.8256410256 | V124: =IF(U124="… ","… ",RANK(U124,U$30:U$1770,0)) -> 508 | W124: 0.6953316953 | X124: =IF(W124="… ","… ",RANK(W124,W$30:W$1770,0)) -> 782
B125: 96 | C125: 1 | D125: 北海道 | E125: 1461 | F125: 中富良野町 | J125: 93.02325581 | K125: 1550 | L125: 95.3271028 | M125: =IF(L125="… ","… ",RANK(L125,L$30:L$1770,0)) -> 1466 | N125: 103.9735099 | O125: =IF(N125="… ","… ",RANK(N125,N$30:N$1770,0)) -> 968 | P125: 77.91411043 | Q125: =IF(P125="… ","… ",RANK(P125,P$30:P$1770,0)) -> 1725 | R125: 100.6756757 | S125: =IF(R125="… ","… ",RANK(R125,R$30:R$1770,0)) -> 885 | U125: 0.5795454545 | V125: =IF(U125="… ","… ",RANK(U125,U$30:U$1770,0)) -> 1141 | W125: 0.5376884422 | X125: =IF(W125="… ","… ",RANK(W125,W$30:W$1770,0)) -> 1244
B126: 97 | C126: 1 | D126: 北海道 | E126: 1462 | F126: 南富良野町 | J126: 103.1746032 | K126: 1086 | L126: 104.4776119 | M126: =IF(L126="… ","… ",RANK(L126,L$30:L$1770,0)) -> 925 | N126: 176.7857143 | O126: =IF(N126="… ","… ",RANK(N126,N$30:N$1770,0)) -> 14 | P126: 127.3972603 | Q126: =IF(P126="… ","… ",RANK(P126,P$30:P$1770,0)) -> 84 | R126: 110 | S126: =IF(R126="… ","… ",RANK(R126,R$30:R$1770,0)) -> 322 | U126: 0.9333333333 | V126: =IF(U126="… ","… ",RANK(U126,U$30:U$1770,0)) -> 319 | W126: 0.6836734694 | X126: =IF(W126="… ","… ",RANK(W126,W$30:W$1770,0)) -> 807
B127: 98 | C127: 1 | D127: 北海道 | E127: 1463 | F127: 占冠村 | J127: 92.85714286 | K127: 1555 | L127: 100 | M127: =IF(L127="… ","… ",RANK(L127,L$30:L$1770,0)) -> 1230 | N127: 135.8974359 | O127: =IF(N127="… ","… ",RANK(N127,N$30:N$1770,0)) -> 65 | P127: 117.6470588 | Q127: =IF(P127="… ","… ",RANK(P127,P$30:P$1770,0)) -> 181 | R127: 108.8235294 | S127: =IF(R127="… ","… ",RANK(R127,R$30:R$1770,0)) -> 382 | U127: 0.8837209302 | V127: =IF(U127="… ","… ",RANK(U127,U$30:U$1770,0)) -> 402 | W127: 0.7755102041 | X127: =IF(W127="… ","… ",RANK(W127,W$30:W$1770,0)) -> 599
B128: 99 | C128: 1 | D128: 北海道 | E128: 1464 | F128: 和寒町 | J128: 112.5 | K128: 602 | L128: 97.14285714 | M128: =IF(L128="… ","… ",RANK(L128,L$30:L$1770,0)) -> 1386 | N128: 133.7662338 | O128: =IF(N128="… ","… ",RANK(N128,N$30:N$1770,0)) -> 72 | P128: 104.3956044 | Q128: =IF(P128="… ","… ",RANK(P128,P$30:P$1770,0)) -> 844 | R128: 97.91666667 | S128: =IF(R128="… ","… ",RANK(R128,R$30:R$1770,0)) -> 1086 | U128: 0.4533333333 | V128: =IF(U128="… ","… ",RANK(U128,U$30:U$1770,0)) -> 1535 | W128: 0.4635761589 | X128: =IF(W128="… ","… ",RANK(W128,W$30:W$1770,0)) -> 1439
B129: 100 | C129: 1 | D129: 北海道 | E129: 1465 | F129: 剣淵町 | J129: 102.1276596 | K129: 1148 | L129: 87.83783784 | M129: =IF(L129="… ","… ",RANK(L129,L$30:L$1770,0)) -> 1670 | N129: 133.3333333 | O129: =IF(N129="… ","… ",RANK(N129,N$30:N$1770,0)) -> 74 | P129: 105.3763441 | Q129: =IF(P129="… ","… ",RANK(P129,P$30:P$1770,0)) -> 771 | R129: 84.88372093 | S129: =IF(R129="… ","… ",RANK(R129,R$30:R$1770,0)) -> 1688 | U129: 0.5241935484 | V129: =IF(U129="… ","… ",RANK(U129,U$30:U$1770,0)) -> 1337 | W129: 0.5362318841 | X129: =IF(W129="… ","… ",RANK(W129,W$30:W$1770,0)) -> 1249
B130: 101 | C130: 1 | D130: 北海道 | E130: 1468 | F130: 下川町 | J130: 150 | K130: 77 | L130: 122.2222222 | M130: =IF(L130="… ","… ",RANK(L130,L$30:L$1770,0)) -> 180 | N130: 119.8113208 | O130: =IF(N130="… ","… ",RANK(N130,N$30:N$1770,0)) -> 169 | P130: 117.699115 | Q130: =IF(P130="… ","… ",RANK(P130,P$30:P$1770,0)) -> 179 | R130: 120.2247191 | S130: =IF(R130="… ","… ",RANK(R130,R$30:R$1770,0)) -> 125 | U130: 0.5703703704 | V130: =IF(U130="… ","… ",RANK(U130,U$30:U$1770,0)) -> 1171 | W130: 0.5943396226 | X130: =IF(W130="… ","… ",RANK(W130,W$30:W$1770,0)) -> 1061
B131: 102 | C131: 1 | D131: 北海道 | E131: 1469 | F131: 美深町 | J131: 126.7605634 | K131: 235 | L131: 119.7674419 | M131: =IF(L131="… ","… ",RANK(L131,L$30:L$1770,0)) -> 224 | N131: 127.8688525 | O131: =IF(N131="… ","… ",RANK(N131,N$30:N$1770,0)) -> 104 | P131: 114.9253731 | Q131: =IF(P131="… ","… ",RANK(P131,P$30:P$1770,0)) -> 234 | R131: 89.6 | S131: =IF(R131="… ","… ",RANK(R131,R$30:R$1770,0)) -> 1570 | U131: 0.5392670157 | V131: =IF(U131="… ","… ",RANK(U131,U$30:U$1770,0)) -> 1284 | W131: 0.4623655914 | X131: =IF(W131="… ","… ",RANK(W131,W$30:W$1770,0)) -> 1443
B132: 103 | C132: 1 | D132: 北海道 | E132: 1470 | F132: 音威子府村 | J132: 107.1428571 | K132: 850 | L132: 150 | M132: =IF(L132="… ","… ",RANK(L132,L$30:L$1770,0)) -> 47 | N132: 190.9090909 | O132: =IF(N132="… ","… ",RANK(N132,N$30:N$1770,0)) -> 11 | P132: 300 | Q132: =IF(P132="… ","… ",RANK(P132,P$30:P$1770,0)) -> 6 | R132: 143.75 | S132: =IF(R132="… ","… ",RANK(R132,R$30:R$1770,0)) -> 45 | U132: 0.3 | V132: =IF(U132="… ","… ",RANK(U132,U$30:U$1770,0)) -> 1715 | W132: 0.1754385965 | X132: =IF(W132="… ","… ",RANK(W132,W$30:W$1770,0)) -> 1729
B133: 104 | C133: 1 | D133: 北海道 | E133: 1471 | F133: 中川町 | J133: 134.4827586 | K133: 163 | L133: 134.2105263 | M133: =IF(L133="… ","… ",RANK(L133,L$30:L$1770,0)) -> 81 | N133: 180.5555556 | O133: =IF(N133="… ","… ",RANK(N133,N$30:N$1770,0)) -> 13 | P133: 148.7804878 | Q133: =IF(P133="… ","… ",RANK(P133,P$30:P$1770,0)) -> 36 | R133: 155.8139535 | S133: =IF(R133="… ","… ",RANK(R133,R$30:R$1770,0)) -> 31 | U133: 0.6455696203 | V133: =IF(U133="… ","… ",RANK(U133,U$30:U$1770,0)) -> 941 | W133: 0.5588235294 | X133: =IF(W133="… ","… ",RANK(W133,W$30:W$1770,0)) -> 1168
B134: 105 | C134: 1 | D134: 北海道 | E134: 1472 | F134: 幌加内町 | J134: 100 | K134: 1253 | L134: 130 | M134: =IF(L134="… ","… ",RANK(L134,L$30:L$1770,0)) -> 114 | N134: 100 | O134: =IF(N134="… ","… ",RANK(N134,N$30:N$1770,0)) -> 1253 | P134: 102.2222222 | Q134: =IF(P134="… ","… ",RANK(P134,P$30:P$1770,0)) -> 1022 | R134: 107.6923077 | S134: =IF(R134="… ","… ",RANK(R134,R$30:R$1770,0)) -> 461 | U134: 0.6724137931 | V134: =IF(U134="… ","… ",RANK(U134,U$30:U$1770,0)) -> 853 | W134: 0.3896103896 | X134: =IF(W134="… ","… ",RANK(W134,W$30:W$1770,0)) -> 1599
B135: 106 | C135: 1 | D135: 北海道 | E135: 1481 | F135: 増毛町 | J135: 92 | K135: 1573 | L135: 109.8901099 | M135: =IF(L135="… ","… ",RANK(L135,L$30:L$1770,0)) -> 589 | N135: 72.80701754 | O135: =IF(N135="… ","… ",RANK(N135,N$30:N$1770,0)) -> 1729 | P135: 106.8181818 | Q135: =IF(P135="… ","… ",RANK(P135,P$30:P$1770,0)) -> 668 | R135: 105.5555556 | S135: =IF(R135="… ","… ",RANK(R135,R$30:R$1770,0)) -> 578 | U135: 0.5154639175 | V135: =IF(U135="… ","… ",RANK(U135,U$30:U$1770,0)) -> 1366 | W135: 0.5796178344 | X135: =IF(W135="… ","… ",RANK(W135,W$30:W$1770,0)) -> 1100
B136: 107 | C136: 1 | D136: 北海道 | E136: 1482 | F136: 小平町 | J136: 85.71428571 | K136: 1668 | L136: 78.31325301 | M136: =IF(L136="… ","… ",RANK(L136,L$30:L$1770,0)) -> 1722 | N136: 101.3513514 | O136: =IF(N136="… ","… ",RANK(N136,N$30:N$1770,0)) -> 1170 | P136: 106.4220183 | Q136: =IF(P136="… ","… ",RANK(P136,P$30:P$1770,0)) -> 702 | R136: 109.375 | S136: =IF(R136="… ","… ",RANK(R136,R$30:R$1770,0)) -> 352 | U136: 0.4577464789 | V136: =IF(U136="… ","… ",RANK(U136,U$30:U$1770,0)) -> 1525 | W136: 0.6014492754 | X136: =IF(W136="… ","… ",RANK(W136,W$30:W$1770,0)) -> 1045
B137: 108 | C137: 1 | D137: 北海道 | E137: 1483 | F137: 苫前町 | J137: 92.59259259 | K137: 1559 | L137: 103.3333333 | M137: =IF(L137="… ","… ",RANK(L137,L$30:L$1770,0)) -> 1019 | N137: 105.7142857 | O137: =IF(N137="… ","… ",RANK(N137,N$30:N$1770,0)) -> 824 | P137: 108.4210526 | Q137: =IF(P137="… ","… ",RANK(P137,P$30:P$1770,0)) -> 549 | R137: 95.87628866 | S137: =IF(R137="… ","… ",RANK(R137,R$30:R$1770,0)) -> 1219 | U137: 0.5254237288 | V137: =IF(U137="… ","… ",RANK(U137,U$30:U$1770,0)) -> 1331 | W137: 0.5454545455 | X137: =IF(W137="… ","… ",RANK(W137,W$30:W$1770,0)) -> 1221
B138: 109 | C138: 1 | D138: 北海道 | E138: 1484 | F138: 羽幌町 | J138: 137.5 | K138: 143 | L138: 118.3823529 | M138: =IF(L138="… ","… ",RANK(L138,L$30:L$1770,0)) -> 248 | N138: 118.3431953 | O138: =IF(N138="… ","… ",RANK(N138,N$30:N$1770,0)) -> 191 | P138: 111.682243 | Q138: =IF(P138="… ","… ",RANK(P138,P$30:P$1770,0)) -> 358 | R138: 104.040404 | S138: =IF(R138="… ","… ",RANK(R138,R$30:R$1770,0)) -> 676 | U138: 0.5261437908 | V138: =IF(U138="… ","… ",RANK(U138,U$30:U$1770,0)) -> 1328 | W138: 0.5375494071 | X138: =IF(W138="… ","… ",RANK(W138,W$30:W$1770,0)) -> 1245
B139: 110 | C139: 1 | D139: 北海道 | E139: 1485 | F139: 初山別村 | J139: 135 | K139: 159 | L139: 125 | M139: =IF(L139="… ","… ",RANK(L139,L$30:L$1770,0)) -> 140 | N139: 121.7391304 | O139: =IF(N139="… ","… ",RANK(N139,N$30:N$1770,0)) -> 148 | P139: 75 | Q139: =IF(P139="… ","… ",RANK(P139,P$30:P$1770,0)) -> 1726 | R139: 95.45454545 | S139: =IF(R139="… ","… ",RANK(R139,R$30:R$1770,0)) -> 1253 | U139: 0.4166666667 | V139: =IF(U139="… ","… ",RANK(U139,U$30:U$1770,0)) -> 1605 | W139: 0.3333333333 | X139: =IF(W139="… ","… ",RANK(W139,W$30:W$1770,0)) -> 1668
B140: 111 | C140: 1 | D140: 北海道 | E140: 1486 | F140: 遠別町 | J140: 85.10638298 | K140: 1676 | L140: 117.3913043 | M140: =IF(L140="… ","… ",RANK(L140,L$30:L$1770,0)) -> 270 | N140: 128.8135593 | O140: =IF(N140="… ","… ",RANK(N140,N$30:N$1770,0)) -> 96 | P140: 118.4210526 | Q140: =IF(P140="… ","… ",RANK(P140,P$30:P$1770,0)) -> 167 | R140: 104.0540541 | S140: =IF(R140="… ","… ",RANK(R140,R$30:R$1770,0)) -> 670 | U140: 0.4909090909 | V140: =IF(U140="… ","… ",RANK(U140,U$30:U$1770,0)) -> 1440 | W140: 0.3333333333 | X140: =IF(W140="… ","… ",RANK(W140,W$30:W$1770,0)) -> 1668
B141: 112 | C141: 1 | D141: 北海道 | E141: 1487 | F141: 天塩町 | J141: 141.509434 | K141: 122 | L141: 102.3809524 | M141: =IF(L141="… ","… ",RANK(L141,L$30:L$1770,0)) -> 1073 | N141: 137.0786517 | O141: =IF(N141="… ","… ",RANK(N141,N$30:N$1770,0)) -> 60 | P141: 107.2289157 | Q141: =IF(P141="… ","… ",RANK(P141,P$30:P$1770,0)) -> 640 | R141: 118.3908046 | S141: =IF(R141="… ","… ",RANK(R141,R$30:R$1770,0)) -> 136 | U141: 0.5243902439 | V141: =IF(U141="… ","… ",RANK(U141,U$30:U$1770,0)) -> 1336 | W141: 0.5753424658 | X141: =IF(W141="… ","… ",RANK(W141,W$30:W$1770,0)) -> 1108
B142: 113 | C142: 1 | D142: 北海道 | E142: 1511 | F142: 猿払村 | J142: 98.91304348 | K142: 1323 | L142: 98.80952381 | M142: =IF(L142="… ","… ",RANK(L142,L$30:L$1770,0)) -> 1304 | N142: 112.5 | O142: =IF(N142="… ","… ",RANK(N142,N$30:N$1770,0)) -> 372 | P142: 108.6419753 | Q142: =IF(P142="… ","… ",RANK(P142,P$30:P$1770,0)) -> 536 | R142: 108.2352941 | S142: =IF(R142="… ","… ",RANK(R142,R$30:R$1770,0)) -> 424 | U142: 0.6587301587 | V142: =IF(U142="… ","… ",RANK(U142,U$30:U$1770,0)) -> 902 | W142: 0.7118644068 | X142: =IF(W142="… ","… ",RANK(W142,W$30:W$1770,0)) -> 746
B143: 114 | C143: 1 | D143: 北海道 | E143: 1512 | F143: 浜頓別町 | J143: 118.9189189 | K143: 386 | L143: 106.185567 | M143: =IF(L143="… ","… ",RANK(L143,L$30:L$1770,0)) -> 796 | N143: 71.17647059 | O143: =IF(N143="… ","… ",RANK(N143,N$30:N$1770,0)) -> 1731 | P143: 108.3969466 | Q143: =IF(P143="… ","… ",RANK(P143,P$30:P$1770,0)) -> 552 | R143: 113.4020619 | S143: =IF(R143="… ","… ",RANK(R143,R$30:R$1770,0)) -> 214 | U143: 0.5659340659 | V143: =IF(U143="… ","… ",RANK(U143,U$30:U$1770,0)) -> 1186 | W143: 0.527173913 | X143: =IF(W143="… ","… ",RANK(W143,W$30:W$1770,0)) -> 1280
B144: 115 | C144: 1 | D144: 北海道 | E144: 1513 | F144: 中頓別町 | J144: 195 | K144: 20 | L144: 116.6666667 | M144: =IF(L144="… ","… ",RANK(L144,L$30:L$1770,0)) -> 292 | N144: 136.9565217 | O144: =IF(N144="… ","… ",RANK(N144,N$30:N$1770,0)) -> 62 | P144: 116.9811321 | Q144: =IF(P144="… ","… ",RANK(P144,P$30:P$1770,0)) -> 189 | R144: 100 | S144: =IF(R144="… ","… ",RANK(R144,R$30:R$1770,0)) -> 926 | U144: 0.3804347826 | V144: =IF(U144="… ","… ",RANK(U144,U$30:U$1770,0)) -> 1646 | W144: 0.4838709677 | X144: =IF(W144="… ","… ",RANK(W144,W$30:W$1770,0)) -> 1385
B145: 116 | C145: 1 | D145: 北海道 | E145: 1514 | F145: 枝幸町 | J145: 110.8108108 | K145: 669 | L145: 100.5050505 | M145: =IF(L145="… ","… ",RANK(L145,L$30:L$1770,0)) -> 1203 | N145: 78.66242038 | O145: =IF(N145="… ","… ",RANK(N145,N$30:N$1770,0)) -> 1721 | P145: 110.5839416 | Q145: =IF(P145="… ","… ",RANK(P145,P$30:P$1770,0)) -> 417 | R145: 99.59016393 | S145: =IF(R145="… ","… ",RANK(R145,R$30:R$1770,0)) -> 972 | U145: 0.5349462366 | V145: =IF(U145="… ","… ",RANK(U145,U$30:U$1770,0)) -> 1298 | W145: 0.515625 | X145: =IF(W145="… ","… ",RANK(W145,W$30:W$1770,0)) -> 1314
B146: 117 | C146: 1 | D146: 北海道 | E146: 1516 | F146: 豊富町 | J146: 139.1304348 | K146: 132 | L146: 137.254902 | M146: =IF(L146="… ","… ",RANK(L146,L$30:L$1770,0)) -> 73 | N146: 108.6956522 | O146: =IF(N146="… ","… ",RANK(N146,N$30:N$1770,0)) -> 595 | P146: 98.30508475 | Q146: =IF(P146="… ","… ",RANK(P146,P$30:P$1770,0)) -> 1317 | R146: 90.83333333 | S146: =IF(R146="… ","… ",RANK(R146,R$30:R$1770,0)) -> 1512 | U146: 0.6278026906 | V146: =IF(U146="… ","… ",RANK(U146,U$30:U$1770,0)) -> 990 | W146: 0.4657534247 | X146: =IF(W146="… ","… ",RANK(W146,W$30:W$1770,0)) -> 1433
B147: 118 | C147: 1 | D147: 北海道 | E147: 1517 | F147: 礼文町 | J147: 124.5901639 | K147: 275 | L147: 161.5384615 | M147: =IF(L147="… ","… ",RANK(L147,L$30:L$1770,0)) -> 30 | N147: 98.66666667 | O147: =IF(N147="… ","… ",RANK(N147,N$30:N$1770,0)) -> 1343 | P147: 186.2068966 | Q147: =IF(P147="… ","… ",RANK(P147,P$30:P$1770,0)) -> 15 | R147: 114.4736842 | S147: =IF(R147="… ","… ",RANK(R147,R$30:R$1770,0)) -> 191 | U147: 0.694214876 | V147: =IF(U147="… ","… ",RANK(U147,U$30:U$1770,0)) -> 773 | W147: 0.4126984127 | X147: =IF(W147="… ","… ",RANK(W147,W$30:W$1770,0)) -> 1553
B148: 119 | C148: 1 | D148: 北海道 | E148: 1518 | F148: 利尻町 | J148: 126.1904762 | K148: 246 | L148: 171.0526316 | M148: =IF(L148="… ","… ",RANK(L148,L$30:L$1770,0)) -> 24 | N148: 108.0645161 | O148: =IF(N148="… ","… ",RANK(N148,N$30:N$1770,0)) -> 649 | P148: 108.1967213 | Q148: =IF(P148="… ","… ",RANK(P148,P$30:P$1770,0)) -> 563 | R148: 140.3846154 | S148: =IF(R148="… ","… ",RANK(R148,R$30:R$1770,0)) -> 48 | U148: 0.8552631579 | V148: =IF(U148="… ","… ",RANK(U148,U$30:U$1770,0)) -> 450 | W148: 0.5205479452 | X148: =IF(W148="… ","… ",RANK(W148,W$30:W$1770,0)) -> 1296
B149: 120 | C149: 1 | D149: 北海道 | E149: 1519 | F149: 利尻富士町 | J149: 94.11764706 | K149: 1504 | L149: 89.23076923 | M149: =IF(L149="… ","… ",RANK(L149,L$30:L$1770,0)) -> 1652 | N149: 98.86363636 | O149: =IF(N149="… ","… ",RANK(N149,N$30:N$1770,0)) -> 1332 | P149: 111.2676056 | Q149: =IF(P149="… ","… ",RANK(P149,P$30:P$1770,0)) -> 372 | R149: 88.88888889 | S149: =IF(R149="… ","… ",RANK(R149,R$30:R$1770,0)) -> 1591 | U149: 0.6516853933 | V149: =IF(U149="… ","… ",RANK(U149,U$30:U$1770,0)) -> 923 | W149: 0.7738095238 | X149: =IF(W149="… ","… ",RANK(W149,W$30:W$1770,0)) -> 604
B150: 121 | C150: 1 | D150: 北海道 | E150: 1520 | F150: 幌延町 | J150: 126.3157895 | K150: 241 | L150: 120.5882353 | M150: =IF(L150="… ","… ",RANK(L150,L$30:L$1770,0)) -> 208 | N150: 107.4074074 | O150: =IF(N150="… ","… ",RANK(N150,N$30:N$1770,0)) -> 697 | P150: 153.125 | Q150: =IF(P150="… ","… ",RANK(P150,P$30:P$1770,0)) -> 28 | R150: 153.8461538 | S150: =IF(R150="… ","… ",RANK(R150,R$30:R$1770,0)) -> 32 | U150: 0.7663551402 | V150: =IF(U150="… ","… ",RANK(U150,U$30:U$1770,0)) -> 627 | W150: 0.6355140187 | X150: =IF(W150="… ","… ",RANK(W150,W$30:W$1770,0)) -> 939
B151: 122 | C151: 1 | D151: 北海道 | E151: 1543 | F151: 美幌町 | J151: 127.3657289 | K151: 226 | L151: 99.81060606 | M151: =IF(L151="… ","… ",RANK(L151,L$30:L$1770,0)) -> 1255 | N151: 108.0438757 | O151: =IF(N151="… ","… ",RANK(N151,N$30:N$1770,0)) -> 650 | P151: 100.9661836 | Q151: =IF(P151="… ","… ",RANK(P151,P$30:P$1770,0)) -> 1127 | R151: 96.46869984 | S151: =IF(R151="… ","… ",RANK(R151,R$30:R$1770,0)) -> 1184 | U151: 0.6272366517 | V151: =IF(U151="… ","… ",RANK(U151,U$30:U$1770,0)) -> 995 | W151: 0.6374614575 | X151: =IF(W151="… ","… ",RANK(W151,W$30:W$1770,0)) -> 932
B152: 123 | C152: 1 | D152: 北海道 | E152: 1544 | F152: 津別町 | J152: 153.125 | K152: 70 | L152: 156.25 | M152: =IF(L152="… ","… ",RANK(L152,L$30:L$1770,0)) -> 35 | N152: 108.7719298 | O152: =IF(N152="… ","… ",RANK(N152,N$30:N$1770,0)) -> 590 | P152: 129.3103448 | Q152: =IF(P152="… ","… ",RANK(P152,P$30:P$1770,0)) -> 76 | R152: 96.9924812 | S152: =IF(R152="… ","… ",RANK(R152,R$30:R$1770,0)) -> 1153 | U152: 0.4424778761 | V152: =IF(U152="… ","… ",RANK(U152,U$30:U$1770,0)) -> 1561 | W152: 0.3004694836 | X152: =IF(W152="… ","… ",RANK(W152,W$30:W$1770,0)) -> 1694
B153: 124 | C153: 1 | D153: 北海道 | E153: 1545 | F153: 斜里町 | J153: 144.488189 | K153: 102 | L153: 120.0647249 | M153: =IF(L153="… ","… ",RANK(L153,L$30:L$1770,0)) -> 219 | N153: 112.465374 | O153: =IF(N153="… ","… ",RANK(N153,N$30:N$1770,0)) -> 376 | P153: 117.2043011 | Q153: =IF(P153="… ","… ",RANK(P153,P$30:P$1770,0)) -> 185 | R153: 108.5545723 | S153: =IF(R153="… ","… ",RANK(R153,R$30:R$1770,0)) -> 404 | U153: 0.7066666667 | V153: =IF(U153="… ","… ",RANK(U153,U$30:U$1770,0)) -> 749 | W153: 0.6058823529 | X153: =IF(W153="… ","… ",RANK(W153,W$30:W$1770,0)) -> 1035
B154: 125 | C154: 1 | D154: 北海道 | E154: 1546 | F154: 清里町 | J154: 131.8181818 | K154: 186 | L154: 105.5555556 | M154: =IF(L154="… ","… ",RANK(L154,L$30:L$1770,0)) -> 846 | N154: 101.754386 | O154: =IF(N154="… ","… ",RANK(N154,N$30:N$1770,0)) -> 1138 | P154: 117.96875 | Q154: =IF(P154="… ","… ",RANK(P154,P$30:P$1770,0)) -> 176 | R154: 117.5257732 | S154: =IF(R154="… ","… ",RANK(R154,R$30:R$1770,0)) -> 146 | U154: 0.5459770115 | V154: =IF(U154="… ","… ",RANK(U154,U$30:U$1770,0)) -> 1260 | W154: 0.4838709677 | X154: =IF(W154="… ","… ",RANK(W154,W$30:W$1770,0)) -> 1385
B155: 126 | C155: 1 | D155: 北海道 | E155: 1547 | F155: 小清水町 | J155: 134.0659341 | K155: 168 | L155: 109.0909091 | M155: =IF(L155="… ","… ",RANK(L155,L$30:L$1770,0)) -> 628 | N155: 105.7142857 | O155: =IF(N155="… ","… ",RANK(N155,N$30:N$1770,0)) -> 824 | P155: 114.3835616 | Q155: =IF(P155="… ","… ",RANK(P155,P$30:P$1770,0)) -> 249 | R155: 73.79310345 | S155: =IF(R155="… ","… ",RANK(R155,R$30:R$1770,0)) -> 1730 | U155: 0.6030150754 | V155: =IF(U155="… ","… ",RANK(U155,U$30:U$1770,0)) -> 1067 | W155: 0.5164319249 | X155: =IF(W155="… ","… ",RANK(W155,W$30:W$1770,0)) -> 1313
B156: 127 | C156: 1 | D156: 北海道 | E156: 1549 | F156: 訓子府町 | J156: 132.5 | K156: 180 | L156: 128.7128713 | M156: =IF(L156="… ","… ",RANK(L156,L$30:L$1770,0)) -> 120 | N156: 90.97744361 | O156: =IF(N156="… ","… ",RANK(N156,N$30:N$1770,0)) -> 1651 | P156: 92.3566879 | Q156: =IF(P156="… ","… ",RANK(P156,P$30:P$1770,0)) -> 1609 | R156: 91.30434783 | S156: =IF(R156="… ","… ",RANK(R156,R$30:R$1770,0)) -> 1485 | U156: 0.503875969 | V156: =IF(U156="… ","… ",RANK(U156,U$30:U$1770,0)) -> 1401 | W156: 0.4208333333 | X156: =IF(W156="… ","… ",RANK(W156,W$30:W$1770,0)) -> 1532
B157: 128 | C157: 1 | D157: 北海道 | E157: 1550 | F157: 置戸町 | J157: 104.3478261 | K157: 1001 | L157: 94.73684211 | M157: =IF(L157="… ","… ",RANK(L157,L$30:L$1770,0)) -> 1488 | N157: 105.7971014 | O157: =IF(N157="… ","… ",RANK(N157,N$30:N$1770,0)) -> 817 | P157: 89.87341772 | Q157: =IF(P157="… ","… ",RANK(P157,P$30:P$1770,0)) -> 1664 | R157: 103.6585366 | S157: =IF(R157="… ","… ",RANK(R157,R$30:R$1770,0)) -> 699 | U157: 0.4766178682 | V157: =IF(U157="… ","… ",RANK(U157,U$30:U$1770,0)) -> 1483 | W157: 0.5205479452 | X157: =IF(W157="… ","… ",RANK(W157,W$30:W$1770,0)) -> 1296
B158: 129 | C158: 1 | D158: 北海道 | E158: 1552 | F158: 佐呂間町 | J158: 95.91836735 | K158: =IF(J158="… ","… ",RANK(J158,J$30:J$1770,0)) -> 1440 | L158: 86.5248227 | M158: =IF(L158="… ","… ",RANK(L158,L$30:L$1770,0)) -> 1690 | N158: 83.33333333 | O158: =IF(N158="… ","… ",RANK(N158,N$30:N$1770,0)) -> 1713 | P158: 94.56521739 | Q158: =IF(P158="… ","… ",RANK(P158,P$30:P$1770,0)) -> 1524 | R158: 115.3284672 | S158: =IF(R158="… ","… ",RANK(R158,R$30:R$1770,0)) -> 170 | U158: 0.5545454545 | V158: =IF(U158="… ","… ",RANK(U158,U$30:U$1770,0)) -> 1230 | W158: 0.5551181102 | X158: =IF(W158="… ","… ",RANK(W158,W$30:W$1770,0)) -> 1186
B159: 130 | C159: 1 | D159: 北海道 | E159: 1555 | F159: 遠軽町 | J159: 128.8571429 | K159: 209 | L159: 98.83945841 | M159: =IF(L159="… ","… ",RANK(L159,L$30:L$1770,0)) -> 1301 | N159: 108.5409253 | O159: =IF(N159="… ","… ",RANK(N159,N$30:N$1770,0)) -> 605 | P159: 107.8778135 | Q159: =IF(P159="… ","… ",RANK(P159,P$30:P$1770,0)) -> 585 | R159: 111.1298482 | S159: =IF(R159="… ","… ",RANK(R159,R$30:R$1770,0)) -> 277 | U159: 0.6529148558 | V159: =IF(U159="… ","… ",RANK(U159,U$30:U$1770,0)) -> 921 | W159: 0.7410828347 | X159: =IF(W159="… ","… ",RANK(W159,W$30:W$1770,0)) -> 670
B160: 131 | C160: 1 | D160: 北海道 | E160: 1559 | F160: 湧別町 | J160: 100 | K160: 1253 | L160: 86.72566372 | M160: =IF(L160="… ","… ",RANK(L160,L$30:L$1770,0)) -> 1686 | N160: 111.0169492 | O160: =IF(N160="… ","… ",RANK(N160,N$30:N$1770,0)) -> 457 | P160: 90.39145907 | Q160: =IF(P160="… ","… ",RANK(P160,P$30:P$1770,0)) -> 1658 | R160: 106.8 | S160: =IF(R160="… ","… ",RANK(R160,R$30:R$1770,0)) -> 510 | U160: 0.5104166667 | V160: =IF(U160="… ","… ",RANK(U160,U$30:U$1770,0)) -> 1381 | W160: 0.6075268817 | X160: =IF(W160="… ","… ",RANK(W160,W$30:W$1770,0)) -> 1031
B161: 132 | C161: 1 | D161: 北海道 | E161: 1560 | F161: 滝上町 | J161: 128.5714286 | K161: 212 | L161: 118.1818182 | M161: =IF(L161="… ","… ",RANK(L161,L$30:L$1770,0)) -> 251 | N161: 100 | O161: =IF(N161="… ","… ",RANK(N161,N$30:N$1770,0)) -> 1253 | P161: 110.1449275 | Q161: =IF(P161="… ","… ",RANK(P161,P$30:P$1770,0)) -> 441 | R161: 115.8730159 | S161: =IF(R161="… ","… ",RANK(R161,R$30:R$1770,0)) -> 160 | U161: 0.5 | V161: =IF(U161="… ","… ",RANK(U161,U$30:U$1770,0)) -> 1415 | W161: 0.3666666667 | X161: =IF(W161="… ","… ",RANK(W161,W$30:W$1770,0)) -> 1636
B162: 133 | C162: 1 | D162: 北海道 | E162: 1561 | F162: 興部町 | J162: 83.49514563 | K162: 1696 | L162: 107.5471698 | M162: =IF(L162="… ","… ",RANK(L162,L$30:L$1770,0)) -> 711 | N162: 100 | O162: =IF(N162="… ","… ",RANK(N162,N$30:N$1770,0)) -> 1253 | P162: 107.3770492 | Q162: =IF(P162="… ","… ",RANK(P162,P$30:P$1770,0)) -> 621 | R162: 108.411215 | S162: =IF(R162="… ","… ",RANK(R162,R$30:R$1770,0)) -> 416 | U162: 0.6514285714 | V162: =IF(U162="… ","… ",RANK(U162,U$30:U$1770,0)) -> 924 | W162: 0.6928104575 | X162: =IF(W162="… ","… ",RANK(W162,W$30:W$1770,0)) -> 788
B163: 134 | C163: 1 | D163: 北海道 | E163: 1562 | F163: 西興部村 | J163: 103.3333333 | K163: 1073 | L163: 164.2857143 | M163: =IF(L163="… ","… ",RANK(L163,L$30:L$1770,0)) -> 28 | N163: 121.6216216 | O163: =IF(N163="… ","… ",RANK(N163,N$30:N$1770,0)) -> 154 | P163: 120 | Q163: =IF(P163="… ","… ",RANK(P163,P$30:P$1770,0)) -> 142 | R163: 103.8461538 | S163: =IF(R163="… ","… ",RANK(R163,R$30:R$1770,0)) -> 686 | U163: 1.12195122 | V163: =IF(U163="… ","… ",RANK(U163,U$30:U$1770,0)) -> 166 | W163: 0.7368421053 | X163: =IF(W163="… ","… ",RANK(W163,W$30:W$1770,0)) -> 685
B164: 135 | C164: 1 | D164: 北海道 | E164: 1563 | F164: 雄武町 | J164: 139.7849462 | K164: 130 | L164: 103.2520325 | M164: =IF(L164="… ","… ",RANK(L164,L$30:L$1770,0)) -> 1025 | N164: 92.53731343 | O164: =IF(N164="… ","… ",RANK(N164,N$30:N$1770,0)) -> 1615 | P164: 97.33333333 | Q164: =IF(P164="… ","… ",RANK(P164,P$30:P$1770,0)) -> 1385 | R164: 102.189781 | S164: =IF(R164="… ","… ",RANK(R164,R$30:R$1770,0)) -> 796 | U164: 0.6864864865 | V164: =IF(U164="… ","… ",RANK(U164,U$30:U$1770,0)) -> 796 | W164: 0.6833333333 | X164: =IF(W164="… ","… ",RANK(W164,W$30:W$1770,0)) -> 808
B165: 136 | C165: 1 | D165: 北海道 | E165: 1564 | F165: 大空町 | J165: 128.0991736 | K165: 216 | L165: 108.3333333 | M165: =IF(L165="… ","… ",RANK(L165,L$30:L$1770,0)) -> 674 | N165: 104.1450777 | O165: =IF(N165="… ","… ",RANK(N165,N$30:N$1770,0)) -> 955 | P165: 109.69163 | Q165: =IF(P165="… ","… ",RANK(P165,P$30:P$1770,0)) -> 459 | R165: 101.9230769 | S165: =IF(R165="… ","… ",RANK(R165,R$30:R$1770,0)) -> 808 | U165: 0.527027027 | V165: =IF(U165="… ","… ",RANK(U165,U$30:U$1770,0)) -> 1323 | W165: 0.5 | X165: =IF(W165="… ","… ",RANK(W165,W$30:W$1770,0)) -> 1349
B166: 137 | C166: 1 | D166: 北海道 | E166: 1571 | F166: 豊浦町 | J166: 131.884058 | K166: 184 | L166: 100.990099 | M166: =IF(L166="… ","… ",RANK(L166,L$30:L$1770,0)) -> 1163 | N166: 137 | O166: =IF(N166="… ","… ",RANK(N166,N$30:N$1770,0)) -> 61 | P166: 104.7244094 | Q166: =IF(P166="… ","… ",RANK(P166,P$30:P$1770,0)) -> 821 | R166: 90.07633588 | S166: =IF(R166="… ","… ",RANK(R166,R$30:R$1770,0)) -> 1549 | U166: 0.6455696203 | V166: =IF(U166="… ","… ",RANK(U166,U$30:U$1770,0)) -> 941 | W166: 0.6965517241 | X166: =IF(W166="… ","… ",RANK(W166,W$30:W$1770,0)) -> 779
B167: 138 | C167: 1 | D167: 北海道 | E167: 1575 | F167: 壮瞥町 | J167: 93.87755102 | K167: 1518 | L167: 107.6923077 | M167: =IF(L167="… ","… ",RANK(L167,L$30:L$1770,0)) -> 704 | N167: 91.66666667 | O167: =IF(N167="… ","… ",RANK(N167,N$30:N$1770,0)) -> 1633 | P167: 116.25 | Q167: =IF(P167="… ","… ",RANK(P167,P$30:P$1770,0)) -> 202 | R167: 107.4626866 | S167: =IF(R167="… ","… ",RANK(R167,R$30:R$1770,0)) -> 474 | U167: 0.6153846154 | V167: =IF(U167="… ","… ",RANK(U167,U$30:U$1770,0)) -> 1029 | W167: 0.5977011494 | X167: =IF(W167="… ","… ",RANK(W167,W$30:W$1770,0)) -> 1051
B168: 139 | C168: 1 | D168: 北海道 | E168: 1578 | F168: 白老町 | J168: 137.2197309 | K168: 146 | L168: 104.4520548 | M168: =IF(L168="… ","… ",RANK(L168,L$30:L$1770,0)) -> 929 | N168: 101.0362694 | O168: =IF(N168="… ","… ",RANK(N168,N$30:N$1770,0)) -> 1194 | P168: 100.1949318 | Q168: =IF(P168="… ","… ",RANK(P168,P$30:P$1770,0)) -> 1181 | R168: 93.7037037 | S168: =IF(R168="… ","… ",RANK(R168,R$30:R$1770,0)) -> 1362 | U168: 0.4685099846 | V168: =IF(U168="… ","… ",RANK(U168,U$30:U$1770,0)) -> 1504 | W168: 0.4250363901 | X168: =IF(W168="… ","… ",RANK(W168,W$30:W$1770,0)) -> 1523
B169: 140 | C169: 1 | D169: 北海道 | E169: 1581 | F169: 厚真町 | J169: 132.5301205 | K169: 177 | L169: 113.1868132 | M169: =IF(L169="… ","… ",RANK(L169,L$30:L$1770,0)) -> 416 | N169: 111.4754098 | O169: =IF(N169="… ","… ",RANK(N169,N$30:N$1770,0)) -> 429 | P169: 149.5726496 | Q169: =IF(P169="… ","… ",RANK(P169,P$30:P$1770,0)) -> 34 | R169: 114.5454545 | S169: =IF(R169="… ","… ",RANK(R169,R$30:R$1770,0)) -> 188 | U169: 0.6130952381 | V169: =IF(U169="… ","… ",RANK(U169,U$30:U$1770,0)) -> 1038 | W169: 0.610738255 | X169: =IF(W169="… ","… ",RANK(W169,W$30:W$1770,0)) -> 1019
B170: 141 | C170: 1 | D170: 北海道 | E170: 1584 | F170: 洞爺湖町 | J170: 101.9736842 | K170: 1157 | L170: 109.1397849 | M170: =IF(L170="… ","… ",RANK(L170,L$30:L$1770,0)) -> 626 | N170: 87.71929825 | O170: =IF(N170="… ","… ",RANK(N170,N$30:N$1770,0)) -> 1690 | P170: 89.29889299 | Q170: =IF(P170="… ","… ",RANK(P170,P$30:P$1770,0)) -> 1678 | R170: 88.44765343 | S170: =IF(R170="… ","… ",RANK(R170,R$30:R$1770,0)) -> 1609 | U170: 0.5245478036 | V170: =IF(U170="… ","… ",RANK(U170,U$30:U$1770,0)) -> 1334 | W170: 0.5166666667 | X170: =IF(W170="… ","… ",RANK(W170,W$30:W$1770,0)) -> 1312
B171: 142 | C171: 1 | D171: 北海道 | E171: 1585 | F171: 安平町 | J171: 127.6422764 | K171: 222 | L171: 117.3652695 | M171: =IF(L171="… ","… ",RANK(L171,L$30:L$1770,0)) -> 273 | N171: 109.5238095 | O171: =IF(N171="… ","… ",RANK(N171,N$30:N$1770,0)) -> 542 | P171: 117.3228346 | Q171: =IF(P171="… ","… ",RANK(P171,P$30:P$1770,0)) -> 182 | R171: 122.6890756 | S171: =IF(R171="… ","… ",RANK(R171,R$30:R$1770,0)) -> 97 | U171: 0.780876494 | V171: =IF(U171="… ","… ",RANK(U171,U$30:U$1770,0)) -> 604 | W171: 0.6423076923 | X171: =IF(W171="… ","… ",RANK(W171,W$30:W$1770,0)) -> 921
B172: 143 | C172: 1 | D172: 北海道 | E172: 1586 | F172: むかわ町 | J172: 130.5555556 | K172: 193 | L172: 142.7631579 | M172: =IF(L172="… ","… ",RANK(L172,L$30:L$1770,0)) -> 59 | N172: 102.8571429 | O172: =IF(N172="… ","… ",RANK(N172,N$30:N$1770,0)) -> 1067 | P172: 113.4782609 | Q172: =IF(P172="… ","… ",RANK(P172,P$30:P$1770,0)) -> 281 | R172: 86.58008658 | S172: =IF(R172="… ","… ",RANK(R172,R$30:R$1770,0)) -> 1649 | U172: 0.5535714286 | V172: =IF(U172="… ","… ",RANK(U172,U$30:U$1770,0)) -> 1236 | W172: 0.4164383562 | X172: =IF(W172="… ","… ",RANK(W172,W$30:W$1770,0)) -> 1542
B173: 144 | C173: 1 | D173: 北海道 | E173: 1601 | F173: 日高町 | J173: 122.2748815 | K173: 314 | L173: 154.7794118 | M173: =IF(L173="… ","… ",RANK(L173,L$30:L$1770,0)) -> 40 | N173: 126.7806268 | O173: =IF(N173="… ","… ",RANK(N173,N$30:N$1770,0)) -> 107 | P173: 111.0552764 | Q173: =IF(P173="… ","… ",RANK(P173,P$30:P$1770,0)) -> 391 | R173: 125.9615385 | S173: =IF(R173="… ","… ",RANK(R173,R$30:R$1770,0)) -> 78 | U173: 0.7599277978 | V173: =IF(U173="… ","… ",RANK(U173,U$30:U$1770,0)) -> 639 | W173: 0.5517241379 | X173: =IF(W173="… ","… ",RANK(W173,W$30:W$1770,0)) -> 1200
B174: 145 | C174: 1 | D174: 北海道 | E174: 1602 | F174: 平取町 | J174: 119.3548387 | K174: 380 | L174: 115 | M174: =IF(L174="… ","… ",RANK(L174,L$30:L$1770,0)) -> 343 | N174: 132.3076923 | O174: =IF(N174="… ","… ",RANK(N174,N$30:N$1770,0)) -> 80 | P174: 88.34951456 | Q174: =IF(P174="… ","… ",RANK(P174,P$30:P$1770,0)) -> 1690 | R174: 107.3170732 | S174: =IF(R174="… ","… ",RANK(R174,R$30:R$1770,0)) -> 483 | U174: 0.4956896552 | V174: =IF(U174="… ","… ",RANK(U174,U$30:U$1770,0)) -> 1431 | W174: 0.4329004329 | X174: =IF(W174="… ","… ",RANK(W174,W$30:W$1770,0)) -> 1509
B175: 146 | C175: 1 | D175: 北海道 | E175: 1604 | F175: 新冠町 | J175: 117.8217822 | K175: 422 | L175: 138.5826772 | M175: =IF(L175="… ","… ",RANK(L175,L$30:L$1770,0)) -> 69 | N175: 114.3678161 | O175: =IF(N175="… ","… ",RANK(N175,N$30:N$1770,0)) -> 298 | P175: 122.1052632 | Q175: =IF(P175="… ","… ",RANK(P175,P$30:P$1770,0)) -> 121 | R175: 94.82758621 | S175: =IF(R175="… ","… ",RANK(R175,R$30:R$1770,0)) -> 1290 | U175: 0.8712871287 | V175: =IF(U175="… ","… ",RANK(U175,U$30:U$1770,0)) -> 424 | W175: 0.6165048544 | X175: =IF(W175="… ","… ",RANK(W175,W$30:W$1770,0)) -> 1000
B176: 147 | C176: 1 | D176: 北海道 | E176: 1607 | F176: 浦河町 | J176: 106.504065 | K176: 889 | L176: 116.286645 | M176: =IF(L176="… ","… ",RANK(L176,L$30:L$1770,0)) -> 300 | N176: 109.0909091 | O176: =IF(N176="… ","… ",RANK(N176,N$30:N$1770,0)) -> 571 | P176: 122.2488038 | Q176: =IF(P176="… ","… ",RANK(P176,P$30:P$1770,0)) -> 118 | R176: 100.2386635 | S176: =IF(R176="… ","… ",RANK(R176,R$30:R$1770,0)) -> 917 | U176: 0.6812977099 | V176: =IF(U176="… ","… ",RANK(U176,U$30:U$1770,0)) -> 816 | W176: 0.5938104449 | X176: =IF(W176="… ","… ",RANK(W176,W$30:W$1770,0)) -> 1062
B177: 148 | C177: 1 | D177: 北海道 | E177: 1608 | F177: 様似町 | J177: 141.9354839 | K177: 118 | L177: 119.7802198 | M177: =IF(L177="… ","… ",RANK(L177,L$30:L$1770,0)) -> 223 | N177: 114.4329897 | O177: =IF(N177="… ","… ",RANK(N177,N$30:N$1770,0)) -> 294 | P177: 107.6335878 | Q177: =IF(P177="… ","… ",RANK(P177,P$30:P$1770,0)) -> 605 | R177: 90.78014184 | S177: =IF(R177="… ","… ",RANK(R177,R$30:R$1770,0)) -> 1514 | U177: 0.437751004 | V177: =IF(U177="… ","… ",RANK(U177,U$30:U$1770,0)) -> 1574 | W177: 0.3905579399 | X177: =IF(W177="… ","… ",RANK(W177,W$30:W$1770,0)) -> 1594
B178: 149 | C178: 1 | D178: 北海道 | E178: 1609 | F178: えりも町 | J178: 114.1414141 | K178: 543 | L178: 132.5203252 | M178: =IF(L178="… ","… ",RANK(L178,L$30:L$1770,0)) -> 97 | N178: 112.8571429 | O178: =IF(N178="… ","… ",RANK(N178,N$30:N$1770,0)) -> 362 | P178: 133.0769231 | Q178: =IF(P178="… ","… ",RANK(P178,P$30:P$1770,0)) -> 61 | R178: 105.1282051 | S178: =IF(R178="… ","… ",RANK(R178,R$30:R$1770,0)) -> 604 | U178: 0.6680327869 | V178: =IF(U178="… ","… ",RANK(U178,U$30:U$1770,0)) -> 869 | W178: 0.5125 | X178: =IF(W178="… ","… ",RANK(W178,W$30:W$1770,0)) -> 1319
B179: 150 | C179: 1 | D179: 北海道 | E179: 1610 | F179: 新ひだか町 | J179: 114.2857143 | K179: 534 | L179: 111.1864407 | M179: =IF(L179="… ","… ",RANK(L179,L$30:L$1770,0)) -> 506 | N179: 113.5670732 | O179: =IF(N179="… ","… ",RANK(N179,N$30:N$1770,0)) -> 320 | P179: 107.7656676 | Q179: =IF(P179="… ","… ",RANK(P179,P$30:P$1770,0)) -> 595 | R179: 82.49027237 | S179: =IF(R179="… ","… ",RANK(R179,R$30:R$1770,0)) -> 1709 | U179: 0.6344294004 | V179: =IF(U179="… ","… ",RANK(U179,U$30:U$1770,0)) -> 972 | W179: 0.6236786469 | X179: =IF(W179="… ","… ",RANK(W179,W$30:W$1770,0)) -> 976
B180: 151 | C180: 1 | D180: 北海道 | E180: 1631 | F180: 音更町 | J180: 90.91847265 | K180: 1597 | L180: 92.48366013 | M180: =IF(L180="… ","… ",RANK(L180,L$30:L$1770,0)) -> 1573 | N180: 91.00628931 | O180: =IF(N180="… ","… ",RANK(N180,N$30:N$1770,0)) -> 1649 | P180: 92.57854821 | Q180: =IF(P180="… ","… ",RANK(P180,P$30:P$1770,0)) -> 1606 | R180: 94.60154242 | S180: =IF(R180="… ","… ",RANK(R180,R$30:R$1770,0)) -> 1307 | U180: 0.8878431373 | V180: =IF(U180="… ","… ",RANK(U180,U$30:U$1770,0)) -> 397 | W180: 1.005751849 | X180: =IF(W180="… ","… ",RANK(W180,W$30:W$1770,0)) -> 268
B181: 152 | C181: 1 | D181: 北海道 | E181: 1632 | F181: 士幌町 | J181: 91.78082192 | K181: 1579 | L181: 130.2816901 | M181: =IF(L181="… ","… ",RANK(L181,L$30:L$1770,0)) -> 112 | N181: 100.5649718 | O181: =IF(N181="… ","… ",RANK(N181,N$30:N$1770,0)) -> 1230 | P181: 84.26395939 | Q181: =IF(P181="… ","… ",RANK(P181,P$30:P$1770,0)) -> 1713 | R181: 110.1190476 | S181: =IF(R181="… ","… ",RANK(R181,R$30:R$1770,0)) -> 317 | U181: 0.687732342 | V181: =IF(U181="… ","… ",RANK(U181,U$30:U$1770,0)) -> 794 | W181: 0.5590551181 | X181: =IF(W181="… ","… ",RANK(W181,W$30:W$1770,0)) -> 1167
B182: 153 | C182: 1 | D182: 北海道 | E182: 1633 | F182: 上士幌町 | J182: 96.2962963 | K182: 1426 | L182: 112.6126126 | M182: =IF(L182="… ","… ",RANK(L182,L$30:L$1770,0)) -> 438 | N182: 121.8487395 | O182: =IF(N182="… ","… ",RANK(N182,N$30:N$1770,0)) -> 147 | P182: 99.24242424 | Q182: =IF(P182="… ","… ",RANK(P182,P$30:P$1770,0)) -> 1257 | R182: 100.7874016 | S182: =IF(R182="… ","… ",RANK(R182,R$30:R$1770,0)) -> 877 | U182: 0.6793478261 | V182: =IF(U182="… ","… ",RANK(U182,U$30:U$1770,0)) -> 824 | W182: 0.6201117318 | X182: =IF(W182="… ","… ",RANK(W182,W$30:W$1770,0)) -> 990
B183: 154 | C183: 1 | D183: 北海道 | E183: 1634 | F183: 鹿追町 | J183: 124.0601504 | K183: 283 | L183: 101.2578616 | M183: =IF(L183="… ","… ",RANK(L183,L$30:L$1770,0)) -> 1151 | N183: 107.5 | O183: =IF(N183="… ","… ",RANK(N183,N$30:N$1770,0)) -> 690 | P183: 100 | Q183: =IF(P183="… ","… ",RANK(P183,P$30:P$1770,0)) -> 1194 | R183: 107.2847682 | S183: =IF(R183="… ","… ",RANK(R183,R$30:R$1770,0)) -> 486 | U183: 0.7453703704 | V183: =IF(U183="… ","… ",RANK(U183,U$30:U$1770,0)) -> 670 | W183: 0.7464788732 | X183: =IF(W183="… ","… ",RANK(W183,W$30:W$1770,0)) -> 654
B184: 155 | C184: 1 | D184: 北海道 | E184: 1635 | F184: 新得町 | J184: 123.0769231 | K184: 300 | L184: 107.4829932 | M184: =IF(L184="… ","… ",RANK(L184,L$30:L$1770,0)) -> 712 | N184: 108.2872928 | O184: =IF(N184="… ","… ",RANK(N184,N$30:N$1770,0)) -> 631 | P184: 106.8421053 | Q184: =IF(P184="… ","… ",RANK(P184,P$30:P$1770,0)) -> 666 | R184: 101.0869565 | S184: =IF(R184="… ","… ",RANK(R184,R$30:R$1770,0)) -> 859 | U184: 0.7085201794 | V184: =IF(U184="… ","… ",RANK(U184,U$30:U$1770,0)) -> 745 | W184: 0.7 | X184: =IF(W184="… ","… ",RANK(W184,W$30:W$1770,0)) -> 772
B185: 156 | C185: 1 | D185: 北海道 | E185: 1636 | F185: 清水町 | J185: 136.9318182 | K185: 147 | L185: 106.4220183 | M185: =IF(L185="… ","… ",RANK(L185,L$30:L$1770,0)) -> 775 | N185: 110.1214575 | O185: =IF(N185="… ","… ",RANK(N185,N$30:N$1770,0)) -> 507 | P185: 106.6914498 | Q185: =IF(P185="… ","… ",RANK(P185,P$30:P$1770,0)) -> 681 | R185: 104.3010753 | S185: =IF(R185="… ","… ",RANK(R185,R$30:R$1770,0)) -> 649 | U185: 0.660968661 | V185: =IF(U185="… ","… ",RANK(U185,U$30:U$1770,0)) -> 896 | W185: 0.6210826211 | X185: =IF(W185="… ","… ",RANK(W185,W$30:W$1770,0)) -> 985
B186: 157 | C186: 1 | D186: 北海道 | E186: 1637 | F186: 芽室町 | J186: 109.221902 | K186: 762 | L186: 91.15789474 | M186: =IF(L186="… ","… ",RANK(L186,L$30:L$1770,0)) -> 1609 | N186: 93.28968903 | O186: =IF(N186="… ","… ",RANK(N186,N$30:N$1770,0)) -> 1590 | P186: 96.30136986 | Q186: =IF(P186="… ","… ",RANK(P186,P$30:P$1770,0)) -> 1444 | R186: 83.62573099 | S186: =IF(R186="… ","… ",RANK(R186,R$30:R$1770,0)) -> 1698 | U186: 0.7265100671 | V186: =IF(U186="… ","… ",RANK(U186,U$30:U$1770,0)) -> 705 | W186: 0.8246527778 | X186: =IF(W186="… ","… ",RANK(W186,W$30:W$1770,0)) -> 520
B187: 158 | C187: 1 | D187: 北海道 | E187: 1638 | F187: 中札内村 | J187: 103.2258065 | K187: 1084 | L187: 89.32038835 | M187: =IF(L187="… ","… ",RANK(L187,L$30:L$1770,0)) -> 1648 | N187: 115.0943396 | O187: =IF(N187="… ","… ",RANK(N187,N$30:N$1770,0)) -> 269 | P187: 100.7092199 | Q187: =IF(P187="… ","… ",RANK(P187,P$30:P$1770,0)) -> 1146 | R187: 113.8461538 | S187: =IF(R187="… ","… ",RANK(R187,R$30:R$1770,0)) -> 200 | U187: 0.7540983607 | V187: =IF(U187="… ","… ",RANK(U187,U$30:U$1770,0)) -> 652 | W187: 0.8442622951 | X187: =IF(W187="… ","… ",RANK(W187,W$30:W$1770,0)) -> 489
B188: 159 | C188: 1 | D188: 北海道 | E188: 1639 | F188: 更別村 | J188: 145.3125 | K188: 97 | L188: 114.4736842 | M188: =IF(L188="… ","… ",RANK(L188,L$30:L$1770,0)) -> 361 | N188: 112.3595506 | O188: =IF(N188="… ","… ",RANK(N188,N$30:N$1770,0)) -> 378 | P188: 109.0909091 | Q188: =IF(P188="… ","… ",RANK(P188,P$30:P$1770,0)) -> 496 | R188: 108.7912088 | S188: =IF(R188="… ","… ",RANK(R188,R$30:R$1770,0)) -> 385 | U188: 0.7565217391 | V188: =IF(U188="… ","… ",RANK(U188,U$30:U$1770,0)) -> 644 | W188: 0.6229508197 | X188: =IF(W188="… ","… ",RANK(W188,W$30:W$1770,0)) -> 978
B189: 160 | C189: 1 | D189: 北海道 | E189: 1641 | F189: 大樹町 | J189: 117.9856115 | K189: 413 | L189: 114.4827586 | M189: =IF(L189="… ","… ",RANK(L189,L$30:L$1770,0)) -> 360 | N189: 125.8064516 | O189: =IF(N189="… ","… ",RANK(N189,N$30:N$1770,0)) -> 110 | P189: 106.8322981 | Q189: =IF(P189="… ","… ",RANK(P189,P$30:P$1770,0)) -> 667 | R189: 115.2173913 | S189: =IF(R189="… ","… ",RANK(R189,R$30:R$1770,0)) -> 175 | U189: 0.6509803922 | V189: =IF(U189="… ","… ",RANK(U189,U$30:U$1770,0)) -> 926 | W189: 0.625 | X189: =IF(W189="… ","… ",RANK(W189,W$30:W$1770,0)) -> 972
B190: 161 | C190: 1 | D190: 北海道 | E190: 1642 | F190: 広尾町 | J190: 117.3553719 | K190: 437 | L190: 100 | M190: =IF(L190="… ","… ",RANK(L190,L$30:L$1770,0)) -> 1230 | N190: 97.23756906 | O190: =IF(N190="… ","… ",RANK(N190,N$30:N$1770,0)) -> 1430 | P190: 123 | Q190: =IF(P190="… ","… ",RANK(P190,P$30:P$1770,0)) -> 109 | R190: 89.77777778 | S190: =IF(R190="… ","… ",RANK(R190,R$30:R$1770,0)) -> 1561 | U190: 0.4650455927 | V190: =IF(U190="… ","… ",RANK(U190,U$30:U$1770,0)) -> 1514 | W190: 0.4841772152 | X190: =IF(W190="… ","… ",RANK(W190,W$30:W$1770,0)) -> 1384
B191: 162 | C191: 1 | D191: 北海道 | E191: 1643 | F191: 幕別町 | J191: 103.2921811 | K191: 1080 | L191: 88.97168405 | M191: =IF(L191="… ","… ",RANK(L191,L$30:L$1770,0)) -> 1657 | N191: 92.66055046 | O191: =IF(N191="… ","… ",RANK(N191,N$30:N$1770,0)) -> 1609 | P191: 92.82868526 | Q191: =IF(P191="… ","… ",RANK(P191,P$30:P$1770,0)) -> 1592 | R191: 88.76651982 | S191: =IF(R191="… ","… ",RANK(R191,R$30:R$1770,0)) -> 1598 | U191: 0.7201447527 | V191: =IF(U191="… ","… ",RANK(U191,U$30:U$1770,0)) -> 722 | W191: 0.8408521303 | X191: =IF(W191="… ","… ",RANK(W191,W$30:W$1770,0)) -> 495
B192: 163 | C192: 1 | D192: 北海道 | E192: 1644 | F192: 池田町 | J192: 134.8314607 | K192: 160 | L192: 89.6 | M192: =IF(L192="… ","… ",RANK(L192,L$30:L$1770,0)) -> 1643 | N192: 94.73684211 | O192: =IF(N192="… ","… ",RANK(N192,N$30:N$1770,0)) -> 1537 | P192: 123.5294118 | Q192: =IF(P192="… ","… ",RANK(P192,P$30:P$1770,0)) -> 104 | R192: 98.52941176 | S192: =IF(R192="… ","… ",RANK(R192,R$30:R$1770,0)) -> 1044 | U192: 0.4226415094 | V192: =IF(U192="… ","… ",RANK(U192,U$30:U$1770,0)) -> 1592 | W192: 0.4370629371 | X192: =IF(W192="… ","… ",RANK(W192,W$30:W$1770,0)) -> 1499
B193: 164 | C193: 1 | D193: 北海道 | E193: 1645 | F193: 豊頃町 | J193: 125.4237288 | K193: 259 | L193: 133.3333333 | M193: =IF(L193="… ","… ",RANK(L193,L$30:L$1770,0)) -> 86 | N193: 109.0909091 | O193: =IF(N193="… ","… ",RANK(N193,N$30:N$1770,0)) -> 571 | P193: 93.10344828 | Q193: =IF(P193="… ","… ",RANK(P193,P$30:P$1770,0)) -> 1579 | R193: 101.2048193 | S193: =IF(R193="… ","… ",RANK(R193,R$30:R$1770,0)) -> 855 | U193: 0.5454545455 | V193: =IF(U193="… ","… ",RANK(U193,U$30:U$1770,0)) -> 1262 | W193: 0.504 | X193: =IF(W193="… ","… ",RANK(W193,W$30:W$1770,0)) -> 1340
B194: 165 | C194: 1 | D194: 北海道 | E194: 1646 | F194: 本別町 | J194: 122.4489796 | K194: 311 | L194: 136.9747899 | M194: =IF(L194="… ","… ",RANK(L194,L$30:L$1770,0)) -> 74 | N194: 113.372093 | O194: =IF(N194="… ","… ",RANK(N194,N$30:N$1770,0)) -> 331 | P194: 108.5 | Q194: =IF(P194="… ","… ",RANK(P194,P$30:P$1770,0)) -> 544 | R194: 81.54506438 | S194: =IF(R194="… ","… ",RANK(R194,R$30:R$1770,0)) -> 1715 | U194: 0.4453551913 | V194: =IF(U194="… ","… ",RANK(U194,U$30:U$1770,0)) -> 1551 | W194: 0.3707165109 | X194: =IF(W194="… ","… ",RANK(W194,W$30:W$1770,0)) -> 1634
B195: 166 | C195: 1 | D195: 北海道 | E195: 1647 | F195: 足寄町 | J195: 119.047619 | K195: 383 | L195: 111.3333333 | M195: =IF(L195="… ","… ",RANK(L195,L$30:L$1770,0)) -> 501 | N195: 109.7701149 | O195: =IF(N195="… ","… ",RANK(N195,N$30:N$1770,0)) -> 527 | P195: 113.4615385 | Q195: =IF(P195="… ","… ",RANK(P195,P$30:P$1770,0)) -> 282 | R195: 109.8837209 | S195: =IF(R195="… ","… ",RANK(R195,R$30:R$1770,0)) -> 329 | U195: 0.5268138801 | V195: =IF(U195="… ","… ",RANK(U195,U$30:U$1770,0)) -> 1325 | W195: 0.5319148936 | X195: =IF(W195="… ","… ",RANK(W195,W$30:W$1770,0)) -> 1267
B196: 167 | C196: 1 | D196: 北海道 | E196: 1648 | F196: 陸別町 | J196: 158.5365854 | K196: 58 | L196: 105.0847458 | M196: =IF(L196="… ","… ",RANK(L196,L$30:L$1770,0)) -> 882 | N196: 148.9795918 | O196: =IF(N196="… ","… ",RANK(N196,N$30:N$1770,0)) -> 35 | P196: 122.7272727 | Q196: =IF(P196="… ","… ",RANK(P196,P$30:P$1770,0)) -> 113 | R196: 124.2857143 | S196: =IF(R196="… ","… ",RANK(R196,R$30:R$1770,0)) -> 86 | U196: 0.7654320988 | V196: =IF(U196="… ","… ",RANK(U196,U$30:U$1770,0)) -> 630 | W196: 0.6941176471 | X196: =IF(W196="… ","… ",RANK(W196,W$30:W$1770,0)) -> 786
B197: 168 | C197: 1 | D197: 北海道 | E197: 1649 | F197: 浦幌町 | J197: 127.3809524 | K197: 225 | L197: 125.4901961 | M197: =IF(L197="… ","… ",RANK(L197,L$30:L$1770,0)) -> 136 | N197: 124.2105263 | O197: =IF(N197="… ","… ",RANK(N197,N$30:N$1770,0)) -> 124 | P197: 119.8275862 | Q197: =IF(P197="… ","… ",RANK(P197,P$30:P$1770,0)) -> 147 | R197: 76.97841727 | S197: =IF(R197="… ","… ",RANK(R197,R$30:R$1770,0)) -> 1727 | U197: 0.4475524476 | V197: =IF(U197="… ","… ",RANK(U197,U$30:U$1770,0)) -> 1548 | W197: 0.4214876033 | X197: =IF(W197="… ","… ",RANK(W197,W$30:W$1770,0)) -> 1530
B198: 169 | C198: 1 | D198: 北海道 | E198: 1661 | F198: 釧路町 | J198: 94.68690702 | K198: 1487 | L198: 99.07063197 | M198: =IF(L198="… ","… ",RANK(L198,L$30:L$1770,0)) -> 1296 | N198: 98.47198642 | O198: =IF(N198="… ","… ",RANK(N198,N$30:N$1770,0)) -> 1360 | P198: 96.20253165 | Q198: =IF(P198="… ","… ",RANK(P198,P$30:P$1770,0)) -> 1447 | R198: 88.82438316 | S198: =IF(R198="… ","… ",RANK(R198,R$30:R$1770,0)) -> 1596 | U198: 0.6352800954 | V198: =IF(U198="… ","… ",RANK(U198,U$30:U$1770,0)) -> 967 | W198: 0.6585067319 | X198: =IF(W198="… ","… ",RANK(W198,W$30:W$1770,0)) -> 869
B199: 170 | C199: 1 | D199: 北海道 | E199: 1662 | F199: 厚岸町 | J199: 118.8481675 | K199: 389 | L199: 87.20930233 | M199: =IF(L199="… ","… ",RANK(L199,L$30:L$1770,0)) -> 1682 | N199: 109.4650206 | O199: =IF(N199="… ","… ",RANK(N199,N$30:N$1770,0)) -> 547 | P199: 97.11538462 | Q199: =IF(P199="… ","… ",RANK(P199,P$30:P$1770,0)) -> 1394 | R199: 96.61016949 | S199: =IF(R199="… ","… ",RANK(R199,R$30:R$1770,0)) -> 1178 | U199: 0.4849137931 | V199: =IF(U199="… ","… ",RANK(U199,U$30:U$1770,0)) -> 1454 | W199: 0.5548387097 | X199: =IF(W199="… ","… ",RANK(W199,W$30:W$1770,0)) -> 1188
B200: 171 | C200: 1 | D200: 北海道 | E200: 1663 | F200: 浜中町 | J200: 127.8688525 | K200: 219 | L200: 106.626506 | M200: =IF(L200="… ","… ",RANK(L200,L$30:L$1770,0)) -> 763 | N200: 112.2093023 | O200: =IF(N200="… ","… ",RANK(N200,N$30:N$1770,0)) -> 385 | P200: 107.8651685 | Q200: =IF(P200="… ","… ",RANK(P200,P$30:P$1770,0)) -> 587 | R200: 98.31460674 | S200: =IF(R200="… ","… ",RANK(R200,R$30:R$1770,0)) -> 1059 | U200: 0.6 | V200: =IF(U200="… ","… ",RANK(U200,U$30:U$1770,0)) -> 1079 | W200: 0.5804195804 | X200: =IF(W200="… ","… ",RANK(W200,W$30:W$1770,0)) -> 1099
B201: 172 | C201: 1 | D201: 北海道 | E201: 1664 | F201: 標茶町 | J201: 128.7671233 | K201: 210 | L201: 115.6424581 | M201: =IF(L201="… ","… ",RANK(L201,L$30:L$1770,0)) -> 318 | N201: 113.0208333 | O201: =IF(N201="… ","… ",RANK(N201,N$30:N$1770,0)) -> 348 | P201: 96.56652361 | Q201: =IF(P201="… ","… ",RANK(P201,P$30:P$1770,0)) -> 1430 | R201: 85.47717842 | S201: =IF(R201="… ","… ",RANK(R201,R$30:R$1770,0)) -> 1676 | U201: 0.5609756098 | V201: =IF(U201="… ","… ",RANK(U201,U$30:U$1770,0)) -> 1207 | W201: 0.4811827957 | X201: =IF(W201="… ","… ",RANK(W201,W$30:W$1770,0)) -> 1392
B202: 173 | C202: 1 | D202: 北海道 | E202: 1665 | F202: 弟子屈町 | J202: 124.5454545 | K202: 276 | L202: 106.3694268 | M202: =IF(L202="… ","… ",RANK(L202,L$30:L$1770,0)) -> 779 | N202: 105.1020408 | O202: =IF(N202="… ","… ",RANK(N202,N$30:N$1770,0)) -> 873 | P202: 95.41666667 | Q202: =IF(P202="… ","… ",RANK(P202,P$30:P$1770,0)) -> 1485 | R202: 99.56140351 | S202: =IF(R202="… ","… ",RANK(R202,R$30:R$1770,0)) -> 975 | U202: 0.5230884595 | V202: =IF(U202="… ","… ",RANK(U202,U$30:U$1770,0)) -> 1340 | W202: 0.546494934 | X202: =IF(W202="… ","… ",RANK(W202,W$30:W$1770,0)) -> 1216
B203: 174 | C203: 1 | D203: 北海道 | E203: 1667 | F203: 鶴居村 | J203: 143.2432432 | K203: 109 | L203: 98.33333333 | M203: =IF(L203="… ","… ",RANK(L203,L$30:L$1770,0)) -> 1321 | N203: 111.4754098 | O203: =IF(N203="… ","… ",RANK(N203,N$30:N$1770,0)) -> 429 | P203: 92.70833333 | Q203: =IF(P203="… ","… ",RANK(P203,P$30:P$1770,0)) -> 1600 | R203: 77.10843373 | S203: =IF(R203="… ","… ",RANK(R203,R$30:R$1770,0)) -> 1725 | U203: 0.6629213483 | V203: =IF(U203="… ","… ",RANK(U203,U$30:U$1770,0)) -> 888 | W203: 0.5405405405 | X203: =IF(W203="… ","… ",RANK(W203,W$30:W$1770,0)) -> 1237
B204: 175 | C204: 1 | D204: 北海道 | E204: 1668 | F204: 白糠町 | J204: 110 | K204: 711 | L204: 104.6783626 | M204: =IF(L204="… ","… ",RANK(L204,L$30:L$1770,0)) -> 911 | N204: 109.9415205 | O204: =IF(N204="… ","… ",RANK(N204,N$30:N$1770,0)) -> 515 | P204: 96.42857143 | Q204: =IF(P204="… ","… ",RANK(P204,P$30:P$1770,0)) -> 1439 | R204: 88.51851852 | S204: =IF(R204="… ","… ",RANK(R204,R$30:R$1770,0)) -> 1607 | U204: 0.4344660194 | V204: =IF(U204="… ","… ",RANK(U204,U$30:U$1770,0)) -> 1577 | W204: 0.406175772 | X204: =IF(W204="… ","… ",RANK(W204,W$30:W$1770,0)) -> 1567
B205: 176 | C205: 1 | D205: 北海道 | E205: 1691 | F205: 別海町 | J205: 124.6882793 | K205: 273 | L205: 121.291866 | M205: =IF(L205="… ","… ",RANK(L205,L$30:L$1770,0)) -> 195 | N205: 110.6930693 | O205: =IF(N205="… ","… ",RANK(N205,N$30:N$1770,0)) -> 477 | P205: 110.5263158 | Q205: =IF(P205="… ","… ",RANK(P205,P$30:P$1770,0)) -> 421 | R205: 110.4218362 | S205: =IF(R205="… ","… ",RANK(R205,R$30:R$1770,0)) -> 306 | U205: 0.7211948791 | V205: =IF(U205="… ","… ",RANK(U205,U$30:U$1770,0)) -> 720 | W205: 0.6201780415 | X205: =IF(W205="… ","… ",RANK(W205,W$30:W$1770,0)) -> 989
B206: 177 | C206: 1 | D206: 北海道 | E206: 1692 | F206: 中標津町 | J206: 97.80775717 | K206: 1364 | L206: 107.0080863 | M206: =IF(L206="… ","… ",RANK(L206,L$30:L$1770,0)) -> 740 | N206: 105.4587689 | O206: =IF(N206="… ","… ",RANK(N206,N$30:N$1770,0)) -> 845 | P206: 109.080326 | Q206: =IF(P206="… ","… ",RANK(P206,P$30:P$1770,0)) -> 502 | R206: 100.4884005 | S206: =IF(R206="… ","… ",RANK(R206,R$30:R$1770,0)) -> 906 | U206: 0.9441141498 | V206: =IF(U206="… ","… ",RANK(U206,U$30:U$1770,0)) -> 304 | W206: 0.9380530973 | X206: =IF(W206="… ","… ",RANK(W206,W$30:W$1770,0)) -> 348
B207: 178 | C207: 1 | D207: 北海道 | E207: 1693 | F207: 標津町 | J207: 119.2307692 | K207: 381 | L207: 100 | M207: =IF(L207="… ","… ",RANK(L207,L$30:L$1770,0)) -> 1230 | N207: 98.80952381 | O207: =IF(N207="… ","… ",RANK(N207,N$30:N$1770,0)) -> 1335 | P207: 108.0213904 | Q207: =IF(P207="… ","… ",RANK(P207,P$30:P$1770,0)) -> 575 | R207: 109.0361446 | S207: =IF(R207="… ","… ",RANK(R207,R$30:R$1770,0)) -> 371 | U207: 0.6565656566 | V207: =IF(U207="… ","… ",RANK(U207,U$30:U$1770,0)) -> 910 | W207: 0.5882352941 | X207: =IF(W207="… ","… ",RANK(W207,W$30:W$1770,0)) -> 1079
... 1563 more rows

Sheet ６．転入超過数
B2: 転入超過数（総数、男性、女性）
C4: （市町村別データ：1718市町村＋23特別区（平成29年1月1日現在の境域））
B6: （概要・留意事項等）
B7: ○ 総務省「住民基本台帳人口移動報告」（平成28年）のｅ－Ｓｔａｔに掲載されている、詳細集計の報告書非掲載表から作成。
B8: ○ 順位については、指標ごとに昇順又は降順となっている。また、その下に表示している数値は順位の対象となる市町村の数（1718市町村＋23特別区から指標値のない「・・・ 」を除いたもの）である。
B9: ○ 単純平均、標準偏差は、表示されている数値から機械的に計算。変動係数（標準偏差/単純平均）は単純平均が0となるため「・・・」で表示している。
BD11: ・・・上位200位を網掛け
BD12: ・・・下位200位を網掛け
J13: 転入超過数 総計（H28） | AA13: 転入超過数 男性（H28） | AR13: 転入超過数 女性（H28）
J14: 総数（年齢） | L14: （再掲） | N14: （再掲） | P14: （再掲） | R14: （再掲） | T14: （再掲） | V14: （再掲） | X14: （再掲） | AA14: 総数（年齢） | AC14: （再掲） | AE14: （再掲） | AG14: （再掲） | AI14: （再掲） | AK14: （再掲） | AM14: （再掲） | AO14: （再掲） | AR14: 総数（年齢） | AT14: （再掲） | AV14: （再掲） | AX14: （再掲） | AZ14: （再掲） | BB14: （再掲） | BD14: （再掲） | BF14: （再掲）
L15: 15～19歳 | N15: 20～24歳 | P15: 25～29歳 | R15: 30～34歳 | T15: 35～39歳 | V15: 40～44歳 | X15: 45～49歳 | AC15: 15～19歳 | AE15: 20～24歳 | AG15: 25～29歳 | AI15: 30～34歳 | AK15: 35～39歳 | AM15: 40～44歳 | AO15: 45～49歳 | AT15: 15～19歳 | AV15: 20～24歳 | AX15: 25～29歳 | AZ15: 30～34歳 | BB15: 35～39歳 | BD15: 40～44歳 | BF15: 45～49歳
K16: （順位） | M16: （順位） | O16: （順位） | Q16: （順位） | S16: （順位） | U16: （順位） | W16: （順位） | Y16: （順位） | AB16: （順位） | AD16: （順位） | AF16: （順位） | AH16: （順位） | AJ16: （順位） | AL16: （順位） | AN16: （順位） | AP16: （順位） | AS16: （順位） | AU16: （順位） | AW16: （順位） | AY16: （順位） | BA16: （順位） | BC16: （順位） | BE16: （順位） | BG16: （順位）
B17: 一連番号 | C17: 都道府県 | E17: 市区町村等 | K17: （降順） | M17: （降順） | O17: （降順） | Q17: （降順） | S17: （降順） | U17: （降順） | W17: （降順） | Y17: （降順） | AB17: （降順） | AD17: （降順） | AF17: （降順） | AH17: （降順） | AJ17: （降順） | AL17: （降順） | AN17: （降順） | AP17: （降順） | AS17: （降順） | AU17: （降順） | AW17: （降順） | AY17: （降順） | BA17: （降順） | BC17: （降順） | BE17: （降順） | BG17: （降順）
C18: 番号 | D18: 名称 | E18: 番号 | F18: 名称 | K18: 1741 | M18: 1741 | O18: 1741 | Q18: 1741 | S18: 1741 | U18: 1741 | W18: 1741 | Y18: 1741 | AB18: 1741 | AD18: 1741 | AF18: 1741 | AH18: 1741 | AJ18: 1741 | AL18: 1741 | AN18: 1741 | AP18: 1741 | AS18: 1741 | AU18: 1741 | AW18: 1741 | AY18: 1741 | BA18: 1741 | BC18: 1741 | BE18: 1741 | BG18: 1741
D19: （合計特殊出生率との相関係数） | J19: =CORREL('４．少子化関係指標'!$J$37:$J$1777,'６．転入超過数'!J$24:J$1764) -> -0.1950624137 | L19: =CORREL('４．少子化関係指標'!$J$37:$J$1777,'６．転入超過数'!L$24:L$1764) -> -0.258695531 | N19: =CORREL('４．少子化関係指標'!$J$37:$J$1777,'６．転入超過数'!N$24:N$1764) -> -0.176951818 | P19: =CORREL('４．少子化関係指標'!$J$37:$J$1777,'６．転入超過数'!P$24:P$1764) -> -0.07886060889 | R19: =CORREL('４．少子化関係指標'!$J$37:$J$1777,'６．転入超過数'!R$24:R$1764) -> 0.03549504469 | T19: =CORREL('４．少子化関係指標'!$J$37:$J$1777,'６．転入超過数'!T$24:T$1764) -> 0.03591445883 | V19: =CORREL('４．少子化関係指標'!$J$37:$J$1777,'６．転入超過数'!V$24:V$1764) -> -0.05190635898 | X19: =CORREL('４．少子化関係指標'!$J$37:$J$1777,'６．転入超過数'!X$24:X$1764) -> -0.05648234979 | AA19: =CORREL('４．少子化関係指標'!$J$37:$J$1777,'６．転入超過数'!AA$24:AA$1764) -> -0.1751706025 | AC19: =CORREL('４．少子化関係指標'!$J$37:$J$1777,'６．転入超過数'!AC$24:AC$1764) -> -0.2254619906 | AE19: =CORREL('４．少子化関係指標'!$J$37:$J$1777,'６．転入超過数'!AE$24:AE$1764) -> -0.1570230443 | AG19: =CORREL('４．少子化関係指標'!$J$37:$J$1777,'６．転入超過数'!AG$24:AG$1764) -> -0.09127252815 | AI19: =CORREL('４．少子化関係指標'!$J$37:$J$1777,'６．転入超過数'!AI$24:AI$1764) -> 0.04523920214 | AK19: =CORREL('４．少子化関係指標'!$J$37:$J$1777,'６．転入超過数'!AK$24:AK$1764) -> 0.05697700287 | AM19: =CORREL('４．少子化関係指標'!$J$37:$J$1777,'６．転入超過数'!AM$24:AM$1764) -> -0.001782434796 | AO19: =CORREL('４．少子化関係指標'!$J$37:$J$1777,'６．転入超過数'!AO$24:AO$1764) -> 0.006365150411 | AR19: =CORREL('４．少子化関係指標'!$J$37:$J$1777,'６．転入超過数'!AR$24:AR$1764) -> -0.205960425 | AT19: =CORREL('４．少子化関係指標'!$J$37:$J$1777,'６．転入超過数'!AT$24:AT$1764) -> -0.2793690789 | AV19: =CORREL('４．少子化関係指標'!$J$37:$J$1777,'６．転入超過数'!AV$24:AV$1764) -> -0.1901225229 | AX19: =CORREL('４．少子化関係指標'!$J$37:$J$1777,'６．転入超過数'!AX$24:AX$1764) -> -0.06330907671 | AZ19: =CORREL('４．少子化関係指標'!$J$37:$J$1777,'６．転入超過数'!AZ$24:AZ$1764) -> 0.02184731312 | BB19: =CORREL('４．少子化関係指標'!$J$37:$J$1777,'６．転入超過数'!BB$24:BB$1764) -> 0.00906855891 | BD19: =CORREL('４．少子化関係指標'!$J$37:$J$1777,'６．転入超過数'!BD$24:BD$1764) -> -0.0974976072 | BF19: =CORREL('４．少子化関係指標'!$J$37:$J$1777,'６．転入超過数'!BF$24:BF$1764) -> -0.1180355367
D20: （単純平均） | J20: =AVERAGE(J24:J1764) -> 0 | L20: =AVERAGE(L24:L1764) -> 0 | N20: =AVERAGE(N24:N1764) -> 0 | P20: =AVERAGE(P24:P1764) -> 0 | R20: =AVERAGE(R24:R1764) -> 0 | T20: =AVERAGE(T24:T1764) -> 0 | V20: =AVERAGE(V24:V1764) -> 0 | X20: =AVERAGE(X24:X1764) -> 0 | AA20: =AVERAGE(AA24:AA1764) -> 0 | AC20: =AVERAGE(AC24:AC1764) -> 0 | AE20: =AVERAGE(AE24:AE1764) -> 0 | AG20: =AVERAGE(AG24:AG1764) -> 0 | AI20: =AVERAGE(AI24:AI1764) -> 0 | AK20: =AVERAGE(AK24:AK1764) -> 0 | AM20: =AVERAGE(AM24:AM1764) -> 0 | AO20: =AVERAGE(AO24:AO1764) -> 0 | AR20: =AVERAGE(AR24:AR1764) -> 0 | AT20: =AVERAGE(AT24:AT1764) -> 0 | AV20: =AVERAGE(AV24:AV1764) -> 0 | AX20: =AVERAGE(AX24:AX1764) -> 0 | AZ20: =AVERAGE(AZ24:AZ1764) -> 0 | BB20: =AVERAGE(BB24:BB1764) -> 0 | BD20: =AVERAGE(BD24:BD1764) -> 0 | BF20: =AVERAGE(BF24:BF1764) -> 0
D21: （標準偏差） | J21: =STDEVP(J24:J1764) -> 676.3602016 | L21: =STDEVP(L24:L1764) -> 163.5179801 | N21: =STDEVP(N24:N1764) -> 471.8012802 | P21: =STDEVP(P24:P1764) -> 168.0544037 | R21: =STDEVP(R24:R1764) -> 88.54817904 | T21: =STDEVP(T24:T1764) -> 62.87577899 | V21: =STDEVP(V24:V1764) -> 42.06174177 | X21: =STDEVP(X24:X1764) -> 28.60053863 | AA21: =STDEVP(AA24:AA1764) -> 305.2755142 | AC21: =STDEVP(AC24:AC1764) -> 90.8794039 | AE21: =STDEVP(AE24:AE1764) -> 223.6385012 | AG21: =STDEVP(AG24:AG1764) -> 84.04062774 | AI21: =STDEVP(AI24:AI1764) -> 47.47251086 | AK21: =STDEVP(AK24:AK1764) -> 34.47444091 | AM21: =STDEVP(AM24:AM1764) -> 24.82041183 | AO21: =STDEVP(AO24:AO1764) -> 17.95277486 | AR21: =STDEVP(AR24:AR1764) -> 380.9331705 | AT21: =STDEVP(AT24:AT1764) -> 78.07420733 | AV21: =STDEVP(AV24:AV1764) -> 254.413287 | AX21: =STDEVP(AX24:AX1764) -> 88.17490842 | AZ21: =STDEVP(AZ24:AZ1764) -> 45.56180671 | BB21: =STDEVP(BB24:BB1764) -> 32.40859545 | BD21: =STDEVP(BD24:BD1764) -> 21.93931896 | BF21: =STDEVP(BF24:BF1764) -> 14.65404222
D22: （変動係数） | J22: … | L22: … | N22: … | P22: … | R22: … | T22: … | V22: … | X22: … | AA22: … | AC22: … | AE22: … | AG22: … | AI22: … | AK22: … | AM22: … | AO22: … | AR22: ･･･ | AT22: ･･･ | AV22: ･･･ | AX22: ･･･ | AZ22: ･･･ | BB22: ･･･ | BD22: ･･･ | BF22: ･･･
D23: 全国 | J23: 0 | L23: 0 | N23: 0 | P23: 0 | R23: 0 | T23: 0 | V23: 0 | X23: 0 | AA23: 0 | AC23: 0 | AE23: 0 | AG23: 0 | AI23: 0 | AK23: 0 | AM23: 0 | AO23: 0 | AR23: 0 | AT23: 0 | AV23: 0 | AX23: 0 | AZ23: 0 | BB23: 0 | BD23: 0 | BF23: 0
B24: 1 | C24: 1 | D24: 北海道 | E24: 1100 | F24: 札幌市 | J24: 9137 | K24: =IF(J24="… ","… ",RANK(J24,J$24:J$1764,0)) -> 2 | L24: 1485 | M24: =IF(L24="… ","… ",RANK(L24,L$24:L$1764,0)) -> 8 | N24: 1643 | O24: =IF(N24="… ","… ",RANK(N24,N$24:N$1764,0)) -> 23 | P24: 205 | Q24: =IF(P24="… ","… ",RANK(P24,P$24:P$1764,0)) -> 53 | R24: 285 | S24: =IF(R24="… ","… ",RANK(R24,R$24:R$1764,0)) -> 17 | T24: 323 | U24: =IF(T24="… ","… ",RANK(T24,T$24:T$1764,0)) -> 8 | V24: 654 | W24: =IF(V24="… ","… ",RANK(V24,V$24:V$1764,0)) -> 1 | X24: 324 | Y24: =IF(X24="… ","… ",RANK(X24,X$24:X$1764,0)) -> 3 | AA24: 3707 | AB24: =IF(AA24="… ","… ",RANK(AA24,AA$24:AA$1764,0)) -> 3 | AC24: 588 | AD24: =IF(AC24="… ","… ",RANK(AC24,AC$24:AC$1764,0)) -> 10 | AE24: 463 | AF24: =IF(AE24="… ","… ",RANK(AE24,AE$24:AE$1764,0)) -> 29 | AG24: 75 | AH24: =IF(AG24="… ","… ",RANK(AG24,AG$24:AG$1764,0)) -> 60 | AI24: 293 | AJ24: =IF(AI24="… ","… ",RANK(AI24,AI$24:AI$1764,0)) -> 4 | AK24: 115 | AL24: =IF(AK24="… ","… ",RANK(AK24,AK$24:AK$1764,0)) -> 11 | AM24: 237 | AN24: =IF(AM24="… ","… ",RANK(AM24,AM$24:AM$1764,0)) -> 1 | AO24: 119 | AP24: =IF(AO24="… ","… ",RANK(AO24,AO$24:AO$1764,0)) -> 4 | AR24: 5430 | AS24: =IF(AR24="… ","… ",RANK(AR24,AR$24:AR$1764,0)) -> 1 | AT24: 897 | AU24: =IF(AT24="… ","… ",RANK(AT24,AT$24:AT$1764,0)) -> 5 | AV24: 1180 | AW24: =IF(AV24="… ","… ",RANK(AV24,AV$24:AV$1764,0)) -> 12 | AX24: 130 | AY24: =IF(AX24="… ","… ",RANK(AX24,AX$24:AX$1764,0)) -> 43 | AZ24: -8 | BA24: =IF(AZ24="… ","… ",RANK(AZ24,AZ$24:AZ$1764,0)) -> 1276 | BB24: 208 | BC24: =IF(BB24="… ","… ",RANK(BB24,BB$24:BB$1764,0)) -> 3 | BD24: 417 | BE24: =IF(BD24="… ","… ",RANK(BD24,BD$24:BD$1764,0)) -> 1 | BF24: 205 | BG24: =IF(BF24="… ","… ",RANK(BF24,BF$24:BF$1764,0)) -> 1
B25: 2 | C25: 1 | D25: 北海道 | E25: 1202 | F25: 函館市 | J25: -1073 | K25: =IF(J25="… ","… ",RANK(J25,J$24:J$1764,0)) -> 1729 | L25: -325 | M25: 1734 | N25: -322 | O25: =IF(N25="… ","… ",RANK(N25,N$24:N$1764,0)) -> 1702 | P25: -169 | Q25: =IF(P25="… ","… ",RANK(P25,P$24:P$1764,0)) -> 1700 | R25: -101 | S25: =IF(R25="… ","… ",RANK(R25,R$24:R$1764,0)) -> 1695 | T25: 3 | U25: =IF(T25="… ","… ",RANK(T25,T$24:T$1764,0)) -> 590 | V25: -62 | W25: =IF(V25="… ","… ",RANK(V25,V$24:V$1764,0)) -> 1697 | X25: -5 | Y25: =IF(X25="… ","… ",RANK(X25,X$24:X$1764,0)) -> 1206 | AA25: -475 | AB25: =IF(AA25="… ","… ",RANK(AA25,AA$24:AA$1764,0)) -> 1723 | AC25: -213 | AD25: =IF(AC25="… ","… ",RANK(AC25,AC$24:AC$1764,0)) -> 1737 | AE25: -153 | AF25: =IF(AE25="… ","… ",RANK(AE25,AE$24:AE$1764,0)) -> 1693 | AG25: -59 | AH25: =IF(AG25="… ","… ",RANK(AG25,AG$24:AG$1764,0)) -> 1652 | AI25: -48 | AJ25: =IF(AI25="… ","… ",RANK(AI25,AI$24:AI$1764,0)) -> 1676 | AK25: -20 | AL25: =IF(AK25="… ","… ",RANK(AK25,AK$24:AK$1764,0)) -> 1599 | AM25: -9 | AN25: =IF(AM25="… ","… ",RANK(AM25,AM$24:AM$1764,0)) -> 1456 | AO25: -2 | AP25: =IF(AO25="… ","… ",RANK(AO25,AO$24:AO$1764,0)) -> 1092 | AR25: -598 | AS25: =IF(AR25="… ","… ",RANK(AR25,AR$24:AR$1764,0)) -> 1731 | AT25: -112 | AU25: =IF(AT25="… ","… ",RANK(AT25,AT$24:AT$1764,0)) -> 1727 | AV25: -169 | AW25: =IF(AV25="… ","… ",RANK(AV25,AV$24:AV$1764,0)) -> 1703 | AX25: -110 | AY25: =IF(AX25="… ","… ",RANK(AX25,AX$24:AX$1764,0)) -> 1708 | AZ25: -53 | BA25: =IF(AZ25="… ","… ",RANK(AZ25,AZ$24:AZ$1764,0)) -> 1692 | BB25: 23 | BC25: =IF(BB25="… ","… ",RANK(BB25,BB$24:BB$1764,0)) -> 114 | BD25: -53 | BE25: =IF(BD25="… ","… ",RANK(BD25,BD$24:BD$1764,0)) -> 1725 | BF25: -3 | BG25: =IF(BF25="… ","… ",RANK(BF25,BF$24:BF$1764,0)) -> 1138
B26: 3 | C26: 1 | D26: 北海道 | E26: 1203 | F26: 小樽市 | J26: -849 | K26: 1718 | L26: -16 | M26: 905 | N26: -333 | O26: =IF(N26="… ","… ",RANK(N26,N$24:N$1764,0)) -> 1705 | P26: -192 | Q26: =IF(P26="… ","… ",RANK(P26,P$24:P$1764,0)) -> 1707 | R26: -95 | S26: =IF(R26="… ","… ",RANK(R26,R$24:R$1764,0)) -> 1692 | T26: -33 | U26: =IF(T26="… ","… ",RANK(T26,T$24:T$1764,0)) -> 1602 | V26: 9 | W26: =IF(V26="… ","… ",RANK(V26,V$24:V$1764,0)) -> 328 | X26: -19 | Y26: =IF(X26="… ","… ",RANK(X26,X$24:X$1764,0)) -> 1594 | AA26: -370 | AB26: =IF(AA26="… ","… ",RANK(AA26,AA$24:AA$1764,0)) -> 1708 | AC26: -21 | AD26: =IF(AC26="… ","… ",RANK(AC26,AC$24:AC$1764,0)) -> 1296 | AE26: -189 | AF26: =IF(AE26="… ","… ",RANK(AE26,AE$24:AE$1764,0)) -> 1710 | AG26: -58 | AH26: =IF(AG26="… ","… ",RANK(AG26,AG$24:AG$1764,0)) -> 1650 | AI26: -67 | AJ26: =IF(AI26="… ","… ",RANK(AI26,AI$24:AI$1764,0)) -> 1697 | AK26: -22 | AL26: =IF(AK26="… ","… ",RANK(AK26,AK$24:AK$1764,0)) -> 1615 | AM26: 3 | AN26: =IF(AM26="… ","… ",RANK(AM26,AM$24:AM$1764,0)) -> 479 | AO26: -3 | AP26: =IF(AO26="… ","… ",RANK(AO26,AO$24:AO$1764,0)) -> 1202 | AR26: -479 | AS26: 1720 | AT26: 5 | AU26: 271 | AV26: -144 | AW26: 1681 | AX26: -134 | AY26: 1722 | AZ26: -28 | BA26: 1623 | BB26: -11 | BC26: 1497 | BD26: 6 | BE26: 260 | BF26: -16 | BG26: 1654
B27: 4 | C27: 1 | D27: 北海道 | E27: 1204 | F27: 旭川市 | J27: -747 | K27: 1712 | L27: -242 | M27: 1724 | N27: -283 | O27: =IF(N27="… ","… ",RANK(N27,N$24:N$1764,0)) -> 1689 | P27: -286 | Q27: =IF(P27="… ","… ",RANK(P27,P$24:P$1764,0)) -> 1729 | R27: 37 | S27: =IF(R27="… ","… ",RANK(R27,R$24:R$1764,0)) -> 191 | T27: -40 | U27: =IF(T27="… ","… ",RANK(T27,T$24:T$1764,0)) -> 1623 | V27: -23 | W27: =IF(V27="… ","… ",RANK(V27,V$24:V$1764,0)) -> 1577 | X27: -36 | Y27: =IF(X27="… ","… ",RANK(X27,X$24:X$1764,0)) -> 1678 | AA27: -267 | AB27: =IF(AA27="… ","… ",RANK(AA27,AA$24:AA$1764,0)) -> 1685 | AC27: -155 | AD27: =IF(AC27="… ","… ",RANK(AC27,AC$24:AC$1764,0)) -> 1728 | AE27: -99 | AF27: =IF(AE27="… ","… ",RANK(AE27,AE$24:AE$1764,0)) -> 1629 | AG27: -97 | AH27: =IF(AG27="… ","… ",RANK(AG27,AG$24:AG$1764,0)) -> 1704 | AI27: -1 | AJ27: =IF(AI27="… ","… ",RANK(AI27,AI$24:AI$1764,0)) -> 825 | AK27: 12 | AL27: =IF(AK27="… ","… ",RANK(AK27,AK$24:AK$1764,0)) -> 265 | AM27: 8 | AN27: =IF(AM27="… ","… ",RANK(AM27,AM$24:AM$1764,0)) -> 291 | AO27: -34 | AP27: =IF(AO27="… ","… ",RANK(AO27,AO$24:AO$1764,0)) -> 1707 | AR27: -480 | AS27: 1721 | AT27: -87 | AU27: 1710 | AV27: -184 | AW27: 1709 | AX27: -189 | AY27: 1733 | AZ27: 38 | BA27: 100 | BB27: -52 | BC27: 1707 | BD27: -31 | BE27: 1700 | BF27: -2 | BG27: 999
B28: 5 | C28: 1 | D28: 北海道 | E28: 1205 | F28: 室蘭市 | J28: -772 | K28: 1714 | L28: 96 | M28: 115 | N28: -208 | O28: =IF(N28="… ","… ",RANK(N28,N$24:N$1764,0)) -> 1642 | P28: -159 | Q28: =IF(P28="… ","… ",RANK(P28,P$24:P$1764,0)) -> 1690 | R28: -115 | S28: =IF(R28="… ","… ",RANK(R28,R$24:R$1764,0)) -> 1702 | T28: -26 | U28: =IF(T28="… ","… ",RANK(T28,T$24:T$1764,0)) -> 1563 | V28: -59 | W28: =IF(V28="… ","… ",RANK(V28,V$24:V$1764,0)) -> 1694 | X28: -9 | Y28: =IF(X28="… ","… ",RANK(X28,X$24:X$1764,0)) -> 1403 | AA28: -386 | AB28: =IF(AA28="… ","… ",RANK(AA28,AA$24:AA$1764,0)) -> 1713 | AC28: 108 | AD28: =IF(AC28="… ","… ",RANK(AC28,AC$24:AC$1764,0)) -> 70 | AE28: -138 | AF28: =IF(AE28="… ","… ",RANK(AE28,AE$24:AE$1764,0)) -> 1680 | AG28: -95 | AH28: =IF(AG28="… ","… ",RANK(AG28,AG$24:AG$1764,0)) -> 1702 | AI28: -76 | AJ28: =IF(AI28="… ","… ",RANK(AI28,AI$24:AI$1764,0)) -> 1705 | AK28: -25 | AL28: =IF(AK28="… ","… ",RANK(AK28,AK$24:AK$1764,0)) -> 1639 | AM28: -30 | AN28: =IF(AM28="… ","… ",RANK(AM28,AM$24:AM$1764,0)) -> 1677 | AO28: 1 | AP28: =IF(AO28="… ","… ",RANK(AO28,AO$24:AO$1764,0)) -> 637 | AR28: -386 | AS28: 1709 | AT28: -12 | AU28: 1102 | AV28: -70 | AW28: 1492 | AX28: -64 | AY28: 1657 | AZ28: -39 | BA28: 1656 | BB28: -1 | BC28: 873 | BD28: -29 | BE28: 1691 | BF28: -10 | BG28: 1547
B29: 6 | C29: 1 | D29: 北海道 | E29: 1206 | F29: 釧路市 | J29: -1002 | K29: 1727 | L29: -16 | M29: 905 | N29: -241 | O29: =IF(N29="… ","… ",RANK(N29,N$24:N$1764,0)) -> 1669 | P29: -105 | Q29: =IF(P29="… ","… ",RANK(P29,P$24:P$1764,0)) -> 1647 | R29: -83 | S29: =IF(R29="… ","… ",RANK(R29,R$24:R$1764,0)) -> 1677 | T29: -109 | U29: =IF(T29="… ","… ",RANK(T29,T$24:T$1764,0)) -> 1710 | V29: -94 | W29: =IF(V29="… ","… ",RANK(V29,V$24:V$1764,0)) -> 1718 | X29: -99 | Y29: =IF(X29="… ","… ",RANK(X29,X$24:X$1764,0)) -> 1734 | AA29: -447 | AB29: =IF(AA29="… ","… ",RANK(AA29,AA$24:AA$1764,0)) -> 1721 | AC29: 11 | AD29: =IF(AC29="… ","… ",RANK(AC29,AC$24:AC$1764,0)) -> 240 | AE29: -83 | AF29: =IF(AE29="… ","… ",RANK(AE29,AE$24:AE$1764,0)) -> 1576 | AG29: -50 | AH29: =IF(AG29="… ","… ",RANK(AG29,AG$24:AG$1764,0)) -> 1619 | AI29: -68 | AJ29: =IF(AI29="… ","… ",RANK(AI29,AI$24:AI$1764,0)) -> 1700 | AK29: -55 | AL29: =IF(AK29="… ","… ",RANK(AK29,AK$24:AK$1764,0)) -> 1699 | AM29: -68 | AN29: =IF(AM29="… ","… ",RANK(AM29,AM$24:AM$1764,0)) -> 1726 | AO29: -21 | AP29: =IF(AO29="… ","… ",RANK(AO29,AO$24:AO$1764,0)) -> 1665 | AR29: -555 | AS29: 1727 | AT29: -27 | AU29: 1491 | AV29: -158 | AW29: 1693 | AX29: -55 | AY29: 1641 | AZ29: -15 | BA29: 1462 | BB29: -54 | BC29: 1709 | BD29: -26 | BE29: 1684 | BF29: -78 | BG29: 1740
B30: 7 | C30: 1 | D30: 北海道 | E30: 1207 | F30: 帯広市 | J30: 6 | K30: 408 | L30: 21 | M30: 223 | N30: -87 | O30: =IF(N30="… ","… ",RANK(N30,N$24:N$1764,0)) -> 1316 | P30: -77 | Q30: =IF(P30="… ","… ",RANK(P30,P$24:P$1764,0)) -> 1579 | R30: 24 | S30: =IF(R30="… ","… ",RANK(R30,R$24:R$1764,0)) -> 251 | T30: -7 | U30: =IF(T30="… ","… ",RANK(T30,T$24:T$1764,0)) -> 1180 | V30: 19 | W30: =IF(V30="… ","… ",RANK(V30,V$24:V$1764,0)) -> 187 | X30: 58 | Y30: =IF(X30="… ","… ",RANK(X30,X$24:X$1764,0)) -> 31 | AA30: 13 | AB30: =IF(AA30="… ","… ",RANK(AA30,AA$24:AA$1764,0)) -> 349 | AC30: -18 | AD30: =IF(AC30="… ","… ",RANK(AC30,AC$24:AC$1764,0)) -> 1239 | AE30: 22 | AF30: =IF(AE30="… ","… ",RANK(AE30,AE$24:AE$1764,0)) -> 127 | AG30: -49 | AH30: =IF(AG30="… ","… ",RANK(AG30,AG$24:AG$1764,0)) -> 1615 | AI30: 13 | AJ30: =IF(AI30="… ","… ",RANK(AI30,AI$24:AI$1764,0)) -> 274 | AK30: 16 | AL30: =IF(AK30="… ","… ",RANK(AK30,AK$24:AK$1764,0)) -> 207 | AM30: 13 | AN30: =IF(AM30="… ","… ",RANK(AM30,AM$24:AM$1764,0)) -> 181 | AO30: 36 | AP30: =IF(AO30="… ","… ",RANK(AO30,AO$24:AO$1764,0)) -> 23 | AR30: -7 | AS30: 521 | AT30: 39 | AU30: 113 | AV30: -109 | AW30: 1632 | AX30: -28 | AY30: 1457 | AZ30: 11 | BA30: 278 | BB30: -23 | BC30: 1634 | BD30: 6 | BE30: 260 | BF30: 22 | BG30: 58
B31: 8 | C31: 1 | D31: 北海道 | E31: 1208 | F31: 北見市 | J31: -477 | K31: 1669 | L31: -145 | M31: 1685 | N31: -224 | O31: =IF(N31="… ","… ",RANK(N31,N$24:N$1764,0)) -> 1655 | P31: 5 | Q31: =IF(P31="… ","… ",RANK(P31,P$24:P$1764,0)) -> 389 | R31: 16 | S31: =IF(R31="… ","… ",RANK(R31,R$24:R$1764,0)) -> 331 | T31: -13 | U31: =IF(T31="… ","… ",RANK(T31,T$24:T$1764,0)) -> 1384 | V31: -26 | W31: =IF(V31="… ","… ",RANK(V31,V$24:V$1764,0)) -> 1604 | X31: 15 | Y31: =IF(X31="… ","… ",RANK(X31,X$24:X$1764,0)) -> 173 | AA31: -197 | AB31: =IF(AA31="… ","… ",RANK(AA31,AA$24:AA$1764,0)) -> 1638 | AC31: -51 | AD31: =IF(AC31="… ","… ",RANK(AC31,AC$24:AC$1764,0)) -> 1599 | AE31: -123 | AF31: =IF(AE31="… ","… ",RANK(AE31,AE$24:AE$1764,0)) -> 1666 | AG31: 0 | AH31: =IF(AG31="… ","… ",RANK(AG31,AG$24:AG$1764,0)) -> 560 | AI31: 9 | AJ31: =IF(AI31="… ","… ",RANK(AI31,AI$24:AI$1764,0)) -> 331 | AK31: 5 | AL31: =IF(AK31="… ","… ",RANK(AK31,AK$24:AK$1764,0)) -> 424 | AM31: -23 | AN31: =IF(AM31="… ","… ",RANK(AM31,AM$24:AM$1764,0)) -> 1649 | AO31: 12 | AP31: =IF(AO31="… ","… ",RANK(AO31,AO$24:AO$1764,0)) -> 150 | AR31: -280 | AS31: 1677 | AT31: -94 | AU31: 1716 | AV31: -101 | AW31: 1610 | AX31: 5 | AY31: 349 | AZ31: 7 | BA31: 369 | BB31: -18 | BC31: 1603 | BD31: -3 | BE31: 1096 | BF31: 3 | BG31: 346
B32: 9 | C32: 1 | D32: 北海道 | E32: 1209 | F32: 夕張市 | J32: -202 | K32: 1400 | L32: -11 | M32: 755 | N32: -24 | O32: =IF(N32="… ","… ",RANK(N32,N$24:N$1764,0)) -> 727 | P32: -3 | Q32: =IF(P32="… ","… ",RANK(P32,P$24:P$1764,0)) -> 652 | R32: -11 | S32: =IF(R32="… ","… ",RANK(R32,R$24:R$1764,0)) -> 1193 | T32: 0 | U32: =IF(T32="… ","… ",RANK(T32,T$24:T$1764,0)) -> 777 | V32: -4 | W32: =IF(V32="… ","… ",RANK(V32,V$24:V$1764,0)) -> 1095 | X32: -5 | Y32: =IF(X32="… ","… ",RANK(X32,X$24:X$1764,0)) -> 1206 | AA32: -101 | AB32: =IF(AA32="… ","… ",RANK(AA32,AA$24:AA$1764,0)) -> 1441 | AC32: -5 | AD32: =IF(AC32="… ","… ",RANK(AC32,AC$24:AC$1764,0)) -> 715 | AE32: -13 | AF32: =IF(AE32="… ","… ",RANK(AE32,AE$24:AE$1764,0)) -> 842 | AG32: 0 | AH32: =IF(AG32="… ","… ",RANK(AG32,AG$24:AG$1764,0)) -> 560 | AI32: -11 | AJ32: =IF(AI32="… ","… ",RANK(AI32,AI$24:AI$1764,0)) -> 1377 | AK32: 1 | AL32: =IF(AK32="… ","… ",RANK(AK32,AK$24:AK$1764,0)) -> 677 | AM32: -2 | AN32: =IF(AM32="… ","… ",RANK(AM32,AM$24:AM$1764,0)) -> 1055 | AO32: -2 | AP32: =IF(AO32="… ","… ",RANK(AO32,AO$24:AO$1764,0)) -> 1092 | AR32: -101 | AS32: 1351 | AT32: -6 | AU32: 792 | AV32: -11 | AW32: 623 | AX32: -3 | AY32: 760 | AZ32: 0 | BA32: 730 | BB32: -1 | BC32: 873 | BD32: -2 | BE32: 988 | BF32: -3 | BG32: 1138
B33: 10 | C33: 1 | D33: 北海道 | E33: 1210 | F33: 岩見沢市 | J33: -286 | K33: 1528 | L33: -29 | M33: 1198 | N33: -189 | O33: =IF(N33="… ","… ",RANK(N33,N$24:N$1764,0)) -> 1612 | P33: -84 | Q33: =IF(P33="… ","… ",RANK(P33,P$24:P$1764,0)) -> 1604 | R33: -46 | S33: =IF(R33="… ","… ",RANK(R33,R$24:R$1764,0)) -> 1596 | T33: 19 | U33: =IF(T33="… ","… ",RANK(T33,T$24:T$1764,0)) -> 254 | V33: 2 | W33: =IF(V33="… ","… ",RANK(V33,V$24:V$1764,0)) -> 588 | X33: -15 | Y33: =IF(X33="… ","… ",RANK(X33,X$24:X$1764,0)) -> 1547 | AA33: -98 | AB33: =IF(AA33="… ","… ",RANK(AA33,AA$24:AA$1764,0)) -> 1431 | AC33: -5 | AD33: =IF(AC33="… ","… ",RANK(AC33,AC$24:AC$1764,0)) -> 715 | AE33: -95 | AF33: =IF(AE33="… ","… ",RANK(AE33,AE$24:AE$1764,0)) -> 1615 | AG33: -38 | AH33: =IF(AG33="… ","… ",RANK(AG33,AG$24:AG$1764,0)) -> 1555 | AI33: -28 | AJ33: =IF(AI33="… ","… ",RANK(AI33,AI$24:AI$1764,0)) -> 1613 | AK33: -1 | AL33: =IF(AK33="… ","… ",RANK(AK33,AK$24:AK$1764,0)) -> 903 | AM33: 16 | AN33: =IF(AM33="… ","… ",RANK(AM33,AM$24:AM$1764,0)) -> 154 | AO33: -10 | AP33: =IF(AO33="… ","… ",RANK(AO33,AO$24:AO$1764,0)) -> 1557 | AR33: -188 | AS33: 1590 | AT33: -24 | AU33: 1447 | AV33: -94 | AW33: 1593 | AX33: -46 | AY33: 1604 | AZ33: -18 | BA33: 1515 | BB33: 20 | BC33: 131 | BD33: -14 | BE33: 1575 | BF33: -5 | BG33: 1334
B34: 11 | C34: 1 | D34: 北海道 | E34: 1211 | F34: 網走市 | J34: -299 | K34: 1539 | L34: 48 | M34: 154 | N34: -88 | O34: =IF(N34="… ","… ",RANK(N34,N$24:N$1764,0)) -> 1325 | P34: -50 | Q34: =IF(P34="… ","… ",RANK(P34,P$24:P$1764,0)) -> 1447 | R34: -38 | S34: =IF(R34="… ","… ",RANK(R34,R$24:R$1764,0)) -> 1548 | T34: -4 | U34: =IF(T34="… ","… ",RANK(T34,T$24:T$1764,0)) -> 1041 | V34: -23 | W34: =IF(V34="… ","… ",RANK(V34,V$24:V$1764,0)) -> 1577 | X34: -17 | Y34: =IF(X34="… ","… ",RANK(X34,X$24:X$1764,0)) -> 1575 | AA34: -154 | AB34: =IF(AA34="… ","… ",RANK(AA34,AA$24:AA$1764,0)) -> 1573 | AC34: 37 | AD34: =IF(AC34="… ","… ",RANK(AC34,AC$24:AC$1764,0)) -> 159 | AE34: -53 | AF34: =IF(AE34="… ","… ",RANK(AE34,AE$24:AE$1764,0)) -> 1427 | AG34: -25 | AH34: =IF(AG34="… ","… ",RANK(AG34,AG$24:AG$1764,0)) -> 1436 | AI34: -13 | AJ34: =IF(AI34="… ","… ",RANK(AI34,AI$24:AI$1764,0)) -> 1428 | AK34: 0 | AL34: =IF(AK34="… ","… ",RANK(AK34,AK$24:AK$1764,0)) -> 783 | AM34: -8 | AN34: =IF(AM34="… ","… ",RANK(AM34,AM$24:AM$1764,0)) -> 1428 | AO34: -19 | AP34: =IF(AO34="… ","… ",RANK(AO34,AO$24:AO$1764,0)) -> 1654 | AR34: -145 | AS34: 1496 | AT34: 11 | AU34: 204 | AV34: -35 | AW34: 1150 | AX34: -25 | AY34: 1401 | AZ34: -25 | BA34: 1600 | BB34: -4 | BC34: 1146 | BD34: -15 | BE34: 1593 | BF34: 2 | BG34: 432
B35: 12 | C35: 1 | D35: 北海道 | E35: 1212 | F35: 留萌市 | J35: -230 | K35: 1460 | L35: -19 | M35: 1003 | N35: -14 | O35: =IF(N35="… ","… ",RANK(N35,N$24:N$1764,0)) -> 539 | P35: 17 | Q35: =IF(P35="… ","… ",RANK(P35,P$24:P$1764,0)) -> 251 | R35: -8 | S35: =IF(R35="… ","… ",RANK(R35,R$24:R$1764,0)) -> 1103 | T35: -17 | U35: =IF(T35="… ","… ",RANK(T35,T$24:T$1764,0)) -> 1472 | V35: -58 | W35: =IF(V35="… ","… ",RANK(V35,V$24:V$1764,0)) -> 1690 | X35: 2 | Y35: =IF(X35="… ","… ",RANK(X35,X$24:X$1764,0)) -> 548 | AA35: -70 | AB35: =IF(AA35="… ","… ",RANK(AA35,AA$24:AA$1764,0)) -> 1304 | AC35: 8 | AD35: =IF(AC35="… ","… ",RANK(AC35,AC$24:AC$1764,0)) -> 266 | AE35: 8 | AF35: =IF(AE35="… ","… ",RANK(AE35,AE$24:AE$1764,0)) -> 195 | AG35: -1 | AH35: =IF(AG35="… ","… ",RANK(AG35,AG$24:AG$1764,0)) -> 634 | AI35: -4 | AJ35: =IF(AI35="… ","… ",RANK(AI35,AI$24:AI$1764,0)) -> 1063 | AK35: 2 | AL35: =IF(AK35="… ","… ",RANK(AK35,AK$24:AK$1764,0)) -> 590 | AM35: -34 | AN35: =IF(AM35="… ","… ",RANK(AM35,AM$24:AM$1764,0)) -> 1684 | AO35: 15 | AP35: =IF(AO35="… ","… ",RANK(AO35,AO$24:AO$1764,0)) -> 113 | AR35: -160 | AS35: 1533 | AT35: -27 | AU35: 1491 | AV35: -22 | AW35: 909 | AX35: 18 | AY35: 197 | AZ35: -4 | BA35: 1061 | BB35: -19 | BC35: 1610 | BD35: -24 | BE35: 1676 | BF35: -13 | BG35: 1613
B36: 13 | C36: 1 | D36: 北海道 | E36: 1213 | F36: 苫小牧市 | J36: -286 | K36: 1528 | L36: -159 | M36: 1691 | N36: -75 | O36: =IF(N36="… ","… ",RANK(N36,N$24:N$1764,0)) -> 1250 | P36: 6 | Q36: =IF(P36="… ","… ",RANK(P36,P$24:P$1764,0)) -> 369 | R36: -5 | S36: =IF(R36="… ","… ",RANK(R36,R$24:R$1764,0)) -> 981 | T36: -5 | U36: =IF(T36="… ","… ",RANK(T36,T$24:T$1764,0)) -> 1094 | V36: -12 | W36: =IF(V36="… ","… ",RANK(V36,V$24:V$1764,0)) -> 1416 | X36: 0 | Y36: =IF(X36="… ","… ",RANK(X36,X$24:X$1764,0)) -> 731 | AA36: -206 | AB36: =IF(AA36="… ","… ",RANK(AA36,AA$24:AA$1764,0)) -> 1648 | AC36: -77 | AD36: =IF(AC36="… ","… ",RANK(AC36,AC$24:AC$1764,0)) -> 1671 | AE36: -10 | AF36: =IF(AE36="… ","… ",RANK(AE36,AE$24:AE$1764,0)) -> 737 | AG36: 29 | AH36: =IF(AG36="… ","… ",RANK(AG36,AG$24:AG$1764,0)) -> 143 | AI36: -26 | AJ36: =IF(AI36="… ","… ",RANK(AI36,AI$24:AI$1764,0)) -> 1595 | AK36: -19 | AL36: =IF(AK36="… ","… ",RANK(AK36,AK$24:AK$1764,0)) -> 1589 | AM36: -23 | AN36: =IF(AM36="… ","… ",RANK(AM36,AM$24:AM$1764,0)) -> 1649 | AO36: -14 | AP36: =IF(AO36="… ","… ",RANK(AO36,AO$24:AO$1764,0)) -> 1618 | AR36: -80 | AS36: 1246 | AT36: -82 | AU36: 1706 | AV36: -65 | AW36: 1463 | AX36: -23 | AY36: 1374 | AZ36: 21 | BA36: 170 | BB36: 14 | BC36: 190 | BD36: 11 | BE36: 161 | BF36: 14 | BG36: 94
B37: 14 | C37: 1 | D37: 北海道 | E37: 1214 | F37: 稚内市 | J37: -482 | K37: 1672 | L37: -80 | M37: 1588 | N37: 44 | O37: =IF(N37="… ","… ",RANK(N37,N$24:N$1764,0)) -> 114 | P37: -24 | Q37: =IF(P37="… ","… ",RANK(P37,P$24:P$1764,0)) -> 1166 | R37: -47 | S37: =IF(R37="… ","… ",RANK(R37,R$24:R$1764,0)) -> 1602 | T37: -39 | U37: =IF(T37="… ","… ",RANK(T37,T$24:T$1764,0)) -> 1620 | V37: -70 | W37: =IF(V37="… ","… ",RANK(V37,V$24:V$1764,0)) -> 1704 | X37: -3 | Y37: =IF(X37="… ","… ",RANK(X37,X$24:X$1764,0)) -> 1042 | AA37: -213 | AB37: =IF(AA37="… ","… ",RANK(AA37,AA$24:AA$1764,0)) -> 1656 | AC37: -30 | AD37: =IF(AC37="… ","… ",RANK(AC37,AC$24:AC$1764,0)) -> 1442 | AE37: 40 | AF37: =IF(AE37="… ","… ",RANK(AE37,AE$24:AE$1764,0)) -> 100 | AG37: -6 | AH37: =IF(AG37="… ","… ",RANK(AG37,AG$24:AG$1764,0)) -> 934 | AI37: -26 | AJ37: =IF(AI37="… ","… ",RANK(AI37,AI$24:AI$1764,0)) -> 1595 | AK37: -21 | AL37: =IF(AK37="… ","… ",RANK(AK37,AK$24:AK$1764,0)) -> 1607 | AM37: -41 | AN37: =IF(AM37="… ","… ",RANK(AM37,AM$24:AM$1764,0)) -> 1696 | AO37: 5 | AP37: =IF(AO37="… ","… ",RANK(AO37,AO$24:AO$1764,0)) -> 318 | AR37: -269 | AS37: 1669 | AT37: -50 | AU37: 1645 | AV37: 4 | AW37: 171 | AX37: -18 | AY37: 1293 | AZ37: -21 | BA37: 1556 | BB37: -18 | BC37: 1603 | BD37: -29 | BE37: 1691 | BF37: -8 | BG37: 1497
B38: 15 | C38: 1 | D38: 北海道 | E38: 1215 | F38: 美唄市 | J38: -358 | K38: 1597 | L38: -13 | M38: 823 | N38: -100 | O38: =IF(N38="… ","… ",RANK(N38,N$24:N$1764,0)) -> 1384 | P38: -39 | Q38: =IF(P38="… ","… ",RANK(P38,P$24:P$1764,0)) -> 1354 | R38: -25 | S38: =IF(R38="… ","… ",RANK(R38,R$24:R$1764,0)) -> 1445 | T38: -24 | U38: =IF(T38="… ","… ",RANK(T38,T$24:T$1764,0)) -> 1550 | V38: -9 | W38: =IF(V38="… ","… ",RANK(V38,V$24:V$1764,0)) -> 1323 | X38: -18 | Y38: =IF(X38="… ","… ",RANK(X38,X$24:X$1764,0)) -> 1585 | AA38: -119 | AB38: =IF(AA38="… ","… ",RANK(AA38,AA$24:AA$1764,0)) -> 1490 | AC38: 2 | AD38: =IF(AC38="… ","… ",RANK(AC38,AC$24:AC$1764,0)) -> 336 | AE38: -35 | AF38: =IF(AE38="… ","… ",RANK(AE38,AE$24:AE$1764,0)) -> 1255 | AG38: -20 | AH38: =IF(AG38="… ","… ",RANK(AG38,AG$24:AG$1764,0)) -> 1354 | AI38: -10 | AJ38: =IF(AI38="… ","… ",RANK(AI38,AI$24:AI$1764,0)) -> 1343 | AK38: -8 | AL38: =IF(AK38="… ","… ",RANK(AK38,AK$24:AK$1764,0)) -> 1393 | AM38: -6 | AN38: =IF(AM38="… ","… ",RANK(AM38,AM$24:AM$1764,0)) -> 1358 | AO38: -7 | AP38: =IF(AO38="… ","… ",RANK(AO38,AO$24:AO$1764,0)) -> 1469 | AR38: -239 | AS38: 1643 | AT38: -15 | AU38: 1226 | AV38: -65 | AW38: 1463 | AX38: -19 | AY38: 1308 | AZ38: -15 | BA38: 1462 | BB38: -16 | BC38: 1586 | BD38: -3 | BE38: 1096 | BF38: -11 | BG38: 1571
B39: 16 | C39: 1 | D39: 北海道 | E39: 1216 | F39: 芦別市 | J39: -211 | K39: 1419 | L39: -20 | M39: 1027 | N39: -52 | O39: =IF(N39="… ","… ",RANK(N39,N$24:N$1764,0)) -> 1079 | P39: -22 | Q39: =IF(P39="… ","… ",RANK(P39,P$24:P$1764,0)) -> 1138 | R39: -2 | S39: =IF(R39="… ","… ",RANK(R39,R$24:R$1764,0)) -> 842 | T39: -11 | U39: =IF(T39="… ","… ",RANK(T39,T$24:T$1764,0)) -> 1339 | V39: -21 | W39: =IF(V39="… ","… ",RANK(V39,V$24:V$1764,0)) -> 1558 | X39: -14 | Y39: =IF(X39="… ","… ",RANK(X39,X$24:X$1764,0)) -> 1530 | AA39: -75 | AB39: =IF(AA39="… ","… ",RANK(AA39,AA$24:AA$1764,0)) -> 1332 | AC39: -12 | AD39: =IF(AC39="… ","… ",RANK(AC39,AC$24:AC$1764,0)) -> 1057 | AE39: -25 | AF39: =IF(AE39="… ","… ",RANK(AE39,AE$24:AE$1764,0)) -> 1117 | AG39: -5 | AH39: =IF(AG39="… ","… ",RANK(AG39,AG$24:AG$1764,0)) -> 888 | AI39: -1 | AJ39: =IF(AI39="… ","… ",RANK(AI39,AI$24:AI$1764,0)) -> 825 | AK39: -4 | AL39: =IF(AK39="… ","… ",RANK(AK39,AK$24:AK$1764,0)) -> 1200 | AM39: -13 | AN39: =IF(AM39="… ","… ",RANK(AM39,AM$24:AM$1764,0)) -> 1559 | AO39: -4 | AP39: =IF(AO39="… ","… ",RANK(AO39,AO$24:AO$1764,0)) -> 1295 | AR39: -136 | AS39: 1473 | AT39: -8 | AU39: 915 | AV39: -27 | AW39: 1021 | AX39: -17 | AY39: 1265 | AZ39: -1 | BA39: 816 | BB39: -7 | BC39: 1338 | BD39: -8 | BE39: 1433 | BF39: -10 | BG39: 1547
B40: 17 | C40: 1 | D40: 北海道 | E40: 1217 | F40: 江別市 | J40: 259 | K40: 131 | L40: 221 | M40: 59 | N40: -532 | O40: =IF(N40="… ","… ",RANK(N40,N$24:N$1764,0)) -> 1731 | P40: -84 | Q40: =IF(P40="… ","… ",RANK(P40,P$24:P$1764,0)) -> 1604 | R40: 110 | S40: =IF(R40="… ","… ",RANK(R40,R$24:R$1764,0)) -> 59 | T40: 114 | U40: =IF(T40="… ","… ",RANK(T40,T$24:T$1764,0)) -> 33 | V40: 49 | W40: =IF(V40="… ","… ",RANK(V40,V$24:V$1764,0)) -> 68 | X40: -25 | Y40: =IF(X40="… ","… ",RANK(X40,X$24:X$1764,0)) -> 1643 | AA40: 85 | AB40: =IF(AA40="… ","… ",RANK(AA40,AA$24:AA$1764,0)) -> 182 | AC40: 137 | AD40: =IF(AC40="… ","… ",RANK(AC40,AC$24:AC$1764,0)) -> 54 | AE40: -330 | AF40: =IF(AE40="… ","… ",RANK(AE40,AE$24:AE$1764,0)) -> 1735 | AG40: -54 | AH40: =IF(AG40="… ","… ",RANK(AG40,AG$24:AG$1764,0)) -> 1637 | AI40: 53 | AJ40: =IF(AI40="… ","… ",RANK(AI40,AI$24:AI$1764,0)) -> 78 | AK40: 42 | AL40: =IF(AK40="… ","… ",RANK(AK40,AK$24:AK$1764,0)) -> 62 | AM40: 36 | AN40: =IF(AM40="… ","… ",RANK(AM40,AM$24:AM$1764,0)) -> 50 | AO40: -18 | AP40: =IF(AO40="… ","… ",RANK(AO40,AO$24:AO$1764,0)) -> 1651 | AR40: 174 | AS40: 121 | AT40: 84 | AU40: 68 | AV40: -202 | AW40: 1720 | AX40: -30 | AY40: 1478 | AZ40: 57 | BA40: 58 | BB40: 72 | BC40: 30 | BD40: 13 | BE40: 133 | BF40: -7 | BG40: 1458
B41: 18 | C41: 1 | D41: 北海道 | E41: 1218 | F41: 赤平市 | J41: -76 | K41: 964 | L41: -10 | M41: 728 | N41: -10 | O41: =IF(N41="… ","… ",RANK(N41,N$24:N$1764,0)) -> 461 | P41: -9 | Q41: =IF(P41="… ","… ",RANK(P41,P$24:P$1764,0)) -> 867 | R41: -1 | S41: =IF(R41="… ","… ",RANK(R41,R$24:R$1764,0)) -> 793 | T41: -11 | U41: =IF(T41="… ","… ",RANK(T41,T$24:T$1764,0)) -> 1339 | V41: 4 | W41: =IF(V41="… ","… ",RANK(V41,V$24:V$1764,0)) -> 478 | X41: 11 | Y41: =IF(X41="… ","… ",RANK(X41,X$24:X$1764,0)) -> 227 | AA41: -17 | AB41: =IF(AA41="… ","… ",RANK(AA41,AA$24:AA$1764,0)) -> 771 | AC41: -8 | AD41: =IF(AC41="… ","… ",RANK(AC41,AC$24:AC$1764,0)) -> 865 | AE41: -3 | AF41: =IF(AE41="… ","… ",RANK(AE41,AE$24:AE$1764,0)) -> 449 | AG41: -5 | AH41: =IF(AG41="… ","… ",RANK(AG41,AG$24:AG$1764,0)) -> 888 | AI41: 0 | AJ41: =IF(AI41="… ","… ",RANK(AI41,AI$24:AI$1764,0)) -> 750 | AK41: -6 | AL41: =IF(AK41="… ","… ",RANK(AK41,AK$24:AK$1764,0)) -> 1319 | AM41: 9 | AN41: =IF(AM41="… ","… ",RANK(AM41,AM$24:AM$1764,0)) -> 262 | AO41: 10 | AP41: =IF(AO41="… ","… ",RANK(AO41,AO$24:AO$1764,0)) -> 177 | AR41: -59 | AS41: 1097 | AT41: -2 | AU41: 502 | AV41: -7 | AW41: 499 | AX41: -4 | AY41: 817 | AZ41: -1 | BA41: 816 | BB41: -5 | BC41: 1217 | BD41: -5 | BE41: 1278 | BF41: 1 | BG41: 542
B42: 19 | C42: 1 | D42: 北海道 | E42: 1219 | F42: 紋別市 | J42: -166 | K42: 1326 | L42: -63 | M42: 1519 | N42: 6 | O42: =IF(N42="… ","… ",RANK(N42,N$24:N$1764,0)) -> 207 | P42: 17 | Q42: =IF(P42="… ","… ",RANK(P42,P$24:P$1764,0)) -> 251 | R42: -7 | S42: =IF(R42="… ","… ",RANK(R42,R$24:R$1764,0)) -> 1064 | T42: -12 | U42: =IF(T42="… ","… ",RANK(T42,T$24:T$1764,0)) -> 1366 | V42: -25 | W42: =IF(V42="… ","… ",RANK(V42,V$24:V$1764,0)) -> 1594 | X42: -5 | Y42: =IF(X42="… ","… ",RANK(X42,X$24:X$1764,0)) -> 1206 | AA42: -76 | AB42: =IF(AA42="… ","… ",RANK(AA42,AA$24:AA$1764,0)) -> 1335 | AC42: -42 | AD42: =IF(AC42="… ","… ",RANK(AC42,AC$24:AC$1764,0)) -> 1549 | AE42: 16 | AF42: =IF(AE42="… ","… ",RANK(AE42,AE$24:AE$1764,0)) -> 147 | AG42: 17 | AH42: =IF(AG42="… ","… ",RANK(AG42,AG$24:AG$1764,0)) -> 200 | AI42: 0 | AJ42: =IF(AI42="… ","… ",RANK(AI42,AI$24:AI$1764,0)) -> 750 | AK42: -7 | AL42: =IF(AK42="… ","… ",RANK(AK42,AK$24:AK$1764,0)) -> 1360 | AM42: -5 | AN42: =IF(AM42="… ","… ",RANK(AM42,AM$24:AM$1764,0)) -> 1292 | AO42: -3 | AP42: =IF(AO42="… ","… ",RANK(AO42,AO$24:AO$1764,0)) -> 1202 | AR42: -90 | AS42: 1299 | AT42: -21 | AU42: 1371 | AV42: -10 | AW42: 593 | AX42: 0 | AY42: 569 | AZ42: -7 | BA42: 1216 | BB42: -5 | BC42: 1217 | BD42: -20 | BE42: 1657 | BF42: -2 | BG42: 999
B43: 20 | C43: 1 | D43: 北海道 | E43: 1220 | F43: 士別市 | J43: -347 | K43: 1592 | L43: -52 | M43: 1446 | N43: -73 | O43: =IF(N43="… ","… ",RANK(N43,N$24:N$1764,0)) -> 1239 | P43: -30 | Q43: =IF(P43="… ","… ",RANK(P43,P$24:P$1764,0)) -> 1257 | R43: -1 | S43: =IF(R43="… ","… ",RANK(R43,R$24:R$1764,0)) -> 793 | T43: -18 | U43: =IF(T43="… ","… ",RANK(T43,T$24:T$1764,0)) -> 1487 | V43: -4 | W43: =IF(V43="… ","… ",RANK(V43,V$24:V$1764,0)) -> 1095 | X43: -15 | Y43: =IF(X43="… ","… ",RANK(X43,X$24:X$1764,0)) -> 1547 | AA43: -177 | AB43: =IF(AA43="… ","… ",RANK(AA43,AA$24:AA$1764,0)) -> 1607 | AC43: -36 | AD43: =IF(AC43="… ","… ",RANK(AC43,AC$24:AC$1764,0)) -> 1507 | AE43: -30 | AF43: =IF(AE43="… ","… ",RANK(AE43,AE$24:AE$1764,0)) -> 1191 | AG43: -20 | AH43: =IF(AG43="… ","… ",RANK(AG43,AG$24:AG$1764,0)) -> 1354 | AI43: 3 | AJ43: =IF(AI43="… ","… ",RANK(AI43,AI$24:AI$1764,0)) -> 536 | AK43: -3 | AL43: =IF(AK43="… ","… ",RANK(AK43,AK$24:AK$1764,0)) -> 1100 | AM43: -1 | AN43: =IF(AM43="… ","… ",RANK(AM43,AM$24:AM$1764,0)) -> 928 | AO43: -14 | AP43: =IF(AO43="… ","… ",RANK(AO43,AO$24:AO$1764,0)) -> 1618 | AR43: -170 | AS43: 1557 | AT43: -16 | AU43: 1254 | AV43: -43 | AW43: 1271 | AX43: -10 | AY43: 1057 | AZ43: -4 | BA43: 1061 | BB43: -15 | BC43: 1571 | BD43: -3 | BE43: 1096 | BF43: -1 | BG43: 839
B44: 21 | C44: 1 | D44: 北海道 | E44: 1221 | F44: 名寄市 | J44: -222 | K44: 1440 | L44: 78 | M44: 126 | N44: -26 | O44: =IF(N44="… ","… ",RANK(N44,N$24:N$1764,0)) -> 759 | P44: 12 | Q44: =IF(P44="… ","… ",RANK(P44,P$24:P$1764,0)) -> 299 | R44: -17 | S44: =IF(R44="… ","… ",RANK(R44,R$24:R$1764,0)) -> 1334 | T44: -36 | U44: =IF(T44="… ","… ",RANK(T44,T$24:T$1764,0)) -> 1617 | V44: -23 | W44: =IF(V44="… ","… ",RANK(V44,V$24:V$1764,0)) -> 1577 | X44: 0 | Y44: =IF(X44="… ","… ",RANK(X44,X$24:X$1764,0)) -> 731 | AA44: -65 | AB44: =IF(AA44="… ","… ",RANK(AA44,AA$24:AA$1764,0)) -> 1265 | AC44: 48 | AD44: =IF(AC44="… ","… ",RANK(AC44,AC$24:AC$1764,0)) -> 135 | AE44: 13 | AF44: =IF(AE44="… ","… ",RANK(AE44,AE$24:AE$1764,0)) -> 164 | AG44: 9 | AH44: =IF(AG44="… ","… ",RANK(AG44,AG$24:AG$1764,0)) -> 265 | AI44: -8 | AJ44: =IF(AI44="… ","… ",RANK(AI44,AI$24:AI$1764,0)) -> 1267 | AK44: -21 | AL44: =IF(AK44="… ","… ",RANK(AK44,AK$24:AK$1764,0)) -> 1607 | AM44: -15 | AN44: =IF(AM44="… ","… ",RANK(AM44,AM$24:AM$1764,0)) -> 1591 | AO44: 2 | AP44: =IF(AO44="… ","… ",RANK(AO44,AO$24:AO$1764,0)) -> 528 | AR44: -157 | AS44: 1526 | AT44: 30 | AU44: 136 | AV44: -39 | AW44: 1211 | AX44: 3 | AY44: 411 | AZ44: -9 | BA44: 1307 | BB44: -15 | BC44: 1571 | BD44: -8 | BE44: 1433 | BF44: -2 | BG44: 999
B45: 22 | C45: 1 | D45: 北海道 | E45: 1222 | F45: 三笠市 | J45: -87 | K45: 1030 | L45: -26 | M45: 1143 | N45: -10 | O45: =IF(N45="… ","… ",RANK(N45,N$24:N$1764,0)) -> 461 | P45: 6 | Q45: =IF(P45="… ","… ",RANK(P45,P$24:P$1764,0)) -> 369 | R45: 0 | S45: =IF(R45="… ","… ",RANK(R45,R$24:R$1764,0)) -> 742 | T45: -8 | U45: =IF(T45="… ","… ",RANK(T45,T$24:T$1764,0)) -> 1228 | V45: 2 | W45: =IF(V45="… ","… ",RANK(V45,V$24:V$1764,0)) -> 588 | X45: -3 | Y45: =IF(X45="… ","… ",RANK(X45,X$24:X$1764,0)) -> 1042 | AA45: -23 | AB45: =IF(AA45="… ","… ",RANK(AA45,AA$24:AA$1764,0)) -> 853 | AC45: -10 | AD45: =IF(AC45="… ","… ",RANK(AC45,AC$24:AC$1764,0)) -> 974 | AE45: 2 | AF45: =IF(AE45="… ","… ",RANK(AE45,AE$24:AE$1764,0)) -> 264 | AG45: 5 | AH45: =IF(AG45="… ","… ",RANK(AG45,AG$24:AG$1764,0)) -> 338 | AI45: -3 | AJ45: =IF(AI45="… ","… ",RANK(AI45,AI$24:AI$1764,0)) -> 980 | AK45: 0 | AL45: =IF(AK45="… ","… ",RANK(AK45,AK$24:AK$1764,0)) -> 783 | AM45: -1 | AN45: =IF(AM45="… ","… ",RANK(AM45,AM$24:AM$1764,0)) -> 928 | AO45: -1 | AP45: =IF(AO45="… ","… ",RANK(AO45,AO$24:AO$1764,0)) -> 944 | AR45: -64 | AS45: 1138 | AT45: -16 | AU45: 1254 | AV45: -12 | AW45: 667 | AX45: 1 | AY45: 504 | AZ45: 3 | BA45: 533 | BB45: -8 | BC45: 1383 | BD45: 3 | BE45: 399 | BF45: -2 | BG45: 999
B46: 23 | C46: 1 | D46: 北海道 | E46: 1223 | F46: 根室市 | J46: -386 | K46: 1621 | L46: -77 | M46: 1582 | N46: -12 | O46: =IF(N46="… ","… ",RANK(N46,N$24:N$1764,0)) -> 497 | P46: -16 | Q46: =IF(P46="… ","… ",RANK(P46,P$24:P$1764,0)) -> 1033 | R46: -46 | S46: =IF(R46="… ","… ",RANK(R46,R$24:R$1764,0)) -> 1596 | T46: -22 | U46: =IF(T46="… ","… ",RANK(T46,T$24:T$1764,0)) -> 1530 | V46: -33 | W46: =IF(V46="… ","… ",RANK(V46,V$24:V$1764,0)) -> 1638 | X46: -22 | Y46: =IF(X46="… ","… ",RANK(X46,X$24:X$1764,0)) -> 1621 | AA46: -206 | AB46: =IF(AA46="… ","… ",RANK(AA46,AA$24:AA$1764,0)) -> 1648 | AC46: -47 | AD46: =IF(AC46="… ","… ",RANK(AC46,AC$24:AC$1764,0)) -> 1579 | AE46: -1 | AF46: =IF(AE46="… ","… ",RANK(AE46,AE$24:AE$1764,0)) -> 372 | AG46: -14 | AH46: =IF(AG46="… ","… ",RANK(AG46,AG$24:AG$1764,0)) -> 1215 | AI46: -30 | AJ46: =IF(AI46="… ","… ",RANK(AI46,AI$24:AI$1764,0)) -> 1618 | AK46: -9 | AL46: =IF(AK46="… ","… ",RANK(AK46,AK$24:AK$1764,0)) -> 1432 | AM46: -14 | AN46: =IF(AM46="… ","… ",RANK(AM46,AM$24:AM$1764,0)) -> 1577 | AO46: -8 | AP46: =IF(AO46="… ","… ",RANK(AO46,AO$24:AO$1764,0)) -> 1498 | AR46: -180 | AS46: 1577 | AT46: -30 | AU46: 1533 | AV46: -11 | AW46: 623 | AX46: -2 | AY46: 684 | AZ46: -16 | BA46: 1480 | BB46: -13 | BC46: 1542 | BD46: -19 | BE46: 1646 | BF46: -14 | BG46: 1632
B47: 24 | C47: 1 | D47: 北海道 | E47: 1224 | F47: 千歳市 | J47: 297 | K47: 123 | L47: 323 | M47: 42 | N47: -61 | O47: =IF(N47="… ","… ",RANK(N47,N$24:N$1764,0)) -> 1162 | P47: -64 | Q47: =IF(P47="… ","… ",RANK(P47,P$24:P$1764,0)) -> 1526 | R47: 27 | S47: =IF(R47="… ","… ",RANK(R47,R$24:R$1764,0)) -> 237 | T47: 27 | U47: =IF(T47="… ","… ",RANK(T47,T$24:T$1764,0)) -> 184 | V47: -2 | W47: =IF(V47="… ","… ",RANK(V47,V$24:V$1764,0)) -> 944 | X47: -18 | Y47: =IF(X47="… ","… ",RANK(X47,X$24:X$1764,0)) -> 1585 | AA47: 111 | AB47: =IF(AA47="… ","… ",RANK(AA47,AA$24:AA$1764,0)) -> 147 | AC47: 235 | AD47: =IF(AC47="… ","… ",RANK(AC47,AC$24:AC$1764,0)) -> 32 | AE47: -92 | AF47: =IF(AE47="… ","… ",RANK(AE47,AE$24:AE$1764,0)) -> 1604 | AG47: -72 | AH47: =IF(AG47="… ","… ",RANK(AG47,AG$24:AG$1764,0)) -> 1676 | AI47: 14 | AJ47: =IF(AI47="… ","… ",RANK(AI47,AI$24:AI$1764,0)) -> 265 | AK47: 5 | AL47: =IF(AK47="… ","… ",RANK(AK47,AK$24:AK$1764,0)) -> 424 | AM47: -13 | AN47: =IF(AM47="… ","… ",RANK(AM47,AM$24:AM$1764,0)) -> 1559 | AO47: -21 | AP47: =IF(AO47="… ","… ",RANK(AO47,AO$24:AO$1764,0)) -> 1665 | AR47: 186 | AS47: 117 | AT47: 88 | AU47: 65 | AV47: 31 | AW47: 103 | AX47: 8 | AY47: 298 | AZ47: 13 | BA47: 249 | BB47: 22 | BC47: 119 | BD47: 11 | BE47: 161 | BF47: 3 | BG47: 346
B48: 25 | C48: 1 | D48: 北海道 | E48: 1225 | F48: 滝川市 | J48: -67 | K48: 918 | L48: 119 | M48: 98 | N48: -144 | O48: =IF(N48="… ","… ",RANK(N48,N$24:N$1764,0)) -> 1526 | P48: 2 | Q48: =IF(P48="… ","… ",RANK(P48,P$24:P$1764,0)) -> 470 | R48: 17 | S48: =IF(R48="… ","… ",RANK(R48,R$24:R$1764,0)) -> 316 | T48: -6 | U48: =IF(T48="… ","… ",RANK(T48,T$24:T$1764,0)) -> 1135 | V48: -14 | W48: =IF(V48="… ","… ",RANK(V48,V$24:V$1764,0)) -> 1465 | X48: 7 | Y48: =IF(X48="… ","… ",RANK(X48,X$24:X$1764,0)) -> 323 | AA48: 25 | AB48: =IF(AA48="… ","… ",RANK(AA48,AA$24:AA$1764,0)) -> 290 | AC48: 96 | AD48: =IF(AC48="… ","… ",RANK(AC48,AC$24:AC$1764,0)) -> 78 | AE48: -108 | AF48: =IF(AE48="… ","… ",RANK(AE48,AE$24:AE$1764,0)) -> 1644 | AG48: 9 | AH48: =IF(AG48="… ","… ",RANK(AG48,AG$24:AG$1764,0)) -> 265 | AI48: 21 | AJ48: =IF(AI48="… ","… ",RANK(AI48,AI$24:AI$1764,0)) -> 197 | AK48: 6 | AL48: =IF(AK48="… ","… ",RANK(AK48,AK$24:AK$1764,0)) -> 380 | AM48: -17 | AN48: =IF(AM48="… ","… ",RANK(AM48,AM$24:AM$1764,0)) -> 1608 | AO48: 3 | AP48: =IF(AO48="… ","… ",RANK(AO48,AO$24:AO$1764,0)) -> 442 | AR48: -92 | AS48: 1307 | AT48: 23 | AU48: 156 | AV48: -36 | AW48: 1167 | AX48: -7 | AY48: 955 | AZ48: -4 | BA48: 1061 | BB48: -12 | BC48: 1521 | BD48: 3 | BE48: 399 | BF48: 4 | BG48: 295
B49: 26 | C49: 1 | D49: 北海道 | E49: 1226 | F49: 砂川市 | J49: -58 | K49: 865 | L49: -9 | M49: 703 | N49: -13 | O49: =IF(N49="… ","… ",RANK(N49,N$24:N$1764,0)) -> 525 | P49: -11 | Q49: =IF(P49="… ","… ",RANK(P49,P$24:P$1764,0)) -> 925 | R49: -9 | S49: =IF(R49="… ","… ",RANK(R49,R$24:R$1764,0)) -> 1137 | T49: -7 | U49: =IF(T49="… ","… ",RANK(T49,T$24:T$1764,0)) -> 1180 | V49: -6 | W49: =IF(V49="… ","… ",RANK(V49,V$24:V$1764,0)) -> 1198 | X49: -12 | Y49: =IF(X49="… ","… ",RANK(X49,X$24:X$1764,0)) -> 1479 | AA49: -14 | AB49: =IF(AA49="… ","… ",RANK(AA49,AA$24:AA$1764,0)) -> 718 | AC49: -8 | AD49: =IF(AC49="… ","… ",RANK(AC49,AC$24:AC$1764,0)) -> 865 | AE49: -9 | AF49: =IF(AE49="… ","… ",RANK(AE49,AE$24:AE$1764,0)) -> 697 | AG49: 4 | AH49: =IF(AG49="… ","… ",RANK(AG49,AG$24:AG$1764,0)) -> 378 | AI49: -7 | AJ49: =IF(AI49="… ","… ",RANK(AI49,AI$24:AI$1764,0)) -> 1227 | AK49: -6 | AL49: =IF(AK49="… ","… ",RANK(AK49,AK$24:AK$1764,0)) -> 1319 | AM49: 4 | AN49: =IF(AM49="… ","… ",RANK(AM49,AM$24:AM$1764,0)) -> 425 | AO49: -8 | AP49: =IF(AO49="… ","… ",RANK(AO49,AO$24:AO$1764,0)) -> 1498 | AR49: -44 | AS49: 950 | AT49: -1 | AU49: 422 | AV49: -4 | AW49: 381 | AX49: -15 | AY49: 1217 | AZ49: -2 | BA49: 900 | BB49: -1 | BC49: 873 | BD49: -10 | BE49: 1502 | BF49: -4 | BG49: 1252
B50: 27 | C50: 1 | D50: 北海道 | E50: 1227 | F50: 歌志内市 | J50: -66 | K50: 906 | L50: -2 | M50: 436 | N50: -14 | O50: =IF(N50="… ","… ",RANK(N50,N$24:N$1764,0)) -> 539 | P50: -5 | Q50: =IF(P50="… ","… ",RANK(P50,P$24:P$1764,0)) -> 741 | R50: -6 | S50: =IF(R50="… ","… ",RANK(R50,R$24:R$1764,0)) -> 1028 | T50: -1 | U50: =IF(T50="… ","… ",RANK(T50,T$24:T$1764,0)) -> 846 | V50: -8 | W50: =IF(V50="… ","… ",RANK(V50,V$24:V$1764,0)) -> 1287 | X50: -3 | Y50: =IF(X50="… ","… ",RANK(X50,X$24:X$1764,0)) -> 1042 | AA50: -38 | AB50: =IF(AA50="… ","… ",RANK(AA50,AA$24:AA$1764,0)) -> 1029 | AC50: -3 | AD50: =IF(AC50="… ","… ",RANK(AC50,AC$24:AC$1764,0)) -> 578 | AE50: -7 | AF50: =IF(AE50="… ","… ",RANK(AE50,AE$24:AE$1764,0)) -> 617 | AG50: -3 | AH50: =IF(AG50="… ","… ",RANK(AG50,AG$24:AG$1764,0)) -> 769 | AI50: -3 | AJ50: =IF(AI50="… ","… ",RANK(AI50,AI$24:AI$1764,0)) -> 980 | AK50: -1 | AL50: =IF(AK50="… ","… ",RANK(AK50,AK$24:AK$1764,0)) -> 903 | AM50: -3 | AN50: =IF(AM50="… ","… ",RANK(AM50,AM$24:AM$1764,0)) -> 1153 | AO50: -3 | AP50: =IF(AO50="… ","… ",RANK(AO50,AO$24:AO$1764,0)) -> 1202 | AR50: -28 | AS50: 773 | AT50: 1 | AU50: 332 | AV50: -7 | AW50: 499 | AX50: -2 | AY50: 684 | AZ50: -3 | BA50: 989 | BB50: 0 | BC50: 756 | BD50: -5 | BE50: 1278 | BF50: 0 | BG50: 666
B51: 28 | C51: 1 | D51: 北海道 | E51: 1228 | F51: 深川市 | J51: -120 | K51: 1185 | L51: 47 | M51: 155 | N51: -95 | O51: =IF(N51="… ","… ",RANK(N51,N$24:N$1764,0)) -> 1366 | P51: -19 | Q51: =IF(P51="… ","… ",RANK(P51,P$24:P$1764,0)) -> 1086 | R51: -17 | S51: =IF(R51="… ","… ",RANK(R51,R$24:R$1764,0)) -> 1334 | T51: -7 | U51: =IF(T51="… ","… ",RANK(T51,T$24:T$1764,0)) -> 1180 | V51: -2 | W51: =IF(V51="… ","… ",RANK(V51,V$24:V$1764,0)) -> 944 | X51: 2 | Y51: =IF(X51="… ","… ",RANK(X51,X$24:X$1764,0)) -> 548 | AA51: -13 | AB51: =IF(AA51="… ","… ",RANK(AA51,AA$24:AA$1764,0)) -> 704 | AC51: 46 | AD51: =IF(AC51="… ","… ",RANK(AC51,AC$24:AC$1764,0)) -> 139 | AE51: -48 | AF51: =IF(AE51="… ","… ",RANK(AE51,AE$24:AE$1764,0)) -> 1390 | AG51: -3 | AH51: =IF(AG51="… ","… ",RANK(AG51,AG$24:AG$1764,0)) -> 769 | AI51: -5 | AJ51: =IF(AI51="… ","… ",RANK(AI51,AI$24:AI$1764,0)) -> 1132 | AK51: -9 | AL51: =IF(AK51="… ","… ",RANK(AK51,AK$24:AK$1764,0)) -> 1432 | AM51: 1 | AN51: =IF(AM51="… ","… ",RANK(AM51,AM$24:AM$1764,0)) -> 678 | AO51: 4 | AP51: =IF(AO51="… ","… ",RANK(AO51,AO$24:AO$1764,0)) -> 373 | AR51: -107 | AS51: 1377 | AT51: 1 | AU51: 332 | AV51: -47 | AW51: 1308 | AX51: -16 | AY51: 1242 | AZ51: -12 | BA51: 1396 | BB51: 2 | BC51: 565 | BD51: -3 | BE51: 1096 | BF51: -2 | BG51: 999
B52: 29 | C52: 1 | D52: 北海道 | E52: 1229 | F52: 富良野市 | J52: -257 | K52: 1494 | L52: -50 | M52: 1434 | N52: -42 | O52: =IF(N52="… ","… ",RANK(N52,N$24:N$1764,0)) -> 960 | P52: -15 | Q52: =IF(P52="… ","… ",RANK(P52,P$24:P$1764,0)) -> 1013 | R52: -42 | S52: =IF(R52="… ","… ",RANK(R52,R$24:R$1764,0)) -> 1576 | T52: 4 | U52: =IF(T52="… ","… ",RANK(T52,T$24:T$1764,0)) -> 546 | V52: -18 | W52: =IF(V52="… ","… ",RANK(V52,V$24:V$1764,0)) -> 1536 | X52: -19 | Y52: =IF(X52="… ","… ",RANK(X52,X$24:X$1764,0)) -> 1594 | AA52: -121 | AB52: =IF(AA52="… ","… ",RANK(AA52,AA$24:AA$1764,0)) -> 1498 | AC52: -29 | AD52: =IF(AC52="… ","… ",RANK(AC52,AC$24:AC$1764,0)) -> 1428 | AE52: -6 | AF52: =IF(AE52="… ","… ",RANK(AE52,AE$24:AE$1764,0)) -> 573 | AG52: 5 | AH52: =IF(AG52="… ","… ",RANK(AG52,AG$24:AG$1764,0)) -> 338 | AI52: -33 | AJ52: =IF(AI52="… ","… ",RANK(AI52,AI$24:AI$1764,0)) -> 1637 | AK52: 1 | AL52: =IF(AK52="… ","… ",RANK(AK52,AK$24:AK$1764,0)) -> 677 | AM52: -3 | AN52: =IF(AM52="… ","… ",RANK(AM52,AM$24:AM$1764,0)) -> 1153 | AO52: -10 | AP52: =IF(AO52="… ","… ",RANK(AO52,AO$24:AO$1764,0)) -> 1557 | AR52: -136 | AS52: 1473 | AT52: -21 | AU52: 1371 | AV52: -36 | AW52: 1167 | AX52: -20 | AY52: 1320 | AZ52: -9 | BA52: 1307 | BB52: 3 | BC52: 500 | BD52: -15 | BE52: 1593 | BF52: -9 | BG52: 1526
B53: 30 | C53: 1 | D53: 北海道 | E53: 1230 | F53: 登別市 | J53: -345 | K53: 1588 | L53: -2 | M53: 436 | N53: -204 | O53: =IF(N53="… ","… ",RANK(N53,N$24:N$1764,0)) -> 1637 | P53: 4 | Q53: =IF(P53="… ","… ",RANK(P53,P$24:P$1764,0)) -> 413 | R53: 8 | S53: =IF(R53="… ","… ",RANK(R53,R$24:R$1764,0)) -> 451 | T53: -23 | U53: =IF(T53="… ","… ",RANK(T53,T$24:T$1764,0)) -> 1539 | V53: 0 | W53: =IF(V53="… ","… ",RANK(V53,V$24:V$1764,0)) -> 754 | X53: 4 | Y53: =IF(X53="… ","… ",RANK(X53,X$24:X$1764,0)) -> 432 | AA53: -136 | AB53: =IF(AA53="… ","… ",RANK(AA53,AA$24:AA$1764,0)) -> 1531 | AC53: 26 | AD53: =IF(AC53="… ","… ",RANK(AC53,AC$24:AC$1764,0)) -> 191 | AE53: -117 | AF53: =IF(AE53="… ","… ",RANK(AE53,AE$24:AE$1764,0)) -> 1657 | AG53: 9 | AH53: =IF(AG53="… ","… ",RANK(AG53,AG$24:AG$1764,0)) -> 265 | AI53: 16 | AJ53: =IF(AI53="… ","… ",RANK(AI53,AI$24:AI$1764,0)) -> 243 | AK53: -22 | AL53: =IF(AK53="… ","… ",RANK(AK53,AK$24:AK$1764,0)) -> 1615 | AM53: 5 | AN53: =IF(AM53="… ","… ",RANK(AM53,AM$24:AM$1764,0)) -> 373 | AO53: 3 | AP53: =IF(AO53="… ","… ",RANK(AO53,AO$24:AO$1764,0)) -> 442 | AR53: -209 | AS53: 1617 | AT53: -28 | AU53: 1505 | AV53: -87 | AW53: 1572 | AX53: -5 | AY53: 875 | AZ53: -8 | BA53: 1276 | BB53: -1 | BC53: 873 | BD53: -5 | BE53: 1278 | BF53: 1 | BG53: 542
B54: 31 | C54: 1 | D54: 北海道 | E54: 1231 | F54: 恵庭市 | J54: 289 | K54: 126 | L54: 74 | M54: 130 | N54: -205 | O54: =IF(N54="… ","… ",RANK(N54,N$24:N$1764,0)) -> 1639 | P54: 19 | Q54: =IF(P54="… ","… ",RANK(P54,P$24:P$1764,0)) -> 242 | R54: 55 | S54: =IF(R54="… ","… ",RANK(R54,R$24:R$1764,0)) -> 137 | T54: 63 | U54: =IF(T54="… ","… ",RANK(T54,T$24:T$1764,0)) -> 82 | V54: 1 | W54: =IF(V54="… ","… ",RANK(V54,V$24:V$1764,0)) -> 673 | X54: -12 | Y54: =IF(X54="… ","… ",RANK(X54,X$24:X$1764,0)) -> 1479 | AA54: 134 | AB54: =IF(AA54="… ","… ",RANK(AA54,AA$24:AA$1764,0)) -> 127 | AC54: 43 | AD54: =IF(AC54="… ","… ",RANK(AC54,AC$24:AC$1764,0)) -> 142 | AE54: -125 | AF54: =IF(AE54="… ","… ",RANK(AE54,AE$24:AE$1764,0)) -> 1671 | AG54: -2 | AH54: =IF(AG54="… ","… ",RANK(AG54,AG$24:AG$1764,0)) -> 703 | AI54: 21 | AJ54: =IF(AI54="… ","… ",RANK(AI54,AI$24:AI$1764,0)) -> 197 | AK54: 45 | AL54: =IF(AK54="… ","… ",RANK(AK54,AK$24:AK$1764,0)) -> 53 | AM54: -4 | AN54: =IF(AM54="… ","… ",RANK(AM54,AM$24:AM$1764,0)) -> 1223 | AO54: -14 | AP54: =IF(AO54="… ","… ",RANK(AO54,AO$24:AO$1764,0)) -> 1618 | AR54: 155 | AS54: 128 | AT54: 31 | AU54: 132 | AV54: -80 | AW54: 1541 | AX54: 21 | AY54: 180 | AZ54: 34 | BA54: 111 | BB54: 18 | BC54: 143 | BD54: 5 | BE54: 300 | BF54: 2 | BG54: 432
B55: 32 | C55: 1 | D55: 北海道 | E55: 1233 | F55: 伊達市 | J55: -148 | K55: 1284 | L55: -46 | M55: 1399 | N55: -85 | O55: =IF(N55="… ","… ",RANK(N55,N$24:N$1764,0)) -> 1308 | P55: -16 | Q55: =IF(P55="… ","… ",RANK(P55,P$24:P$1764,0)) -> 1033 | R55: -16 | S55: =IF(R55="… ","… ",RANK(R55,R$24:R$1764,0)) -> 1312 | T55: 0 | U55: =IF(T55="… ","… ",RANK(T55,T$24:T$1764,0)) -> 777 | V55: -12 | W55: =IF(V55="… ","… ",RANK(V55,V$24:V$1764,0)) -> 1416 | X55: 7 | Y55: =IF(X55="… ","… ",RANK(X55,X$24:X$1764,0)) -> 323 | AA55: -47 | AB55: =IF(AA55="… ","… ",RANK(AA55,AA$24:AA$1764,0)) -> 1117 | AC55: -14 | AD55: =IF(AC55="… ","… ",RANK(AC55,AC$24:AC$1764,0)) -> 1129 | AE55: -38 | AF55: =IF(AE55="… ","… ",RANK(AE55,AE$24:AE$1764,0)) -> 1283 | AG55: -15 | AH55: =IF(AG55="… ","… ",RANK(AG55,AG$24:AG$1764,0)) -> 1241 | AI55: -8 | AJ55: =IF(AI55="… ","… ",RANK(AI55,AI$24:AI$1764,0)) -> 1267 | AK55: 13 | AL55: =IF(AK55="… ","… ",RANK(AK55,AK$24:AK$1764,0)) -> 250 | AM55: -4 | AN55: =IF(AM55="… ","… ",RANK(AM55,AM$24:AM$1764,0)) -> 1223 | AO55: -5 | AP55: =IF(AO55="… ","… ",RANK(AO55,AO$24:AO$1764,0)) -> 1371 | AR55: -101 | AS55: 1351 | AT55: -32 | AU55: 1560 | AV55: -47 | AW55: 1308 | AX55: -1 | AY55: 637 | AZ55: -8 | BA55: 1276 | BB55: -13 | BC55: 1542 | BD55: -8 | BE55: 1433 | BF55: 12 | BG55: 108
B56: 33 | C56: 1 | D56: 北海道 | E56: 1234 | F56: 北広島市 | J56: 17 | K56: 355 | L56: -35 | M56: 1276 | N56: -215 | O56: =IF(N56="… ","… ",RANK(N56,N$24:N$1764,0)) -> 1648 | P56: -30 | Q56: =IF(P56="… ","… ",RANK(P56,P$24:P$1764,0)) -> 1257 | R56: 29 | S56: =IF(R56="… ","… ",RANK(R56,R$24:R$1764,0)) -> 226 | T56: 31 | U56: =IF(T56="… ","… ",RANK(T56,T$24:T$1764,0)) -> 168 | V56: 19 | W56: =IF(V56="… ","… ",RANK(V56,V$24:V$1764,0)) -> 187 | X56: -4 | Y56: =IF(X56="… ","… ",RANK(X56,X$24:X$1764,0)) -> 1137 | AA56: 49 | AB56: =IF(AA56="… ","… ",RANK(AA56,AA$24:AA$1764,0)) -> 234 | AC56: -14 | AD56: =IF(AC56="… ","… ",RANK(AC56,AC$24:AC$1764,0)) -> 1129 | AE56: -108 | AF56: =IF(AE56="… ","… ",RANK(AE56,AE$24:AE$1764,0)) -> 1644 | AG56: 0 | AH56: =IF(AG56="… ","… ",RANK(AG56,AG$24:AG$1764,0)) -> 560 | AI56: 1 | AJ56: =IF(AI56="… ","… ",RANK(AI56,AI$24:AI$1764,0)) -> 670 | AK56: 28 | AL56: =IF(AK56="… ","… ",RANK(AK56,AK$24:AK$1764,0)) -> 110 | AM56: 21 | AN56: =IF(AM56="… ","… ",RANK(AM56,AM$24:AM$1764,0)) -> 104 | AO56: -1 | AP56: =IF(AO56="… ","… ",RANK(AO56,AO$24:AO$1764,0)) -> 944 | AR56: -32 | AS56: 818 | AT56: -21 | AU56: 1371 | AV56: -107 | AW56: 1628 | AX56: -30 | AY56: 1478 | AZ56: 28 | BA56: 133 | BB56: 3 | BC56: 500 | BD56: -2 | BE56: 988 | BF56: -3 | BG56: 1138
B57: 34 | C57: 1 | D57: 北海道 | E57: 1235 | F57: 石狩市 | J57: -23 | K57: 615 | L57: -52 | M57: 1446 | N57: -191 | O57: =IF(N57="… ","… ",RANK(N57,N$24:N$1764,0)) -> 1620 | P57: -39 | Q57: =IF(P57="… ","… ",RANK(P57,P$24:P$1764,0)) -> 1354 | R57: 61 | S57: =IF(R57="… ","… ",RANK(R57,R$24:R$1764,0)) -> 125 | T57: 11 | U57: =IF(T57="… ","… ",RANK(T57,T$24:T$1764,0)) -> 363 | V57: 20 | W57: =IF(V57="… ","… ",RANK(V57,V$24:V$1764,0)) -> 173 | X57: -15 | Y57: =IF(X57="… ","… ",RANK(X57,X$24:X$1764,0)) -> 1547 | AA57: -5 | AB57: =IF(AA57="… ","… ",RANK(AA57,AA$24:AA$1764,0)) -> 561 | AC57: -35 | AD57: =IF(AC57="… ","… ",RANK(AC57,AC$24:AC$1764,0)) -> 1501 | AE57: -87 | AF57: =IF(AE57="… ","… ",RANK(AE57,AE$24:AE$1764,0)) -> 1589 | AG57: -13 | AH57: =IF(AG57="… ","… ",RANK(AG57,AG$24:AG$1764,0)) -> 1193 | AI57: 23 | AJ57: =IF(AI57="… ","… ",RANK(AI57,AI$24:AI$1764,0)) -> 183 | AK57: 14 | AL57: =IF(AK57="… ","… ",RANK(AK57,AK$24:AK$1764,0)) -> 236 | AM57: 19 | AN57: =IF(AM57="… ","… ",RANK(AM57,AM$24:AM$1764,0)) -> 122 | AO57: -9 | AP57: =IF(AO57="… ","… ",RANK(AO57,AO$24:AO$1764,0)) -> 1534 | AR57: -18 | AS57: 661 | AT57: -17 | AU57: 1288 | AV57: -104 | AW57: 1620 | AX57: -26 | AY57: 1421 | AZ57: 38 | BA57: 100 | BB57: -3 | BC57: 1062 | BD57: 1 | BE57: 576 | BF57: -6 | BG57: 1407
B58: 35 | C58: 1 | D58: 北海道 | E58: 1236 | F58: 北斗市 | J58: -211 | K58: 1419 | L58: -109 | M58: 1642 | N58: -108 | O58: =IF(N58="… ","… ",RANK(N58,N$24:N$1764,0)) -> 1423 | P58: -6 | Q58: =IF(P58="… ","… ",RANK(P58,P$24:P$1764,0)) -> 770 | R58: -14 | S58: =IF(R58="… ","… ",RANK(R58,R$24:R$1764,0)) -> 1273 | T58: 3 | U58: =IF(T58="… ","… ",RANK(T58,T$24:T$1764,0)) -> 590 | V58: -14 | W58: =IF(V58="… ","… ",RANK(V58,V$24:V$1764,0)) -> 1465 | X58: -12 | Y58: =IF(X58="… ","… ",RANK(X58,X$24:X$1764,0)) -> 1479 | AA58: -91 | AB58: =IF(AA58="… ","… ",RANK(AA58,AA$24:AA$1764,0)) -> 1407 | AC58: -67 | AD58: =IF(AC58="… ","… ",RANK(AC58,AC$24:AC$1764,0)) -> 1655 | AE58: -37 | AF58: =IF(AE58="… ","… ",RANK(AE58,AE$24:AE$1764,0)) -> 1274 | AG58: 0 | AH58: =IF(AG58="… ","… ",RANK(AG58,AG$24:AG$1764,0)) -> 560 | AI58: -5 | AJ58: =IF(AI58="… ","… ",RANK(AI58,AI$24:AI$1764,0)) -> 1132 | AK58: 10 | AL58: =IF(AK58="… ","… ",RANK(AK58,AK$24:AK$1764,0)) -> 287 | AM58: -3 | AN58: =IF(AM58="… ","… ",RANK(AM58,AM$24:AM$1764,0)) -> 1153 | AO58: -15 | AP58: =IF(AO58="… ","… ",RANK(AO58,AO$24:AO$1764,0)) -> 1632 | AR58: -120 | AS58: 1415 | AT58: -42 | AU58: 1623 | AV58: -71 | AW58: 1499 | AX58: -6 | AY58: 925 | AZ58: -9 | BA58: 1307 | BB58: -7 | BC58: 1338 | BD58: -11 | BE58: 1524 | BF58: 3 | BG58: 346
B59: 36 | C59: 1 | D59: 北海道 | E59: 1303 | F59: 当別町 | J59: -210 | K59: 1417 | L59: 7 | M59: 296 | N59: -106 | O59: =IF(N59="… ","… ",RANK(N59,N$24:N$1764,0)) -> 1410 | P59: -31 | Q59: =IF(P59="… ","… ",RANK(P59,P$24:P$1764,0)) -> 1275 | R59: -17 | S59: =IF(R59="… ","… ",RANK(R59,R$24:R$1764,0)) -> 1334 | T59: -14 | U59: =IF(T59="… ","… ",RANK(T59,T$24:T$1764,0)) -> 1404 | V59: -7 | W59: =IF(V59="… ","… ",RANK(V59,V$24:V$1764,0)) -> 1253 | X59: -1 | Y59: =IF(X59="… ","… ",RANK(X59,X$24:X$1764,0)) -> 835 | AA59: -100 | AB59: =IF(AA59="… ","… ",RANK(AA59,AA$24:AA$1764,0)) -> 1437 | AC59: -1 | AD59: =IF(AC59="… ","… ",RANK(AC59,AC$24:AC$1764,0)) -> 457 | AE59: -56 | AF59: =IF(AE59="… ","… ",RANK(AE59,AE$24:AE$1764,0)) -> 1452 | AG59: -19 | AH59: =IF(AG59="… ","… ",RANK(AG59,AG$24:AG$1764,0)) -> 1324 | AI59: -9 | AJ59: =IF(AI59="… ","… ",RANK(AI59,AI$24:AI$1764,0)) -> 1309 | AK59: -5 | AL59: =IF(AK59="… ","… ",RANK(AK59,AK$24:AK$1764,0)) -> 1264 | AM59: 3 | AN59: =IF(AM59="… ","… ",RANK(AM59,AM$24:AM$1764,0)) -> 479 | AO59: 4 | AP59: =IF(AO59="… ","… ",RANK(AO59,AO$24:AO$1764,0)) -> 373 | AR59: -110 | AS59: 1392 | AT59: 8 | AU59: 235 | AV59: -50 | AW59: 1342 | AX59: -12 | AY59: 1125 | AZ59: -8 | BA59: 1276 | BB59: -9 | BC59: 1420 | BD59: -10 | BE59: 1502 | BF59: -5 | BG59: 1334
B60: 37 | C60: 1 | D60: 北海道 | E60: 1304 | F60: 新篠津村 | J60: -43 | K60: 755 | L60: -9 | M60: 703 | N60: -14 | O60: =IF(N60="… ","… ",RANK(N60,N$24:N$1764,0)) -> 539 | P60: -13 | Q60: =IF(P60="… ","… ",RANK(P60,P$24:P$1764,0)) -> 978 | R60: -9 | S60: =IF(R60="… ","… ",RANK(R60,R$24:R$1764,0)) -> 1137 | T60: -1 | U60: =IF(T60="… ","… ",RANK(T60,T$24:T$1764,0)) -> 846 | V60: 0 | W60: =IF(V60="… ","… ",RANK(V60,V$24:V$1764,0)) -> 754 | X60: -3 | Y60: =IF(X60="… ","… ",RANK(X60,X$24:X$1764,0)) -> 1042 | AA60: -16 | AB60: =IF(AA60="… ","… ",RANK(AA60,AA$24:AA$1764,0)) -> 756 | AC60: -6 | AD60: =IF(AC60="… ","… ",RANK(AC60,AC$24:AC$1764,0)) -> 774 | AE60: -6 | AF60: =IF(AE60="… ","… ",RANK(AE60,AE$24:AE$1764,0)) -> 573 | AG60: -4 | AH60: =IF(AG60="… ","… ",RANK(AG60,AG$24:AG$1764,0)) -> 833 | AI60: -3 | AJ60: =IF(AI60="… ","… ",RANK(AI60,AI$24:AI$1764,0)) -> 980 | AK60: 3 | AL60: =IF(AK60="… ","… ",RANK(AK60,AK$24:AK$1764,0)) -> 522 | AM60: 1 | AN60: =IF(AM60="… ","… ",RANK(AM60,AM$24:AM$1764,0)) -> 678 | AO60: 1 | AP60: =IF(AO60="… ","… ",RANK(AO60,AO$24:AO$1764,0)) -> 637 | AR60: -27 | AS60: 761 | AT60: -3 | AU60: 579 | AV60: -8 | AW60: 535 | AX60: -9 | AY60: 1026 | AZ60: -6 | BA60: 1183 | BB60: -4 | BC60: 1146 | BD60: -1 | BE60: 855 | BF60: -4 | BG60: 1252
B61: 38 | C61: 1 | D61: 北海道 | E61: 1331 | F61: 松前町 | J61: -115 | K61: 1163 | L61: -44 | M61: 1378 | N61: -7 | O61: =IF(N61="… ","… ",RANK(N61,N$24:N$1764,0)) -> 415 | P61: -2 | Q61: =IF(P61="… ","… ",RANK(P61,P$24:P$1764,0)) -> 611 | R61: -8 | S61: =IF(R61="… ","… ",RANK(R61,R$24:R$1764,0)) -> 1103 | T61: -13 | U61: =IF(T61="… ","… ",RANK(T61,T$24:T$1764,0)) -> 1384 | V61: 3 | W61: =IF(V61="… ","… ",RANK(V61,V$24:V$1764,0)) -> 520 | X61: -12 | Y61: =IF(X61="… ","… ",RANK(X61,X$24:X$1764,0)) -> 1479 | AA61: -61 | AB61: =IF(AA61="… ","… ",RANK(AA61,AA$24:AA$1764,0)) -> 1242 | AC61: -21 | AD61: =IF(AC61="… ","… ",RANK(AC61,AC$24:AC$1764,0)) -> 1296 | AE61: -3 | AF61: =IF(AE61="… ","… ",RANK(AE61,AE$24:AE$1764,0)) -> 449 | AG61: -4 | AH61: =IF(AG61="… ","… ",RANK(AG61,AG$24:AG$1764,0)) -> 833 | AI61: -3 | AJ61: =IF(AI61="… ","… ",RANK(AI61,AI$24:AI$1764,0)) -> 980 | AK61: -5 | AL61: =IF(AK61="… ","… ",RANK(AK61,AK$24:AK$1764,0)) -> 1264 | AM61: -2 | AN61: =IF(AM61="… ","… ",RANK(AM61,AM$24:AM$1764,0)) -> 1055 | AO61: -6 | AP61: =IF(AO61="… ","… ",RANK(AO61,AO$24:AO$1764,0)) -> 1423 | AR61: -54 | AS61: 1057 | AT61: -23 | AU61: 1421 | AV61: -4 | AW61: 381 | AX61: 2 | AY61: 447 | AZ61: -5 | BA61: 1132 | BB61: -8 | BC61: 1383 | BD61: 5 | BE61: 300 | BF61: -6 | BG61: 1407
B62: 39 | C62: 1 | D62: 北海道 | E62: 1332 | F62: 福島町 | J62: -87 | K62: 1030 | L62: -22 | M62: 1064 | N62: -1 | O62: =IF(N62="… ","… ",RANK(N62,N$24:N$1764,0)) -> 287 | P62: -12 | Q62: =IF(P62="… ","… ",RANK(P62,P$24:P$1764,0)) -> 948 | R62: -3 | S62: =IF(R62="… ","… ",RANK(R62,R$24:R$1764,0)) -> 899 | T62: -15 | U62: =IF(T62="… ","… ",RANK(T62,T$24:T$1764,0)) -> 1431 | V62: -3 | W62: =IF(V62="… ","… ",RANK(V62,V$24:V$1764,0)) -> 1024 | X62: -1 | Y62: =IF(X62="… ","… ",RANK(X62,X$24:X$1764,0)) -> 835 | AA62: -42 | AB62: =IF(AA62="… ","… ",RANK(AA62,AA$24:AA$1764,0)) -> 1073 | AC62: -11 | AD62: =IF(AC62="… ","… ",RANK(AC62,AC$24:AC$1764,0)) -> 1017 | AE62: -2 | AF62: =IF(AE62="… ","… ",RANK(AE62,AE$24:AE$1764,0)) -> 410 | AG62: -14 | AH62: =IF(AG62="… ","… ",RANK(AG62,AG$24:AG$1764,0)) -> 1215 | AI62: 0 | AJ62: =IF(AI62="… ","… ",RANK(AI62,AI$24:AI$1764,0)) -> 750 | AK62: -6 | AL62: =IF(AK62="… ","… ",RANK(AK62,AK$24:AK$1764,0)) -> 1319 | AM62: 0 | AN62: =IF(AM62="… ","… ",RANK(AM62,AM$24:AM$1764,0)) -> 784 | AO62: -3 | AP62: =IF(AO62="… ","… ",RANK(AO62,AO$24:AO$1764,0)) -> 1202 | AR62: -45 | AS62: 968 | AT62: -11 | AU62: 1060 | AV62: 1 | AW62: 217 | AX62: 2 | AY62: 447 | AZ62: -3 | BA62: 989 | BB62: -9 | BC62: 1420 | BD62: -3 | BE62: 1096 | BF62: 2 | BG62: 432
B63: 40 | C63: 1 | D63: 北海道 | E63: 1333 | F63: 知内町 | J63: -61 | K63: 878 | L63: -8 | M63: 663 | N63: 0 | O63: =IF(N63="… ","… ",RANK(N63,N$24:N$1764,0)) -> 269 | P63: -12 | Q63: =IF(P63="… ","… ",RANK(P63,P$24:P$1764,0)) -> 948 | R63: -11 | S63: =IF(R63="… ","… ",RANK(R63,R$24:R$1764,0)) -> 1193 | T63: -7 | U63: =IF(T63="… ","… ",RANK(T63,T$24:T$1764,0)) -> 1180 | V63: 2 | W63: =IF(V63="… ","… ",RANK(V63,V$24:V$1764,0)) -> 588 | X63: -2 | Y63: =IF(X63="… ","… ",RANK(X63,X$24:X$1764,0)) -> 949 | AA63: -28 | AB63: =IF(AA63="… ","… ",RANK(AA63,AA$24:AA$1764,0)) -> 920 | AC63: 0 | AD63: =IF(AC63="… ","… ",RANK(AC63,AC$24:AC$1764,0)) -> 391 | AE63: 0 | AF63: =IF(AE63="… ","… ",RANK(AE63,AE$24:AE$1764,0)) -> 330 | AG63: -8 | AH63: =IF(AG63="… ","… ",RANK(AG63,AG$24:AG$1764,0)) -> 1026 | AI63: -4 | AJ63: =IF(AI63="… ","… ",RANK(AI63,AI$24:AI$1764,0)) -> 1063 | AK63: -4 | AL63: =IF(AK63="… ","… ",RANK(AK63,AK$24:AK$1764,0)) -> 1200 | AM63: -1 | AN63: =IF(AM63="… ","… ",RANK(AM63,AM$24:AM$1764,0)) -> 928 | AO63: 1 | AP63: =IF(AO63="… ","… ",RANK(AO63,AO$24:AO$1764,0)) -> 637 | AR63: -33 | AS63: 830 | AT63: -8 | AU63: 915 | AV63: 0 | AW63: 244 | AX63: -4 | AY63: 817 | AZ63: -7 | BA63: 1216 | BB63: -3 | BC63: 1062 | BD63: 3 | BE63: 399 | BF63: -3 | BG63: 1138
B64: 41 | C64: 1 | D64: 北海道 | E64: 1334 | F64: 木古内町 | J64: -39 | K64: 729 | L64: -13 | M64: 823 | N64: -3 | O64: =IF(N64="… ","… ",RANK(N64,N$24:N$1764,0)) -> 324 | P64: -2 | Q64: =IF(P64="… ","… ",RANK(P64,P$24:P$1764,0)) -> 611 | R64: 0 | S64: =IF(R64="… ","… ",RANK(R64,R$24:R$1764,0)) -> 742 | T64: -1 | U64: =IF(T64="… ","… ",RANK(T64,T$24:T$1764,0)) -> 846 | V64: -5 | W64: =IF(V64="… ","… ",RANK(V64,V$24:V$1764,0)) -> 1153 | X64: 2 | Y64: =IF(X64="… ","… ",RANK(X64,X$24:X$1764,0)) -> 548 | AA64: -27 | AB64: =IF(AA64="… ","… ",RANK(AA64,AA$24:AA$1764,0)) -> 907 | AC64: -8 | AD64: =IF(AC64="… ","… ",RANK(AC64,AC$24:AC$1764,0)) -> 865 | AE64: -2 | AF64: =IF(AE64="… ","… ",RANK(AE64,AE$24:AE$1764,0)) -> 410 | AG64: -9 | AH64: =IF(AG64="… ","… ",RANK(AG64,AG$24:AG$1764,0)) -> 1070 | AI64: -4 | AJ64: =IF(AI64="… ","… ",RANK(AI64,AI$24:AI$1764,0)) -> 1063 | AK64: 4 | AL64: =IF(AK64="… ","… ",RANK(AK64,AK$24:AK$1764,0)) -> 466 | AM64: -5 | AN64: =IF(AM64="… ","… ",RANK(AM64,AM$24:AM$1764,0)) -> 1292 | AO64: 3 | AP64: =IF(AO64="… ","… ",RANK(AO64,AO$24:AO$1764,0)) -> 442 | AR64: -12 | AS64: 583 | AT64: -5 | AU64: 728 | AV64: -1 | AW64: 282 | AX64: 7 | AY64: 311 | AZ64: 4 | BA64: 474 | BB64: -5 | BC64: 1217 | BD64: 0 | BE64: 704 | BF64: -1 | BG64: 839
B65: 42 | C65: 1 | D65: 北海道 | E65: 1337 | F65: 七飯町 | J65: 138 | K65: 189 | L65: -52 | M65: 1446 | N65: -59 | O65: =IF(N65="… ","… ",RANK(N65,N$24:N$1764,0)) -> 1150 | P65: 43 | Q65: =IF(P65="… ","… ",RANK(P65,P$24:P$1764,0)) -> 164 | R65: 46 | S65: =IF(R65="… ","… ",RANK(R65,R$24:R$1764,0)) -> 161 | T65: 19 | U65: =IF(T65="… ","… ",RANK(T65,T$24:T$1764,0)) -> 254 | V65: 29 | W65: =IF(V65="… ","… ",RANK(V65,V$24:V$1764,0)) -> 118 | X65: 7 | Y65: =IF(X65="… ","… ",RANK(X65,X$24:X$1764,0)) -> 323 | AA65: 101 | AB65: =IF(AA65="… ","… ",RANK(AA65,AA$24:AA$1764,0)) -> 157 | AC65: -33 | AD65: =IF(AC65="… ","… ",RANK(AC65,AC$24:AC$1764,0)) -> 1482 | AE65: -18 | AF65: =IF(AE65="… ","… ",RANK(AE65,AE$24:AE$1764,0)) -> 966 | AG65: 37 | AH65: =IF(AG65="… ","… ",RANK(AG65,AG$24:AG$1764,0)) -> 126 | AI65: 28 | AJ65: =IF(AI65="… ","… ",RANK(AI65,AI$24:AI$1764,0)) -> 159 | AK65: 13 | AL65: =IF(AK65="… ","… ",RANK(AK65,AK$24:AK$1764,0)) -> 250 | AM65: 18 | AN65: =IF(AM65="… ","… ",RANK(AM65,AM$24:AM$1764,0)) -> 133 | AO65: 11 | AP65: =IF(AO65="… ","… ",RANK(AO65,AO$24:AO$1764,0)) -> 161 | AR65: 37 | AS65: 253 | AT65: -19 | AU65: 1321 | AV65: -41 | AW65: 1243 | AX65: 6 | AY65: 330 | AZ65: 18 | BA65: 197 | BB65: 6 | BC65: 372 | BD65: 11 | BE65: 161 | BF65: -4 | BG65: 1252
B66: 43 | C66: 1 | D66: 北海道 | E66: 1343 | F66: 鹿部町 | J66: -15 | K66: 556 | L66: -10 | M66: 728 | N66: -1 | O66: =IF(N66="… ","… ",RANK(N66,N$24:N$1764,0)) -> 287 | P66: 3 | Q66: =IF(P66="… ","… ",RANK(P66,P$24:P$1764,0)) -> 441 | R66: -5 | S66: =IF(R66="… ","… ",RANK(R66,R$24:R$1764,0)) -> 981 | T66: 1 | U66: =IF(T66="… ","… ",RANK(T66,T$24:T$1764,0)) -> 708 | V66: -2 | W66: =IF(V66="… ","… ",RANK(V66,V$24:V$1764,0)) -> 944 | X66: -3 | Y66: =IF(X66="… ","… ",RANK(X66,X$24:X$1764,0)) -> 1042 | AA66: -10 | AB66: =IF(AA66="… ","… ",RANK(AA66,AA$24:AA$1764,0)) -> 655 | AC66: -5 | AD66: =IF(AC66="… ","… ",RANK(AC66,AC$24:AC$1764,0)) -> 715 | AE66: -2 | AF66: =IF(AE66="… ","… ",RANK(AE66,AE$24:AE$1764,0)) -> 410 | AG66: 0 | AH66: =IF(AG66="… ","… ",RANK(AG66,AG$24:AG$1764,0)) -> 560 | AI66: -2 | AJ66: =IF(AI66="… ","… ",RANK(AI66,AI$24:AI$1764,0)) -> 906 | AK66: -3 | AL66: =IF(AK66="… ","… ",RANK(AK66,AK$24:AK$1764,0)) -> 1100 | AM66: -2 | AN66: =IF(AM66="… ","… ",RANK(AM66,AM$24:AM$1764,0)) -> 1055 | AO66: -1 | AP66: =IF(AO66="… ","… ",RANK(AO66,AO$24:AO$1764,0)) -> 944 | AR66: -5 | AS66: 480 | AT66: -5 | AU66: 728 | AV66: 1 | AW66: 217 | AX66: 3 | AY66: 411 | AZ66: -3 | BA66: 989 | BB66: 4 | BC66: 448 | BD66: 0 | BE66: 704 | BF66: -2 | BG66: 999
B67: 44 | C67: 1 | D67: 北海道 | E67: 1345 | F67: 森町 | J67: -167 | K67: 1327 | L67: -57 | M67: 1476 | N67: -49 | O67: =IF(N67="… ","… ",RANK(N67,N$24:N$1764,0)) -> 1050 | P67: 1 | Q67: =IF(P67="… ","… ",RANK(P67,P$24:P$1764,0)) -> 500 | R67: -8 | S67: =IF(R67="… ","… ",RANK(R67,R$24:R$1764,0)) -> 1103 | T67: 9 | U67: =IF(T67="… ","… ",RANK(T67,T$24:T$1764,0)) -> 406 | V67: -14 | W67: =IF(V67="… ","… ",RANK(V67,V$24:V$1764,0)) -> 1465 | X67: -12 | Y67: =IF(X67="… ","… ",RANK(X67,X$24:X$1764,0)) -> 1479 | AA67: -84 | AB67: =IF(AA67="… ","… ",RANK(AA67,AA$24:AA$1764,0)) -> 1377 | AC67: -30 | AD67: =IF(AC67="… ","… ",RANK(AC67,AC$24:AC$1764,0)) -> 1442 | AE67: -19 | AF67: =IF(AE67="… ","… ",RANK(AE67,AE$24:AE$1764,0)) -> 992 | AG67: -4 | AH67: =IF(AG67="… ","… ",RANK(AG67,AG$24:AG$1764,0)) -> 833 | AI67: -6 | AJ67: =IF(AI67="… ","… ",RANK(AI67,AI$24:AI$1764,0)) -> 1187 | AK67: 8 | AL67: =IF(AK67="… ","… ",RANK(AK67,AK$24:AK$1764,0)) -> 335 | AM67: -5 | AN67: =IF(AM67="… ","… ",RANK(AM67,AM$24:AM$1764,0)) -> 1292 | AO67: -5 | AP67: =IF(AO67="… ","… ",RANK(AO67,AO$24:AO$1764,0)) -> 1371 | AR67: -83 | AS67: 1273 | AT67: -27 | AU67: 1491 | AV67: -30 | AW67: 1066 | AX67: 5 | AY67: 349 | AZ67: -2 | BA67: 900 | BB67: 1 | BC67: 663 | BD67: -9 | BE67: 1478 | BF67: -7 | BG67: 1458
B68: 45 | C68: 1 | D68: 北海道 | E68: 1346 | F68: 八雲町 | J68: -126 | K68: 1213 | L68: -18 | M68: 970 | N68: -18 | O68: =IF(N68="… ","… ",RANK(N68,N$24:N$1764,0)) -> 623 | P68: 9 | Q68: =IF(P68="… ","… ",RANK(P68,P$24:P$1764,0)) -> 327 | R68: -4 | S68: =IF(R68="… ","… ",RANK(R68,R$24:R$1764,0)) -> 946 | T68: -1 | U68: =IF(T68="… ","… ",RANK(T68,T$24:T$1764,0)) -> 846 | V68: -14 | W68: =IF(V68="… ","… ",RANK(V68,V$24:V$1764,0)) -> 1465 | X68: -10 | Y68: =IF(X68="… ","… ",RANK(X68,X$24:X$1764,0)) -> 1430 | AA68: -67 | AB68: =IF(AA68="… ","… ",RANK(AA68,AA$24:AA$1764,0)) -> 1285 | AC68: 1 | AD68: =IF(AC68="… ","… ",RANK(AC68,AC$24:AC$1764,0)) -> 358 | AE68: -11 | AF68: =IF(AE68="… ","… ",RANK(AE68,AE$24:AE$1764,0)) -> 771 | AG68: 9 | AH68: =IF(AG68="… ","… ",RANK(AG68,AG$24:AG$1764,0)) -> 265 | AI68: -13 | AJ68: =IF(AI68="… ","… ",RANK(AI68,AI$24:AI$1764,0)) -> 1428 | AK68: -6 | AL68: =IF(AK68="… ","… ",RANK(AK68,AK$24:AK$1764,0)) -> 1319 | AM68: -6 | AN68: =IF(AM68="… ","… ",RANK(AM68,AM$24:AM$1764,0)) -> 1358 | AO68: -2 | AP68: =IF(AO68="… ","… ",RANK(AO68,AO$24:AO$1764,0)) -> 1092 | AR68: -59 | AS68: 1097 | AT68: -19 | AU68: 1321 | AV68: -7 | AW68: 499 | AX68: 0 | AY68: 569 | AZ68: 9 | BA68: 314 | BB68: 5 | BC68: 414 | BD68: -8 | BE68: 1433 | BF68: -8 | BG68: 1497
B69: 46 | C69: 1 | D69: 北海道 | E69: 1347 | F69: 長万部町 | J69: -217 | K69: 1432 | L69: -96 | M69: 1620 | N69: -114 | O69: =IF(N69="… ","… ",RANK(N69,N$24:N$1764,0)) -> 1439 | P69: 4 | Q69: =IF(P69="… ","… ",RANK(P69,P$24:P$1764,0)) -> 413 | R69: 12 | S69: =IF(R69="… ","… ",RANK(R69,R$24:R$1764,0)) -> 381 | T69: -5 | U69: =IF(T69="… ","… ",RANK(T69,T$24:T$1764,0)) -> 1094 | V69: -1 | W69: =IF(V69="… ","… ",RANK(V69,V$24:V$1764,0)) -> 852 | X69: 2 | Y69: =IF(X69="… ","… ",RANK(X69,X$24:X$1764,0)) -> 548 | AA69: -155 | AB69: =IF(AA69="… ","… ",RANK(AA69,AA$24:AA$1764,0)) -> 1575 | AC69: -74 | AD69: =IF(AC69="… ","… ",RANK(AC69,AC$24:AC$1764,0)) -> 1663 | AE69: -92 | AF69: =IF(AE69="… ","… ",RANK(AE69,AE$24:AE$1764,0)) -> 1604 | AG69: 4 | AH69: =IF(AG69="… ","… ",RANK(AG69,AG$24:AG$1764,0)) -> 378 | AI69: 3 | AJ69: =IF(AI69="… ","… ",RANK(AI69,AI$24:AI$1764,0)) -> 536 | AK69: -3 | AL69: =IF(AK69="… ","… ",RANK(AK69,AK$24:AK$1764,0)) -> 1100 | AM69: 2 | AN69: =IF(AM69="… ","… ",RANK(AM69,AM$24:AM$1764,0)) -> 567 | AO69: 4 | AP69: =IF(AO69="… ","… ",RANK(AO69,AO$24:AO$1764,0)) -> 373 | AR69: -62 | AS69: 1122 | AT69: -22 | AU69: 1397 | AV69: -22 | AW69: 909 | AX69: 0 | AY69: 569 | AZ69: 9 | BA69: 314 | BB69: -2 | BC69: 968 | BD69: -3 | BE69: 1096 | BF69: -2 | BG69: 999
B70: 47 | C70: 1 | D70: 北海道 | E70: 1361 | F70: 江差町 | J70: -74 | K70: 944 | L70: 7 | M70: 296 | N70: 7 | O70: =IF(N70="… ","… ",RANK(N70,N$24:N$1764,0)) -> 197 | P70: 4 | Q70: =IF(P70="… ","… ",RANK(P70,P$24:P$1764,0)) -> 413 | R70: -2 | S70: =IF(R70="… ","… ",RANK(R70,R$24:R$1764,0)) -> 842 | T70: -4 | U70: =IF(T70="… ","… ",RANK(T70,T$24:T$1764,0)) -> 1041 | V70: -10 | W70: =IF(V70="… ","… ",RANK(V70,V$24:V$1764,0)) -> 1364 | X70: -21 | Y70: =IF(X70="… ","… ",RANK(X70,X$24:X$1764,0)) -> 1615 | AA70: -40 | AB70: =IF(AA70="… ","… ",RANK(AA70,AA$24:AA$1764,0)) -> 1052 | AC70: 2 | AD70: =IF(AC70="… ","… ",RANK(AC70,AC$24:AC$1764,0)) -> 336 | AE70: 14 | AF70: =IF(AE70="… ","… ",RANK(AE70,AE$24:AE$1764,0)) -> 155 | AG70: -1 | AH70: =IF(AG70="… ","… ",RANK(AG70,AG$24:AG$1764,0)) -> 634 | AI70: -7 | AJ70: =IF(AI70="… ","… ",RANK(AI70,AI$24:AI$1764,0)) -> 1227 | AK70: -6 | AL70: =IF(AK70="… ","… ",RANK(AK70,AK$24:AK$1764,0)) -> 1319 | AM70: -7 | AN70: =IF(AM70="… ","… ",RANK(AM70,AM$24:AM$1764,0)) -> 1397 | AO70: -4 | AP70: =IF(AO70="… ","… ",RANK(AO70,AO$24:AO$1764,0)) -> 1295 | AR70: -34 | AS70: 847 | AT70: 5 | AU70: 271 | AV70: -7 | AW70: 499 | AX70: 5 | AY70: 349 | AZ70: 5 | BA70: 426 | BB70: 2 | BC70: 565 | BD70: -3 | BE70: 1096 | BF70: -17 | BG70: 1673
B71: 48 | C71: 1 | D71: 北海道 | E71: 1362 | F71: 上ノ国町 | J71: -93 | K71: 1060 | L71: -18 | M71: 970 | N71: -20 | O71: =IF(N71="… ","… ",RANK(N71,N$24:N$1764,0)) -> 656 | P71: 1 | Q71: =IF(P71="… ","… ",RANK(P71,P$24:P$1764,0)) -> 500 | R71: -8 | S71: =IF(R71="… ","… ",RANK(R71,R$24:R$1764,0)) -> 1103 | T71: -5 | U71: =IF(T71="… ","… ",RANK(T71,T$24:T$1764,0)) -> 1094 | V71: -3 | W71: =IF(V71="… ","… ",RANK(V71,V$24:V$1764,0)) -> 1024 | X71: -7 | Y71: =IF(X71="… ","… ",RANK(X71,X$24:X$1764,0)) -> 1325 | AA71: -38 | AB71: =IF(AA71="… ","… ",RANK(AA71,AA$24:AA$1764,0)) -> 1029 | AC71: -9 | AD71: =IF(AC71="… ","… ",RANK(AC71,AC$24:AC$1764,0)) -> 921 | AE71: -7 | AF71: =IF(AE71="… ","… ",RANK(AE71,AE$24:AE$1764,0)) -> 617 | AG71: 5 | AH71: =IF(AG71="… ","… ",RANK(AG71,AG$24:AG$1764,0)) -> 338 | AI71: -7 | AJ71: =IF(AI71="… ","… ",RANK(AI71,AI$24:AI$1764,0)) -> 1227 | AK71: -3 | AL71: =IF(AK71="… ","… ",RANK(AK71,AK$24:AK$1764,0)) -> 1100 | AM71: 0 | AN71: =IF(AM71="… ","… ",RANK(AM71,AM$24:AM$1764,0)) -> 784 | AO71: 1 | AP71: =IF(AO71="… ","… ",RANK(AO71,AO$24:AO$1764,0)) -> 637 | AR71: -55 | AS71: 1065 | AT71: -9 | AU71: 972 | AV71: -13 | AW71: 694 | AX71: -4 | AY71: 817 | AZ71: -1 | BA71: 816 | BB71: -2 | BC71: 968 | BD71: -3 | BE71: 1096 | BF71: -8 | BG71: 1497
B72: 49 | C72: 1 | D72: 北海道 | E72: 1363 | F72: 厚沢部町 | J72: -35 | K72: 702 | L72: -11 | M72: 755 | N72: -11 | O72: =IF(N72="… ","… ",RANK(N72,N$24:N$1764,0)) -> 481 | P72: 0 | Q72: =IF(P72="… ","… ",RANK(P72,P$24:P$1764,0)) -> 532 | R72: -1 | S72: =IF(R72="… ","… ",RANK(R72,R$24:R$1764,0)) -> 793 | T72: 2 | U72: =IF(T72="… ","… ",RANK(T72,T$24:T$1764,0)) -> 639 | V72: -5 | W72: =IF(V72="… ","… ",RANK(V72,V$24:V$1764,0)) -> 1153 | X72: 3 | Y72: =IF(X72="… ","… ",RANK(X72,X$24:X$1764,0)) -> 487 | AA72: -13 | AB72: =IF(AA72="… ","… ",RANK(AA72,AA$24:AA$1764,0)) -> 704 | AC72: -10 | AD72: =IF(AC72="… ","… ",RANK(AC72,AC$24:AC$1764,0)) -> 974 | AE72: -1 | AF72: =IF(AE72="… ","… ",RANK(AE72,AE$24:AE$1764,0)) -> 372 | AG72: -1 | AH72: =IF(AG72="… ","… ",RANK(AG72,AG$24:AG$1764,0)) -> 634 | AI72: 1 | AJ72: =IF(AI72="… ","… ",RANK(AI72,AI$24:AI$1764,0)) -> 670 | AK72: 1 | AL72: =IF(AK72="… ","… ",RANK(AK72,AK$24:AK$1764,0)) -> 677 | AM72: -2 | AN72: =IF(AM72="… ","… ",RANK(AM72,AM$24:AM$1764,0)) -> 1055 | AO72: 2 | AP72: =IF(AO72="… ","… ",RANK(AO72,AO$24:AO$1764,0)) -> 528 | AR72: -22 | AS72: 709 | AT72: -1 | AU72: 422 | AV72: -10 | AW72: 593 | AX72: 1 | AY72: 504 | AZ72: -2 | BA72: 900 | BB72: 1 | BC72: 663 | BD72: -3 | BE72: 1096 | BF72: 1 | BG72: 542
B73: 50 | C73: 1 | D73: 北海道 | E73: 1364 | F73: 乙部町 | J73: -14 | K73: 545 | L73: -13 | M73: 823 | N73: 1 | O73: =IF(N73="… ","… ",RANK(N73,N$24:N$1764,0)) -> 253 | P73: 6 | Q73: =IF(P73="… ","… ",RANK(P73,P$24:P$1764,0)) -> 369 | R73: -6 | S73: =IF(R73="… ","… ",RANK(R73,R$24:R$1764,0)) -> 1028 | T73: -2 | U73: =IF(T73="… ","… ",RANK(T73,T$24:T$1764,0)) -> 914 | V73: -1 | W73: =IF(V73="… ","… ",RANK(V73,V$24:V$1764,0)) -> 852 | X73: 2 | Y73: =IF(X73="… ","… ",RANK(X73,X$24:X$1764,0)) -> 548 | AA73: -10 | AB73: =IF(AA73="… ","… ",RANK(AA73,AA$24:AA$1764,0)) -> 655 | AC73: -5 | AD73: =IF(AC73="… ","… ",RANK(AC73,AC$24:AC$1764,0)) -> 715 | AE73: 0 | AF73: =IF(AE73="… ","… ",RANK(AE73,AE$24:AE$1764,0)) -> 330 | AG73: 3 | AH73: =IF(AG73="… ","… ",RANK(AG73,AG$24:AG$1764,0)) -> 418 | AI73: -4 | AJ73: =IF(AI73="… ","… ",RANK(AI73,AI$24:AI$1764,0)) -> 1063 | AK73: -2 | AL73: =IF(AK73="… ","… ",RANK(AK73,AK$24:AK$1764,0)) -> 1010 | AM73: -3 | AN73: =IF(AM73="… ","… ",RANK(AM73,AM$24:AM$1764,0)) -> 1153 | AO73: 0 | AP73: =IF(AO73="… ","… ",RANK(AO73,AO$24:AO$1764,0)) -> 791 | AR73: -4 | AS73: 470 | AT73: -8 | AU73: 915 | AV73: 1 | AW73: 217 | AX73: 3 | AY73: 411 | AZ73: -2 | BA73: 900 | BB73: 0 | BC73: 756 | BD73: 2 | BE73: 477 | BF73: 2 | BG73: 432
B74: 51 | C74: 1 | D74: 北海道 | E74: 1367 | F74: 奥尻町 | J74: -35 | K74: 702 | L74: 2 | M74: 342 | N74: 10 | O74: =IF(N74="… ","… ",RANK(N74,N$24:N$1764,0)) -> 171 | P74: -4 | Q74: =IF(P74="… ","… ",RANK(P74,P$24:P$1764,0)) -> 691 | R74: -2 | S74: =IF(R74="… ","… ",RANK(R74,R$24:R$1764,0)) -> 842 | T74: -1 | U74: =IF(T74="… ","… ",RANK(T74,T$24:T$1764,0)) -> 846 | V74: -5 | W74: =IF(V74="… ","… ",RANK(V74,V$24:V$1764,0)) -> 1153 | X74: -3 | Y74: =IF(X74="… ","… ",RANK(X74,X$24:X$1764,0)) -> 1042 | AA74: -9 | AB74: =IF(AA74="… ","… ",RANK(AA74,AA$24:AA$1764,0)) -> 629 | AC74: 5 | AD74: =IF(AC74="… ","… ",RANK(AC74,AC$24:AC$1764,0)) -> 299 | AE74: 14 | AF74: =IF(AE74="… ","… ",RANK(AE74,AE$24:AE$1764,0)) -> 155 | AG74: -3 | AH74: =IF(AG74="… ","… ",RANK(AG74,AG$24:AG$1764,0)) -> 769 | AI74: -1 | AJ74: =IF(AI74="… ","… ",RANK(AI74,AI$24:AI$1764,0)) -> 825 | AK74: 0 | AL74: =IF(AK74="… ","… ",RANK(AK74,AK$24:AK$1764,0)) -> 783 | AM74: -1 | AN74: =IF(AM74="… ","… ",RANK(AM74,AM$24:AM$1764,0)) -> 928 | AO74: -4 | AP74: =IF(AO74="… ","… ",RANK(AO74,AO$24:AO$1764,0)) -> 1295 | AR74: -26 | AS74: 747 | AT74: -3 | AU74: 579 | AV74: -4 | AW74: 381 | AX74: -1 | AY74: 637 | AZ74: -1 | BA74: 816 | BB74: -1 | BC74: 873 | BD74: -4 | BE74: 1199 | BF74: 1 | BG74: 542
B75: 52 | C75: 1 | D75: 北海道 | E75: 1370 | F75: 今金町 | J75: -39 | K75: 729 | L75: -15 | M75: 877 | N75: -5 | O75: =IF(N75="… ","… ",RANK(N75,N$24:N$1764,0)) -> 356 | P75: -4 | Q75: =IF(P75="… ","… ",RANK(P75,P$24:P$1764,0)) -> 691 | R75: 2 | S75: =IF(R75="… ","… ",RANK(R75,R$24:R$1764,0)) -> 650 | T75: 0 | U75: =IF(T75="… ","… ",RANK(T75,T$24:T$1764,0)) -> 777 | V75: 13 | W75: =IF(V75="… ","… ",RANK(V75,V$24:V$1764,0)) -> 249 | X75: -1 | Y75: =IF(X75="… ","… ",RANK(X75,X$24:X$1764,0)) -> 835 | AA75: -14 | AB75: =IF(AA75="… ","… ",RANK(AA75,AA$24:AA$1764,0)) -> 718 | AC75: -8 | AD75: =IF(AC75="… ","… ",RANK(AC75,AC$24:AC$1764,0)) -> 865 | AE75: -2 | AF75: =IF(AE75="… ","… ",RANK(AE75,AE$24:AE$1764,0)) -> 410 | AG75: 2 | AH75: =IF(AG75="… ","… ",RANK(AG75,AG$24:AG$1764,0)) -> 463 | AI75: -2 | AJ75: =IF(AI75="… ","… ",RANK(AI75,AI$24:AI$1764,0)) -> 906 | AK75: -4 | AL75: =IF(AK75="… ","… ",RANK(AK75,AK$24:AK$1764,0)) -> 1200 | AM75: 12 | AN75: =IF(AM75="… ","… ",RANK(AM75,AM$24:AM$1764,0)) -> 196 | AO75: 1 | AP75: =IF(AO75="… ","… ",RANK(AO75,AO$24:AO$1764,0)) -> 637 | AR75: -25 | AS75: 738 | AT75: -7 | AU75: 859 | AV75: -3 | AW75: 348 | AX75: -6 | AY75: 925 | AZ75: 4 | BA75: 474 | BB75: 4 | BC75: 448 | BD75: 1 | BE75: 576 | BF75: -2 | BG75: 999
B76: 53 | C76: 1 | D76: 北海道 | E76: 1371 | F76: せたな町 | J76: -50 | K76: 807 | L76: -32 | M76: 1249 | N76: -10 | O76: =IF(N76="… ","… ",RANK(N76,N$24:N$1764,0)) -> 461 | P76: -2 | Q76: =IF(P76="… ","… ",RANK(P76,P$24:P$1764,0)) -> 611 | R76: 3 | S76: =IF(R76="… ","… ",RANK(R76,R$24:R$1764,0)) -> 609 | T76: -1 | U76: =IF(T76="… ","… ",RANK(T76,T$24:T$1764,0)) -> 846 | V76: 0 | W76: =IF(V76="… ","… ",RANK(V76,V$24:V$1764,0)) -> 754 | X76: 8 | Y76: =IF(X76="… ","… ",RANK(X76,X$24:X$1764,0)) -> 289 | AA76: -11 | AB76: =IF(AA76="… ","… ",RANK(AA76,AA$24:AA$1764,0)) -> 670 | AC76: -19 | AD76: =IF(AC76="… ","… ",RANK(AC76,AC$24:AC$1764,0)) -> 1260 | AE76: 2 | AF76: =IF(AE76="… ","… ",RANK(AE76,AE$24:AE$1764,0)) -> 264 | AG76: -1 | AH76: =IF(AG76="… ","… ",RANK(AG76,AG$24:AG$1764,0)) -> 634 | AI76: 3 | AJ76: =IF(AI76="… ","… ",RANK(AI76,AI$24:AI$1764,0)) -> 536 | AK76: -4 | AL76: =IF(AK76="… ","… ",RANK(AK76,AK$24:AK$1764,0)) -> 1200 | AM76: 2 | AN76: =IF(AM76="… ","… ",RANK(AM76,AM$24:AM$1764,0)) -> 567 | AO76: 5 | AP76: =IF(AO76="… ","… ",RANK(AO76,AO$24:AO$1764,0)) -> 318 | AR76: -39 | AS76: 902 | AT76: -13 | AU76: 1150 | AV76: -12 | AW76: 667 | AX76: -1 | AY76: 637 | AZ76: 0 | BA76: 730 | BB76: 3 | BC76: 500 | BD76: -2 | BE76: 988 | BF76: 3 | BG76: 346
B77: 54 | C77: 1 | D77: 北海道 | E77: 1391 | F77: 島牧村 | J77: -8 | K77: 496 | L77: -5 | M77: 560 | N77: 7 | O77: =IF(N77="… ","… ",RANK(N77,N$24:N$1764,0)) -> 197 | P77: 4 | Q77: =IF(P77="… ","… ",RANK(P77,P$24:P$1764,0)) -> 413 | R77: 3 | S77: =IF(R77="… ","… ",RANK(R77,R$24:R$1764,0)) -> 609 | T77: 2 | U77: =IF(T77="… ","… ",RANK(T77,T$24:T$1764,0)) -> 639 | V77: 2 | W77: =IF(V77="… ","… ",RANK(V77,V$24:V$1764,0)) -> 588 | X77: -5 | Y77: =IF(X77="… ","… ",RANK(X77,X$24:X$1764,0)) -> 1206 | AA77: 3 | AB77: =IF(AA77="… ","… ",RANK(AA77,AA$24:AA$1764,0)) -> 447 | AC77: -3 | AD77: =IF(AC77="… ","… ",RANK(AC77,AC$24:AC$1764,0)) -> 578 | AE77: 4 | AF77: =IF(AE77="… ","… ",RANK(AE77,AE$24:AE$1764,0)) -> 239 | AG77: 4 | AH77: =IF(AG77="… ","… ",RANK(AG77,AG$24:AG$1764,0)) -> 378 | AI77: 2 | AJ77: =IF(AI77="… ","… ",RANK(AI77,AI$24:AI$1764,0)) -> 591 | AK77: 3 | AL77: =IF(AK77="… ","… ",RANK(AK77,AK$24:AK$1764,0)) -> 522 | AM77: 0 | AN77: =IF(AM77="… ","… ",RANK(AM77,AM$24:AM$1764,0)) -> 784 | AO77: -2 | AP77: =IF(AO77="… ","… ",RANK(AO77,AO$24:AO$1764,0)) -> 1092 | AR77: -11 | AS77: 571 | AT77: -2 | AU77: 502 | AV77: 3 | AW77: 188 | AX77: 0 | AY77: 569 | AZ77: 1 | BA77: 654 | BB77: -1 | BC77: 873 | BD77: 2 | BE77: 477 | BF77: -3 | BG77: 1138
B78: 55 | C78: 1 | D78: 北海道 | E78: 1392 | F78: 寿都町 | J78: -55 | K78: 841 | L78: -13 | M78: 823 | N78: -1 | O78: =IF(N78="… ","… ",RANK(N78,N$24:N$1764,0)) -> 287 | P78: 5 | Q78: =IF(P78="… ","… ",RANK(P78,P$24:P$1764,0)) -> 389 | R78: -7 | S78: =IF(R78="… ","… ",RANK(R78,R$24:R$1764,0)) -> 1064 | T78: -8 | U78: =IF(T78="… ","… ",RANK(T78,T$24:T$1764,0)) -> 1228 | V78: -7 | W78: =IF(V78="… ","… ",RANK(V78,V$24:V$1764,0)) -> 1253 | X78: -2 | Y78: =IF(X78="… ","… ",RANK(X78,X$24:X$1764,0)) -> 949 | AA78: -16 | AB78: =IF(AA78="… ","… ",RANK(AA78,AA$24:AA$1764,0)) -> 756 | AC78: -5 | AD78: =IF(AC78="… ","… ",RANK(AC78,AC$24:AC$1764,0)) -> 715 | AE78: 3 | AF78: =IF(AE78="… ","… ",RANK(AE78,AE$24:AE$1764,0)) -> 248 | AG78: 0 | AH78: =IF(AG78="… ","… ",RANK(AG78,AG$24:AG$1764,0)) -> 560 | AI78: -5 | AJ78: =IF(AI78="… ","… ",RANK(AI78,AI$24:AI$1764,0)) -> 1132 | AK78: -1 | AL78: =IF(AK78="… ","… ",RANK(AK78,AK$24:AK$1764,0)) -> 903 | AM78: -3 | AN78: =IF(AM78="… ","… ",RANK(AM78,AM$24:AM$1764,0)) -> 1153 | AO78: -3 | AP78: =IF(AO78="… ","… ",RANK(AO78,AO$24:AO$1764,0)) -> 1202 | AR78: -39 | AS78: 902 | AT78: -8 | AU78: 915 | AV78: -4 | AW78: 381 | AX78: 5 | AY78: 349 | AZ78: -2 | BA78: 900 | BB78: -7 | BC78: 1338 | BD78: -4 | BE78: 1199 | BF78: 1 | BG78: 542
